Workbook

Sheet TRAYECTORIA
C2: FORMATO DE CONTROL DE MEDICIÓN DE TRAYECTORIA | P2: KP-F-GO-23 V.0 FEB-2023
B7: CLIENTE: | G7: OBSERVACIONES | K7: DATOS TEÓRICOS | O7: DATOS DE TERRENO
B8: PROYECTO: | K8: Profundidad | O8: Profundidad
B9: POZO: | K9: Azimut Teórico | O9: Azimut
B10: FECHA: | K10: Inclinación Teórica | O10: Inclinación
B11: TIPO DE INSTRUMENTO: | K11: COORDENADAS TEÓRICAS | O11: COORDENADAS FINALES
B12: UBICACIÓN: | K12: NORTE | L12: 0 | O12: Norte | P12: 0
B13: OPERADOR: | K13: ESTE | L13: 0 | O13: Este | P13: 0
B14: ESTACIONES REGISTRADAS: | K14: COTA | L14: 0 | O14: Cota | P14: 0
B15: MAQUINA:
B16: PLATAFORMA:
K17: Angulo X | L17: 144 | O17: Angulo X | P17: 237
B18: MEDICIONES GYRO % DE PROFUNDIDAD | K18: Angulo Y | L18: 140 | O18: Angulo Y | P18: 194
K19: Angulo Z | L19: 149 | O19: Angulo Z | P19: 131
B20: Pozo | C20: Profundidad | D20: Inclinación | E20: Azimut | F20: Este | G20: Norte | H20: Cota | I20: % DESV | K20: Zoom | L20: 828 | O20: Zoom | P20: 230
F21: =QAQC!E7 -> 0 | G21: =QAQC!D7 -> 0 | H21: =QAQC!F7 -> 0 | I21: =QAQC!X7 -> N/A
F22: =QAQC!E8 ->  | G22: =QAQC!D8 ->  | H22: =QAQC!F8 ->  | I22: =QAQC!X8 -> 
F23: =QAQC!E9 ->  | G23: =QAQC!D9 ->  | H23: =QAQC!F9 ->  | I23: =QAQC!X9 -> 
F24: =QAQC!E10 ->  | G24: =QAQC!D10 ->  | H24: =QAQC!F10 ->  | I24: =QAQC!X10 -> 
F25: =QAQC!E11 ->  | G25: =QAQC!D11 ->  | H25: =QAQC!F11 ->  | I25: =QAQC!X11 -> 
F26: =QAQC!E12 ->  | G26: =QAQC!D12 ->  | H26: =QAQC!F12 ->  | I26: =QAQC!X12 -> 
F27: =QAQC!E13 ->  | G27: =QAQC!D13 ->  | H27: =QAQC!F13 ->  | I27: =QAQC!X13 -> 
F28: =QAQC!E14 ->  | G28: =QAQC!D14 ->  | H28: =QAQC!F14 ->  | I28: =QAQC!X14 -> 
F29: =QAQC!E15 ->  | G29: =QAQC!D15 ->  | H29: =QAQC!F15 ->  | I29: =QAQC!X15 -> 
F30: =QAQC!E16 ->  | G30: =QAQC!D16 ->  | H30: =QAQC!F16 ->  | I30: =QAQC!X16 -> 
F31: =QAQC!E17 ->  | G31: =QAQC!D17 ->  | H31: =QAQC!F17 ->  | I31: =QAQC!X17 -> 
F32: =QAQC!E18 ->  | G32: =QAQC!D18 ->  | H32: =QAQC!F18 ->  | I32: =QAQC!X18 -> 
F33: =QAQC!E19 ->  | G33: =QAQC!D19 ->  | H33: =QAQC!F19 ->  | I33: =QAQC!X19 -> 
F34: =QAQC!E20 ->  | G34: =QAQC!D20 ->  | H34: =QAQC!F20 ->  | I34: =QAQC!X20 -> 
F35: =QAQC!E21 ->  | G35: =QAQC!D21 ->  | H35: =QAQC!F21 ->  | I35: =QAQC!X21 -> 
F36: =QAQC!E22 ->  | G36: =QAQC!D22 ->  | H36: =QAQC!F22 ->  | I36: =QAQC!X22 -> 
F37: =QAQC!E23 ->  | G37: =QAQC!D23 ->  | H37: =QAQC!F23 ->  | I37: =QAQC!X23 -> 
F38: =QAQC!E24 ->  | G38: =QAQC!D24 ->  | H38: =QAQC!F24 ->  | I38: =QAQC!X24 -> 
F39: =QAQC!E25 ->  | G39: =QAQC!D25 ->  | H39: =QAQC!F25 ->  | I39: =QAQC!X25 -> 
B40: =IF(C40<>"",$H$9,"") ->  | F40: =QAQC!E26 ->  | G40: =QAQC!D26 ->  | H40: =QAQC!F26 ->  | I40: =QAQC!X26 -> 
F41: =QAQC!E27 ->  | G41: =QAQC!D27 ->  | H41: =QAQC!F27 ->  | I41: =QAQC!X27 -> 
F42: =QAQC!E28 ->  | G42: =QAQC!D28 ->  | H42: =QAQC!F28 ->  | I42: =QAQC!X28 -> 
F43: =QAQC!E29 ->  | G43: =QAQC!D29 ->  | H43: =QAQC!F29 ->  | I43: =QAQC!X29 -> 
F44: =QAQC!E115 ->  | G44: =QAQC!D115 ->  | H44: =QAQC!F115 ->  | I44: =QAQC!X115 -> 
F45: =QAQC!E116 ->  | G45: =QAQC!D116 ->  | H45: =QAQC!F116 ->  | I45: =QAQC!X116 -> 
F46: =QAQC!E117 ->  | G46: =QAQC!D117 ->  | H46: =QAQC!F117 ->  | I46: =QAQC!X117 -> 
F47: =QAQC!E118 ->  | G47: =QAQC!D118 ->  | H47: =QAQC!F118 ->  | I47: =QAQC!X118 -> 
F48: =QAQC!E119 ->  | G48: =QAQC!D119 ->  | H48: =QAQC!F119 ->  | I48: =QAQC!X119 -> 
F49: =QAQC!E120 ->  | G49: =QAQC!D120 ->  | H49: =QAQC!F120 ->  | I49: =QAQC!X120 -> 
F50: =QAQC!E121 ->  | G50: =QAQC!D121 ->  | H50: =QAQC!F121 ->  | I50: =QAQC!X121 -> 
F51: =QAQC!E122 ->  | G51: =QAQC!D122 ->  | H51: =QAQC!F122 ->  | I51: =QAQC!X122 -> 
F52: =QAQC!E123 ->  | G52: =QAQC!D123 ->  | H52: =QAQC!F123 ->  | I52: =QAQC!X123 -> 
F53: =QAQC!E124 ->  | G53: =QAQC!D124 ->  | H53: =QAQC!F124 ->  | I53: =QAQC!X124 -> 
F54: =QAQC!E125 ->  | G54: =QAQC!D125 ->  | H54: =QAQC!F125 ->  | I54: =QAQC!X125 -> 
F55: =QAQC!E126 ->  | G55: =QAQC!D126 ->  | H55: =QAQC!F126 ->  | I55: =QAQC!X126 -> 
F56: =QAQC!E127 ->  | G56: =QAQC!D127 ->  | H56: =QAQC!F127 ->  | I56: =QAQC!X127 -> 
F57: =QAQC!E128 ->  | G57: =QAQC!D128 ->  | H57: =QAQC!F128 ->  | I57: =QAQC!X128 -> 
F58: =QAQC!E129 ->  | G58: =QAQC!D129 ->  | H58: =QAQC!F129 ->  | I58: =QAQC!X129 -> 
F59: =QAQC!E130 ->  | G59: =QAQC!D130 ->  | H59: =QAQC!F130 ->  | I59: =QAQC!X130 -> 
F60: =QAQC!E131 ->  | G60: =QAQC!D131 ->  | H60: =QAQC!F131 ->  | I60: =QAQC!X131 -> 
F61: =QAQC!E132 ->  | G61: =QAQC!D132 ->  | H61: =QAQC!F132 ->  | I61: =QAQC!X132 -> 
F62: =QAQC!E133 ->  | G62: =QAQC!D133 ->  | H62: =QAQC!F133 ->  | I62: =QAQC!X133 -> 
F63: =QAQC!E134 ->  | G63: =QAQC!D134 ->  | H63: =QAQC!F134 ->  | I63: =QAQC!X134 -> 
B64: =IF(C64<>"",$H$9,"") ->  | F64: =QAQC!E135 ->  | G64: =QAQC!D135 ->  | H64: =QAQC!F135 ->  | I64: =QAQC!X135 -> 
F65: =QAQC!E136 ->  | G65: =QAQC!D136 ->  | H65: =QAQC!F136 ->  | I65: =QAQC!X136 -> 
F66: =QAQC!E137 ->  | G66: =QAQC!D137 ->  | H66: =QAQC!F137 ->  | I66: =QAQC!X137 -> 
F67: =QAQC!E138 ->  | G67: =QAQC!D138 ->  | H67: =QAQC!F138 ->  | I67: =QAQC!X138 -> 
F68: =QAQC!E139 ->  | G68: =QAQC!D139 ->  | H68: =QAQC!F139 ->  | I68: =QAQC!X139 -> 
F69: =QAQC!E140 ->  | G69: =QAQC!D140 ->  | H69: =QAQC!F140 ->  | I69: =QAQC!X140 -> 
F70: =QAQC!E141 ->  | G70: =QAQC!D141 ->  | H70: =QAQC!F141 ->  | I70: =QAQC!X141 -> 
F71: =QAQC!E142 ->  | G71: =QAQC!D142 ->  | H71: =QAQC!F142 ->  | I71: =QAQC!X142 -> 
F72: =QAQC!E143 ->  | G72: =QAQC!D143 ->  | H72: =QAQC!F143 ->  | I72: =QAQC!X143 -> 
F73: =QAQC!E144 ->  | G73: =QAQC!D144 ->  | H73: =QAQC!F144 ->  | I73: =QAQC!X144 -> 
F74: =QAQC!E145 ->  | G74: =QAQC!D145 ->  | H74: =QAQC!F145 ->  | I74: =QAQC!X145 -> 
F75: =QAQC!E146 ->  | G75: =QAQC!D146 ->  | H75: =QAQC!F146 ->  | I75: =QAQC!X146 -> 
F76: =QAQC!E147 ->  | G76: =QAQC!D147 ->  | H76: =QAQC!F147 ->  | I76: =QAQC!X147 -> 
F77: =QAQC!E148 ->  | G77: =QAQC!D148 ->  | H77: =QAQC!F148 ->  | I77: =QAQC!X148 -> 
F78: =QAQC!E149 ->  | G78: =QAQC!D149 ->  | H78: =QAQC!F149 ->  | I78: =QAQC!X149 -> 
F79: =QAQC!E150 ->  | G79: =QAQC!D150 ->  | H79: =QAQC!F150 ->  | I79: =QAQC!X150 -> 
F80: =QAQC!E151 ->  | G80: =QAQC!D151 ->  | H80: =QAQC!F151 ->  | I80: =QAQC!X151 -> 
F81: =QAQC!E152 ->  | G81: =QAQC!D152 ->  | H81: =QAQC!F152 ->  | I81: =QAQC!X152 -> 
F82: =QAQC!E153 ->  | G82: =QAQC!D153 ->  | H82: =QAQC!F153 ->  | I82: =QAQC!X153 -> 
F83: =QAQC!E154 ->  | G83: =QAQC!D154 ->  | H83: =QAQC!F154 ->  | I83: =QAQC!X154 -> 
F84: =QAQC!E155 ->  | G84: =QAQC!D155 ->  | H84: =QAQC!F155 ->  | I84: =QAQC!X155 -> 
F85: =QAQC!E156 ->  | G85: =QAQC!D156 ->  | H85: =QAQC!F156 ->  | I85: =QAQC!X156 -> 
F86: =QAQC!E157 ->  | G86: =QAQC!D157 ->  | H86: =QAQC!F157 ->  | I86: =QAQC!X157 -> 
F87: =QAQC!E158 ->  | G87: =QAQC!D158 ->  | H87: =QAQC!F158 ->  | I87: =QAQC!X158 -> 
F88: =QAQC!E159 ->  | G88: =QAQC!D159 ->  | H88: =QAQC!F159 ->  | I88: =QAQC!X159 -> 
B128: =IF(C128<>"",$H$9,"") -> 
F154: =QAQC!E225 ->  | G154: =QAQC!D225 ->  | H154: =QAQC!F225 ->  | I154: =QAQC!X225 -> 
F155: =QAQC!E226 ->  | G155: =QAQC!D226 ->  | H155: =QAQC!F226 ->  | I155: =QAQC!X226 -> 
F156: =QAQC!E227 ->  | G156: =QAQC!D227 ->  | H156: =QAQC!F227 ->  | I156: =QAQC!X227 -> 
F157: =QAQC!E228 ->  | G157: =QAQC!D228 ->  | H157: =QAQC!F228 ->  | I157: =QAQC!X228 -> 
F158: =QAQC!E229 ->  | G158: =QAQC!D229 ->  | H158: =QAQC!F229 ->  | I158: =QAQC!X229 -> 
F159: =QAQC!E230 ->  | G159: =QAQC!D230 ->  | H159: =QAQC!F230 ->  | I159: =QAQC!X230 -> 
F160: =QAQC!E231 ->  | G160: =QAQC!D231 ->  | H160: =QAQC!F231 ->  | I160: =QAQC!X231 -> 
F161: =QAQC!E232 ->  | G161: =QAQC!D232 ->  | H161: =QAQC!F232 ->  | I161: =QAQC!X232 -> 
F162: =QAQC!E233 ->  | G162: =QAQC!D233 ->  | H162: =QAQC!F233 ->  | I162: =QAQC!X233 -> 
F163: =QAQC!E234 ->  | G163: =QAQC!D234 ->  | H163: =QAQC!F234 ->  | I163: =QAQC!X234 -> 
F164: =QAQC!E235 ->  | G164: =QAQC!D235 ->  | H164: =QAQC!F235 ->  | I164: =QAQC!X235 -> 
F165: =QAQC!E236 ->  | G165: =QAQC!D236 ->  | H165: =QAQC!F236 ->  | I165: =QAQC!X236 -> 
F166: =QAQC!E237 ->  | G166: =QAQC!D237 ->  | H166: =QAQC!F237 ->  | I166: =QAQC!X237 -> 
F167: =QAQC!E238 ->  | G167: =QAQC!D238 ->  | H167: =QAQC!F238 ->  | I167: =QAQC!X238 -> 
F168: =QAQC!E239 ->  | G168: =QAQC!D239 ->  | H168: =QAQC!F239 ->  | I168: =QAQC!X239 -> 
F169: =QAQC!E240 ->  | G169: =QAQC!D240 ->  | H169: =QAQC!F240 ->  | I169: =QAQC!X240 -> 
F170: =QAQC!E241 ->  | G170: =QAQC!D241 ->  | H170: =QAQC!F241 ->  | I170: =QAQC!X241 -> 
F171: =QAQC!E242 ->  | G171: =QAQC!D242 ->  | H171: =QAQC!F242 ->  | I171: =QAQC!X242 -> 
F172: =QAQC!E243 ->  | G172: =QAQC!D243 ->  | H172: =QAQC!F243 ->  | I172: =QAQC!X243 -> 
F173: =QAQC!E244 ->  | G173: =QAQC!D244 ->  | H173: =QAQC!F244 ->  | I173: =QAQC!X244 -> 
F174: =QAQC!E245 ->  | G174: =QAQC!D245 ->  | H174: =QAQC!F245 ->  | I174: =QAQC!X245 -> 
F175: =QAQC!E246 ->  | G175: =QAQC!D246 ->  | H175: =QAQC!F246 ->  | I175: =QAQC!X246 -> 
F176: =QAQC!E247 ->  | G176: =QAQC!D247 ->  | H176: =QAQC!F247 ->  | I176: =QAQC!X247 -> 
F177: =QAQC!E248 ->  | G177: =QAQC!D248 ->  | H177: =QAQC!F248 ->  | I177: =QAQC!X248 -> 
F178: =QAQC!E249 ->  | G178: =QAQC!D249 ->  | H178: =QAQC!F249 ->  | I178: =QAQC!X249 -> 
F179: =QAQC!E250 ->  | G179: =QAQC!D250 ->  | H179: =QAQC!F250 ->  | I179: =QAQC!X250 -> 
F180: =QAQC!E251 ->  | G180: =QAQC!D251 ->  | H180: =QAQC!F251 ->  | I180: =QAQC!X251 -> 
F181: =QAQC!E252 ->  | G181: =QAQC!D252 ->  | H181: =QAQC!F252 ->  | I181: =QAQC!X252 -> 
F182: =QAQC!E253 ->  | G182: =QAQC!D253 ->  | H182: =QAQC!F253 ->  | I182: =QAQC!X253 -> 
F183: =QAQC!E254 ->  | G183: =QAQC!D254 ->  | H183: =QAQC!F254 ->  | I183: =QAQC!X254 -> 
F184: =QAQC!E255 ->  | G184: =QAQC!D255 ->  | H184: =QAQC!F255 ->  | I184: =QAQC!X255 -> 
F185: =QAQC!E256 ->  | G185: =QAQC!D256 ->  | H185: =QAQC!F256 ->  | I185: =QAQC!X256 -> 
F186: =QAQC!E257 ->  | G186: =QAQC!D257 ->  | H186: =QAQC!F257 ->  | I186: =QAQC!X257 -> 

Sheet Matriz (hidden)
A1: Angulos Calculados (Sen, Cos) | E1: Coordenadas Generación de Gráfico | H1: Coordenadas Generación de Gráfico Teorico
A2: =SIN(RADIANS(XROTATE)) -> 0.5877852523 | B2: =SIN(RADIANS(YROTATE)) -> 0.6427876097 | C2: =SIN(RADIANS(ZROTATE)) -> 0.5150380749 | E2: Coordenada X | F2: Coordenada Y | H2: Coordenada X | I2: Coordenada Y | K2: Chequeo de Celdas Vacias
A3: =COS(RADIANS(XROTATE)) -> -0.8090169944 | B3: =COS(RADIANS(YROTATE)) -> -0.7660444431 | C3: =COS(RADIANS(ZROTATE)) -> -0.8571673007 | E3: =IF(K3=FALSE,(Q4*_RMX1)+(R4*_RMY1)+(T4*_RMZ1),NA()) ->  | F3: =IF(L3=FALSE,(Q4*_RMX2)+(R4*_RMY2)+(T4*_RMZ2),NA()) ->  | H3: =IF(K3=FALSE,(W4*_RMX1)+(X4*_RMY1)+(AC4*_RMZ1),NA()) ->  | I3: =IF(L3=FALSE,(W4*_RMX2)+(X4*_RMY2)+(AC4*_RMZ2),NA()) ->  | K3: =ISBLANK(TRAYECTORIA!C21) -> TRUE | L3: =ISBLANK(TRAYECTORIA!E21) -> TRUE | M3: =ISBLANK(TRAYECTORIA!D21) -> TRUE | O3: Adaptación Az. Real | Q3: Generador de Coordenadas y Profundidades sobre Az. e Inc. | V3: Generador de Coordenadas Teoricas Sobre Az. e Inc.
E4: =IF(K4=FALSE,(Q5*_RMX1)+(R5*_RMY1)+(T5*_RMZ1),NA()) ->  | K4: =ISBLANK(TRAYECTORIA!C22) -> TRUE | L4: =ISBLANK(TRAYECTORIA!E22) -> TRUE | M4: =ISBLANK(TRAYECTORIA!D22) -> TRUE | O4: =TRAYECTORIA!E21*-1 -> 0 | Q4: 0 | R4: 0 | S4: 0 | T4: =S4*-1 -> 0 | V4: 0 | W4: 0 | X4: 0 | Y4: 0 | Z4: 0 | AC4: =Y4*-1 -> 0
A5: Matriz de Rotación | E5: =IF(K5=FALSE,(Q6*_RMX1)+(R6*_RMY1)+(T6*_RMZ1),NA()) ->  | K5: =ISBLANK(TRAYECTORIA!C23) -> TRUE | L5: =ISBLANK(TRAYECTORIA!E23) -> TRUE | M5: =ISBLANK(TRAYECTORIA!D23) -> TRUE | O5: =TRAYECTORIA!E22*-1 -> 0 | Q5: =Dn(Matriz!O4,TRAYECTORIA!D21,(TRAYECTORIA!C22-TRAYECTORIA!C21)/2)+Dn(Matriz!O5,TRAYECTORIA!D22,(TRAYECTORIA!C22-TRAYECTORIA!C21)/2)+Q4 -> 0 | R5: =De(Matriz!O4,TRAYECTORIA!D21,(TRAYECTORIA!C22-TRAYECTORIA!C21)/2)+De(Matriz!O5,TRAYECTORIA!D22,(TRAYECTORIA!C22-TRAYECTORIA!C21)/2)+R4 -> 0 | S5: =DVt(TRAYECTORIA!D21,(TRAYECTORIA!C22-TRAYECTORIA!C21)/2)+DVt(TRAYECTORIA!D22,(TRAYECTORIA!C22-TRAYECTORIA!C21)/2)+S4 -> 0 | T5: =S5*-1 -> 0 | V5: =SQRT((Q5-Q4)^2+(R5-R4)^2+(S5-S4)^2)+V4 -> 0 | W5: =Dn(Matriz!$A$74,TRAYECTORIA!$P$10,TRAYECTORIA!C22-TRAYECTORIA!C21)+W4 -> 0 | X5: =De(Matriz!$A$74,TRAYECTORIA!$P$10,TRAYECTORIA!C22-TRAYECTORIA!C21)+X4 -> 0 | Y5: =DVt(TRAYECTORIA!$P$10,TRAYECTORIA!C22-TRAYECTORIA!C21)+Y4 -> 0 | Z5: =SQRT((W5-W4)^2+(X5-X4)^2+(Y5-Y4)^2) -> 0 | AA5: =SQRT((Q5-W5)^2+(R5-X5)^2+(S5-Y5)^2) -> 0 | AB5: =AA5/Z5 ->  | AC5: =Y5*-1 -> 0
A6: =YCOS*ZCOS -> 0.6566282475 | B6: =-ZSIN * YCOS -> 0.3945420553 | C6: =YSIN -> 0.6427876097 | K6: =ISBLANK(TRAYECTORIA!C24) -> TRUE | L6: =ISBLANK(TRAYECTORIA!E24) -> TRUE | M6: =ISBLANK(TRAYECTORIA!D24) -> TRUE | O6: =TRAYECTORIA!E23*-1 -> 0 | Q6: =Dn(Matriz!O5,TRAYECTORIA!D22,(TRAYECTORIA!C23-TRAYECTORIA!C22)/2)+Dn(Matriz!O6,TRAYECTORIA!D23,(TRAYECTORIA!C23-TRAYECTORIA!C22)/2)+Q5 -> 0 | R6: =De(Matriz!O5,TRAYECTORIA!D22,(TRAYECTORIA!C23-TRAYECTORIA!C22)/2)+De(Matriz!O6,TRAYECTORIA!D23,(TRAYECTORIA!C23-TRAYECTORIA!C22)/2)+R5 -> 0 | S6: =DVt(TRAYECTORIA!D22,(TRAYECTORIA!C23-TRAYECTORIA!C22)/2)+DVt(TRAYECTORIA!D23,(TRAYECTORIA!C23-TRAYECTORIA!C22)/2)+S5 -> 0 | T6: 0 | V6: =SQRT((Q6-Q5)^2+(R6-R5)^2+(S6-S5)^2)+V5 -> 0 | W6: =Dn(Matriz!$A$74,TRAYECTORIA!$P$10,TRAYECTORIA!C23-TRAYECTORIA!C22)+W5 -> 0 | X6: =De(Matriz!$A$74,TRAYECTORIA!$P$10,TRAYECTORIA!C23-TRAYECTORIA!C22)+X5 -> 0 | Y6: =DVt(TRAYECTORIA!$P$10,TRAYECTORIA!C23-TRAYECTORIA!C22)+Y5 -> 0 | Z6: =SQRT((W6-W5)^2+(X6-X5)^2+(Y6-Y5)^2) -> 0 | AA6: =SQRT((Q6-W6)^2+(R6-X6)^2+(S6-Y6)^2) -> 0 | AB6: =AA6/Z6 ->  | AC6: =Y6*-1 -> 0
A7: =ZCOS * -YSIN * -XSIN + ZSIN * XCOS -> -0.7405304284 | B7: =-ZSIN * -YSIN * -XSIN + ZCOS*XCOS -> 0.498870673 | C7: =YCOS * -XSIN -> 0.4502696263 | K7: =ISBLANK(TRAYECTORIA!C25) -> TRUE | L7: =ISBLANK(TRAYECTORIA!E25) -> TRUE | M7: =ISBLANK(TRAYECTORIA!D25) -> TRUE | O7: =TRAYECTORIA!E24*-1 -> 0 | Q7: =Dn(Matriz!O6,TRAYECTORIA!D23,(TRAYECTORIA!C24-TRAYECTORIA!C23)/2)+Dn(Matriz!O7,TRAYECTORIA!D24,(TRAYECTORIA!C24-TRAYECTORIA!C23)/2)+Q6 -> 0 | R7: =De(Matriz!O6,TRAYECTORIA!D23,(TRAYECTORIA!C24-TRAYECTORIA!C23)/2)+De(Matriz!O7,TRAYECTORIA!D24,(TRAYECTORIA!C24-TRAYECTORIA!C23)/2)+R6 -> 0 | S7: =DVt(TRAYECTORIA!D23,(TRAYECTORIA!C24-TRAYECTORIA!C23)/2)+DVt(TRAYECTORIA!D24,(TRAYECTORIA!C24-TRAYECTORIA!C23)/2)+S6 -> 0 | T7: 0 | V7: 0 | W7: =Dn(Matriz!$A$74,TRAYECTORIA!$P$10,TRAYECTORIA!C24-TRAYECTORIA!C23)+W6 -> 0 | X7: =De(Matriz!$A$74,TRAYECTORIA!$P$10,TRAYECTORIA!C24-TRAYECTORIA!C23)+X6 -> 0 | Y7: =DVt(TRAYECTORIA!$P$10,TRAYECTORIA!C24-TRAYECTORIA!C23)+Y6 -> 0 | Z7: =SQRT((W7-W6)^2+(X7-X6)^2+(Y7-Y6)^2) -> 0 | AA7: 0 | AC7: 0
A8: =ZCOS * -YSIN * XCOS + ZSIN * XSIN -> -0.1430175836 | B8: =-ZSIN * -YSIN * XCOS + ZCOS * XSIN -> -0.7716635396 | C8: =YCOS * XCOS -> 0.6197429729 | F8: =IF(L8=FALSE,(Q9*_RMX2)+(R9*_RMY2)+(T9*_RMZ2),NA()) ->  | K8: =ISBLANK(TRAYECTORIA!C26) -> TRUE | L8: =ISBLANK(TRAYECTORIA!E26) -> TRUE | M8: =ISBLANK(TRAYECTORIA!D26) -> TRUE | O8: =TRAYECTORIA!E25*-1 -> 0 | Q8: =Dn(Matriz!O7,TRAYECTORIA!D24,(TRAYECTORIA!C25-TRAYECTORIA!C24)/2)+Dn(Matriz!O8,TRAYECTORIA!D25,(TRAYECTORIA!C25-TRAYECTORIA!C24)/2)+Q7 -> 0 | R8: =De(Matriz!O7,TRAYECTORIA!D24,(TRAYECTORIA!C25-TRAYECTORIA!C24)/2)+De(Matriz!O8,TRAYECTORIA!D25,(TRAYECTORIA!C25-TRAYECTORIA!C24)/2)+R7 -> 0 | S8: =DVt(TRAYECTORIA!D24,(TRAYECTORIA!C25-TRAYECTORIA!C24)/2)+DVt(TRAYECTORIA!D25,(TRAYECTORIA!C25-TRAYECTORIA!C24)/2)+S7 -> 0 | T8: 0 | V8: 0 | W8: =Dn(Matriz!$A$74,TRAYECTORIA!$P$10,TRAYECTORIA!C25-TRAYECTORIA!C24)+W7 -> 0 | X8: =De(Matriz!$A$74,TRAYECTORIA!$P$10,TRAYECTORIA!C25-TRAYECTORIA!C24)+X7 -> 0 | Y8: =DVt(TRAYECTORIA!$P$10,TRAYECTORIA!C25-TRAYECTORIA!C24)+Y7 -> 0 | Z8: 0 | AA8: 0 | AC8: 0
K9: =ISBLANK(TRAYECTORIA!C27) -> TRUE | L9: =ISBLANK(TRAYECTORIA!E27) -> TRUE | M9: =ISBLANK(TRAYECTORIA!D27) -> TRUE | O9: =TRAYECTORIA!E26*-1 -> 0 | Q9: =Dn(Matriz!O8,TRAYECTORIA!D25,(TRAYECTORIA!C26-TRAYECTORIA!C25)/2)+Dn(Matriz!O9,TRAYECTORIA!D26,(TRAYECTORIA!C26-TRAYECTORIA!C25)/2)+Q8 -> 0 | R9: =De(Matriz!O8,TRAYECTORIA!D25,(TRAYECTORIA!C26-TRAYECTORIA!C25)/2)+De(Matriz!O9,TRAYECTORIA!D26,(TRAYECTORIA!C26-TRAYECTORIA!C25)/2)+R8 -> 0 | S9: =DVt(TRAYECTORIA!D25,(TRAYECTORIA!C26-TRAYECTORIA!C25)/2)+DVt(TRAYECTORIA!D26,(TRAYECTORIA!C26-TRAYECTORIA!C25)/2)+S8 -> 0 | T9: 0 | V9: 0 | W9: =Dn(Matriz!$A$74,TRAYECTORIA!$P$10,TRAYECTORIA!C26-TRAYECTORIA!C25)+W8 -> 0 | X9: =De(Matriz!$A$74,TRAYECTORIA!$P$10,TRAYECTORIA!C26-TRAYECTORIA!C25)+X8 -> 0 | Y9: =DVt(TRAYECTORIA!$P$10,TRAYECTORIA!C26-TRAYECTORIA!C25)+Y8 -> 0 | Z9: 0 | AA9: 0 | AC9: 0
A10: Ejes | K10: =ISBLANK(TRAYECTORIA!C28) -> TRUE | L10: =ISBLANK(TRAYECTORIA!E28) -> TRUE | M10: =ISBLANK(TRAYECTORIA!D28) -> TRUE | O10: =TRAYECTORIA!E27*-1 -> 0 | Q10: =Dn(Matriz!O9,TRAYECTORIA!D26,(TRAYECTORIA!C27-TRAYECTORIA!C26)/2)+Dn(Matriz!O10,TRAYECTORIA!D27,(TRAYECTORIA!C27-TRAYECTORIA!C26)/2)+Q9 -> 0 | R10: =De(Matriz!O9,TRAYECTORIA!D26,(TRAYECTORIA!C27-TRAYECTORIA!C26)/2)+De(Matriz!O10,TRAYECTORIA!D27,(TRAYECTORIA!C27-TRAYECTORIA!C26)/2)+R9 -> 0 | S10: =DVt(TRAYECTORIA!D26,(TRAYECTORIA!C27-TRAYECTORIA!C26)/2)+DVt(TRAYECTORIA!D27,(TRAYECTORIA!C27-TRAYECTORIA!C26)/2)+S9 -> 0 | T10: 0 | V10: 0 | W10: =Dn(Matriz!$A$74,TRAYECTORIA!$P$10,TRAYECTORIA!C27-TRAYECTORIA!C26)+W9 -> 0 | X10: =De(Matriz!$A$74,TRAYECTORIA!$P$10,TRAYECTORIA!C27-TRAYECTORIA!C26)+X9 -> 0 | Y10: =DVt(TRAYECTORIA!$P$10,TRAYECTORIA!C27-TRAYECTORIA!C26)+Y9 -> 0 | Z10: 0 | AA10: 0 | AC10: 0
A11: X | B11: Y | C11: Z | K11: =ISBLANK(TRAYECTORIA!C29) -> TRUE | L11: =ISBLANK(TRAYECTORIA!E29) -> TRUE | M11: =ISBLANK(TRAYECTORIA!D29) -> TRUE | O11: =TRAYECTORIA!E28*-1 -> 0 | Q11: =Dn(Matriz!O10,TRAYECTORIA!D27,(TRAYECTORIA!C28-TRAYECTORIA!C27)/2)+Dn(Matriz!O11,TRAYECTORIA!D28,(TRAYECTORIA!C28-TRAYECTORIA!C27)/2)+Q10 -> 0 | R11: =De(Matriz!O10,TRAYECTORIA!D27,(TRAYECTORIA!C28-TRAYECTORIA!C27)/2)+De(Matriz!O11,TRAYECTORIA!D28,(TRAYECTORIA!C28-TRAYECTORIA!C27)/2)+R10 -> 0 | S11: =DVt(TRAYECTORIA!D27,(TRAYECTORIA!C28-TRAYECTORIA!C27)/2)+DVt(TRAYECTORIA!D28,(TRAYECTORIA!C28-TRAYECTORIA!C27)/2)+S10 -> 0 | T11: 0 | V11: 0 | W11: =Dn(Matriz!$A$74,TRAYECTORIA!$P$10,TRAYECTORIA!C28-TRAYECTORIA!C27)+W10 -> 0 | X11: =De(Matriz!$A$74,TRAYECTORIA!$P$10,TRAYECTORIA!C28-TRAYECTORIA!C27)+X10 -> 0 | Y11: =DVt(TRAYECTORIA!$P$10,TRAYECTORIA!C28-TRAYECTORIA!C27)+Y10 -> 0 | Z11: 0 | AA11: 0 | AC11: 0
A12: =0-TRAYECTORIA!L$20 -> -828 | B12: 0 | C12: 0 | K12: =ISBLANK(TRAYECTORIA!C30) -> TRUE | L12: =ISBLANK(TRAYECTORIA!E30) -> TRUE | M12: =ISBLANK(TRAYECTORIA!D30) -> TRUE | O12: =TRAYECTORIA!E29*-1 -> 0 | Q12: =Dn(Matriz!O11,TRAYECTORIA!D28,(TRAYECTORIA!C29-TRAYECTORIA!C28)/2)+Dn(Matriz!O12,TRAYECTORIA!D29,(TRAYECTORIA!C29-TRAYECTORIA!C28)/2)+Q11 -> 0 | R12: =De(Matriz!O11,TRAYECTORIA!D28,(TRAYECTORIA!C29-TRAYECTORIA!C28)/2)+De(Matriz!O12,TRAYECTORIA!D29,(TRAYECTORIA!C29-TRAYECTORIA!C28)/2)+R11 -> 0 | S12: =DVt(TRAYECTORIA!D28,(TRAYECTORIA!C29-TRAYECTORIA!C28)/2)+DVt(TRAYECTORIA!D29,(TRAYECTORIA!C29-TRAYECTORIA!C28)/2)+S11 -> 0 | T12: 0 | V12: 0 | W12: =Dn(Matriz!$A$74,TRAYECTORIA!$P$10,TRAYECTORIA!C29-TRAYECTORIA!C28)+W11 -> 0 | X12: =De(Matriz!$A$74,TRAYECTORIA!$P$10,TRAYECTORIA!C29-TRAYECTORIA!C28)+X11 -> 0 | Y12: =DVt(TRAYECTORIA!$P$10,TRAYECTORIA!C29-TRAYECTORIA!C28)+Y11 -> 0 | Z12: 0 | AA12: 0 | AC12: 0
A13: =0+TRAYECTORIA!L$20 -> 828 | B13: 0 | C13: 0 | K13: =ISBLANK(TRAYECTORIA!C31) -> TRUE | L13: =ISBLANK(TRAYECTORIA!E31) -> TRUE | M13: =ISBLANK(TRAYECTORIA!D31) -> TRUE | O13: =TRAYECTORIA!E30*-1 -> 0 | Q13: =Dn(Matriz!O12,TRAYECTORIA!D29,(TRAYECTORIA!C30-TRAYECTORIA!C29)/2)+Dn(Matriz!O13,TRAYECTORIA!D30,(TRAYECTORIA!C30-TRAYECTORIA!C29)/2)+Q12 -> 0 | R13: =De(Matriz!O12,TRAYECTORIA!D29,(TRAYECTORIA!C30-TRAYECTORIA!C29)/2)+De(Matriz!O13,TRAYECTORIA!D30,(TRAYECTORIA!C30-TRAYECTORIA!C29)/2)+R12 -> 0 | S13: =DVt(TRAYECTORIA!D29,(TRAYECTORIA!C30-TRAYECTORIA!C29)/2)+DVt(TRAYECTORIA!D30,(TRAYECTORIA!C30-TRAYECTORIA!C29)/2)+S12 -> 0 | T13: 0 | V13: 0 | W13: =Dn(Matriz!$A$74,TRAYECTORIA!$P$10,TRAYECTORIA!C30-TRAYECTORIA!C29)+W12 -> 0 | X13: =De(Matriz!$A$74,TRAYECTORIA!$P$10,TRAYECTORIA!C30-TRAYECTORIA!C29)+X12 -> 0 | Y13: =DVt(TRAYECTORIA!$P$10,TRAYECTORIA!C30-TRAYECTORIA!C29)+Y12 -> 0 | Z13: 0 | AA13: 0 | AC13: 0
A14: 0 | K14: =ISBLANK(TRAYECTORIA!C32) -> TRUE | L14: =ISBLANK(TRAYECTORIA!E32) -> TRUE | M14: =ISBLANK(TRAYECTORIA!D32) -> TRUE | O14: =TRAYECTORIA!E31*-1 -> 0 | Q14: =Dn(Matriz!O13,TRAYECTORIA!D30,(TRAYECTORIA!C31-TRAYECTORIA!C30)/2)+Dn(Matriz!O14,TRAYECTORIA!D31,(TRAYECTORIA!C31-TRAYECTORIA!C30)/2)+Q13 -> 0 | R14: =De(Matriz!O13,TRAYECTORIA!D30,(TRAYECTORIA!C31-TRAYECTORIA!C30)/2)+De(Matriz!O14,TRAYECTORIA!D31,(TRAYECTORIA!C31-TRAYECTORIA!C30)/2)+R13 -> 0 | S14: =DVt(TRAYECTORIA!D30,(TRAYECTORIA!C31-TRAYECTORIA!C30)/2)+DVt(TRAYECTORIA!D31,(TRAYECTORIA!C31-TRAYECTORIA!C30)/2)+S13 -> 0 | T14: 0 | V14: 0 | W14: =Dn(Matriz!$A$74,TRAYECTORIA!$P$10,TRAYECTORIA!C31-TRAYECTORIA!C30)+W13 -> 0 | X14: =De(Matriz!$A$74,TRAYECTORIA!$P$10,TRAYECTORIA!C31-TRAYECTORIA!C30)+X13 -> 0 | Y14: =DVt(TRAYECTORIA!$P$10,TRAYECTORIA!C31-TRAYECTORIA!C30)+Y13 -> 0 | Z14: 0 | AA14: 0 | AC14: 0
A15: 0 | B15: =0-TRAYECTORIA!L$20 -> -828 | C15: 0 | K15: =ISBLANK(TRAYECTORIA!C33) -> TRUE | L15: =ISBLANK(TRAYECTORIA!E33) -> TRUE | M15: =ISBLANK(TRAYECTORIA!D33) -> TRUE | O15: =TRAYECTORIA!E32*-1 -> 0 | Q15: =Dn(Matriz!O14,TRAYECTORIA!D31,(TRAYECTORIA!C32-TRAYECTORIA!C31)/2)+Dn(Matriz!O15,TRAYECTORIA!D32,(TRAYECTORIA!C32-TRAYECTORIA!C31)/2)+Q14 -> 0 | R15: =De(Matriz!O14,TRAYECTORIA!D31,(TRAYECTORIA!C32-TRAYECTORIA!C31)/2)+De(Matriz!O15,TRAYECTORIA!D32,(TRAYECTORIA!C32-TRAYECTORIA!C31)/2)+R14 -> 0 | S15: =DVt(TRAYECTORIA!D31,(TRAYECTORIA!C32-TRAYECTORIA!C31)/2)+DVt(TRAYECTORIA!D32,(TRAYECTORIA!C32-TRAYECTORIA!C31)/2)+S14 -> 0 | T15: 0 | V15: 0 | W15: =Dn(Matriz!$A$74,TRAYECTORIA!$P$10,TRAYECTORIA!C32-TRAYECTORIA!C31)+W14 -> 0 | X15: =De(Matriz!$A$74,TRAYECTORIA!$P$10,TRAYECTORIA!C32-TRAYECTORIA!C31)+X14 -> 0 | Y15: =DVt(TRAYECTORIA!$P$10,TRAYECTORIA!C32-TRAYECTORIA!C31)+Y14 -> 0 | Z15: 0 | AA15: 0 | AC15: 0
A16: 0 | B16: =0+TRAYECTORIA!L$20 -> 828 | C16: 0 | K16: =ISBLANK(TRAYECTORIA!C34) -> TRUE | L16: =ISBLANK(TRAYECTORIA!E34) -> TRUE | M16: =ISBLANK(TRAYECTORIA!D34) -> TRUE | O16: =TRAYECTORIA!E33*-1 -> 0 | Q16: =Dn(Matriz!O15,TRAYECTORIA!D32,(TRAYECTORIA!C33-TRAYECTORIA!C32)/2)+Dn(Matriz!O16,TRAYECTORIA!D33,(TRAYECTORIA!C33-TRAYECTORIA!C32)/2)+Q15 -> 0 | R16: =De(Matriz!O15,TRAYECTORIA!D32,(TRAYECTORIA!C33-TRAYECTORIA!C32)/2)+De(Matriz!O16,TRAYECTORIA!D33,(TRAYECTORIA!C33-TRAYECTORIA!C32)/2)+R15 -> 0 | S16: =DVt(TRAYECTORIA!D32,(TRAYECTORIA!C33-TRAYECTORIA!C32)/2)+DVt(TRAYECTORIA!D33,(TRAYECTORIA!C33-TRAYECTORIA!C32)/2)+S15 -> 0 | T16: 0 | V16: 0 | W16: =Dn(Matriz!$A$74,TRAYECTORIA!$P$10,TRAYECTORIA!C33-TRAYECTORIA!C32)+W15 -> 0 | X16: =De(Matriz!$A$74,TRAYECTORIA!$P$10,TRAYECTORIA!C33-TRAYECTORIA!C32)+X15 -> 0 | Y16: =DVt(TRAYECTORIA!$P$10,TRAYECTORIA!C33-TRAYECTORIA!C32)+Y15 -> 0 | Z16: 0 | AA16: 0 | AC16: 0
B17: 0 | K17: =ISBLANK(TRAYECTORIA!C35) -> TRUE | L17: =ISBLANK(TRAYECTORIA!E35) -> TRUE | M17: =ISBLANK(TRAYECTORIA!D35) -> TRUE | O17: =TRAYECTORIA!E34*-1 -> 0 | Q17: =Dn(Matriz!O16,TRAYECTORIA!D33,(TRAYECTORIA!C34-TRAYECTORIA!C33)/2)+Dn(Matriz!O17,TRAYECTORIA!D34,(TRAYECTORIA!C34-TRAYECTORIA!C33)/2)+Q16 -> 0 | R17: =De(Matriz!O16,TRAYECTORIA!D33,(TRAYECTORIA!C34-TRAYECTORIA!C33)/2)+De(Matriz!O17,TRAYECTORIA!D34,(TRAYECTORIA!C34-TRAYECTORIA!C33)/2)+R16 -> 0 | S17: =DVt(TRAYECTORIA!D33,(TRAYECTORIA!C34-TRAYECTORIA!C33)/2)+DVt(TRAYECTORIA!D34,(TRAYECTORIA!C34-TRAYECTORIA!C33)/2)+S16 -> 0 | T17: 0 | V17: 0 | W17: =Dn(Matriz!$A$74,TRAYECTORIA!$P$10,TRAYECTORIA!C34-TRAYECTORIA!C33)+W16 -> 0 | X17: =De(Matriz!$A$74,TRAYECTORIA!$P$10,TRAYECTORIA!C34-TRAYECTORIA!C33)+X16 -> 0 | Y17: =DVt(TRAYECTORIA!$P$10,TRAYECTORIA!C34-TRAYECTORIA!C33)+Y16 -> 0 | Z17: 0 | AA17: 0 | AC17: 0
A18: 0 | B18: 0 | C18: 0 | K18: =ISBLANK(TRAYECTORIA!C36) -> TRUE | L18: =ISBLANK(TRAYECTORIA!E36) -> TRUE | M18: =ISBLANK(TRAYECTORIA!D36) -> TRUE | O18: =TRAYECTORIA!E35*-1 -> 0 | Q18: =Dn(Matriz!O17,TRAYECTORIA!D34,(TRAYECTORIA!C35-TRAYECTORIA!C34)/2)+Dn(Matriz!O18,TRAYECTORIA!D35,(TRAYECTORIA!C35-TRAYECTORIA!C34)/2)+Q17 -> 0 | R18: =De(Matriz!O17,TRAYECTORIA!D34,(TRAYECTORIA!C35-TRAYECTORIA!C34)/2)+De(Matriz!O18,TRAYECTORIA!D35,(TRAYECTORIA!C35-TRAYECTORIA!C34)/2)+R17 -> 0 | S18: =DVt(TRAYECTORIA!D34,(TRAYECTORIA!C35-TRAYECTORIA!C34)/2)+DVt(TRAYECTORIA!D35,(TRAYECTORIA!C35-TRAYECTORIA!C34)/2)+S17 -> 0 | T18: 0 | V18: 0 | W18: =Dn(Matriz!$A$74,TRAYECTORIA!$P$10,TRAYECTORIA!C35-TRAYECTORIA!C34)+W17 -> 0 | X18: =De(Matriz!$A$74,TRAYECTORIA!$P$10,TRAYECTORIA!C35-TRAYECTORIA!C34)+X17 -> 0 | Y18: =DVt(TRAYECTORIA!$P$10,TRAYECTORIA!C35-TRAYECTORIA!C34)+Y17 -> 0 | Z18: 0 | AA18: 0 | AC18: 0
A19: 0 | B19: 0 | C19: =0+TRAYECTORIA!P$8 -> 0 | K19: =ISBLANK(TRAYECTORIA!C37) -> TRUE | L19: =ISBLANK(TRAYECTORIA!E37) -> TRUE | M19: =ISBLANK(TRAYECTORIA!D37) -> TRUE | O19: =TRAYECTORIA!E36*-1 -> 0 | Q19: =Dn(Matriz!O18,TRAYECTORIA!D35,(TRAYECTORIA!C36-TRAYECTORIA!C35)/2)+Dn(Matriz!O19,TRAYECTORIA!D36,(TRAYECTORIA!C36-TRAYECTORIA!C35)/2)+Q18 -> 0 | R19: =De(Matriz!O18,TRAYECTORIA!D35,(TRAYECTORIA!C36-TRAYECTORIA!C35)/2)+De(Matriz!O19,TRAYECTORIA!D36,(TRAYECTORIA!C36-TRAYECTORIA!C35)/2)+R18 -> 0 | S19: =DVt(TRAYECTORIA!D35,(TRAYECTORIA!C36-TRAYECTORIA!C35)/2)+DVt(TRAYECTORIA!D36,(TRAYECTORIA!C36-TRAYECTORIA!C35)/2)+S18 -> 0 | T19: 0 | V19: 0 | W19: =Dn(Matriz!$A$74,TRAYECTORIA!$P$10,TRAYECTORIA!C36-TRAYECTORIA!C35)+W18 -> 0 | X19: =De(Matriz!$A$74,TRAYECTORIA!$P$10,TRAYECTORIA!C36-TRAYECTORIA!C35)+X18 -> 0 | Y19: =DVt(TRAYECTORIA!$P$10,TRAYECTORIA!C36-TRAYECTORIA!C35)+Y18 -> 0 | Z19: 0 | AA19: 0 | AC19: 0
K20: =ISBLANK(TRAYECTORIA!C38) -> TRUE | L20: =ISBLANK(TRAYECTORIA!E38) -> TRUE | M20: =ISBLANK(TRAYECTORIA!D38) -> TRUE | O20: =TRAYECTORIA!E37*-1 -> 0 | Q20: =Dn(Matriz!O19,TRAYECTORIA!D36,(TRAYECTORIA!C37-TRAYECTORIA!C36)/2)+Dn(Matriz!O20,TRAYECTORIA!D37,(TRAYECTORIA!C37-TRAYECTORIA!C36)/2)+Q19 -> 0 | R20: =De(Matriz!O19,TRAYECTORIA!D36,(TRAYECTORIA!C37-TRAYECTORIA!C36)/2)+De(Matriz!O20,TRAYECTORIA!D37,(TRAYECTORIA!C37-TRAYECTORIA!C36)/2)+R19 -> 0 | S20: =DVt(TRAYECTORIA!D36,(TRAYECTORIA!C37-TRAYECTORIA!C36)/2)+DVt(TRAYECTORIA!D37,(TRAYECTORIA!C37-TRAYECTORIA!C36)/2)+S19 -> 0 | T20: 0 | V20: 0 | W20: =Dn(Matriz!$A$74,TRAYECTORIA!$P$10,TRAYECTORIA!C37-TRAYECTORIA!C36)+W19 -> 0 | X20: =De(Matriz!$A$74,TRAYECTORIA!$P$10,TRAYECTORIA!C37-TRAYECTORIA!C36)+X19 -> 0 | Y20: =DVt(TRAYECTORIA!$P$10,TRAYECTORIA!C37-TRAYECTORIA!C36)+Y19 -> 0 | Z20: 0 | AA20: 0 | AC20: 0
A21: +N/ -S | B21: +E/ -W | K21: =ISBLANK(TRAYECTORIA!C39) -> TRUE | L21: =ISBLANK(TRAYECTORIA!E39) -> TRUE | M21: =ISBLANK(TRAYECTORIA!D39) -> TRUE | O21: =TRAYECTORIA!E38*-1 -> 0 | Q21: =Dn(Matriz!O20,TRAYECTORIA!D37,(TRAYECTORIA!C38-TRAYECTORIA!C37)/2)+Dn(Matriz!O21,TRAYECTORIA!D38,(TRAYECTORIA!C38-TRAYECTORIA!C37)/2)+Q20 -> 0 | R21: =De(Matriz!O20,TRAYECTORIA!D37,(TRAYECTORIA!C38-TRAYECTORIA!C37)/2)+De(Matriz!O21,TRAYECTORIA!D38,(TRAYECTORIA!C38-TRAYECTORIA!C37)/2)+R20 -> 0 | S21: =DVt(TRAYECTORIA!D37,(TRAYECTORIA!C38-TRAYECTORIA!C37)/2)+DVt(TRAYECTORIA!D38,(TRAYECTORIA!C38-TRAYECTORIA!C37)/2)+S20 -> 0 | T21: 0 | V21: 0 | W21: =Dn(Matriz!$A$74,TRAYECTORIA!$P$10,TRAYECTORIA!C38-TRAYECTORIA!C37)+W20 -> 0 | X21: =De(Matriz!$A$74,TRAYECTORIA!$P$10,TRAYECTORIA!C38-TRAYECTORIA!C37)+X20 -> 0 | Y21: =DVt(TRAYECTORIA!$P$10,TRAYECTORIA!C38-TRAYECTORIA!C37)+Y20 -> 0 | Z21: 0 | AA21: 0 | AC21: 0
A22: =(A12*_RMX1)+(B12*_RMY1)+(C12*_RMZ1) -> -543.688189 | B22: =(A12*_RMX2)+(B12*_RMY2)+(C12*_RMZ2) -> 613.1591947 | C22: N | K22: =ISBLANK(TRAYECTORIA!C40) -> TRUE | L22: =ISBLANK(TRAYECTORIA!E40) -> TRUE | M22: =ISBLANK(TRAYECTORIA!D40) -> TRUE | O22: =TRAYECTORIA!E39*-1 -> 0 | Q22: =Dn(Matriz!O21,TRAYECTORIA!D38,(TRAYECTORIA!C39-TRAYECTORIA!C38)/2)+Dn(Matriz!O22,TRAYECTORIA!D39,(TRAYECTORIA!C39-TRAYECTORIA!C38)/2)+Q21 -> 0 | R22: =De(Matriz!O21,TRAYECTORIA!D38,(TRAYECTORIA!C39-TRAYECTORIA!C38)/2)+De(Matriz!O22,TRAYECTORIA!D39,(TRAYECTORIA!C39-TRAYECTORIA!C38)/2)+R21 -> 0 | S22: =DVt(TRAYECTORIA!D38,(TRAYECTORIA!C39-TRAYECTORIA!C38)/2)+DVt(TRAYECTORIA!D39,(TRAYECTORIA!C39-TRAYECTORIA!C38)/2)+S21 -> 0 | T22: 0 | V22: 0 | W22: =Dn(Matriz!$A$74,TRAYECTORIA!$P$10,TRAYECTORIA!C39-TRAYECTORIA!C38)+W21 -> 0 | X22: =De(Matriz!$A$74,TRAYECTORIA!$P$10,TRAYECTORIA!C39-TRAYECTORIA!C38)+X21 -> 0 | Y22: =DVt(TRAYECTORIA!$P$10,TRAYECTORIA!C39-TRAYECTORIA!C38)+Y21 -> 0 | Z22: 0 | AA22: 0 | AC22: 0
A23: 543.688189 | B23: -613.1591947 | C23: S | K23: =ISBLANK(TRAYECTORIA!C41) -> TRUE | L23: =ISBLANK(TRAYECTORIA!E41) -> TRUE | M23: =ISBLANK(TRAYECTORIA!D41) -> TRUE | O23: =TRAYECTORIA!E40*-1 -> 0 | Q23: =Dn(Matriz!O22,TRAYECTORIA!D39,(TRAYECTORIA!C40-TRAYECTORIA!C39)/2)+Dn(Matriz!O23,TRAYECTORIA!D40,(TRAYECTORIA!C40-TRAYECTORIA!C39)/2)+Q22 -> 0 | R23: =De(Matriz!O22,TRAYECTORIA!D39,(TRAYECTORIA!C40-TRAYECTORIA!C39)/2)+De(Matriz!O23,TRAYECTORIA!D40,(TRAYECTORIA!C40-TRAYECTORIA!C39)/2)+R22 -> 0 | S23: =DVt(TRAYECTORIA!D39,(TRAYECTORIA!C40-TRAYECTORIA!C39)/2)+DVt(TRAYECTORIA!D40,(TRAYECTORIA!C40-TRAYECTORIA!C39)/2)+S22 -> 0 | T23: 0 | V23: 0 | W23: =Dn(Matriz!$A$74,TRAYECTORIA!$P$10,TRAYECTORIA!C40-TRAYECTORIA!C39)+W22 -> 0 | X23: =De(Matriz!$A$74,TRAYECTORIA!$P$10,TRAYECTORIA!C40-TRAYECTORIA!C39)+X22 -> 0 | Y23: =DVt(TRAYECTORIA!$P$10,TRAYECTORIA!C40-TRAYECTORIA!C39)+Y22 -> 0 | Z23: 0 | AA23: 0 | AC23: 0
A24: 0 | B24: 0 | K24: =ISBLANK(TRAYECTORIA!C42) -> TRUE | L24: =ISBLANK(TRAYECTORIA!E42) -> TRUE | M24: =ISBLANK(TRAYECTORIA!D42) -> TRUE | O24: =TRAYECTORIA!E41*-1 -> 0 | Q24: =Dn(Matriz!O23,TRAYECTORIA!D40,(TRAYECTORIA!C41-TRAYECTORIA!C40)/2)+Dn(Matriz!O24,TRAYECTORIA!D41,(TRAYECTORIA!C41-TRAYECTORIA!C40)/2)+Q23 -> 0 | R24: =De(Matriz!O23,TRAYECTORIA!D40,(TRAYECTORIA!C41-TRAYECTORIA!C40)/2)+De(Matriz!O24,TRAYECTORIA!D41,(TRAYECTORIA!C41-TRAYECTORIA!C40)/2)+R23 -> 0 | S24: =DVt(TRAYECTORIA!D40,(TRAYECTORIA!C41-TRAYECTORIA!C40)/2)+DVt(TRAYECTORIA!D41,(TRAYECTORIA!C41-TRAYECTORIA!C40)/2)+S23 -> 0 | T24: 0 | V24: 0 | W24: =Dn(Matriz!$A$74,TRAYECTORIA!$P$10,TRAYECTORIA!C41-TRAYECTORIA!C40)+W23 -> 0 | X24: =De(Matriz!$A$74,TRAYECTORIA!$P$10,TRAYECTORIA!C41-TRAYECTORIA!C40)+X23 -> 0 | Y24: =DVt(TRAYECTORIA!$P$10,TRAYECTORIA!C41-TRAYECTORIA!C40)+Y23 -> 0 | Z24: 0 | AA24: 0 | AC24: 0
A25: -326.6808218 | B25: -413.0649172 | C25: W | K25: =ISBLANK(TRAYECTORIA!C43) -> TRUE | L25: =ISBLANK(TRAYECTORIA!E43) -> TRUE | M25: =ISBLANK(TRAYECTORIA!D43) -> TRUE | O25: =TRAYECTORIA!E42*-1 -> 0 | Q25: =Dn(Matriz!O24,TRAYECTORIA!D41,(TRAYECTORIA!C42-TRAYECTORIA!C41)/2)+Dn(Matriz!O25,TRAYECTORIA!D42,(TRAYECTORIA!C42-TRAYECTORIA!C41)/2)+Q24 -> 0 | R25: =De(Matriz!O24,TRAYECTORIA!D41,(TRAYECTORIA!C42-TRAYECTORIA!C41)/2)+De(Matriz!O25,TRAYECTORIA!D42,(TRAYECTORIA!C42-TRAYECTORIA!C41)/2)+R24 -> 0 | S25: =DVt(TRAYECTORIA!D41,(TRAYECTORIA!C42-TRAYECTORIA!C41)/2)+DVt(TRAYECTORIA!D42,(TRAYECTORIA!C42-TRAYECTORIA!C41)/2)+S24 -> 0 | T25: 0 | V25: 0 | W25: =Dn(Matriz!$A$74,TRAYECTORIA!$P$10,TRAYECTORIA!C42-TRAYECTORIA!C41)+W24 -> 0 | X25: =De(Matriz!$A$74,TRAYECTORIA!$P$10,TRAYECTORIA!C42-TRAYECTORIA!C41)+X24 -> 0 | Y25: =DVt(TRAYECTORIA!$P$10,TRAYECTORIA!C42-TRAYECTORIA!C41)+Y24 -> 0 | Z25: 0 | AA25: 0 | AC25: 0
A26: 326.6808218 | B26: 413.0649172 | C26: E | K26: =ISBLANK(TRAYECTORIA!#REF!) -> FALSE | L26: =ISBLANK(TRAYECTORIA!#REF!) -> FALSE | M26: =ISBLANK(TRAYECTORIA!#REF!) -> FALSE | O26: =TRAYECTORIA!E43*-1 -> 0 | Q26: =Dn(Matriz!O25,TRAYECTORIA!D42,(TRAYECTORIA!C43-TRAYECTORIA!C42)/2)+Dn(Matriz!O26,TRAYECTORIA!D43,(TRAYECTORIA!C43-TRAYECTORIA!C42)/2)+Q25 -> 0 | R26: =De(Matriz!O25,TRAYECTORIA!D42,(TRAYECTORIA!C43-TRAYECTORIA!C42)/2)+De(Matriz!O26,TRAYECTORIA!D43,(TRAYECTORIA!C43-TRAYECTORIA!C42)/2)+R25 -> 0 | S26: =DVt(TRAYECTORIA!D42,(TRAYECTORIA!C43-TRAYECTORIA!C42)/2)+DVt(TRAYECTORIA!D43,(TRAYECTORIA!C43-TRAYECTORIA!C42)/2)+S25 -> 0 | T26: 0 | V26: 0 | W26: =Dn(Matriz!$A$74,TRAYECTORIA!$P$10,TRAYECTORIA!C43-TRAYECTORIA!C42)+W25 -> 0 | X26: =De(Matriz!$A$74,TRAYECTORIA!$P$10,TRAYECTORIA!C43-TRAYECTORIA!C42)+X25 -> 0 | Y26: =DVt(TRAYECTORIA!$P$10,TRAYECTORIA!C43-TRAYECTORIA!C42)+Y25 -> 0 | Z26: 0 | AA26: 0 | AC26: 0
A27: 0 | B27: 0 | K27: =ISBLANK(TRAYECTORIA!#REF!) -> FALSE | L27: =ISBLANK(TRAYECTORIA!#REF!) -> FALSE | M27: =ISBLANK(TRAYECTORIA!#REF!) -> FALSE | O27: =TRAYECTORIA!#REF!*-1 ->  | Q27: =Dn(Matriz!O26,TRAYECTORIA!D43,(TRAYECTORIA!#REF!-TRAYECTORIA!C43)/2)+Dn(Matriz!O27,TRAYECTORIA!#REF!,(TRAYECTORIA!#REF!-TRAYECTORIA!C43)/2)+Q26 ->  | R27: =De(Matriz!O26,TRAYECTORIA!D43,(TRAYECTORIA!#REF!-TRAYECTORIA!C43)/2)+De(Matriz!O27,TRAYECTORIA!#REF!,(TRAYECTORIA!#REF!-TRAYECTORIA!C43)/2)+R26 ->  | S27: =DVt(TRAYECTORIA!D43,(TRAYECTORIA!#REF!-TRAYECTORIA!C43)/2)+DVt(TRAYECTORIA!#REF!,(TRAYECTORIA!#REF!-TRAYECTORIA!C43)/2)+S26 ->  | W27: =Dn(Matriz!$A$74,TRAYECTORIA!$P$10,TRAYECTORIA!#REF!-TRAYECTORIA!C43)+W26 ->  | X27: =De(Matriz!$A$74,TRAYECTORIA!$P$10,TRAYECTORIA!#REF!-TRAYECTORIA!C43)+X26 ->  | Y27: =DVt(TRAYECTORIA!$P$10,TRAYECTORIA!#REF!-TRAYECTORIA!C43)+Y26 -> 
A28: 0 | B28: 0 | K28: =ISBLANK(TRAYECTORIA!#REF!) -> FALSE | L28: =ISBLANK(TRAYECTORIA!#REF!) -> FALSE | M28: =ISBLANK(TRAYECTORIA!#REF!) -> FALSE | O28: =TRAYECTORIA!#REF!*-1 ->  | Q28: =Dn(Matriz!O27,TRAYECTORIA!#REF!,(TRAYECTORIA!#REF!-TRAYECTORIA!#REF!)/2)+Dn(Matriz!O28,TRAYECTORIA!#REF!,(TRAYECTORIA!#REF!-TRAYECTORIA!#REF!)/2)+Q27 ->  | R28: =De(Matriz!O27,TRAYECTORIA!#REF!,(TRAYECTORIA!#REF!-TRAYECTORIA!#REF!)/2)+De(Matriz!O28,TRAYECTORIA!#REF!,(TRAYECTORIA!#REF!-TRAYECTORIA!#REF!)/2)+R27 ->  | S28: =DVt(TRAYECTORIA!#REF!,(TRAYECTORIA!#REF!-TRAYECTORIA!#REF!)/2)+DVt(TRAYECTORIA!#REF!,(TRAYECTORIA!#REF!-TRAYECTORIA!#REF!)/2)+S27 ->  | W28: =Dn(Matriz!$A$74,TRAYECTORIA!$P$10,TRAYECTORIA!#REF!-TRAYECTORIA!#REF!)+W27 ->  | X28: =De(Matriz!$A$74,TRAYECTORIA!$P$10,TRAYECTORIA!#REF!-TRAYECTORIA!#REF!)+X27 ->  | Y28: =DVt(TRAYECTORIA!$P$10,TRAYECTORIA!#REF!-TRAYECTORIA!#REF!)+Y27 -> 
A29: 0 | C29: Profundidad | K29: =ISBLANK(TRAYECTORIA!#REF!) -> FALSE | L29: =ISBLANK(TRAYECTORIA!#REF!) -> FALSE | M29: =ISBLANK(TRAYECTORIA!#REF!) -> FALSE | O29: =TRAYECTORIA!#REF!*-1 ->  | Q29: =Dn(Matriz!O28,TRAYECTORIA!#REF!,(TRAYECTORIA!#REF!-TRAYECTORIA!#REF!)/2)+Dn(Matriz!O29,TRAYECTORIA!#REF!,(TRAYECTORIA!#REF!-TRAYECTORIA!#REF!)/2)+Q28 ->  | R29: =De(Matriz!O28,TRAYECTORIA!#REF!,(TRAYECTORIA!#REF!-TRAYECTORIA!#REF!)/2)+De(Matriz!O29,TRAYECTORIA!#REF!,(TRAYECTORIA!#REF!-TRAYECTORIA!#REF!)/2)+R28 ->  | S29: =DVt(TRAYECTORIA!#REF!,(TRAYECTORIA!#REF!-TRAYECTORIA!#REF!)/2)+DVt(TRAYECTORIA!#REF!,(TRAYECTORIA!#REF!-TRAYECTORIA!#REF!)/2)+S28 ->  | W29: =Dn(Matriz!$A$74,TRAYECTORIA!$P$10,TRAYECTORIA!#REF!-TRAYECTORIA!#REF!)+W28 ->  | X29: =De(Matriz!$A$74,TRAYECTORIA!$P$10,TRAYECTORIA!#REF!-TRAYECTORIA!#REF!)+X28 ->  | Y29: =DVt(TRAYECTORIA!$P$10,TRAYECTORIA!#REF!-TRAYECTORIA!#REF!)+Y28 -> 
K30: =ISBLANK(TRAYECTORIA!#REF!) -> FALSE | L30: =ISBLANK(TRAYECTORIA!#REF!) -> FALSE | M30: =ISBLANK(TRAYECTORIA!#REF!) -> FALSE | O30: =TRAYECTORIA!#REF!*-1 ->  | Q30: =Dn(Matriz!O29,TRAYECTORIA!#REF!,(TRAYECTORIA!#REF!-TRAYECTORIA!#REF!)/2)+Dn(Matriz!O30,TRAYECTORIA!#REF!,(TRAYECTORIA!#REF!-TRAYECTORIA!#REF!)/2)+Q29 ->  | R30: =De(Matriz!O29,TRAYECTORIA!#REF!,(TRAYECTORIA!#REF!-TRAYECTORIA!#REF!)/2)+De(Matriz!O30,TRAYECTORIA!#REF!,(TRAYECTORIA!#REF!-TRAYECTORIA!#REF!)/2)+R29 ->  | S30: =DVt(TRAYECTORIA!#REF!,(TRAYECTORIA!#REF!-TRAYECTORIA!#REF!)/2)+DVt(TRAYECTORIA!#REF!,(TRAYECTORIA!#REF!-TRAYECTORIA!#REF!)/2)+S29 ->  | W30: =Dn(Matriz!$A$74,TRAYECTORIA!$P$10,TRAYECTORIA!#REF!-TRAYECTORIA!#REF!)+W29 ->  | X30: =De(Matriz!$A$74,TRAYECTORIA!$P$10,TRAYECTORIA!#REF!-TRAYECTORIA!#REF!)+X29 ->  | Y30: =DVt(TRAYECTORIA!$P$10,TRAYECTORIA!#REF!-TRAYECTORIA!#REF!)+Y29 -> 
A31: Caja | K31: =ISBLANK(TRAYECTORIA!#REF!) -> FALSE | L31: =ISBLANK(TRAYECTORIA!#REF!) -> FALSE | M31: =ISBLANK(TRAYECTORIA!#REF!) -> FALSE | O31: =TRAYECTORIA!#REF!*-1 ->  | Q31: =Dn(Matriz!O30,TRAYECTORIA!#REF!,(TRAYECTORIA!#REF!-TRAYECTORIA!#REF!)/2)+Dn(Matriz!O31,TRAYECTORIA!#REF!,(TRAYECTORIA!#REF!-TRAYECTORIA!#REF!)/2)+Q30 ->  | R31: =De(Matriz!O30,TRAYECTORIA!#REF!,(TRAYECTORIA!#REF!-TRAYECTORIA!#REF!)/2)+De(Matriz!O31,TRAYECTORIA!#REF!,(TRAYECTORIA!#REF!-TRAYECTORIA!#REF!)/2)+R30 ->  | S31: =DVt(TRAYECTORIA!#REF!,(TRAYECTORIA!#REF!-TRAYECTORIA!#REF!)/2)+DVt(TRAYECTORIA!#REF!,(TRAYECTORIA!#REF!-TRAYECTORIA!#REF!)/2)+S30 ->  | W31: =Dn(Matriz!$A$74,TRAYECTORIA!$P$10,TRAYECTORIA!#REF!-TRAYECTORIA!#REF!)+W30 ->  | X31: =De(Matriz!$A$74,TRAYECTORIA!$P$10,TRAYECTORIA!#REF!-TRAYECTORIA!#REF!)+X30 ->  | Y31: =DVt(TRAYECTORIA!$P$10,TRAYECTORIA!#REF!-TRAYECTORIA!#REF!)+Y30 -> 
A32: X | B32: Y | C32: Z | K32: =ISBLANK(TRAYECTORIA!#REF!) -> FALSE | L32: =ISBLANK(TRAYECTORIA!#REF!) -> FALSE | M32: =ISBLANK(TRAYECTORIA!#REF!) -> FALSE | O32: =TRAYECTORIA!#REF!*-1 ->  | Q32: =Dn(Matriz!O31,TRAYECTORIA!#REF!,(TRAYECTORIA!#REF!-TRAYECTORIA!#REF!)/2)+Dn(Matriz!O32,TRAYECTORIA!#REF!,(TRAYECTORIA!#REF!-TRAYECTORIA!#REF!)/2)+Q31 ->  | R32: =De(Matriz!O31,TRAYECTORIA!#REF!,(TRAYECTORIA!#REF!-TRAYECTORIA!#REF!)/2)+De(Matriz!O32,TRAYECTORIA!#REF!,(TRAYECTORIA!#REF!-TRAYECTORIA!#REF!)/2)+R31 ->  | S32: =DVt(TRAYECTORIA!#REF!,(TRAYECTORIA!#REF!-TRAYECTORIA!#REF!)/2)+DVt(TRAYECTORIA!#REF!,(TRAYECTORIA!#REF!-TRAYECTORIA!#REF!)/2)+S31 ->  | W32: =Dn(Matriz!$A$74,TRAYECTORIA!$P$10,TRAYECTORIA!#REF!-TRAYECTORIA!#REF!)+W31 ->  | X32: =De(Matriz!$A$74,TRAYECTORIA!$P$10,TRAYECTORIA!#REF!-TRAYECTORIA!#REF!)+X31 ->  | Y32: =DVt(TRAYECTORIA!$P$10,TRAYECTORIA!#REF!-TRAYECTORIA!#REF!)+Y31 -> 
A33: =0-TRAYECTORIA!L$20 -> -828 | B33: =0-TRAYECTORIA!L$20 -> -828 | C33: 0 | K33: =ISBLANK(TRAYECTORIA!#REF!) -> FALSE | L33: =ISBLANK(TRAYECTORIA!#REF!) -> FALSE | M33: =ISBLANK(TRAYECTORIA!#REF!) -> FALSE | O33: =TRAYECTORIA!#REF!*-1 ->  | Q33: =Dn(Matriz!O32,TRAYECTORIA!#REF!,(TRAYECTORIA!#REF!-TRAYECTORIA!#REF!)/2)+Dn(Matriz!O33,TRAYECTORIA!#REF!,(TRAYECTORIA!#REF!-TRAYECTORIA!#REF!)/2)+Q32 ->  | R33: =De(Matriz!O32,TRAYECTORIA!#REF!,(TRAYECTORIA!#REF!-TRAYECTORIA!#REF!)/2)+De(Matriz!O33,TRAYECTORIA!#REF!,(TRAYECTORIA!#REF!-TRAYECTORIA!#REF!)/2)+R32 ->  | S33: =DVt(TRAYECTORIA!#REF!,(TRAYECTORIA!#REF!-TRAYECTORIA!#REF!)/2)+DVt(TRAYECTORIA!#REF!,(TRAYECTORIA!#REF!-TRAYECTORIA!#REF!)/2)+S32 ->  | W33: =Dn(Matriz!$A$74,TRAYECTORIA!$P$10,TRAYECTORIA!#REF!-TRAYECTORIA!#REF!)+W32 ->  | X33: =De(Matriz!$A$74,TRAYECTORIA!$P$10,TRAYECTORIA!#REF!-TRAYECTORIA!#REF!)+X32 ->  | Y33: =DVt(TRAYECTORIA!$P$10,TRAYECTORIA!#REF!-TRAYECTORIA!#REF!)+Y32 -> 
A34: =0+TRAYECTORIA!L$20 -> 828 | B34: =0-TRAYECTORIA!L$20 -> -828 | C34: 0 | K34: =ISBLANK(TRAYECTORIA!#REF!) -> FALSE | L34: =ISBLANK(TRAYECTORIA!#REF!) -> FALSE | M34: =ISBLANK(TRAYECTORIA!#REF!) -> FALSE | O34: =TRAYECTORIA!#REF!*-1 ->  | Q34: =Dn(Matriz!O33,TRAYECTORIA!#REF!,(TRAYECTORIA!#REF!-TRAYECTORIA!#REF!)/2)+Dn(Matriz!O34,TRAYECTORIA!#REF!,(TRAYECTORIA!#REF!-TRAYECTORIA!#REF!)/2)+Q33 ->  | R34: =De(Matriz!O33,TRAYECTORIA!#REF!,(TRAYECTORIA!#REF!-TRAYECTORIA!#REF!)/2)+De(Matriz!O34,TRAYECTORIA!#REF!,(TRAYECTORIA!#REF!-TRAYECTORIA!#REF!)/2)+R33 ->  | S34: =DVt(TRAYECTORIA!#REF!,(TRAYECTORIA!#REF!-TRAYECTORIA!#REF!)/2)+DVt(TRAYECTORIA!#REF!,(TRAYECTORIA!#REF!-TRAYECTORIA!#REF!)/2)+S33 ->  | W34: =Dn(Matriz!$A$74,TRAYECTORIA!$P$10,TRAYECTORIA!#REF!-TRAYECTORIA!#REF!)+W33 ->  | X34: =De(Matriz!$A$74,TRAYECTORIA!$P$10,TRAYECTORIA!#REF!-TRAYECTORIA!#REF!)+X33 ->  | Y34: =DVt(TRAYECTORIA!$P$10,TRAYECTORIA!#REF!-TRAYECTORIA!#REF!)+Y33 -> 
A35: =0+TRAYECTORIA!L$20 -> 828 | B35: =0+TRAYECTORIA!L$20 -> 828 | C35: 0 | K35: =ISBLANK(TRAYECTORIA!#REF!) -> FALSE | L35: =ISBLANK(TRAYECTORIA!#REF!) -> FALSE | M35: =ISBLANK(TRAYECTORIA!#REF!) -> FALSE | O35: =TRAYECTORIA!#REF!*-1 ->  | Q35: =Dn(Matriz!O34,TRAYECTORIA!#REF!,(TRAYECTORIA!#REF!-TRAYECTORIA!#REF!)/2)+Dn(Matriz!O35,TRAYECTORIA!#REF!,(TRAYECTORIA!#REF!-TRAYECTORIA!#REF!)/2)+Q34 ->  | R35: =De(Matriz!O34,TRAYECTORIA!#REF!,(TRAYECTORIA!#REF!-TRAYECTORIA!#REF!)/2)+De(Matriz!O35,TRAYECTORIA!#REF!,(TRAYECTORIA!#REF!-TRAYECTORIA!#REF!)/2)+R34 ->  | S35: =DVt(TRAYECTORIA!#REF!,(TRAYECTORIA!#REF!-TRAYECTORIA!#REF!)/2)+DVt(TRAYECTORIA!#REF!,(TRAYECTORIA!#REF!-TRAYECTORIA!#REF!)/2)+S34 ->  | W35: =Dn(Matriz!$A$74,TRAYECTORIA!$P$10,TRAYECTORIA!#REF!-TRAYECTORIA!#REF!)+W34 ->  | X35: =De(Matriz!$A$74,TRAYECTORIA!$P$10,TRAYECTORIA!#REF!-TRAYECTORIA!#REF!)+X34 ->  | Y35: =DVt(TRAYECTORIA!$P$10,TRAYECTORIA!#REF!-TRAYECTORIA!#REF!)+Y34 -> 
A36: =0-TRAYECTORIA!L$20 -> -828 | B36: =0+TRAYECTORIA!L$20 -> 828 | C36: 0 | K36: =ISBLANK(TRAYECTORIA!#REF!) -> FALSE | L36: =ISBLANK(TRAYECTORIA!#REF!) -> FALSE | M36: =ISBLANK(TRAYECTORIA!#REF!) -> FALSE | O36: =TRAYECTORIA!#REF!*-1 ->  | Q36: =Dn(Matriz!O35,TRAYECTORIA!#REF!,(TRAYECTORIA!#REF!-TRAYECTORIA!#REF!)/2)+Dn(Matriz!O36,TRAYECTORIA!#REF!,(TRAYECTORIA!#REF!-TRAYECTORIA!#REF!)/2)+Q35 ->  | R36: =De(Matriz!O35,TRAYECTORIA!#REF!,(TRAYECTORIA!#REF!-TRAYECTORIA!#REF!)/2)+De(Matriz!O36,TRAYECTORIA!#REF!,(TRAYECTORIA!#REF!-TRAYECTORIA!#REF!)/2)+R35 ->  | S36: =DVt(TRAYECTORIA!#REF!,(TRAYECTORIA!#REF!-TRAYECTORIA!#REF!)/2)+DVt(TRAYECTORIA!#REF!,(TRAYECTORIA!#REF!-TRAYECTORIA!#REF!)/2)+S35 ->  | W36: =Dn(Matriz!$A$74,TRAYECTORIA!$P$10,TRAYECTORIA!#REF!-TRAYECTORIA!#REF!)+W35 ->  | X36: =De(Matriz!$A$74,TRAYECTORIA!$P$10,TRAYECTORIA!#REF!-TRAYECTORIA!#REF!)+X35 ->  | Y36: =DVt(TRAYECTORIA!$P$10,TRAYECTORIA!#REF!-TRAYECTORIA!#REF!)+Y35 -> 
A37: =0-TRAYECTORIA!L$20 -> -828 | B37: =0-TRAYECTORIA!L$20 -> -828 | C37: 0 | K37: =ISBLANK(TRAYECTORIA!#REF!) -> FALSE | L37: =ISBLANK(TRAYECTORIA!#REF!) -> FALSE | M37: =ISBLANK(TRAYECTORIA!#REF!) -> FALSE | O37: =TRAYECTORIA!#REF!*-1 ->  | Q37: =Dn(Matriz!O36,TRAYECTORIA!#REF!,(TRAYECTORIA!#REF!-TRAYECTORIA!#REF!)/2)+Dn(Matriz!O37,TRAYECTORIA!#REF!,(TRAYECTORIA!#REF!-TRAYECTORIA!#REF!)/2)+Q36 ->  | R37: =De(Matriz!O36,TRAYECTORIA!#REF!,(TRAYECTORIA!#REF!-TRAYECTORIA!#REF!)/2)+De(Matriz!O37,TRAYECTORIA!#REF!,(TRAYECTORIA!#REF!-TRAYECTORIA!#REF!)/2)+R36 ->  | S37: =DVt(TRAYECTORIA!#REF!,(TRAYECTORIA!#REF!-TRAYECTORIA!#REF!)/2)+DVt(TRAYECTORIA!#REF!,(TRAYECTORIA!#REF!-TRAYECTORIA!#REF!)/2)+S36 ->  | W37: =Dn(Matriz!$A$74,TRAYECTORIA!$P$10,TRAYECTORIA!#REF!-TRAYECTORIA!#REF!)+W36 ->  | X37: =De(Matriz!$A$74,TRAYECTORIA!$P$10,TRAYECTORIA!#REF!-TRAYECTORIA!#REF!)+X36 ->  | Y37: =DVt(TRAYECTORIA!$P$10,TRAYECTORIA!#REF!-TRAYECTORIA!#REF!)+Y36 -> 
A38: =0-TRAYECTORIA!L$20 -> -828 | B38: =0-TRAYECTORIA!L$20 -> -828 | C38: =0+TRAYECTORIA!P$8 -> 0 | K38: =ISBLANK(TRAYECTORIA!#REF!) -> FALSE | L38: =ISBLANK(TRAYECTORIA!#REF!) -> FALSE | M38: =ISBLANK(TRAYECTORIA!#REF!) -> FALSE | O38: =TRAYECTORIA!#REF!*-1 ->  | Q38: =Dn(Matriz!O37,TRAYECTORIA!#REF!,(TRAYECTORIA!#REF!-TRAYECTORIA!#REF!)/2)+Dn(Matriz!O38,TRAYECTORIA!#REF!,(TRAYECTORIA!#REF!-TRAYECTORIA!#REF!)/2)+Q37 ->  | R38: =De(Matriz!O37,TRAYECTORIA!#REF!,(TRAYECTORIA!#REF!-TRAYECTORIA!#REF!)/2)+De(Matriz!O38,TRAYECTORIA!#REF!,(TRAYECTORIA!#REF!-TRAYECTORIA!#REF!)/2)+R37 ->  | S38: =DVt(TRAYECTORIA!#REF!,(TRAYECTORIA!#REF!-TRAYECTORIA!#REF!)/2)+DVt(TRAYECTORIA!#REF!,(TRAYECTORIA!#REF!-TRAYECTORIA!#REF!)/2)+S37 ->  | W38: =Dn(Matriz!$A$74,TRAYECTORIA!$P$10,TRAYECTORIA!#REF!-TRAYECTORIA!#REF!)+W37 ->  | X38: =De(Matriz!$A$74,TRAYECTORIA!$P$10,TRAYECTORIA!#REF!-TRAYECTORIA!#REF!)+X37 ->  | Y38: =DVt(TRAYECTORIA!$P$10,TRAYECTORIA!#REF!-TRAYECTORIA!#REF!)+Y37 -> 
A39: =0+TRAYECTORIA!L$20 -> 828 | B39: =0-TRAYECTORIA!L$20 -> -828 | C39: =0+TRAYECTORIA!P$8 -> 0 | K39: =ISBLANK(TRAYECTORIA!#REF!) -> FALSE | L39: =ISBLANK(TRAYECTORIA!#REF!) -> FALSE | M39: =ISBLANK(TRAYECTORIA!#REF!) -> FALSE | O39: =TRAYECTORIA!#REF!*-1 ->  | Q39: =Dn(Matriz!O38,TRAYECTORIA!#REF!,(TRAYECTORIA!#REF!-TRAYECTORIA!#REF!)/2)+Dn(Matriz!O39,TRAYECTORIA!#REF!,(TRAYECTORIA!#REF!-TRAYECTORIA!#REF!)/2)+Q38 ->  | R39: =De(Matriz!O38,TRAYECTORIA!#REF!,(TRAYECTORIA!#REF!-TRAYECTORIA!#REF!)/2)+De(Matriz!O39,TRAYECTORIA!#REF!,(TRAYECTORIA!#REF!-TRAYECTORIA!#REF!)/2)+R38 ->  | S39: =DVt(TRAYECTORIA!#REF!,(TRAYECTORIA!#REF!-TRAYECTORIA!#REF!)/2)+DVt(TRAYECTORIA!#REF!,(TRAYECTORIA!#REF!-TRAYECTORIA!#REF!)/2)+S38 ->  | W39: =Dn(Matriz!$A$74,TRAYECTORIA!$P$10,TRAYECTORIA!#REF!-TRAYECTORIA!#REF!)+W38 ->  | X39: =De(Matriz!$A$74,TRAYECTORIA!$P$10,TRAYECTORIA!#REF!-TRAYECTORIA!#REF!)+X38 ->  | Y39: =DVt(TRAYECTORIA!$P$10,TRAYECTORIA!#REF!-TRAYECTORIA!#REF!)+Y38 -> 
A40: =0+TRAYECTORIA!L$20 -> 828 | B40: =0+TRAYECTORIA!L$20 -> 828 | C40: =0+TRAYECTORIA!P$8 -> 0 | K40: =ISBLANK(TRAYECTORIA!#REF!) -> FALSE | L40: =ISBLANK(TRAYECTORIA!#REF!) -> FALSE | M40: =ISBLANK(TRAYECTORIA!#REF!) -> FALSE | O40: =TRAYECTORIA!#REF!*-1 ->  | Q40: =Dn(Matriz!O39,TRAYECTORIA!#REF!,(TRAYECTORIA!#REF!-TRAYECTORIA!#REF!)/2)+Dn(Matriz!O40,TRAYECTORIA!#REF!,(TRAYECTORIA!#REF!-TRAYECTORIA!#REF!)/2)+Q39 ->  | R40: =De(Matriz!O39,TRAYECTORIA!#REF!,(TRAYECTORIA!#REF!-TRAYECTORIA!#REF!)/2)+De(Matriz!O40,TRAYECTORIA!#REF!,(TRAYECTORIA!#REF!-TRAYECTORIA!#REF!)/2)+R39 ->  | S40: =DVt(TRAYECTORIA!#REF!,(TRAYECTORIA!#REF!-TRAYECTORIA!#REF!)/2)+DVt(TRAYECTORIA!#REF!,(TRAYECTORIA!#REF!-TRAYECTORIA!#REF!)/2)+S39 ->  | W40: =Dn(Matriz!$A$74,TRAYECTORIA!$P$10,TRAYECTORIA!#REF!-TRAYECTORIA!#REF!)+W39 ->  | X40: =De(Matriz!$A$74,TRAYECTORIA!$P$10,TRAYECTORIA!#REF!-TRAYECTORIA!#REF!)+X39 ->  | Y40: =DVt(TRAYECTORIA!$P$10,TRAYECTORIA!#REF!-TRAYECTORIA!#REF!)+Y39 -> 
A41: =0-TRAYECTORIA!L$20 -> -828 | B41: =0+TRAYECTORIA!L$20 -> 828 | C41: =0+TRAYECTORIA!P$8 -> 0 | K41: =ISBLANK(TRAYECTORIA!#REF!) -> FALSE | L41: =ISBLANK(TRAYECTORIA!#REF!) -> FALSE | M41: =ISBLANK(TRAYECTORIA!#REF!) -> FALSE | O41: =TRAYECTORIA!#REF!*-1 ->  | Q41: =Dn(Matriz!O40,TRAYECTORIA!#REF!,(TRAYECTORIA!#REF!-TRAYECTORIA!#REF!)/2)+Dn(Matriz!O41,TRAYECTORIA!#REF!,(TRAYECTORIA!#REF!-TRAYECTORIA!#REF!)/2)+Q40 ->  | R41: =De(Matriz!O40,TRAYECTORIA!#REF!,(TRAYECTORIA!#REF!-TRAYECTORIA!#REF!)/2)+De(Matriz!O41,TRAYECTORIA!#REF!,(TRAYECTORIA!#REF!-TRAYECTORIA!#REF!)/2)+R40 ->  | S41: =DVt(TRAYECTORIA!#REF!,(TRAYECTORIA!#REF!-TRAYECTORIA!#REF!)/2)+DVt(TRAYECTORIA!#REF!,(TRAYECTORIA!#REF!-TRAYECTORIA!#REF!)/2)+S40 ->  | W41: =Dn(Matriz!$A$74,TRAYECTORIA!$P$10,TRAYECTORIA!#REF!-TRAYECTORIA!#REF!)+W40 ->  | X41: =De(Matriz!$A$74,TRAYECTORIA!$P$10,TRAYECTORIA!#REF!-TRAYECTORIA!#REF!)+X40 ->  | Y41: =DVt(TRAYECTORIA!$P$10,TRAYECTORIA!#REF!-TRAYECTORIA!#REF!)+Y40 -> 
A42: =0-TRAYECTORIA!L$20 -> -828 | B42: =0-TRAYECTORIA!L$20 -> -828 | C42: =0+TRAYECTORIA!P$8 -> 0 | K42: =ISBLANK(TRAYECTORIA!#REF!) -> FALSE | L42: =ISBLANK(TRAYECTORIA!#REF!) -> FALSE | M42: =ISBLANK(TRAYECTORIA!#REF!) -> FALSE | O42: =TRAYECTORIA!#REF!*-1 ->  | Q42: =Dn(Matriz!O41,TRAYECTORIA!#REF!,(TRAYECTORIA!#REF!-TRAYECTORIA!#REF!)/2)+Dn(Matriz!O42,TRAYECTORIA!#REF!,(TRAYECTORIA!#REF!-TRAYECTORIA!#REF!)/2)+Q41 ->  | R42: =De(Matriz!O41,TRAYECTORIA!#REF!,(TRAYECTORIA!#REF!-TRAYECTORIA!#REF!)/2)+De(Matriz!O42,TRAYECTORIA!#REF!,(TRAYECTORIA!#REF!-TRAYECTORIA!#REF!)/2)+R41 ->  | S42: =DVt(TRAYECTORIA!#REF!,(TRAYECTORIA!#REF!-TRAYECTORIA!#REF!)/2)+DVt(TRAYECTORIA!#REF!,(TRAYECTORIA!#REF!-TRAYECTORIA!#REF!)/2)+S41 ->  | W42: =Dn(Matriz!$A$74,TRAYECTORIA!$P$10,TRAYECTORIA!#REF!-TRAYECTORIA!#REF!)+W41 ->  | X42: =De(Matriz!$A$74,TRAYECTORIA!$P$10,TRAYECTORIA!#REF!-TRAYECTORIA!#REF!)+X41 ->  | Y42: =DVt(TRAYECTORIA!$P$10,TRAYECTORIA!#REF!-TRAYECTORIA!#REF!)+Y41 -> 
K43: =ISBLANK(TRAYECTORIA!#REF!) -> FALSE | L43: =ISBLANK(TRAYECTORIA!#REF!) -> FALSE | M43: =ISBLANK(TRAYECTORIA!#REF!) -> FALSE | O43: =TRAYECTORIA!#REF!*-1 ->  | Q43: =Dn(Matriz!O42,TRAYECTORIA!#REF!,(TRAYECTORIA!#REF!-TRAYECTORIA!#REF!)/2)+Dn(Matriz!O43,TRAYECTORIA!#REF!,(TRAYECTORIA!#REF!-TRAYECTORIA!#REF!)/2)+Q42 ->  | R43: =De(Matriz!O42,TRAYECTORIA!#REF!,(TRAYECTORIA!#REF!-TRAYECTORIA!#REF!)/2)+De(Matriz!O43,TRAYECTORIA!#REF!,(TRAYECTORIA!#REF!-TRAYECTORIA!#REF!)/2)+R42 ->  | S43: =DVt(TRAYECTORIA!#REF!,(TRAYECTORIA!#REF!-TRAYECTORIA!#REF!)/2)+DVt(TRAYECTORIA!#REF!,(TRAYECTORIA!#REF!-TRAYECTORIA!#REF!)/2)+S42 ->  | W43: =Dn(Matriz!$A$74,TRAYECTORIA!$P$10,TRAYECTORIA!#REF!-TRAYECTORIA!#REF!)+W42 ->  | X43: =De(Matriz!$A$74,TRAYECTORIA!$P$10,TRAYECTORIA!#REF!-TRAYECTORIA!#REF!)+X42 ->  | Y43: =DVt(TRAYECTORIA!$P$10,TRAYECTORIA!#REF!-TRAYECTORIA!#REF!)+Y42 -> 
A44: =0-TRAYECTORIA!L$20 -> -828 | B44: =0+TRAYECTORIA!L$20 -> 828 | C44: =0+TRAYECTORIA!P$8 -> 0 | K44: =ISBLANK(TRAYECTORIA!#REF!) -> FALSE | L44: =ISBLANK(TRAYECTORIA!#REF!) -> FALSE | M44: =ISBLANK(TRAYECTORIA!#REF!) -> FALSE | O44: =TRAYECTORIA!#REF!*-1 ->  | Q44: =Dn(Matriz!O43,TRAYECTORIA!#REF!,(TRAYECTORIA!#REF!-TRAYECTORIA!#REF!)/2)+Dn(Matriz!O44,TRAYECTORIA!#REF!,(TRAYECTORIA!#REF!-TRAYECTORIA!#REF!)/2)+Q43 ->  | R44: =De(Matriz!O43,TRAYECTORIA!#REF!,(TRAYECTORIA!#REF!-TRAYECTORIA!#REF!)/2)+De(Matriz!O44,TRAYECTORIA!#REF!,(TRAYECTORIA!#REF!-TRAYECTORIA!#REF!)/2)+R43 ->  | S44: =DVt(TRAYECTORIA!#REF!,(TRAYECTORIA!#REF!-TRAYECTORIA!#REF!)/2)+DVt(TRAYECTORIA!#REF!,(TRAYECTORIA!#REF!-TRAYECTORIA!#REF!)/2)+S43 ->  | W44: =Dn(Matriz!$A$74,TRAYECTORIA!$P$10,TRAYECTORIA!#REF!-TRAYECTORIA!#REF!)+W43 ->  | X44: =De(Matriz!$A$74,TRAYECTORIA!$P$10,TRAYECTORIA!#REF!-TRAYECTORIA!#REF!)+X43 ->  | Y44: =DVt(TRAYECTORIA!$P$10,TRAYECTORIA!#REF!-TRAYECTORIA!#REF!)+Y43 -> 
A45: =0-TRAYECTORIA!L$20 -> -828 | B45: =0+TRAYECTORIA!L$20 -> 828 | C45: 0 | K45: =ISBLANK(TRAYECTORIA!#REF!) -> FALSE | L45: =ISBLANK(TRAYECTORIA!#REF!) -> FALSE | M45: =ISBLANK(TRAYECTORIA!#REF!) -> FALSE | O45: =TRAYECTORIA!#REF!*-1 ->  | Q45: =Dn(Matriz!O44,TRAYECTORIA!#REF!,(TRAYECTORIA!#REF!-TRAYECTORIA!#REF!)/2)+Dn(Matriz!O45,TRAYECTORIA!#REF!,(TRAYECTORIA!#REF!-TRAYECTORIA!#REF!)/2)+Q44 ->  | R45: =De(Matriz!O44,TRAYECTORIA!#REF!,(TRAYECTORIA!#REF!-TRAYECTORIA!#REF!)/2)+De(Matriz!O45,TRAYECTORIA!#REF!,(TRAYECTORIA!#REF!-TRAYECTORIA!#REF!)/2)+R44 ->  | S45: =DVt(TRAYECTORIA!#REF!,(TRAYECTORIA!#REF!-TRAYECTORIA!#REF!)/2)+DVt(TRAYECTORIA!#REF!,(TRAYECTORIA!#REF!-TRAYECTORIA!#REF!)/2)+S44 ->  | W45: =Dn(Matriz!$A$74,TRAYECTORIA!$P$10,TRAYECTORIA!#REF!-TRAYECTORIA!#REF!)+W44 ->  | X45: =De(Matriz!$A$74,TRAYECTORIA!$P$10,TRAYECTORIA!#REF!-TRAYECTORIA!#REF!)+X44 ->  | Y45: =DVt(TRAYECTORIA!$P$10,TRAYECTORIA!#REF!-TRAYECTORIA!#REF!)+Y44 -> 
K46: =ISBLANK(TRAYECTORIA!#REF!) -> FALSE | L46: =ISBLANK(TRAYECTORIA!#REF!) -> FALSE | M46: =ISBLANK(TRAYECTORIA!#REF!) -> FALSE | O46: =TRAYECTORIA!#REF!*-1 ->  | Q46: =Dn(Matriz!O45,TRAYECTORIA!#REF!,(TRAYECTORIA!#REF!-TRAYECTORIA!#REF!)/2)+Dn(Matriz!O46,TRAYECTORIA!#REF!,(TRAYECTORIA!#REF!-TRAYECTORIA!#REF!)/2)+Q45 ->  | R46: =De(Matriz!O45,TRAYECTORIA!#REF!,(TRAYECTORIA!#REF!-TRAYECTORIA!#REF!)/2)+De(Matriz!O46,TRAYECTORIA!#REF!,(TRAYECTORIA!#REF!-TRAYECTORIA!#REF!)/2)+R45 ->  | S46: =DVt(TRAYECTORIA!#REF!,(TRAYECTORIA!#REF!-TRAYECTORIA!#REF!)/2)+DVt(TRAYECTORIA!#REF!,(TRAYECTORIA!#REF!-TRAYECTORIA!#REF!)/2)+S45 ->  | W46: =Dn(Matriz!$A$74,TRAYECTORIA!$P$10,TRAYECTORIA!#REF!-TRAYECTORIA!#REF!)+W45 ->  | X46: =De(Matriz!$A$74,TRAYECTORIA!$P$10,TRAYECTORIA!#REF!-TRAYECTORIA!#REF!)+X45 ->  | Y46: =DVt(TRAYECTORIA!$P$10,TRAYECTORIA!#REF!-TRAYECTORIA!#REF!)+Y45 -> 
A47: =0+TRAYECTORIA!L$20 -> 828 | B47: =0+TRAYECTORIA!L$20 -> 828 | C47: 0 | K47: =ISBLANK(TRAYECTORIA!#REF!) -> FALSE | L47: =ISBLANK(TRAYECTORIA!#REF!) -> FALSE | M47: =ISBLANK(TRAYECTORIA!#REF!) -> FALSE | O47: =TRAYECTORIA!#REF!*-1 ->  | Q47: =Dn(Matriz!O46,TRAYECTORIA!#REF!,(TRAYECTORIA!#REF!-TRAYECTORIA!#REF!)/2)+Dn(Matriz!O47,TRAYECTORIA!#REF!,(TRAYECTORIA!#REF!-TRAYECTORIA!#REF!)/2)+Q46 ->  | R47: =De(Matriz!O46,TRAYECTORIA!#REF!,(TRAYECTORIA!#REF!-TRAYECTORIA!#REF!)/2)+De(Matriz!O47,TRAYECTORIA!#REF!,(TRAYECTORIA!#REF!-TRAYECTORIA!#REF!)/2)+R46 ->  | S47: =DVt(TRAYECTORIA!#REF!,(TRAYECTORIA!#REF!-TRAYECTORIA!#REF!)/2)+DVt(TRAYECTORIA!#REF!,(TRAYECTORIA!#REF!-TRAYECTORIA!#REF!)/2)+S46 ->  | W47: =Dn(Matriz!$A$74,TRAYECTORIA!$P$10,TRAYECTORIA!#REF!-TRAYECTORIA!#REF!)+W46 ->  | X47: =De(Matriz!$A$74,TRAYECTORIA!$P$10,TRAYECTORIA!#REF!-TRAYECTORIA!#REF!)+X46 ->  | Y47: =DVt(TRAYECTORIA!$P$10,TRAYECTORIA!#REF!-TRAYECTORIA!#REF!)+Y46 -> 
A48: =0+TRAYECTORIA!L$20 -> 828 | B48: =0+TRAYECTORIA!L$20 -> 828 | C48: =0+TRAYECTORIA!P$8 -> 0 | K48: =ISBLANK(TRAYECTORIA!#REF!) -> FALSE | L48: =ISBLANK(TRAYECTORIA!#REF!) -> FALSE | M48: =ISBLANK(TRAYECTORIA!#REF!) -> FALSE | O48: =TRAYECTORIA!#REF!*-1 ->  | Q48: =Dn(Matriz!O47,TRAYECTORIA!#REF!,(TRAYECTORIA!#REF!-TRAYECTORIA!#REF!)/2)+Dn(Matriz!O48,TRAYECTORIA!#REF!,(TRAYECTORIA!#REF!-TRAYECTORIA!#REF!)/2)+Q47 ->  | R48: =De(Matriz!O47,TRAYECTORIA!#REF!,(TRAYECTORIA!#REF!-TRAYECTORIA!#REF!)/2)+De(Matriz!O48,TRAYECTORIA!#REF!,(TRAYECTORIA!#REF!-TRAYECTORIA!#REF!)/2)+R47 ->  | S48: =DVt(TRAYECTORIA!#REF!,(TRAYECTORIA!#REF!-TRAYECTORIA!#REF!)/2)+DVt(TRAYECTORIA!#REF!,(TRAYECTORIA!#REF!-TRAYECTORIA!#REF!)/2)+S47 ->  | W48: =Dn(Matriz!$A$74,TRAYECTORIA!$P$10,TRAYECTORIA!#REF!-TRAYECTORIA!#REF!)+W47 ->  | X48: =De(Matriz!$A$74,TRAYECTORIA!$P$10,TRAYECTORIA!#REF!-TRAYECTORIA!#REF!)+X47 ->  | Y48: =DVt(TRAYECTORIA!$P$10,TRAYECTORIA!#REF!-TRAYECTORIA!#REF!)+Y47 -> 
K49: =ISBLANK(TRAYECTORIA!#REF!) -> FALSE | L49: =ISBLANK(TRAYECTORIA!#REF!) -> FALSE | M49: =ISBLANK(TRAYECTORIA!#REF!) -> FALSE | O49: =TRAYECTORIA!#REF!*-1 ->  | Q49: =Dn(Matriz!O48,TRAYECTORIA!#REF!,(TRAYECTORIA!#REF!-TRAYECTORIA!#REF!)/2)+Dn(Matriz!O49,TRAYECTORIA!#REF!,(TRAYECTORIA!#REF!-TRAYECTORIA!#REF!)/2)+Q48 ->  | R49: =De(Matriz!O48,TRAYECTORIA!#REF!,(TRAYECTORIA!#REF!-TRAYECTORIA!#REF!)/2)+De(Matriz!O49,TRAYECTORIA!#REF!,(TRAYECTORIA!#REF!-TRAYECTORIA!#REF!)/2)+R48 ->  | S49: =DVt(TRAYECTORIA!#REF!,(TRAYECTORIA!#REF!-TRAYECTORIA!#REF!)/2)+DVt(TRAYECTORIA!#REF!,(TRAYECTORIA!#REF!-TRAYECTORIA!#REF!)/2)+S48 ->  | W49: =Dn(Matriz!$A$74,TRAYECTORIA!$P$10,TRAYECTORIA!#REF!-TRAYECTORIA!#REF!)+W48 ->  | X49: =De(Matriz!$A$74,TRAYECTORIA!$P$10,TRAYECTORIA!#REF!-TRAYECTORIA!#REF!)+X48 ->  | Y49: =DVt(TRAYECTORIA!$P$10,TRAYECTORIA!#REF!-TRAYECTORIA!#REF!)+Y48 -> 
A50: =0+TRAYECTORIA!L$20 -> 828 | B50: =0-TRAYECTORIA!L$20 -> -828 | C50: =0+TRAYECTORIA!P$8 -> 0 | K50: =ISBLANK(TRAYECTORIA!#REF!) -> FALSE | L50: =ISBLANK(TRAYECTORIA!#REF!) -> FALSE | M50: =ISBLANK(TRAYECTORIA!#REF!) -> FALSE | O50: =TRAYECTORIA!#REF!*-1 ->  | Q50: =Dn(Matriz!O49,TRAYECTORIA!#REF!,(TRAYECTORIA!#REF!-TRAYECTORIA!#REF!)/2)+Dn(Matriz!O50,TRAYECTORIA!#REF!,(TRAYECTORIA!#REF!-TRAYECTORIA!#REF!)/2)+Q49 ->  | R50: =De(Matriz!O49,TRAYECTORIA!#REF!,(TRAYECTORIA!#REF!-TRAYECTORIA!#REF!)/2)+De(Matriz!O50,TRAYECTORIA!#REF!,(TRAYECTORIA!#REF!-TRAYECTORIA!#REF!)/2)+R49 ->  | S50: =DVt(TRAYECTORIA!#REF!,(TRAYECTORIA!#REF!-TRAYECTORIA!#REF!)/2)+DVt(TRAYECTORIA!#REF!,(TRAYECTORIA!#REF!-TRAYECTORIA!#REF!)/2)+S49 ->  | W50: =Dn(Matriz!$A$74,TRAYECTORIA!$P$10,TRAYECTORIA!#REF!-TRAYECTORIA!#REF!)+W49 ->  | X50: =De(Matriz!$A$74,TRAYECTORIA!$P$10,TRAYECTORIA!#REF!-TRAYECTORIA!#REF!)+X49 ->  | Y50: =DVt(TRAYECTORIA!$P$10,TRAYECTORIA!#REF!-TRAYECTORIA!#REF!)+Y49 -> 
A51: =0+TRAYECTORIA!L$20 -> 828 | B51: =0-TRAYECTORIA!L$20 -> -828 | C51: 0 | K51: =ISBLANK(TRAYECTORIA!#REF!) -> FALSE | L51: =ISBLANK(TRAYECTORIA!#REF!) -> FALSE | M51: =ISBLANK(TRAYECTORIA!#REF!) -> FALSE | O51: =TRAYECTORIA!#REF!*-1 ->  | Q51: =Dn(Matriz!O50,TRAYECTORIA!#REF!,(TRAYECTORIA!#REF!-TRAYECTORIA!#REF!)/2)+Dn(Matriz!O51,TRAYECTORIA!#REF!,(TRAYECTORIA!#REF!-TRAYECTORIA!#REF!)/2)+Q50 ->  | R51: =De(Matriz!O50,TRAYECTORIA!#REF!,(TRAYECTORIA!#REF!-TRAYECTORIA!#REF!)/2)+De(Matriz!O51,TRAYECTORIA!#REF!,(TRAYECTORIA!#REF!-TRAYECTORIA!#REF!)/2)+R50 ->  | S51: =DVt(TRAYECTORIA!#REF!,(TRAYECTORIA!#REF!-TRAYECTORIA!#REF!)/2)+DVt(TRAYECTORIA!#REF!,(TRAYECTORIA!#REF!-TRAYECTORIA!#REF!)/2)+S50 ->  | W51: =Dn(Matriz!$A$74,TRAYECTORIA!$P$10,TRAYECTORIA!#REF!-TRAYECTORIA!#REF!)+W50 ->  | X51: =De(Matriz!$A$74,TRAYECTORIA!$P$10,TRAYECTORIA!#REF!-TRAYECTORIA!#REF!)+X50 ->  | Y51: =DVt(TRAYECTORIA!$P$10,TRAYECTORIA!#REF!-TRAYECTORIA!#REF!)+Y50 -> 
K52: =ISBLANK(TRAYECTORIA!#REF!) -> FALSE | L52: =ISBLANK(TRAYECTORIA!#REF!) -> FALSE | M52: =ISBLANK(TRAYECTORIA!#REF!) -> FALSE | O52: =TRAYECTORIA!#REF!*-1 ->  | Q52: =Dn(Matriz!O51,TRAYECTORIA!#REF!,(TRAYECTORIA!#REF!-TRAYECTORIA!#REF!)/2)+Dn(Matriz!O52,TRAYECTORIA!#REF!,(TRAYECTORIA!#REF!-TRAYECTORIA!#REF!)/2)+Q51 ->  | R52: =De(Matriz!O51,TRAYECTORIA!#REF!,(TRAYECTORIA!#REF!-TRAYECTORIA!#REF!)/2)+De(Matriz!O52,TRAYECTORIA!#REF!,(TRAYECTORIA!#REF!-TRAYECTORIA!#REF!)/2)+R51 ->  | S52: =DVt(TRAYECTORIA!#REF!,(TRAYECTORIA!#REF!-TRAYECTORIA!#REF!)/2)+DVt(TRAYECTORIA!#REF!,(TRAYECTORIA!#REF!-TRAYECTORIA!#REF!)/2)+S51 ->  | W52: =Dn(Matriz!$A$74,TRAYECTORIA!$P$10,TRAYECTORIA!#REF!-TRAYECTORIA!#REF!)+W51 ->  | X52: =De(Matriz!$A$74,TRAYECTORIA!$P$10,TRAYECTORIA!#REF!-TRAYECTORIA!#REF!)+X51 ->  | Y52: =DVt(TRAYECTORIA!$P$10,TRAYECTORIA!#REF!-TRAYECTORIA!#REF!)+Y51 -> 
A53: =(A33*_RMX1)+(B33*_RMY1)+(C33*_RMZ1) -> -870.3690107 | B53: =(A33*_RMX2)+(B33*_RMY2)+(C33*_RMZ2) -> 200.0942775 | K53: =ISBLANK(TRAYECTORIA!#REF!) -> FALSE | L53: =ISBLANK(TRAYECTORIA!#REF!) -> FALSE | M53: =ISBLANK(TRAYECTORIA!#REF!) -> FALSE | O53: =TRAYECTORIA!#REF!*-1 ->  | Q53: =Dn(Matriz!O52,TRAYECTORIA!#REF!,(TRAYECTORIA!#REF!-TRAYECTORIA!#REF!)/2)+Dn(Matriz!O53,TRAYECTORIA!#REF!,(TRAYECTORIA!#REF!-TRAYECTORIA!#REF!)/2)+Q52 ->  | R53: =De(Matriz!O52,TRAYECTORIA!#REF!,(TRAYECTORIA!#REF!-TRAYECTORIA!#REF!)/2)+De(Matriz!O53,TRAYECTORIA!#REF!,(TRAYECTORIA!#REF!-TRAYECTORIA!#REF!)/2)+R52 ->  | S53: =DVt(TRAYECTORIA!#REF!,(TRAYECTORIA!#REF!-TRAYECTORIA!#REF!)/2)+DVt(TRAYECTORIA!#REF!,(TRAYECTORIA!#REF!-TRAYECTORIA!#REF!)/2)+S52 ->  | W53: =Dn(Matriz!$A$74,TRAYECTORIA!$P$10,TRAYECTORIA!#REF!-TRAYECTORIA!#REF!)+W52 ->  | X53: =De(Matriz!$A$74,TRAYECTORIA!$P$10,TRAYECTORIA!#REF!-TRAYECTORIA!#REF!)+X52 ->  | Y53: =DVt(TRAYECTORIA!$P$10,TRAYECTORIA!#REF!-TRAYECTORIA!#REF!)+Y52 -> 
A54: 217.0073672 | B54: -1026.224112 | K54: =ISBLANK(TRAYECTORIA!#REF!) -> FALSE | L54: =ISBLANK(TRAYECTORIA!#REF!) -> FALSE | M54: =ISBLANK(TRAYECTORIA!#REF!) -> FALSE | O54: =TRAYECTORIA!#REF!*-1 ->  | Q54: =Dn(Matriz!O53,TRAYECTORIA!#REF!,(TRAYECTORIA!#REF!-TRAYECTORIA!#REF!)/2)+Dn(Matriz!O54,TRAYECTORIA!#REF!,(TRAYECTORIA!#REF!-TRAYECTORIA!#REF!)/2)+Q53 ->  | R54: =De(Matriz!O53,TRAYECTORIA!#REF!,(TRAYECTORIA!#REF!-TRAYECTORIA!#REF!)/2)+De(Matriz!O54,TRAYECTORIA!#REF!,(TRAYECTORIA!#REF!-TRAYECTORIA!#REF!)/2)+R53 ->  | S54: =DVt(TRAYECTORIA!#REF!,(TRAYECTORIA!#REF!-TRAYECTORIA!#REF!)/2)+DVt(TRAYECTORIA!#REF!,(TRAYECTORIA!#REF!-TRAYECTORIA!#REF!)/2)+S53 ->  | W54: =Dn(Matriz!$A$74,TRAYECTORIA!$P$10,TRAYECTORIA!#REF!-TRAYECTORIA!#REF!)+W53 ->  | X54: =De(Matriz!$A$74,TRAYECTORIA!$P$10,TRAYECTORIA!#REF!-TRAYECTORIA!#REF!)+X53 ->  | Y54: =DVt(TRAYECTORIA!$P$10,TRAYECTORIA!#REF!-TRAYECTORIA!#REF!)+Y53 -> 
A55: 870.3690107 | B55: -200.0942775 | K55: =ISBLANK(TRAYECTORIA!#REF!) -> FALSE | L55: =ISBLANK(TRAYECTORIA!#REF!) -> FALSE | M55: =ISBLANK(TRAYECTORIA!#REF!) -> FALSE | O55: =TRAYECTORIA!#REF!*-1 ->  | Q55: =Dn(Matriz!O54,TRAYECTORIA!#REF!,(TRAYECTORIA!#REF!-TRAYECTORIA!#REF!)/2)+Dn(Matriz!O55,TRAYECTORIA!#REF!,(TRAYECTORIA!#REF!-TRAYECTORIA!#REF!)/2)+Q54 ->  | R55: =De(Matriz!O54,TRAYECTORIA!#REF!,(TRAYECTORIA!#REF!-TRAYECTORIA!#REF!)/2)+De(Matriz!O55,TRAYECTORIA!#REF!,(TRAYECTORIA!#REF!-TRAYECTORIA!#REF!)/2)+R54 ->  | S55: =DVt(TRAYECTORIA!#REF!,(TRAYECTORIA!#REF!-TRAYECTORIA!#REF!)/2)+DVt(TRAYECTORIA!#REF!,(TRAYECTORIA!#REF!-TRAYECTORIA!#REF!)/2)+S54 ->  | W55: =Dn(Matriz!$A$74,TRAYECTORIA!$P$10,TRAYECTORIA!#REF!-TRAYECTORIA!#REF!)+W54 ->  | X55: =De(Matriz!$A$74,TRAYECTORIA!$P$10,TRAYECTORIA!#REF!-TRAYECTORIA!#REF!)+X54 ->  | Y55: =DVt(TRAYECTORIA!$P$10,TRAYECTORIA!#REF!-TRAYECTORIA!#REF!)+Y54 -> 
A56: -217.0073672 | B56: 1026.224112 | K56: =ISBLANK(TRAYECTORIA!#REF!) -> FALSE | L56: =ISBLANK(TRAYECTORIA!#REF!) -> FALSE | M56: =ISBLANK(TRAYECTORIA!#REF!) -> FALSE | O56: =TRAYECTORIA!#REF!*-1 ->  | Q56: =Dn(Matriz!O55,TRAYECTORIA!#REF!,(TRAYECTORIA!#REF!-TRAYECTORIA!#REF!)/2)+Dn(Matriz!O56,TRAYECTORIA!#REF!,(TRAYECTORIA!#REF!-TRAYECTORIA!#REF!)/2)+Q55 ->  | R56: =De(Matriz!O55,TRAYECTORIA!#REF!,(TRAYECTORIA!#REF!-TRAYECTORIA!#REF!)/2)+De(Matriz!O56,TRAYECTORIA!#REF!,(TRAYECTORIA!#REF!-TRAYECTORIA!#REF!)/2)+R55 ->  | S56: =DVt(TRAYECTORIA!#REF!,(TRAYECTORIA!#REF!-TRAYECTORIA!#REF!)/2)+DVt(TRAYECTORIA!#REF!,(TRAYECTORIA!#REF!-TRAYECTORIA!#REF!)/2)+S55 ->  | W56: =Dn(Matriz!$A$74,TRAYECTORIA!$P$10,TRAYECTORIA!#REF!-TRAYECTORIA!#REF!)+W55 ->  | X56: =De(Matriz!$A$74,TRAYECTORIA!$P$10,TRAYECTORIA!#REF!-TRAYECTORIA!#REF!)+X55 ->  | Y56: =DVt(TRAYECTORIA!$P$10,TRAYECTORIA!#REF!-TRAYECTORIA!#REF!)+Y55 -> 
A57: -870.3690107 | B57: 200.0942775 | K57: =ISBLANK(TRAYECTORIA!#REF!) -> FALSE | L57: =ISBLANK(TRAYECTORIA!#REF!) -> FALSE | M57: =ISBLANK(TRAYECTORIA!#REF!) -> FALSE | O57: =TRAYECTORIA!#REF!*-1 ->  | Q57: =Dn(Matriz!O56,TRAYECTORIA!#REF!,(TRAYECTORIA!#REF!-TRAYECTORIA!#REF!)/2)+Dn(Matriz!O57,TRAYECTORIA!#REF!,(TRAYECTORIA!#REF!-TRAYECTORIA!#REF!)/2)+Q56 ->  | R57: =De(Matriz!O56,TRAYECTORIA!#REF!,(TRAYECTORIA!#REF!-TRAYECTORIA!#REF!)/2)+De(Matriz!O57,TRAYECTORIA!#REF!,(TRAYECTORIA!#REF!-TRAYECTORIA!#REF!)/2)+R56 ->  | S57: =DVt(TRAYECTORIA!#REF!,(TRAYECTORIA!#REF!-TRAYECTORIA!#REF!)/2)+DVt(TRAYECTORIA!#REF!,(TRAYECTORIA!#REF!-TRAYECTORIA!#REF!)/2)+S56 ->  | W57: =Dn(Matriz!$A$74,TRAYECTORIA!$P$10,TRAYECTORIA!#REF!-TRAYECTORIA!#REF!)+W56 ->  | X57: =De(Matriz!$A$74,TRAYECTORIA!$P$10,TRAYECTORIA!#REF!-TRAYECTORIA!#REF!)+X56 ->  | Y57: =DVt(TRAYECTORIA!$P$10,TRAYECTORIA!#REF!-TRAYECTORIA!#REF!)+Y56 -> 
A58: -870.3690107 | B58: 200.0942775 | K58: =ISBLANK(TRAYECTORIA!#REF!) -> FALSE | L58: =ISBLANK(TRAYECTORIA!#REF!) -> FALSE | M58: =ISBLANK(TRAYECTORIA!#REF!) -> FALSE | O58: =TRAYECTORIA!#REF!*-1 ->  | Q58: =Dn(Matriz!O57,TRAYECTORIA!#REF!,(TRAYECTORIA!#REF!-TRAYECTORIA!#REF!)/2)+Dn(Matriz!O58,TRAYECTORIA!#REF!,(TRAYECTORIA!#REF!-TRAYECTORIA!#REF!)/2)+Q57 ->  | R58: =De(Matriz!O57,TRAYECTORIA!#REF!,(TRAYECTORIA!#REF!-TRAYECTORIA!#REF!)/2)+De(Matriz!O58,TRAYECTORIA!#REF!,(TRAYECTORIA!#REF!-TRAYECTORIA!#REF!)/2)+R57 ->  | S58: =DVt(TRAYECTORIA!#REF!,(TRAYECTORIA!#REF!-TRAYECTORIA!#REF!)/2)+DVt(TRAYECTORIA!#REF!,(TRAYECTORIA!#REF!-TRAYECTORIA!#REF!)/2)+S57 ->  | W58: =Dn(Matriz!$A$74,TRAYECTORIA!$P$10,TRAYECTORIA!#REF!-TRAYECTORIA!#REF!)+W57 ->  | X58: =De(Matriz!$A$74,TRAYECTORIA!$P$10,TRAYECTORIA!#REF!-TRAYECTORIA!#REF!)+X57 ->  | Y58: =DVt(TRAYECTORIA!$P$10,TRAYECTORIA!#REF!-TRAYECTORIA!#REF!)+Y57 -> 
A59: 217.0073672 | B59: -1026.224112 | K59: =ISBLANK(TRAYECTORIA!#REF!) -> FALSE | L59: =ISBLANK(TRAYECTORIA!#REF!) -> FALSE | M59: =ISBLANK(TRAYECTORIA!#REF!) -> FALSE | O59: =TRAYECTORIA!#REF!*-1 ->  | Q59: =Dn(Matriz!O58,TRAYECTORIA!#REF!,(TRAYECTORIA!#REF!-TRAYECTORIA!#REF!)/2)+Dn(Matriz!O59,TRAYECTORIA!#REF!,(TRAYECTORIA!#REF!-TRAYECTORIA!#REF!)/2)+Q58 ->  | R59: =De(Matriz!O58,TRAYECTORIA!#REF!,(TRAYECTORIA!#REF!-TRAYECTORIA!#REF!)/2)+De(Matriz!O59,TRAYECTORIA!#REF!,(TRAYECTORIA!#REF!-TRAYECTORIA!#REF!)/2)+R58 ->  | S59: =DVt(TRAYECTORIA!#REF!,(TRAYECTORIA!#REF!-TRAYECTORIA!#REF!)/2)+DVt(TRAYECTORIA!#REF!,(TRAYECTORIA!#REF!-TRAYECTORIA!#REF!)/2)+S58 ->  | W59: =Dn(Matriz!$A$74,TRAYECTORIA!$P$10,TRAYECTORIA!#REF!-TRAYECTORIA!#REF!)+W58 ->  | X59: =De(Matriz!$A$74,TRAYECTORIA!$P$10,TRAYECTORIA!#REF!-TRAYECTORIA!#REF!)+X58 ->  | Y59: =DVt(TRAYECTORIA!$P$10,TRAYECTORIA!#REF!-TRAYECTORIA!#REF!)+Y58 -> 
A60: 870.3690107 | B60: -200.0942775 | K60: =ISBLANK(TRAYECTORIA!#REF!) -> FALSE | L60: =ISBLANK(TRAYECTORIA!#REF!) -> FALSE | M60: =ISBLANK(TRAYECTORIA!#REF!) -> FALSE | O60: =TRAYECTORIA!#REF!*-1 ->  | Q60: =Dn(Matriz!O59,TRAYECTORIA!#REF!,(TRAYECTORIA!#REF!-TRAYECTORIA!#REF!)/2)+Dn(Matriz!O60,TRAYECTORIA!#REF!,(TRAYECTORIA!#REF!-TRAYECTORIA!#REF!)/2)+Q59 ->  | R60: =De(Matriz!O59,TRAYECTORIA!#REF!,(TRAYECTORIA!#REF!-TRAYECTORIA!#REF!)/2)+De(Matriz!O60,TRAYECTORIA!#REF!,(TRAYECTORIA!#REF!-TRAYECTORIA!#REF!)/2)+R59 ->  | S60: =DVt(TRAYECTORIA!#REF!,(TRAYECTORIA!#REF!-TRAYECTORIA!#REF!)/2)+DVt(TRAYECTORIA!#REF!,(TRAYECTORIA!#REF!-TRAYECTORIA!#REF!)/2)+S59 ->  | W60: =Dn(Matriz!$A$74,TRAYECTORIA!$P$10,TRAYECTORIA!#REF!-TRAYECTORIA!#REF!)+W59 ->  | X60: =De(Matriz!$A$74,TRAYECTORIA!$P$10,TRAYECTORIA!#REF!-TRAYECTORIA!#REF!)+X59 ->  | Y60: =DVt(TRAYECTORIA!$P$10,TRAYECTORIA!#REF!-TRAYECTORIA!#REF!)+Y59 -> 
A61: -217.0073672 | B61: 1026.224112 | K61: =ISBLANK(TRAYECTORIA!#REF!) -> FALSE | L61: =ISBLANK(TRAYECTORIA!#REF!) -> FALSE | M61: =ISBLANK(TRAYECTORIA!#REF!) -> FALSE | O61: =TRAYECTORIA!#REF!*-1 ->  | Q61: =Dn(Matriz!O60,TRAYECTORIA!#REF!,(TRAYECTORIA!#REF!-TRAYECTORIA!#REF!)/2)+Dn(Matriz!O61,TRAYECTORIA!#REF!,(TRAYECTORIA!#REF!-TRAYECTORIA!#REF!)/2)+Q60 ->  | R61: =De(Matriz!O60,TRAYECTORIA!#REF!,(TRAYECTORIA!#REF!-TRAYECTORIA!#REF!)/2)+De(Matriz!O61,TRAYECTORIA!#REF!,(TRAYECTORIA!#REF!-TRAYECTORIA!#REF!)/2)+R60 ->  | S61: =DVt(TRAYECTORIA!#REF!,(TRAYECTORIA!#REF!-TRAYECTORIA!#REF!)/2)+DVt(TRAYECTORIA!#REF!,(TRAYECTORIA!#REF!-TRAYECTORIA!#REF!)/2)+S60 ->  | W61: =Dn(Matriz!$A$74,TRAYECTORIA!$P$10,TRAYECTORIA!#REF!-TRAYECTORIA!#REF!)+W60 ->  | X61: =De(Matriz!$A$74,TRAYECTORIA!$P$10,TRAYECTORIA!#REF!-TRAYECTORIA!#REF!)+X60 ->  | Y61: =DVt(TRAYECTORIA!$P$10,TRAYECTORIA!#REF!-TRAYECTORIA!#REF!)+Y60 -> 
A62: -870.3690107 | B62: 200.0942775 | K62: =ISBLANK(TRAYECTORIA!#REF!) -> FALSE | L62: =ISBLANK(TRAYECTORIA!#REF!) -> FALSE | M62: =ISBLANK(TRAYECTORIA!#REF!) -> FALSE | O62: =TRAYECTORIA!#REF!*-1 ->  | Q62: =Dn(Matriz!O61,TRAYECTORIA!#REF!,(TRAYECTORIA!#REF!-TRAYECTORIA!#REF!)/2)+Dn(Matriz!O62,TRAYECTORIA!#REF!,(TRAYECTORIA!#REF!-TRAYECTORIA!#REF!)/2)+Q61 ->  | R62: =De(Matriz!O61,TRAYECTORIA!#REF!,(TRAYECTORIA!#REF!-TRAYECTORIA!#REF!)/2)+De(Matriz!O62,TRAYECTORIA!#REF!,(TRAYECTORIA!#REF!-TRAYECTORIA!#REF!)/2)+R61 ->  | S62: =DVt(TRAYECTORIA!#REF!,(TRAYECTORIA!#REF!-TRAYECTORIA!#REF!)/2)+DVt(TRAYECTORIA!#REF!,(TRAYECTORIA!#REF!-TRAYECTORIA!#REF!)/2)+S61 ->  | W62: =Dn(Matriz!$A$74,TRAYECTORIA!$P$10,TRAYECTORIA!#REF!-TRAYECTORIA!#REF!)+W61 ->  | X62: =De(Matriz!$A$74,TRAYECTORIA!$P$10,TRAYECTORIA!#REF!-TRAYECTORIA!#REF!)+X61 ->  | Y62: =DVt(TRAYECTORIA!$P$10,TRAYECTORIA!#REF!-TRAYECTORIA!#REF!)+Y61 -> 
K63: =ISBLANK(TRAYECTORIA!#REF!) -> FALSE | L63: =ISBLANK(TRAYECTORIA!#REF!) -> FALSE | M63: =ISBLANK(TRAYECTORIA!#REF!) -> FALSE | O63: =TRAYECTORIA!#REF!*-1 ->  | Q63: =Dn(Matriz!O62,TRAYECTORIA!#REF!,(TRAYECTORIA!#REF!-TRAYECTORIA!#REF!)/2)+Dn(Matriz!O63,TRAYECTORIA!#REF!,(TRAYECTORIA!#REF!-TRAYECTORIA!#REF!)/2)+Q62 ->  | R63: =De(Matriz!O62,TRAYECTORIA!#REF!,(TRAYECTORIA!#REF!-TRAYECTORIA!#REF!)/2)+De(Matriz!O63,TRAYECTORIA!#REF!,(TRAYECTORIA!#REF!-TRAYECTORIA!#REF!)/2)+R62 ->  | S63: =DVt(TRAYECTORIA!#REF!,(TRAYECTORIA!#REF!-TRAYECTORIA!#REF!)/2)+DVt(TRAYECTORIA!#REF!,(TRAYECTORIA!#REF!-TRAYECTORIA!#REF!)/2)+S62 ->  | W63: =Dn(Matriz!$A$74,TRAYECTORIA!$P$10,TRAYECTORIA!#REF!-TRAYECTORIA!#REF!)+W62 ->  | X63: =De(Matriz!$A$74,TRAYECTORIA!$P$10,TRAYECTORIA!#REF!-TRAYECTORIA!#REF!)+X62 ->  | Y63: =DVt(TRAYECTORIA!$P$10,TRAYECTORIA!#REF!-TRAYECTORIA!#REF!)+Y62 -> 
A64: =(A44*_RMX1)+(B44*_RMY1)+(C44*_RMZ1) -> -217.0073672 | B64: =(A44*_RMX2)+(B44*_RMY2)+(C44*_RMZ2) -> 1026.224112 | K64: =ISBLANK(TRAYECTORIA!#REF!) -> FALSE | L64: =ISBLANK(TRAYECTORIA!#REF!) -> FALSE | M64: =ISBLANK(TRAYECTORIA!#REF!) -> FALSE | O64: =TRAYECTORIA!#REF!*-1 ->  | Q64: =Dn(Matriz!O63,TRAYECTORIA!#REF!,(TRAYECTORIA!#REF!-TRAYECTORIA!#REF!)/2)+Dn(Matriz!O64,TRAYECTORIA!#REF!,(TRAYECTORIA!#REF!-TRAYECTORIA!#REF!)/2)+Q63 ->  | R64: =De(Matriz!O63,TRAYECTORIA!#REF!,(TRAYECTORIA!#REF!-TRAYECTORIA!#REF!)/2)+De(Matriz!O64,TRAYECTORIA!#REF!,(TRAYECTORIA!#REF!-TRAYECTORIA!#REF!)/2)+R63 ->  | S64: =DVt(TRAYECTORIA!#REF!,(TRAYECTORIA!#REF!-TRAYECTORIA!#REF!)/2)+DVt(TRAYECTORIA!#REF!,(TRAYECTORIA!#REF!-TRAYECTORIA!#REF!)/2)+S63 ->  | W64: =Dn(Matriz!$A$74,TRAYECTORIA!$P$10,TRAYECTORIA!#REF!-TRAYECTORIA!#REF!)+W63 ->  | X64: =De(Matriz!$A$74,TRAYECTORIA!$P$10,TRAYECTORIA!#REF!-TRAYECTORIA!#REF!)+X63 ->  | Y64: =DVt(TRAYECTORIA!$P$10,TRAYECTORIA!#REF!-TRAYECTORIA!#REF!)+Y63 -> 
A65: =(A45*_RMX1)+(B45*_RMY1)+(C45*_RMZ1) -> -217.0073672 | B65: =(A45*_RMX2)+(B45*_RMY2)+(C45*_RMZ2) -> 1026.224112 | K65: =ISBLANK(TRAYECTORIA!#REF!) -> FALSE | L65: =ISBLANK(TRAYECTORIA!#REF!) -> FALSE | M65: =ISBLANK(TRAYECTORIA!#REF!) -> FALSE | O65: =TRAYECTORIA!#REF!*-1 ->  | Q65: =Dn(Matriz!O64,TRAYECTORIA!#REF!,(TRAYECTORIA!#REF!-TRAYECTORIA!#REF!)/2)+Dn(Matriz!O65,TRAYECTORIA!#REF!,(TRAYECTORIA!#REF!-TRAYECTORIA!#REF!)/2)+Q64 ->  | R65: =De(Matriz!O64,TRAYECTORIA!#REF!,(TRAYECTORIA!#REF!-TRAYECTORIA!#REF!)/2)+De(Matriz!O65,TRAYECTORIA!#REF!,(TRAYECTORIA!#REF!-TRAYECTORIA!#REF!)/2)+R64 ->  | S65: =DVt(TRAYECTORIA!#REF!,(TRAYECTORIA!#REF!-TRAYECTORIA!#REF!)/2)+DVt(TRAYECTORIA!#REF!,(TRAYECTORIA!#REF!-TRAYECTORIA!#REF!)/2)+S64 ->  | W65: =Dn(Matriz!$A$74,TRAYECTORIA!$P$10,TRAYECTORIA!#REF!-TRAYECTORIA!#REF!)+W64 ->  | X65: =De(Matriz!$A$74,TRAYECTORIA!$P$10,TRAYECTORIA!#REF!-TRAYECTORIA!#REF!)+X64 ->  | Y65: =DVt(TRAYECTORIA!$P$10,TRAYECTORIA!#REF!-TRAYECTORIA!#REF!)+Y64 -> 
K66: =ISBLANK(TRAYECTORIA!#REF!) -> FALSE | L66: =ISBLANK(TRAYECTORIA!#REF!) -> FALSE | M66: =ISBLANK(TRAYECTORIA!#REF!) -> FALSE | O66: =TRAYECTORIA!#REF!*-1 ->  | Q66: =Dn(Matriz!O65,TRAYECTORIA!#REF!,(TRAYECTORIA!#REF!-TRAYECTORIA!#REF!)/2)+Dn(Matriz!O66,TRAYECTORIA!#REF!,(TRAYECTORIA!#REF!-TRAYECTORIA!#REF!)/2)+Q65 ->  | R66: =De(Matriz!O65,TRAYECTORIA!#REF!,(TRAYECTORIA!#REF!-TRAYECTORIA!#REF!)/2)+De(Matriz!O66,TRAYECTORIA!#REF!,(TRAYECTORIA!#REF!-TRAYECTORIA!#REF!)/2)+R65 ->  | S66: =DVt(TRAYECTORIA!#REF!,(TRAYECTORIA!#REF!-TRAYECTORIA!#REF!)/2)+DVt(TRAYECTORIA!#REF!,(TRAYECTORIA!#REF!-TRAYECTORIA!#REF!)/2)+S65 ->  | W66: =Dn(Matriz!$A$74,TRAYECTORIA!$P$10,TRAYECTORIA!#REF!-TRAYECTORIA!#REF!)+W65 ->  | X66: =De(Matriz!$A$74,TRAYECTORIA!$P$10,TRAYECTORIA!#REF!-TRAYECTORIA!#REF!)+X65 ->  | Y66: =DVt(TRAYECTORIA!$P$10,TRAYECTORIA!#REF!-TRAYECTORIA!#REF!)+Y65 -> 
A67: =(A47*_RMX1)+(B47*_RMY1)+(C47*_RMZ1) -> 870.3690107 | B67: =(A47*_RMX2)+(B47*_RMY2)+(C47*_RMZ2) -> -200.0942775 | F67: =IF(L67=FALSE,(Q68*_RMX2)+(R68*_RMY2)+(T68*_RMZ2),NA()) ->  | H67: =IF(K67=FALSE,(W68*_RMX1)+(X68*_RMY1)+(AC68*_RMZ1),NA()) ->  | I67: =IF(L67=FALSE,(W68*_RMX2)+(X68*_RMY2)+(AC68*_RMZ2),NA()) ->  | K67: =ISBLANK(TRAYECTORIA!#REF!) -> FALSE | L67: =ISBLANK(TRAYECTORIA!#REF!) -> FALSE | M67: =ISBLANK(TRAYECTORIA!#REF!) -> FALSE | O67: =TRAYECTORIA!#REF!*-1 ->  | Q67: =Dn(Matriz!O66,TRAYECTORIA!#REF!,(TRAYECTORIA!#REF!-TRAYECTORIA!#REF!)/2)+Dn(Matriz!O67,TRAYECTORIA!#REF!,(TRAYECTORIA!#REF!-TRAYECTORIA!#REF!)/2)+Q66 ->  | R67: =De(Matriz!O66,TRAYECTORIA!#REF!,(TRAYECTORIA!#REF!-TRAYECTORIA!#REF!)/2)+De(Matriz!O67,TRAYECTORIA!#REF!,(TRAYECTORIA!#REF!-TRAYECTORIA!#REF!)/2)+R66 ->  | S67: =DVt(TRAYECTORIA!#REF!,(TRAYECTORIA!#REF!-TRAYECTORIA!#REF!)/2)+DVt(TRAYECTORIA!#REF!,(TRAYECTORIA!#REF!-TRAYECTORIA!#REF!)/2)+S66 ->  | W67: =Dn(Matriz!$A$74,TRAYECTORIA!$P$10,TRAYECTORIA!#REF!-TRAYECTORIA!#REF!)+W66 ->  | X67: =De(Matriz!$A$74,TRAYECTORIA!$P$10,TRAYECTORIA!#REF!-TRAYECTORIA!#REF!)+X66 ->  | Y67: =DVt(TRAYECTORIA!$P$10,TRAYECTORIA!#REF!-TRAYECTORIA!#REF!)+Y66 -> 
A68: =(A48*_RMX1)+(B48*_RMY1)+(C48*_RMZ1) -> 870.3690107 | B68: =(A48*_RMX2)+(B48*_RMY2)+(C48*_RMZ2) -> -200.0942775 | K68: =ISBLANK(TRAYECTORIA!#REF!) -> FALSE | L68: =ISBLANK(TRAYECTORIA!#REF!) -> FALSE | M68: =ISBLANK(TRAYECTORIA!#REF!) -> FALSE | O68: =TRAYECTORIA!#REF!*-1 ->  | Q68: =Dn(Matriz!O67,TRAYECTORIA!#REF!,(TRAYECTORIA!#REF!-TRAYECTORIA!#REF!)/2)+Dn(Matriz!O68,TRAYECTORIA!#REF!,(TRAYECTORIA!#REF!-TRAYECTORIA!#REF!)/2)+Q67 ->  | R68: =De(Matriz!O67,TRAYECTORIA!#REF!,(TRAYECTORIA!#REF!-TRAYECTORIA!#REF!)/2)+De(Matriz!O68,TRAYECTORIA!#REF!,(TRAYECTORIA!#REF!-TRAYECTORIA!#REF!)/2)+R67 ->  | S68: =DVt(TRAYECTORIA!#REF!,(TRAYECTORIA!#REF!-TRAYECTORIA!#REF!)/2)+DVt(TRAYECTORIA!#REF!,(TRAYECTORIA!#REF!-TRAYECTORIA!#REF!)/2)+S67 ->  | W68: =Dn(Matriz!$A$74,TRAYECTORIA!$P$10,TRAYECTORIA!#REF!-TRAYECTORIA!#REF!)+W67 ->  | X68: =De(Matriz!$A$74,TRAYECTORIA!$P$10,TRAYECTORIA!#REF!-TRAYECTORIA!#REF!)+X67 ->  | Y68: =DVt(TRAYECTORIA!$P$10,TRAYECTORIA!#REF!-TRAYECTORIA!#REF!)+Y67 -> 
E69: =IF(K69=FALSE,(Q70*_RMX1)+(R70*_RMY1)+(T70*_RMZ1),NA()) ->  | K69: =ISBLANK(TRAYECTORIA!#REF!) -> FALSE | L69: =ISBLANK(TRAYECTORIA!#REF!) -> FALSE | M69: =ISBLANK(TRAYECTORIA!#REF!) -> FALSE | O69: =TRAYECTORIA!#REF!*-1 ->  | Q69: =Dn(Matriz!O68,TRAYECTORIA!#REF!,(TRAYECTORIA!#REF!-TRAYECTORIA!#REF!)/2)+Dn(Matriz!O69,TRAYECTORIA!#REF!,(TRAYECTORIA!#REF!-TRAYECTORIA!#REF!)/2)+Q68 ->  | R69: =De(Matriz!O68,TRAYECTORIA!#REF!,(TRAYECTORIA!#REF!-TRAYECTORIA!#REF!)/2)+De(Matriz!O69,TRAYECTORIA!#REF!,(TRAYECTORIA!#REF!-TRAYECTORIA!#REF!)/2)+R68 ->  | S69: =DVt(TRAYECTORIA!#REF!,(TRAYECTORIA!#REF!-TRAYECTORIA!#REF!)/2)+DVt(TRAYECTORIA!#REF!,(TRAYECTORIA!#REF!-TRAYECTORIA!#REF!)/2)+S68 ->  | T69: =S69*-1 ->  | W69: =Dn(Matriz!$A$74,TRAYECTORIA!$P$10,TRAYECTORIA!#REF!-TRAYECTORIA!#REF!)+W68 ->  | X69: =De(Matriz!$A$74,TRAYECTORIA!$P$10,TRAYECTORIA!#REF!-TRAYECTORIA!#REF!)+X68 ->  | Y69: =DVt(TRAYECTORIA!$P$10,TRAYECTORIA!#REF!-TRAYECTORIA!#REF!)+Y68 -> 
A70: =(A50*_RMX1)+(B50*_RMY1)+(C50*_RMZ1) -> 217.0073672 | B70: =(A50*_RMX2)+(B50*_RMY2)+(C50*_RMZ2) -> -1026.224112 | K70: =ISBLANK(TRAYECTORIA!#REF!) -> FALSE | L70: =ISBLANK(TRAYECTORIA!#REF!) -> FALSE | M70: =ISBLANK(TRAYECTORIA!#REF!) -> FALSE | O70: =TRAYECTORIA!#REF!*-1 ->  | Q70: =Dn(Matriz!O69,TRAYECTORIA!#REF!,(TRAYECTORIA!#REF!-TRAYECTORIA!#REF!)/2)+Dn(Matriz!O70,TRAYECTORIA!#REF!,(TRAYECTORIA!#REF!-TRAYECTORIA!#REF!)/2)+Q69 ->  | R70: =De(Matriz!O69,TRAYECTORIA!#REF!,(TRAYECTORIA!#REF!-TRAYECTORIA!#REF!)/2)+De(Matriz!O70,TRAYECTORIA!#REF!,(TRAYECTORIA!#REF!-TRAYECTORIA!#REF!)/2)+R69 ->  | S70: =DVt(TRAYECTORIA!#REF!,(TRAYECTORIA!#REF!-TRAYECTORIA!#REF!)/2)+DVt(TRAYECTORIA!#REF!,(TRAYECTORIA!#REF!-TRAYECTORIA!#REF!)/2)+S69 ->  | V70: =SQRT((Q70-Q69)^2+(R70-R69)^2+(S70-S69)^2)+V69 ->  | W70: =Dn(Matriz!$A$74,TRAYECTORIA!$P$10,TRAYECTORIA!#REF!-TRAYECTORIA!#REF!)+W69 ->  | X70: =De(Matriz!$A$74,TRAYECTORIA!$P$10,TRAYECTORIA!#REF!-TRAYECTORIA!#REF!)+X69 ->  | Y70: =DVt(TRAYECTORIA!$P$10,TRAYECTORIA!#REF!-TRAYECTORIA!#REF!)+Y69 ->  | Z70: =SQRT((W70-W69)^2+(X70-X69)^2+(Y70-Y69)^2) ->  | AA70: =SQRT((Q70-W70)^2+(R70-X70)^2+(S70-Y70)^2) ->  | AB70: =AA70/Z70 ->  | AC70: =Y70*-1 -> 
A71: =(A51*_RMX1)+(B51*_RMY1)+(C51*_RMZ1) -> 217.0073672 | B71: =(A51*_RMX2)+(B51*_RMY2)+(C51*_RMZ2) -> -1026.224112 | K71: =ISBLANK(TRAYECTORIA!#REF!) -> FALSE | L71: =ISBLANK(TRAYECTORIA!#REF!) -> FALSE | M71: =ISBLANK(TRAYECTORIA!#REF!) -> FALSE | O71: =TRAYECTORIA!#REF!*-1 ->  | Q71: =Dn(Matriz!O70,TRAYECTORIA!#REF!,(TRAYECTORIA!#REF!-TRAYECTORIA!#REF!)/2)+Dn(Matriz!O71,TRAYECTORIA!#REF!,(TRAYECTORIA!#REF!-TRAYECTORIA!#REF!)/2)+Q70 ->  | R71: =De(Matriz!O70,TRAYECTORIA!#REF!,(TRAYECTORIA!#REF!-TRAYECTORIA!#REF!)/2)+De(Matriz!O71,TRAYECTORIA!#REF!,(TRAYECTORIA!#REF!-TRAYECTORIA!#REF!)/2)+R70 ->  | S71: =DVt(TRAYECTORIA!#REF!,(TRAYECTORIA!#REF!-TRAYECTORIA!#REF!)/2)+DVt(TRAYECTORIA!#REF!,(TRAYECTORIA!#REF!-TRAYECTORIA!#REF!)/2)+S70 ->  | W71: =Dn(Matriz!$A$74,TRAYECTORIA!$P$10,TRAYECTORIA!#REF!-TRAYECTORIA!#REF!)+W70 ->  | X71: =De(Matriz!$A$74,TRAYECTORIA!$P$10,TRAYECTORIA!#REF!-TRAYECTORIA!#REF!)+X70 ->  | Y71: =DVt(TRAYECTORIA!$P$10,TRAYECTORIA!#REF!-TRAYECTORIA!#REF!)+Y70 -> 
K72: =ISBLANK(TRAYECTORIA!#REF!) -> FALSE | L72: =ISBLANK(TRAYECTORIA!#REF!) -> FALSE | M72: =ISBLANK(TRAYECTORIA!#REF!) -> FALSE | O72: =TRAYECTORIA!#REF!*-1 ->  | Q72: =Dn(Matriz!O71,TRAYECTORIA!#REF!,(TRAYECTORIA!#REF!-TRAYECTORIA!#REF!)/2)+Dn(Matriz!O72,TRAYECTORIA!#REF!,(TRAYECTORIA!#REF!-TRAYECTORIA!#REF!)/2)+Q71 ->  | R72: =De(Matriz!O71,TRAYECTORIA!#REF!,(TRAYECTORIA!#REF!-TRAYECTORIA!#REF!)/2)+De(Matriz!O72,TRAYECTORIA!#REF!,(TRAYECTORIA!#REF!-TRAYECTORIA!#REF!)/2)+R71 ->  | S72: =DVt(TRAYECTORIA!#REF!,(TRAYECTORIA!#REF!-TRAYECTORIA!#REF!)/2)+DVt(TRAYECTORIA!#REF!,(TRAYECTORIA!#REF!-TRAYECTORIA!#REF!)/2)+S71 ->  | W72: =Dn(Matriz!$A$74,TRAYECTORIA!$P$10,TRAYECTORIA!#REF!-TRAYECTORIA!#REF!)+W71 ->  | X72: =De(Matriz!$A$74,TRAYECTORIA!$P$10,TRAYECTORIA!#REF!-TRAYECTORIA!#REF!)+X71 ->  | Y72: =DVt(TRAYECTORIA!$P$10,TRAYECTORIA!#REF!-TRAYECTORIA!#REF!)+Y71 -> 
A73: Adaptación Az.Teorico | K73: =ISBLANK(TRAYECTORIA!#REF!) -> FALSE | L73: =ISBLANK(TRAYECTORIA!#REF!) -> FALSE | M73: =ISBLANK(TRAYECTORIA!#REF!) -> FALSE | O73: =TRAYECTORIA!#REF!*-1 ->  | Q73: =Dn(Matriz!O72,TRAYECTORIA!#REF!,(TRAYECTORIA!#REF!-TRAYECTORIA!#REF!)/2)+Dn(Matriz!O73,TRAYECTORIA!#REF!,(TRAYECTORIA!#REF!-TRAYECTORIA!#REF!)/2)+Q72 ->  | R73: =De(Matriz!O72,TRAYECTORIA!#REF!,(TRAYECTORIA!#REF!-TRAYECTORIA!#REF!)/2)+De(Matriz!O73,TRAYECTORIA!#REF!,(TRAYECTORIA!#REF!-TRAYECTORIA!#REF!)/2)+R72 ->  | S73: =DVt(TRAYECTORIA!#REF!,(TRAYECTORIA!#REF!-TRAYECTORIA!#REF!)/2)+DVt(TRAYECTORIA!#REF!,(TRAYECTORIA!#REF!-TRAYECTORIA!#REF!)/2)+S72 ->  | W73: =Dn(Matriz!$A$74,TRAYECTORIA!$P$10,TRAYECTORIA!#REF!-TRAYECTORIA!#REF!)+W72 ->  | X73: =De(Matriz!$A$74,TRAYECTORIA!$P$10,TRAYECTORIA!#REF!-TRAYECTORIA!#REF!)+X72 ->  | Y73: =DVt(TRAYECTORIA!$P$10,TRAYECTORIA!#REF!-TRAYECTORIA!#REF!)+Y72 -> 
A74: =TRAYECTORIA!P9*-1 -> 0 | K74: =ISBLANK(TRAYECTORIA!#REF!) -> FALSE | L74: =ISBLANK(TRAYECTORIA!#REF!) -> FALSE | M74: =ISBLANK(TRAYECTORIA!#REF!) -> FALSE | O74: =TRAYECTORIA!#REF!*-1 ->  | Q74: =Dn(Matriz!O73,TRAYECTORIA!#REF!,(TRAYECTORIA!#REF!-TRAYECTORIA!#REF!)/2)+Dn(Matriz!O74,TRAYECTORIA!#REF!,(TRAYECTORIA!#REF!-TRAYECTORIA!#REF!)/2)+Q73 ->  | R74: =De(Matriz!O73,TRAYECTORIA!#REF!,(TRAYECTORIA!#REF!-TRAYECTORIA!#REF!)/2)+De(Matriz!O74,TRAYECTORIA!#REF!,(TRAYECTORIA!#REF!-TRAYECTORIA!#REF!)/2)+R73 ->  | S74: =DVt(TRAYECTORIA!#REF!,(TRAYECTORIA!#REF!-TRAYECTORIA!#REF!)/2)+DVt(TRAYECTORIA!#REF!,(TRAYECTORIA!#REF!-TRAYECTORIA!#REF!)/2)+S73 ->  | W74: =Dn(Matriz!$A$74,TRAYECTORIA!$P$10,TRAYECTORIA!#REF!-TRAYECTORIA!#REF!)+W73 ->  | X74: =De(Matriz!$A$74,TRAYECTORIA!$P$10,TRAYECTORIA!#REF!-TRAYECTORIA!#REF!)+X73 ->  | Y74: =DVt(TRAYECTORIA!$P$10,TRAYECTORIA!#REF!-TRAYECTORIA!#REF!)+Y73 -> 
K75: =ISBLANK(TRAYECTORIA!#REF!) -> FALSE | L75: =ISBLANK(TRAYECTORIA!#REF!) -> FALSE | M75: =ISBLANK(TRAYECTORIA!#REF!) -> FALSE | O75: =TRAYECTORIA!#REF!*-1 ->  | Q75: =Dn(Matriz!O74,TRAYECTORIA!#REF!,(TRAYECTORIA!#REF!-TRAYECTORIA!#REF!)/2)+Dn(Matriz!O75,TRAYECTORIA!#REF!,(TRAYECTORIA!#REF!-TRAYECTORIA!#REF!)/2)+Q74 ->  | R75: =De(Matriz!O74,TRAYECTORIA!#REF!,(TRAYECTORIA!#REF!-TRAYECTORIA!#REF!)/2)+De(Matriz!O75,TRAYECTORIA!#REF!,(TRAYECTORIA!#REF!-TRAYECTORIA!#REF!)/2)+R74 ->  | S75: =DVt(TRAYECTORIA!#REF!,(TRAYECTORIA!#REF!-TRAYECTORIA!#REF!)/2)+DVt(TRAYECTORIA!#REF!,(TRAYECTORIA!#REF!-TRAYECTORIA!#REF!)/2)+S74 ->  | W75: =Dn(Matriz!$A$74,TRAYECTORIA!$P$10,TRAYECTORIA!#REF!-TRAYECTORIA!#REF!)+W74 ->  | X75: =De(Matriz!$A$74,TRAYECTORIA!$P$10,TRAYECTORIA!#REF!-TRAYECTORIA!#REF!)+X74 ->  | Y75: =DVt(TRAYECTORIA!$P$10,TRAYECTORIA!#REF!-TRAYECTORIA!#REF!)+Y74 -> 
K76: =ISBLANK(TRAYECTORIA!#REF!) -> FALSE | L76: =ISBLANK(TRAYECTORIA!#REF!) -> FALSE | M76: =ISBLANK(TRAYECTORIA!#REF!) -> FALSE | O76: =TRAYECTORIA!#REF!*-1 ->  | Q76: =Dn(Matriz!O75,TRAYECTORIA!#REF!,(TRAYECTORIA!#REF!-TRAYECTORIA!#REF!)/2)+Dn(Matriz!O76,TRAYECTORIA!#REF!,(TRAYECTORIA!#REF!-TRAYECTORIA!#REF!)/2)+Q75 ->  | R76: =De(Matriz!O75,TRAYECTORIA!#REF!,(TRAYECTORIA!#REF!-TRAYECTORIA!#REF!)/2)+De(Matriz!O76,TRAYECTORIA!#REF!,(TRAYECTORIA!#REF!-TRAYECTORIA!#REF!)/2)+R75 ->  | S76: =DVt(TRAYECTORIA!#REF!,(TRAYECTORIA!#REF!-TRAYECTORIA!#REF!)/2)+DVt(TRAYECTORIA!#REF!,(TRAYECTORIA!#REF!-TRAYECTORIA!#REF!)/2)+S75 ->  | W76: =Dn(Matriz!$A$74,TRAYECTORIA!$P$10,TRAYECTORIA!#REF!-TRAYECTORIA!#REF!)+W75 ->  | X76: =De(Matriz!$A$74,TRAYECTORIA!$P$10,TRAYECTORIA!#REF!-TRAYECTORIA!#REF!)+X75 ->  | Y76: =DVt(TRAYECTORIA!$P$10,TRAYECTORIA!#REF!-TRAYECTORIA!#REF!)+Y75 -> 
K77: =ISBLANK(TRAYECTORIA!#REF!) -> FALSE | L77: =ISBLANK(TRAYECTORIA!#REF!) -> FALSE | M77: =ISBLANK(TRAYECTORIA!#REF!) -> FALSE | O77: =TRAYECTORIA!#REF!*-1 ->  | Q77: =Dn(Matriz!O76,TRAYECTORIA!#REF!,(TRAYECTORIA!#REF!-TRAYECTORIA!#REF!)/2)+Dn(Matriz!O77,TRAYECTORIA!#REF!,(TRAYECTORIA!#REF!-TRAYECTORIA!#REF!)/2)+Q76 ->  | R77: =De(Matriz!O76,TRAYECTORIA!#REF!,(TRAYECTORIA!#REF!-TRAYECTORIA!#REF!)/2)+De(Matriz!O77,TRAYECTORIA!#REF!,(TRAYECTORIA!#REF!-TRAYECTORIA!#REF!)/2)+R76 ->  | S77: =DVt(TRAYECTORIA!#REF!,(TRAYECTORIA!#REF!-TRAYECTORIA!#REF!)/2)+DVt(TRAYECTORIA!#REF!,(TRAYECTORIA!#REF!-TRAYECTORIA!#REF!)/2)+S76 ->  | W77: =Dn(Matriz!$A$74,TRAYECTORIA!$P$10,TRAYECTORIA!#REF!-TRAYECTORIA!#REF!)+W76 ->  | X77: =De(Matriz!$A$74,TRAYECTORIA!$P$10,TRAYECTORIA!#REF!-TRAYECTORIA!#REF!)+X76 ->  | Y77: =DVt(TRAYECTORIA!$P$10,TRAYECTORIA!#REF!-TRAYECTORIA!#REF!)+Y76 -> 
K78: =ISBLANK(TRAYECTORIA!#REF!) -> FALSE | L78: =ISBLANK(TRAYECTORIA!#REF!) -> FALSE | M78: =ISBLANK(TRAYECTORIA!#REF!) -> FALSE | O78: =TRAYECTORIA!#REF!*-1 ->  | Q78: =Dn(Matriz!O77,TRAYECTORIA!#REF!,(TRAYECTORIA!#REF!-TRAYECTORIA!#REF!)/2)+Dn(Matriz!O78,TRAYECTORIA!#REF!,(TRAYECTORIA!#REF!-TRAYECTORIA!#REF!)/2)+Q77 ->  | R78: =De(Matriz!O77,TRAYECTORIA!#REF!,(TRAYECTORIA!#REF!-TRAYECTORIA!#REF!)/2)+De(Matriz!O78,TRAYECTORIA!#REF!,(TRAYECTORIA!#REF!-TRAYECTORIA!#REF!)/2)+R77 ->  | S78: =DVt(TRAYECTORIA!#REF!,(TRAYECTORIA!#REF!-TRAYECTORIA!#REF!)/2)+DVt(TRAYECTORIA!#REF!,(TRAYECTORIA!#REF!-TRAYECTORIA!#REF!)/2)+S77 ->  | W78: =Dn(Matriz!$A$74,TRAYECTORIA!$P$10,TRAYECTORIA!#REF!-TRAYECTORIA!#REF!)+W77 ->  | X78: =De(Matriz!$A$74,TRAYECTORIA!$P$10,TRAYECTORIA!#REF!-TRAYECTORIA!#REF!)+X77 ->  | Y78: =DVt(TRAYECTORIA!$P$10,TRAYECTORIA!#REF!-TRAYECTORIA!#REF!)+Y77 -> 
K79: =ISBLANK(TRAYECTORIA!#REF!) -> FALSE | L79: =ISBLANK(TRAYECTORIA!#REF!) -> FALSE | M79: =ISBLANK(TRAYECTORIA!#REF!) -> FALSE | O79: =TRAYECTORIA!#REF!*-1 ->  | Q79: =Dn(Matriz!O78,TRAYECTORIA!#REF!,(TRAYECTORIA!#REF!-TRAYECTORIA!#REF!)/2)+Dn(Matriz!O79,TRAYECTORIA!#REF!,(TRAYECTORIA!#REF!-TRAYECTORIA!#REF!)/2)+Q78 ->  | R79: =De(Matriz!O78,TRAYECTORIA!#REF!,(TRAYECTORIA!#REF!-TRAYECTORIA!#REF!)/2)+De(Matriz!O79,TRAYECTORIA!#REF!,(TRAYECTORIA!#REF!-TRAYECTORIA!#REF!)/2)+R78 ->  | S79: =DVt(TRAYECTORIA!#REF!,(TRAYECTORIA!#REF!-TRAYECTORIA!#REF!)/2)+DVt(TRAYECTORIA!#REF!,(TRAYECTORIA!#REF!-TRAYECTORIA!#REF!)/2)+S78 ->  | W79: =Dn(Matriz!$A$74,TRAYECTORIA!$P$10,TRAYECTORIA!#REF!-TRAYECTORIA!#REF!)+W78 ->  | X79: =De(Matriz!$A$74,TRAYECTORIA!$P$10,TRAYECTORIA!#REF!-TRAYECTORIA!#REF!)+X78 ->  | Y79: =DVt(TRAYECTORIA!$P$10,TRAYECTORIA!#REF!-TRAYECTORIA!#REF!)+Y78 -> 
K80: =ISBLANK(TRAYECTORIA!#REF!) -> FALSE | L80: =ISBLANK(TRAYECTORIA!#REF!) -> FALSE | M80: =ISBLANK(TRAYECTORIA!#REF!) -> FALSE | O80: =TRAYECTORIA!#REF!*-1 ->  | Q80: =Dn(Matriz!O79,TRAYECTORIA!#REF!,(TRAYECTORIA!#REF!-TRAYECTORIA!#REF!)/2)+Dn(Matriz!O80,TRAYECTORIA!#REF!,(TRAYECTORIA!#REF!-TRAYECTORIA!#REF!)/2)+Q79 ->  | R80: =De(Matriz!O79,TRAYECTORIA!#REF!,(TRAYECTORIA!#REF!-TRAYECTORIA!#REF!)/2)+De(Matriz!O80,TRAYECTORIA!#REF!,(TRAYECTORIA!#REF!-TRAYECTORIA!#REF!)/2)+R79 ->  | S80: =DVt(TRAYECTORIA!#REF!,(TRAYECTORIA!#REF!-TRAYECTORIA!#REF!)/2)+DVt(TRAYECTORIA!#REF!,(TRAYECTORIA!#REF!-TRAYECTORIA!#REF!)/2)+S79 ->  | W80: =Dn(Matriz!$A$74,TRAYECTORIA!$P$10,TRAYECTORIA!#REF!-TRAYECTORIA!#REF!)+W79 ->  | X80: =De(Matriz!$A$74,TRAYECTORIA!$P$10,TRAYECTORIA!#REF!-TRAYECTORIA!#REF!)+X79 ->  | Y80: =DVt(TRAYECTORIA!$P$10,TRAYECTORIA!#REF!-TRAYECTORIA!#REF!)+Y79 -> 
K81: =ISBLANK(TRAYECTORIA!#REF!) -> FALSE | L81: =ISBLANK(TRAYECTORIA!#REF!) -> FALSE | M81: =ISBLANK(TRAYECTORIA!#REF!) -> FALSE | O81: =TRAYECTORIA!#REF!*-1 ->  | Q81: =Dn(Matriz!O80,TRAYECTORIA!#REF!,(TRAYECTORIA!#REF!-TRAYECTORIA!#REF!)/2)+Dn(Matriz!O81,TRAYECTORIA!#REF!,(TRAYECTORIA!#REF!-TRAYECTORIA!#REF!)/2)+Q80 ->  | R81: =De(Matriz!O80,TRAYECTORIA!#REF!,(TRAYECTORIA!#REF!-TRAYECTORIA!#REF!)/2)+De(Matriz!O81,TRAYECTORIA!#REF!,(TRAYECTORIA!#REF!-TRAYECTORIA!#REF!)/2)+R80 ->  | S81: =DVt(TRAYECTORIA!#REF!,(TRAYECTORIA!#REF!-TRAYECTORIA!#REF!)/2)+DVt(TRAYECTORIA!#REF!,(TRAYECTORIA!#REF!-TRAYECTORIA!#REF!)/2)+S80 ->  | W81: =Dn(Matriz!$A$74,TRAYECTORIA!$P$10,TRAYECTORIA!#REF!-TRAYECTORIA!#REF!)+W80 ->  | X81: =De(Matriz!$A$74,TRAYECTORIA!$P$10,TRAYECTORIA!#REF!-TRAYECTORIA!#REF!)+X80 ->  | Y81: =DVt(TRAYECTORIA!$P$10,TRAYECTORIA!#REF!-TRAYECTORIA!#REF!)+Y80 -> 
K82: =ISBLANK(TRAYECTORIA!#REF!) -> FALSE | L82: =ISBLANK(TRAYECTORIA!#REF!) -> FALSE | M82: =ISBLANK(TRAYECTORIA!#REF!) -> FALSE | O82: =TRAYECTORIA!#REF!*-1 ->  | Q82: =Dn(Matriz!O81,TRAYECTORIA!#REF!,(TRAYECTORIA!#REF!-TRAYECTORIA!#REF!)/2)+Dn(Matriz!O82,TRAYECTORIA!#REF!,(TRAYECTORIA!#REF!-TRAYECTORIA!#REF!)/2)+Q81 ->  | R82: =De(Matriz!O81,TRAYECTORIA!#REF!,(TRAYECTORIA!#REF!-TRAYECTORIA!#REF!)/2)+De(Matriz!O82,TRAYECTORIA!#REF!,(TRAYECTORIA!#REF!-TRAYECTORIA!#REF!)/2)+R81 ->  | S82: =DVt(TRAYECTORIA!#REF!,(TRAYECTORIA!#REF!-TRAYECTORIA!#REF!)/2)+DVt(TRAYECTORIA!#REF!,(TRAYECTORIA!#REF!-TRAYECTORIA!#REF!)/2)+S81 ->  | W82: =Dn(Matriz!$A$74,TRAYECTORIA!$P$10,TRAYECTORIA!#REF!-TRAYECTORIA!#REF!)+W81 ->  | X82: =De(Matriz!$A$74,TRAYECTORIA!$P$10,TRAYECTORIA!#REF!-TRAYECTORIA!#REF!)+X81 ->  | Y82: =DVt(TRAYECTORIA!$P$10,TRAYECTORIA!#REF!-TRAYECTORIA!#REF!)+Y81 -> 
K83: =ISBLANK(TRAYECTORIA!#REF!) -> FALSE | L83: =ISBLANK(TRAYECTORIA!#REF!) -> FALSE | M83: =ISBLANK(TRAYECTORIA!#REF!) -> FALSE | O83: =TRAYECTORIA!#REF!*-1 ->  | Q83: =Dn(Matriz!O82,TRAYECTORIA!#REF!,(TRAYECTORIA!#REF!-TRAYECTORIA!#REF!)/2)+Dn(Matriz!O83,TRAYECTORIA!#REF!,(TRAYECTORIA!#REF!-TRAYECTORIA!#REF!)/2)+Q82 ->  | R83: =De(Matriz!O82,TRAYECTORIA!#REF!,(TRAYECTORIA!#REF!-TRAYECTORIA!#REF!)/2)+De(Matriz!O83,TRAYECTORIA!#REF!,(TRAYECTORIA!#REF!-TRAYECTORIA!#REF!)/2)+R82 ->  | S83: =DVt(TRAYECTORIA!#REF!,(TRAYECTORIA!#REF!-TRAYECTORIA!#REF!)/2)+DVt(TRAYECTORIA!#REF!,(TRAYECTORIA!#REF!-TRAYECTORIA!#REF!)/2)+S82 ->  | W83: =Dn(Matriz!$A$74,TRAYECTORIA!$P$10,TRAYECTORIA!#REF!-TRAYECTORIA!#REF!)+W82 ->  | X83: =De(Matriz!$A$74,TRAYECTORIA!$P$10,TRAYECTORIA!#REF!-TRAYECTORIA!#REF!)+X82 ->  | Y83: =DVt(TRAYECTORIA!$P$10,TRAYECTORIA!#REF!-TRAYECTORIA!#REF!)+Y82 -> 
K84: =ISBLANK(TRAYECTORIA!#REF!) -> FALSE | L84: =ISBLANK(TRAYECTORIA!#REF!) -> FALSE | M84: =ISBLANK(TRAYECTORIA!#REF!) -> FALSE | O84: =TRAYECTORIA!#REF!*-1 ->  | Q84: =Dn(Matriz!O83,TRAYECTORIA!#REF!,(TRAYECTORIA!#REF!-TRAYECTORIA!#REF!)/2)+Dn(Matriz!O84,TRAYECTORIA!#REF!,(TRAYECTORIA!#REF!-TRAYECTORIA!#REF!)/2)+Q83 ->  | R84: =De(Matriz!O83,TRAYECTORIA!#REF!,(TRAYECTORIA!#REF!-TRAYECTORIA!#REF!)/2)+De(Matriz!O84,TRAYECTORIA!#REF!,(TRAYECTORIA!#REF!-TRAYECTORIA!#REF!)/2)+R83 ->  | S84: =DVt(TRAYECTORIA!#REF!,(TRAYECTORIA!#REF!-TRAYECTORIA!#REF!)/2)+DVt(TRAYECTORIA!#REF!,(TRAYECTORIA!#REF!-TRAYECTORIA!#REF!)/2)+S83 ->  | W84: =Dn(Matriz!$A$74,TRAYECTORIA!$P$10,TRAYECTORIA!#REF!-TRAYECTORIA!#REF!)+W83 ->  | X84: =De(Matriz!$A$74,TRAYECTORIA!$P$10,TRAYECTORIA!#REF!-TRAYECTORIA!#REF!)+X83 ->  | Y84: =DVt(TRAYECTORIA!$P$10,TRAYECTORIA!#REF!-TRAYECTORIA!#REF!)+Y83 -> 
K85: =ISBLANK(TRAYECTORIA!#REF!) -> FALSE | L85: =ISBLANK(TRAYECTORIA!#REF!) -> FALSE | M85: =ISBLANK(TRAYECTORIA!#REF!) -> FALSE | O85: =TRAYECTORIA!#REF!*-1 ->  | Q85: =Dn(Matriz!O84,TRAYECTORIA!#REF!,(TRAYECTORIA!#REF!-TRAYECTORIA!#REF!)/2)+Dn(Matriz!O85,TRAYECTORIA!#REF!,(TRAYECTORIA!#REF!-TRAYECTORIA!#REF!)/2)+Q84 ->  | R85: =De(Matriz!O84,TRAYECTORIA!#REF!,(TRAYECTORIA!#REF!-TRAYECTORIA!#REF!)/2)+De(Matriz!O85,TRAYECTORIA!#REF!,(TRAYECTORIA!#REF!-TRAYECTORIA!#REF!)/2)+R84 ->  | S85: =DVt(TRAYECTORIA!#REF!,(TRAYECTORIA!#REF!-TRAYECTORIA!#REF!)/2)+DVt(TRAYECTORIA!#REF!,(TRAYECTORIA!#REF!-TRAYECTORIA!#REF!)/2)+S84 ->  | W85: =Dn(Matriz!$A$74,TRAYECTORIA!$P$10,TRAYECTORIA!#REF!-TRAYECTORIA!#REF!)+W84 ->  | X85: =De(Matriz!$A$74,TRAYECTORIA!$P$10,TRAYECTORIA!#REF!-TRAYECTORIA!#REF!)+X84 ->  | Y85: =DVt(TRAYECTORIA!$P$10,TRAYECTORIA!#REF!-TRAYECTORIA!#REF!)+Y84 -> 
K86: =ISBLANK(TRAYECTORIA!#REF!) -> FALSE | L86: =ISBLANK(TRAYECTORIA!#REF!) -> FALSE | M86: =ISBLANK(TRAYECTORIA!#REF!) -> FALSE | O86: =TRAYECTORIA!#REF!*-1 ->  | Q86: =Dn(Matriz!O85,TRAYECTORIA!#REF!,(TRAYECTORIA!#REF!-TRAYECTORIA!#REF!)/2)+Dn(Matriz!O86,TRAYECTORIA!#REF!,(TRAYECTORIA!#REF!-TRAYECTORIA!#REF!)/2)+Q85 ->  | R86: =De(Matriz!O85,TRAYECTORIA!#REF!,(TRAYECTORIA!#REF!-TRAYECTORIA!#REF!)/2)+De(Matriz!O86,TRAYECTORIA!#REF!,(TRAYECTORIA!#REF!-TRAYECTORIA!#REF!)/2)+R85 ->  | S86: =DVt(TRAYECTORIA!#REF!,(TRAYECTORIA!#REF!-TRAYECTORIA!#REF!)/2)+DVt(TRAYECTORIA!#REF!,(TRAYECTORIA!#REF!-TRAYECTORIA!#REF!)/2)+S85 ->  | W86: =Dn(Matriz!$A$74,TRAYECTORIA!$P$10,TRAYECTORIA!#REF!-TRAYECTORIA!#REF!)+W85 ->  | X86: =De(Matriz!$A$74,TRAYECTORIA!$P$10,TRAYECTORIA!#REF!-TRAYECTORIA!#REF!)+X85 ->  | Y86: =DVt(TRAYECTORIA!$P$10,TRAYECTORIA!#REF!-TRAYECTORIA!#REF!)+Y85 -> 
K87: =ISBLANK(TRAYECTORIA!#REF!) -> FALSE | L87: =ISBLANK(TRAYECTORIA!#REF!) -> FALSE | M87: =ISBLANK(TRAYECTORIA!#REF!) -> FALSE | O87: =TRAYECTORIA!#REF!*-1 ->  | Q87: =Dn(Matriz!O86,TRAYECTORIA!#REF!,(TRAYECTORIA!#REF!-TRAYECTORIA!#REF!)/2)+Dn(Matriz!O87,TRAYECTORIA!#REF!,(TRAYECTORIA!#REF!-TRAYECTORIA!#REF!)/2)+Q86 ->  | R87: =De(Matriz!O86,TRAYECTORIA!#REF!,(TRAYECTORIA!#REF!-TRAYECTORIA!#REF!)/2)+De(Matriz!O87,TRAYECTORIA!#REF!,(TRAYECTORIA!#REF!-TRAYECTORIA!#REF!)/2)+R86 ->  | S87: =DVt(TRAYECTORIA!#REF!,(TRAYECTORIA!#REF!-TRAYECTORIA!#REF!)/2)+DVt(TRAYECTORIA!#REF!,(TRAYECTORIA!#REF!-TRAYECTORIA!#REF!)/2)+S86 ->  | W87: =Dn(Matriz!$A$74,TRAYECTORIA!$P$10,TRAYECTORIA!#REF!-TRAYECTORIA!#REF!)+W86 ->  | X87: =De(Matriz!$A$74,TRAYECTORIA!$P$10,TRAYECTORIA!#REF!-TRAYECTORIA!#REF!)+X86 ->  | Y87: =DVt(TRAYECTORIA!$P$10,TRAYECTORIA!#REF!-TRAYECTORIA!#REF!)+Y86 -> 
K88: =ISBLANK(TRAYECTORIA!#REF!) -> FALSE | L88: =ISBLANK(TRAYECTORIA!#REF!) -> FALSE | M88: =ISBLANK(TRAYECTORIA!#REF!) -> FALSE | O88: =TRAYECTORIA!#REF!*-1 ->  | Q88: =Dn(Matriz!O87,TRAYECTORIA!#REF!,(TRAYECTORIA!#REF!-TRAYECTORIA!#REF!)/2)+Dn(Matriz!O88,TRAYECTORIA!#REF!,(TRAYECTORIA!#REF!-TRAYECTORIA!#REF!)/2)+Q87 ->  | R88: =De(Matriz!O87,TRAYECTORIA!#REF!,(TRAYECTORIA!#REF!-TRAYECTORIA!#REF!)/2)+De(Matriz!O88,TRAYECTORIA!#REF!,(TRAYECTORIA!#REF!-TRAYECTORIA!#REF!)/2)+R87 ->  | S88: =DVt(TRAYECTORIA!#REF!,(TRAYECTORIA!#REF!-TRAYECTORIA!#REF!)/2)+DVt(TRAYECTORIA!#REF!,(TRAYECTORIA!#REF!-TRAYECTORIA!#REF!)/2)+S87 ->  | W88: =Dn(Matriz!$A$74,TRAYECTORIA!$P$10,TRAYECTORIA!#REF!-TRAYECTORIA!#REF!)+W87 ->  | X88: =De(Matriz!$A$74,TRAYECTORIA!$P$10,TRAYECTORIA!#REF!-TRAYECTORIA!#REF!)+X87 ->  | Y88: =DVt(TRAYECTORIA!$P$10,TRAYECTORIA!#REF!-TRAYECTORIA!#REF!)+Y87 -> 
K89: =ISBLANK(TRAYECTORIA!#REF!) -> FALSE | L89: =ISBLANK(TRAYECTORIA!#REF!) -> FALSE | M89: =ISBLANK(TRAYECTORIA!#REF!) -> FALSE | O89: =TRAYECTORIA!#REF!*-1 ->  | Q89: =Dn(Matriz!O88,TRAYECTORIA!#REF!,(TRAYECTORIA!#REF!-TRAYECTORIA!#REF!)/2)+Dn(Matriz!O89,TRAYECTORIA!#REF!,(TRAYECTORIA!#REF!-TRAYECTORIA!#REF!)/2)+Q88 ->  | R89: =De(Matriz!O88,TRAYECTORIA!#REF!,(TRAYECTORIA!#REF!-TRAYECTORIA!#REF!)/2)+De(Matriz!O89,TRAYECTORIA!#REF!,(TRAYECTORIA!#REF!-TRAYECTORIA!#REF!)/2)+R88 ->  | S89: =DVt(TRAYECTORIA!#REF!,(TRAYECTORIA!#REF!-TRAYECTORIA!#REF!)/2)+DVt(TRAYECTORIA!#REF!,(TRAYECTORIA!#REF!-TRAYECTORIA!#REF!)/2)+S88 ->  | W89: =Dn(Matriz!$A$74,TRAYECTORIA!$P$10,TRAYECTORIA!#REF!-TRAYECTORIA!#REF!)+W88 ->  | X89: =De(Matriz!$A$74,TRAYECTORIA!$P$10,TRAYECTORIA!#REF!-TRAYECTORIA!#REF!)+X88 ->  | Y89: =DVt(TRAYECTORIA!$P$10,TRAYECTORIA!#REF!-TRAYECTORIA!#REF!)+Y88 -> 
K90: =ISBLANK(TRAYECTORIA!#REF!) -> FALSE | L90: =ISBLANK(TRAYECTORIA!#REF!) -> FALSE | M90: =ISBLANK(TRAYECTORIA!#REF!) -> FALSE | O90: =TRAYECTORIA!#REF!*-1 ->  | Q90: =Dn(Matriz!O89,TRAYECTORIA!#REF!,(TRAYECTORIA!#REF!-TRAYECTORIA!#REF!)/2)+Dn(Matriz!O90,TRAYECTORIA!#REF!,(TRAYECTORIA!#REF!-TRAYECTORIA!#REF!)/2)+Q89 ->  | R90: =De(Matriz!O89,TRAYECTORIA!#REF!,(TRAYECTORIA!#REF!-TRAYECTORIA!#REF!)/2)+De(Matriz!O90,TRAYECTORIA!#REF!,(TRAYECTORIA!#REF!-TRAYECTORIA!#REF!)/2)+R89 ->  | S90: =DVt(TRAYECTORIA!#REF!,(TRAYECTORIA!#REF!-TRAYECTORIA!#REF!)/2)+DVt(TRAYECTORIA!#REF!,(TRAYECTORIA!#REF!-TRAYECTORIA!#REF!)/2)+S89 ->  | W90: =Dn(Matriz!$A$74,TRAYECTORIA!$P$10,TRAYECTORIA!#REF!-TRAYECTORIA!#REF!)+W89 ->  | X90: =De(Matriz!$A$74,TRAYECTORIA!$P$10,TRAYECTORIA!#REF!-TRAYECTORIA!#REF!)+X89 ->  | Y90: =DVt(TRAYECTORIA!$P$10,TRAYECTORIA!#REF!-TRAYECTORIA!#REF!)+Y89 -> 
K91: =ISBLANK(TRAYECTORIA!#REF!) -> FALSE | L91: =ISBLANK(TRAYECTORIA!#REF!) -> FALSE | M91: =ISBLANK(TRAYECTORIA!#REF!) -> FALSE | O91: =TRAYECTORIA!#REF!*-1 ->  | Q91: =Dn(Matriz!O90,TRAYECTORIA!#REF!,(TRAYECTORIA!#REF!-TRAYECTORIA!#REF!)/2)+Dn(Matriz!O91,TRAYECTORIA!#REF!,(TRAYECTORIA!#REF!-TRAYECTORIA!#REF!)/2)+Q90 ->  | R91: =De(Matriz!O90,TRAYECTORIA!#REF!,(TRAYECTORIA!#REF!-TRAYECTORIA!#REF!)/2)+De(Matriz!O91,TRAYECTORIA!#REF!,(TRAYECTORIA!#REF!-TRAYECTORIA!#REF!)/2)+R90 ->  | S91: =DVt(TRAYECTORIA!#REF!,(TRAYECTORIA!#REF!-TRAYECTORIA!#REF!)/2)+DVt(TRAYECTORIA!#REF!,(TRAYECTORIA!#REF!-TRAYECTORIA!#REF!)/2)+S90 ->  | W91: =Dn(Matriz!$A$74,TRAYECTORIA!$P$10,TRAYECTORIA!#REF!-TRAYECTORIA!#REF!)+W90 ->  | X91: =De(Matriz!$A$74,TRAYECTORIA!$P$10,TRAYECTORIA!#REF!-TRAYECTORIA!#REF!)+X90 ->  | Y91: =DVt(TRAYECTORIA!$P$10,TRAYECTORIA!#REF!-TRAYECTORIA!#REF!)+Y90 -> 
K92: =ISBLANK(TRAYECTORIA!#REF!) -> FALSE | L92: =ISBLANK(TRAYECTORIA!#REF!) -> FALSE | M92: =ISBLANK(TRAYECTORIA!#REF!) -> FALSE | O92: =TRAYECTORIA!#REF!*-1 ->  | Q92: =Dn(Matriz!O91,TRAYECTORIA!#REF!,(TRAYECTORIA!#REF!-TRAYECTORIA!#REF!)/2)+Dn(Matriz!O92,TRAYECTORIA!#REF!,(TRAYECTORIA!#REF!-TRAYECTORIA!#REF!)/2)+Q91 ->  | R92: =De(Matriz!O91,TRAYECTORIA!#REF!,(TRAYECTORIA!#REF!-TRAYECTORIA!#REF!)/2)+De(Matriz!O92,TRAYECTORIA!#REF!,(TRAYECTORIA!#REF!-TRAYECTORIA!#REF!)/2)+R91 ->  | S92: =DVt(TRAYECTORIA!#REF!,(TRAYECTORIA!#REF!-TRAYECTORIA!#REF!)/2)+DVt(TRAYECTORIA!#REF!,(TRAYECTORIA!#REF!-TRAYECTORIA!#REF!)/2)+S91 ->  | W92: =Dn(Matriz!$A$74,TRAYECTORIA!$P$10,TRAYECTORIA!#REF!-TRAYECTORIA!#REF!)+W91 ->  | X92: =De(Matriz!$A$74,TRAYECTORIA!$P$10,TRAYECTORIA!#REF!-TRAYECTORIA!#REF!)+X91 ->  | Y92: =DVt(TRAYECTORIA!$P$10,TRAYECTORIA!#REF!-TRAYECTORIA!#REF!)+Y91 -> 
K93: =ISBLANK(TRAYECTORIA!#REF!) -> FALSE | L93: =ISBLANK(TRAYECTORIA!#REF!) -> FALSE | M93: =ISBLANK(TRAYECTORIA!#REF!) -> FALSE | O93: =TRAYECTORIA!#REF!*-1 ->  | Q93: =Dn(Matriz!O92,TRAYECTORIA!#REF!,(TRAYECTORIA!#REF!-TRAYECTORIA!#REF!)/2)+Dn(Matriz!O93,TRAYECTORIA!#REF!,(TRAYECTORIA!#REF!-TRAYECTORIA!#REF!)/2)+Q92 ->  | R93: =De(Matriz!O92,TRAYECTORIA!#REF!,(TRAYECTORIA!#REF!-TRAYECTORIA!#REF!)/2)+De(Matriz!O93,TRAYECTORIA!#REF!,(TRAYECTORIA!#REF!-TRAYECTORIA!#REF!)/2)+R92 ->  | S93: =DVt(TRAYECTORIA!#REF!,(TRAYECTORIA!#REF!-TRAYECTORIA!#REF!)/2)+DVt(TRAYECTORIA!#REF!,(TRAYECTORIA!#REF!-TRAYECTORIA!#REF!)/2)+S92 ->  | W93: =Dn(Matriz!$A$74,TRAYECTORIA!$P$10,TRAYECTORIA!#REF!-TRAYECTORIA!#REF!)+W92 ->  | X93: =De(Matriz!$A$74,TRAYECTORIA!$P$10,TRAYECTORIA!#REF!-TRAYECTORIA!#REF!)+X92 ->  | Y93: =DVt(TRAYECTORIA!$P$10,TRAYECTORIA!#REF!-TRAYECTORIA!#REF!)+Y92 -> 
K94: =ISBLANK(TRAYECTORIA!#REF!) -> FALSE | L94: =ISBLANK(TRAYECTORIA!#REF!) -> FALSE | M94: =ISBLANK(TRAYECTORIA!#REF!) -> FALSE | O94: =TRAYECTORIA!#REF!*-1 ->  | Q94: =Dn(Matriz!O93,TRAYECTORIA!#REF!,(TRAYECTORIA!#REF!-TRAYECTORIA!#REF!)/2)+Dn(Matriz!O94,TRAYECTORIA!#REF!,(TRAYECTORIA!#REF!-TRAYECTORIA!#REF!)/2)+Q93 ->  | R94: =De(Matriz!O93,TRAYECTORIA!#REF!,(TRAYECTORIA!#REF!-TRAYECTORIA!#REF!)/2)+De(Matriz!O94,TRAYECTORIA!#REF!,(TRAYECTORIA!#REF!-TRAYECTORIA!#REF!)/2)+R93 ->  | S94: =DVt(TRAYECTORIA!#REF!,(TRAYECTORIA!#REF!-TRAYECTORIA!#REF!)/2)+DVt(TRAYECTORIA!#REF!,(TRAYECTORIA!#REF!-TRAYECTORIA!#REF!)/2)+S93 ->  | W94: =Dn(Matriz!$A$74,TRAYECTORIA!$P$10,TRAYECTORIA!#REF!-TRAYECTORIA!#REF!)+W93 ->  | X94: =De(Matriz!$A$74,TRAYECTORIA!$P$10,TRAYECTORIA!#REF!-TRAYECTORIA!#REF!)+X93 ->  | Y94: =DVt(TRAYECTORIA!$P$10,TRAYECTORIA!#REF!-TRAYECTORIA!#REF!)+Y93 -> 
K95: =ISBLANK(TRAYECTORIA!#REF!) -> FALSE | L95: =ISBLANK(TRAYECTORIA!#REF!) -> FALSE | M95: =ISBLANK(TRAYECTORIA!#REF!) -> FALSE | O95: =TRAYECTORIA!#REF!*-1 ->  | Q95: =Dn(Matriz!O94,TRAYECTORIA!#REF!,(TRAYECTORIA!#REF!-TRAYECTORIA!#REF!)/2)+Dn(Matriz!O95,TRAYECTORIA!#REF!,(TRAYECTORIA!#REF!-TRAYECTORIA!#REF!)/2)+Q94 ->  | R95: =De(Matriz!O94,TRAYECTORIA!#REF!,(TRAYECTORIA!#REF!-TRAYECTORIA!#REF!)/2)+De(Matriz!O95,TRAYECTORIA!#REF!,(TRAYECTORIA!#REF!-TRAYECTORIA!#REF!)/2)+R94 ->  | S95: =DVt(TRAYECTORIA!#REF!,(TRAYECTORIA!#REF!-TRAYECTORIA!#REF!)/2)+DVt(TRAYECTORIA!#REF!,(TRAYECTORIA!#REF!-TRAYECTORIA!#REF!)/2)+S94 ->  | W95: =Dn(Matriz!$A$74,TRAYECTORIA!$P$10,TRAYECTORIA!#REF!-TRAYECTORIA!#REF!)+W94 ->  | X95: =De(Matriz!$A$74,TRAYECTORIA!$P$10,TRAYECTORIA!#REF!-TRAYECTORIA!#REF!)+X94 ->  | Y95: =DVt(TRAYECTORIA!$P$10,TRAYECTORIA!#REF!-TRAYECTORIA!#REF!)+Y94 -> 
K96: =ISBLANK(TRAYECTORIA!#REF!) -> FALSE | L96: =ISBLANK(TRAYECTORIA!#REF!) -> FALSE | M96: =ISBLANK(TRAYECTORIA!#REF!) -> FALSE | O96: =TRAYECTORIA!#REF!*-1 ->  | Q96: =Dn(Matriz!O95,TRAYECTORIA!#REF!,(TRAYECTORIA!#REF!-TRAYECTORIA!#REF!)/2)+Dn(Matriz!O96,TRAYECTORIA!#REF!,(TRAYECTORIA!#REF!-TRAYECTORIA!#REF!)/2)+Q95 ->  | R96: =De(Matriz!O95,TRAYECTORIA!#REF!,(TRAYECTORIA!#REF!-TRAYECTORIA!#REF!)/2)+De(Matriz!O96,TRAYECTORIA!#REF!,(TRAYECTORIA!#REF!-TRAYECTORIA!#REF!)/2)+R95 ->  | S96: =DVt(TRAYECTORIA!#REF!,(TRAYECTORIA!#REF!-TRAYECTORIA!#REF!)/2)+DVt(TRAYECTORIA!#REF!,(TRAYECTORIA!#REF!-TRAYECTORIA!#REF!)/2)+S95 ->  | W96: =Dn(Matriz!$A$74,TRAYECTORIA!$P$10,TRAYECTORIA!#REF!-TRAYECTORIA!#REF!)+W95 ->  | X96: =De(Matriz!$A$74,TRAYECTORIA!$P$10,TRAYECTORIA!#REF!-TRAYECTORIA!#REF!)+X95 ->  | Y96: =DVt(TRAYECTORIA!$P$10,TRAYECTORIA!#REF!-TRAYECTORIA!#REF!)+Y95 -> 
K97: =ISBLANK(TRAYECTORIA!#REF!) -> FALSE | L97: =ISBLANK(TRAYECTORIA!#REF!) -> FALSE | M97: =ISBLANK(TRAYECTORIA!#REF!) -> FALSE | O97: =TRAYECTORIA!#REF!*-1 ->  | Q97: =Dn(Matriz!O96,TRAYECTORIA!#REF!,(TRAYECTORIA!#REF!-TRAYECTORIA!#REF!)/2)+Dn(Matriz!O97,TRAYECTORIA!#REF!,(TRAYECTORIA!#REF!-TRAYECTORIA!#REF!)/2)+Q96 ->  | R97: =De(Matriz!O96,TRAYECTORIA!#REF!,(TRAYECTORIA!#REF!-TRAYECTORIA!#REF!)/2)+De(Matriz!O97,TRAYECTORIA!#REF!,(TRAYECTORIA!#REF!-TRAYECTORIA!#REF!)/2)+R96 ->  | S97: =DVt(TRAYECTORIA!#REF!,(TRAYECTORIA!#REF!-TRAYECTORIA!#REF!)/2)+DVt(TRAYECTORIA!#REF!,(TRAYECTORIA!#REF!-TRAYECTORIA!#REF!)/2)+S96 ->  | W97: =Dn(Matriz!$A$74,TRAYECTORIA!$P$10,TRAYECTORIA!#REF!-TRAYECTORIA!#REF!)+W96 ->  | X97: =De(Matriz!$A$74,TRAYECTORIA!$P$10,TRAYECTORIA!#REF!-TRAYECTORIA!#REF!)+X96 ->  | Y97: =DVt(TRAYECTORIA!$P$10,TRAYECTORIA!#REF!-TRAYECTORIA!#REF!)+Y96 -> 
K98: =ISBLANK(TRAYECTORIA!#REF!) -> FALSE | L98: =ISBLANK(TRAYECTORIA!#REF!) -> FALSE | M98: =ISBLANK(TRAYECTORIA!#REF!) -> FALSE | O98: =TRAYECTORIA!#REF!*-1 ->  | Q98: =Dn(Matriz!O97,TRAYECTORIA!#REF!,(TRAYECTORIA!#REF!-TRAYECTORIA!#REF!)/2)+Dn(Matriz!O98,TRAYECTORIA!#REF!,(TRAYECTORIA!#REF!-TRAYECTORIA!#REF!)/2)+Q97 ->  | R98: =De(Matriz!O97,TRAYECTORIA!#REF!,(TRAYECTORIA!#REF!-TRAYECTORIA!#REF!)/2)+De(Matriz!O98,TRAYECTORIA!#REF!,(TRAYECTORIA!#REF!-TRAYECTORIA!#REF!)/2)+R97 ->  | S98: =DVt(TRAYECTORIA!#REF!,(TRAYECTORIA!#REF!-TRAYECTORIA!#REF!)/2)+DVt(TRAYECTORIA!#REF!,(TRAYECTORIA!#REF!-TRAYECTORIA!#REF!)/2)+S97 ->  | W98: =Dn(Matriz!$A$74,TRAYECTORIA!$P$10,TRAYECTORIA!#REF!-TRAYECTORIA!#REF!)+W97 ->  | X98: =De(Matriz!$A$74,TRAYECTORIA!$P$10,TRAYECTORIA!#REF!-TRAYECTORIA!#REF!)+X97 ->  | Y98: =DVt(TRAYECTORIA!$P$10,TRAYECTORIA!#REF!-TRAYECTORIA!#REF!)+Y97 -> 
K99: =ISBLANK(TRAYECTORIA!#REF!) -> FALSE | L99: =ISBLANK(TRAYECTORIA!#REF!) -> FALSE | M99: =ISBLANK(TRAYECTORIA!#REF!) -> FALSE | O99: =TRAYECTORIA!#REF!*-1 ->  | Q99: =Dn(Matriz!O98,TRAYECTORIA!#REF!,(TRAYECTORIA!#REF!-TRAYECTORIA!#REF!)/2)+Dn(Matriz!O99,TRAYECTORIA!#REF!,(TRAYECTORIA!#REF!-TRAYECTORIA!#REF!)/2)+Q98 ->  | R99: =De(Matriz!O98,TRAYECTORIA!#REF!,(TRAYECTORIA!#REF!-TRAYECTORIA!#REF!)/2)+De(Matriz!O99,TRAYECTORIA!#REF!,(TRAYECTORIA!#REF!-TRAYECTORIA!#REF!)/2)+R98 ->  | S99: =DVt(TRAYECTORIA!#REF!,(TRAYECTORIA!#REF!-TRAYECTORIA!#REF!)/2)+DVt(TRAYECTORIA!#REF!,(TRAYECTORIA!#REF!-TRAYECTORIA!#REF!)/2)+S98 ->  | W99: =Dn(Matriz!$A$74,TRAYECTORIA!$P$10,TRAYECTORIA!#REF!-TRAYECTORIA!#REF!)+W98 ->  | X99: =De(Matriz!$A$74,TRAYECTORIA!$P$10,TRAYECTORIA!#REF!-TRAYECTORIA!#REF!)+X98 ->  | Y99: =DVt(TRAYECTORIA!$P$10,TRAYECTORIA!#REF!-TRAYECTORIA!#REF!)+Y98 -> 
K100: =ISBLANK(TRAYECTORIA!#REF!) -> FALSE | L100: =ISBLANK(TRAYECTORIA!#REF!) -> FALSE | M100: =ISBLANK(TRAYECTORIA!#REF!) -> FALSE | O100: =TRAYECTORIA!#REF!*-1 ->  | Q100: =Dn(Matriz!O99,TRAYECTORIA!#REF!,(TRAYECTORIA!#REF!-TRAYECTORIA!#REF!)/2)+Dn(Matriz!O100,TRAYECTORIA!#REF!,(TRAYECTORIA!#REF!-TRAYECTORIA!#REF!)/2)+Q99 ->  | R100: =De(Matriz!O99,TRAYECTORIA!#REF!,(TRAYECTORIA!#REF!-TRAYECTORIA!#REF!)/2)+De(Matriz!O100,TRAYECTORIA!#REF!,(TRAYECTORIA!#REF!-TRAYECTORIA!#REF!)/2)+R99 ->  | S100: =DVt(TRAYECTORIA!#REF!,(TRAYECTORIA!#REF!-TRAYECTORIA!#REF!)/2)+DVt(TRAYECTORIA!#REF!,(TRAYECTORIA!#REF!-TRAYECTORIA!#REF!)/2)+S99 ->  | W100: =Dn(Matriz!$A$74,TRAYECTORIA!$P$10,TRAYECTORIA!#REF!-TRAYECTORIA!#REF!)+W99 ->  | X100: =De(Matriz!$A$74,TRAYECTORIA!$P$10,TRAYECTORIA!#REF!-TRAYECTORIA!#REF!)+X99 ->  | Y100: =DVt(TRAYECTORIA!$P$10,TRAYECTORIA!#REF!-TRAYECTORIA!#REF!)+Y99 -> 
K101: =ISBLANK(TRAYECTORIA!#REF!) -> FALSE | L101: =ISBLANK(TRAYECTORIA!#REF!) -> FALSE | M101: =ISBLANK(TRAYECTORIA!#REF!) -> FALSE | O101: =TRAYECTORIA!#REF!*-1 ->  | Q101: =Dn(Matriz!O100,TRAYECTORIA!#REF!,(TRAYECTORIA!#REF!-TRAYECTORIA!#REF!)/2)+Dn(Matriz!O101,TRAYECTORIA!#REF!,(TRAYECTORIA!#REF!-TRAYECTORIA!#REF!)/2)+Q100 ->  | R101: =De(Matriz!O100,TRAYECTORIA!#REF!,(TRAYECTORIA!#REF!-TRAYECTORIA!#REF!)/2)+De(Matriz!O101,TRAYECTORIA!#REF!,(TRAYECTORIA!#REF!-TRAYECTORIA!#REF!)/2)+R100 ->  | S101: =DVt(TRAYECTORIA!#REF!,(TRAYECTORIA!#REF!-TRAYECTORIA!#REF!)/2)+DVt(TRAYECTORIA!#REF!,(TRAYECTORIA!#REF!-TRAYECTORIA!#REF!)/2)+S100 ->  | W101: =Dn(Matriz!$A$74,TRAYECTORIA!$P$10,TRAYECTORIA!#REF!-TRAYECTORIA!#REF!)+W100 ->  | X101: =De(Matriz!$A$74,TRAYECTORIA!$P$10,TRAYECTORIA!#REF!-TRAYECTORIA!#REF!)+X100 ->  | Y101: =DVt(TRAYECTORIA!$P$10,TRAYECTORIA!#REF!-TRAYECTORIA!#REF!)+Y100 -> 
K102: =ISBLANK(TRAYECTORIA!#REF!) -> FALSE | L102: =ISBLANK(TRAYECTORIA!#REF!) -> FALSE | M102: =ISBLANK(TRAYECTORIA!#REF!) -> FALSE | O102: =TRAYECTORIA!#REF!*-1 ->  | Q102: =Dn(Matriz!O101,TRAYECTORIA!#REF!,(TRAYECTORIA!#REF!-TRAYECTORIA!#REF!)/2)+Dn(Matriz!O102,TRAYECTORIA!#REF!,(TRAYECTORIA!#REF!-TRAYECTORIA!#REF!)/2)+Q101 ->  | R102: =De(Matriz!O101,TRAYECTORIA!#REF!,(TRAYECTORIA!#REF!-TRAYECTORIA!#REF!)/2)+De(Matriz!O102,TRAYECTORIA!#REF!,(TRAYECTORIA!#REF!-TRAYECTORIA!#REF!)/2)+R101 ->  | S102: =DVt(TRAYECTORIA!#REF!,(TRAYECTORIA!#REF!-TRAYECTORIA!#REF!)/2)+DVt(TRAYECTORIA!#REF!,(TRAYECTORIA!#REF!-TRAYECTORIA!#REF!)/2)+S101 ->  | W102: =Dn(Matriz!$A$74,TRAYECTORIA!$P$10,TRAYECTORIA!#REF!-TRAYECTORIA!#REF!)+W101 ->  | X102: =De(Matriz!$A$74,TRAYECTORIA!$P$10,TRAYECTORIA!#REF!-TRAYECTORIA!#REF!)+X101 ->  | Y102: =DVt(TRAYECTORIA!$P$10,TRAYECTORIA!#REF!-TRAYECTORIA!#REF!)+Y101 -> 
K103: =ISBLANK(TRAYECTORIA!#REF!) -> FALSE | L103: =ISBLANK(TRAYECTORIA!#REF!) -> FALSE | M103: =ISBLANK(TRAYECTORIA!#REF!) -> FALSE | O103: =TRAYECTORIA!#REF!*-1 ->  | Q103: =Dn(Matriz!O102,TRAYECTORIA!#REF!,(TRAYECTORIA!#REF!-TRAYECTORIA!#REF!)/2)+Dn(Matriz!O103,TRAYECTORIA!#REF!,(TRAYECTORIA!#REF!-TRAYECTORIA!#REF!)/2)+Q102 ->  | R103: =De(Matriz!O102,TRAYECTORIA!#REF!,(TRAYECTORIA!#REF!-TRAYECTORIA!#REF!)/2)+De(Matriz!O103,TRAYECTORIA!#REF!,(TRAYECTORIA!#REF!-TRAYECTORIA!#REF!)/2)+R102 ->  | S103: =DVt(TRAYECTORIA!#REF!,(TRAYECTORIA!#REF!-TRAYECTORIA!#REF!)/2)+DVt(TRAYECTORIA!#REF!,(TRAYECTORIA!#REF!-TRAYECTORIA!#REF!)/2)+S102 ->  | W103: =Dn(Matriz!$A$74,TRAYECTORIA!$P$10,TRAYECTORIA!#REF!-TRAYECTORIA!#REF!)+W102 ->  | X103: =De(Matriz!$A$74,TRAYECTORIA!$P$10,TRAYECTORIA!#REF!-TRAYECTORIA!#REF!)+X102 ->  | Y103: =DVt(TRAYECTORIA!$P$10,TRAYECTORIA!#REF!-TRAYECTORIA!#REF!)+Y102 -> 
K104: =ISBLANK(TRAYECTORIA!#REF!) -> FALSE | L104: =ISBLANK(TRAYECTORIA!#REF!) -> FALSE | M104: =ISBLANK(TRAYECTORIA!#REF!) -> FALSE | O104: =TRAYECTORIA!#REF!*-1 ->  | Q104: =Dn(Matriz!O103,TRAYECTORIA!#REF!,(TRAYECTORIA!#REF!-TRAYECTORIA!#REF!)/2)+Dn(Matriz!O104,TRAYECTORIA!#REF!,(TRAYECTORIA!#REF!-TRAYECTORIA!#REF!)/2)+Q103 ->  | R104: =De(Matriz!O103,TRAYECTORIA!#REF!,(TRAYECTORIA!#REF!-TRAYECTORIA!#REF!)/2)+De(Matriz!O104,TRAYECTORIA!#REF!,(TRAYECTORIA!#REF!-TRAYECTORIA!#REF!)/2)+R103 ->  | S104: =DVt(TRAYECTORIA!#REF!,(TRAYECTORIA!#REF!-TRAYECTORIA!#REF!)/2)+DVt(TRAYECTORIA!#REF!,(TRAYECTORIA!#REF!-TRAYECTORIA!#REF!)/2)+S103 ->  | W104: =Dn(Matriz!$A$74,TRAYECTORIA!$P$10,TRAYECTORIA!#REF!-TRAYECTORIA!#REF!)+W103 ->  | X104: =De(Matriz!$A$74,TRAYECTORIA!$P$10,TRAYECTORIA!#REF!-TRAYECTORIA!#REF!)+X103 ->  | Y104: =DVt(TRAYECTORIA!$P$10,TRAYECTORIA!#REF!-TRAYECTORIA!#REF!)+Y103 -> 
K105: =ISBLANK(TRAYECTORIA!#REF!) -> FALSE | L105: =ISBLANK(TRAYECTORIA!#REF!) -> FALSE | M105: =ISBLANK(TRAYECTORIA!#REF!) -> FALSE | O105: =TRAYECTORIA!#REF!*-1 ->  | Q105: =Dn(Matriz!O104,TRAYECTORIA!#REF!,(TRAYECTORIA!#REF!-TRAYECTORIA!#REF!)/2)+Dn(Matriz!O105,TRAYECTORIA!#REF!,(TRAYECTORIA!#REF!-TRAYECTORIA!#REF!)/2)+Q104 ->  | R105: =De(Matriz!O104,TRAYECTORIA!#REF!,(TRAYECTORIA!#REF!-TRAYECTORIA!#REF!)/2)+De(Matriz!O105,TRAYECTORIA!#REF!,(TRAYECTORIA!#REF!-TRAYECTORIA!#REF!)/2)+R104 ->  | S105: =DVt(TRAYECTORIA!#REF!,(TRAYECTORIA!#REF!-TRAYECTORIA!#REF!)/2)+DVt(TRAYECTORIA!#REF!,(TRAYECTORIA!#REF!-TRAYECTORIA!#REF!)/2)+S104 ->  | W105: =Dn(Matriz!$A$74,TRAYECTORIA!$P$10,TRAYECTORIA!#REF!-TRAYECTORIA!#REF!)+W104 ->  | X105: =De(Matriz!$A$74,TRAYECTORIA!$P$10,TRAYECTORIA!#REF!-TRAYECTORIA!#REF!)+X104 ->  | Y105: =DVt(TRAYECTORIA!$P$10,TRAYECTORIA!#REF!-TRAYECTORIA!#REF!)+Y104 -> 
K106: =ISBLANK(TRAYECTORIA!#REF!) -> FALSE | L106: =ISBLANK(TRAYECTORIA!#REF!) -> FALSE | M106: =ISBLANK(TRAYECTORIA!#REF!) -> FALSE | O106: =TRAYECTORIA!#REF!*-1 ->  | Q106: =Dn(Matriz!O105,TRAYECTORIA!#REF!,(TRAYECTORIA!#REF!-TRAYECTORIA!#REF!)/2)+Dn(Matriz!O106,TRAYECTORIA!#REF!,(TRAYECTORIA!#REF!-TRAYECTORIA!#REF!)/2)+Q105 ->  | R106: =De(Matriz!O105,TRAYECTORIA!#REF!,(TRAYECTORIA!#REF!-TRAYECTORIA!#REF!)/2)+De(Matriz!O106,TRAYECTORIA!#REF!,(TRAYECTORIA!#REF!-TRAYECTORIA!#REF!)/2)+R105 ->  | S106: =DVt(TRAYECTORIA!#REF!,(TRAYECTORIA!#REF!-TRAYECTORIA!#REF!)/2)+DVt(TRAYECTORIA!#REF!,(TRAYECTORIA!#REF!-TRAYECTORIA!#REF!)/2)+S105 ->  | W106: =Dn(Matriz!$A$74,TRAYECTORIA!$P$10,TRAYECTORIA!#REF!-TRAYECTORIA!#REF!)+W105 ->  | X106: =De(Matriz!$A$74,TRAYECTORIA!$P$10,TRAYECTORIA!#REF!-TRAYECTORIA!#REF!)+X105 ->  | Y106: =DVt(TRAYECTORIA!$P$10,TRAYECTORIA!#REF!-TRAYECTORIA!#REF!)+Y105 -> 
K107: =ISBLANK(TRAYECTORIA!#REF!) -> FALSE | L107: =ISBLANK(TRAYECTORIA!#REF!) -> FALSE | M107: =ISBLANK(TRAYECTORIA!#REF!) -> FALSE | O107: =TRAYECTORIA!#REF!*-1 ->  | Q107: =Dn(Matriz!O106,TRAYECTORIA!#REF!,(TRAYECTORIA!#REF!-TRAYECTORIA!#REF!)/2)+Dn(Matriz!O107,TRAYECTORIA!#REF!,(TRAYECTORIA!#REF!-TRAYECTORIA!#REF!)/2)+Q106 ->  | R107: =De(Matriz!O106,TRAYECTORIA!#REF!,(TRAYECTORIA!#REF!-TRAYECTORIA!#REF!)/2)+De(Matriz!O107,TRAYECTORIA!#REF!,(TRAYECTORIA!#REF!-TRAYECTORIA!#REF!)/2)+R106 ->  | S107: =DVt(TRAYECTORIA!#REF!,(TRAYECTORIA!#REF!-TRAYECTORIA!#REF!)/2)+DVt(TRAYECTORIA!#REF!,(TRAYECTORIA!#REF!-TRAYECTORIA!#REF!)/2)+S106 ->  | W107: =Dn(Matriz!$A$74,TRAYECTORIA!$P$10,TRAYECTORIA!#REF!-TRAYECTORIA!#REF!)+W106 ->  | X107: =De(Matriz!$A$74,TRAYECTORIA!$P$10,TRAYECTORIA!#REF!-TRAYECTORIA!#REF!)+X106 ->  | Y107: =DVt(TRAYECTORIA!$P$10,TRAYECTORIA!#REF!-TRAYECTORIA!#REF!)+Y106 -> 
K108: =ISBLANK(TRAYECTORIA!#REF!) -> FALSE | L108: =ISBLANK(TRAYECTORIA!#REF!) -> FALSE | M108: =ISBLANK(TRAYECTORIA!#REF!) -> FALSE | O108: =TRAYECTORIA!#REF!*-1 ->  | Q108: =Dn(Matriz!O107,TRAYECTORIA!#REF!,(TRAYECTORIA!#REF!-TRAYECTORIA!#REF!)/2)+Dn(Matriz!O108,TRAYECTORIA!#REF!,(TRAYECTORIA!#REF!-TRAYECTORIA!#REF!)/2)+Q107 ->  | R108: =De(Matriz!O107,TRAYECTORIA!#REF!,(TRAYECTORIA!#REF!-TRAYECTORIA!#REF!)/2)+De(Matriz!O108,TRAYECTORIA!#REF!,(TRAYECTORIA!#REF!-TRAYECTORIA!#REF!)/2)+R107 ->  | S108: =DVt(TRAYECTORIA!#REF!,(TRAYECTORIA!#REF!-TRAYECTORIA!#REF!)/2)+DVt(TRAYECTORIA!#REF!,(TRAYECTORIA!#REF!-TRAYECTORIA!#REF!)/2)+S107 ->  | W108: =Dn(Matriz!$A$74,TRAYECTORIA!$P$10,TRAYECTORIA!#REF!-TRAYECTORIA!#REF!)+W107 ->  | X108: =De(Matriz!$A$74,TRAYECTORIA!$P$10,TRAYECTORIA!#REF!-TRAYECTORIA!#REF!)+X107 ->  | Y108: =DVt(TRAYECTORIA!$P$10,TRAYECTORIA!#REF!-TRAYECTORIA!#REF!)+Y107 -> 
K109: =ISBLANK(TRAYECTORIA!#REF!) -> FALSE | L109: =ISBLANK(TRAYECTORIA!#REF!) -> FALSE | M109: =ISBLANK(TRAYECTORIA!#REF!) -> FALSE | O109: =TRAYECTORIA!#REF!*-1 ->  | Q109: =Dn(Matriz!O108,TRAYECTORIA!#REF!,(TRAYECTORIA!#REF!-TRAYECTORIA!#REF!)/2)+Dn(Matriz!O109,TRAYECTORIA!#REF!,(TRAYECTORIA!#REF!-TRAYECTORIA!#REF!)/2)+Q108 ->  | R109: =De(Matriz!O108,TRAYECTORIA!#REF!,(TRAYECTORIA!#REF!-TRAYECTORIA!#REF!)/2)+De(Matriz!O109,TRAYECTORIA!#REF!,(TRAYECTORIA!#REF!-TRAYECTORIA!#REF!)/2)+R108 ->  | S109: =DVt(TRAYECTORIA!#REF!,(TRAYECTORIA!#REF!-TRAYECTORIA!#REF!)/2)+DVt(TRAYECTORIA!#REF!,(TRAYECTORIA!#REF!-TRAYECTORIA!#REF!)/2)+S108 ->  | W109: =Dn(Matriz!$A$74,TRAYECTORIA!$P$10,TRAYECTORIA!#REF!-TRAYECTORIA!#REF!)+W108 ->  | X109: =De(Matriz!$A$74,TRAYECTORIA!$P$10,TRAYECTORIA!#REF!-TRAYECTORIA!#REF!)+X108 ->  | Y109: =DVt(TRAYECTORIA!$P$10,TRAYECTORIA!#REF!-TRAYECTORIA!#REF!)+Y108 -> 
K110: =ISBLANK(TRAYECTORIA!#REF!) -> FALSE | L110: =ISBLANK(TRAYECTORIA!#REF!) -> FALSE | M110: =ISBLANK(TRAYECTORIA!#REF!) -> FALSE | O110: =TRAYECTORIA!#REF!*-1 ->  | Q110: =Dn(Matriz!O109,TRAYECTORIA!#REF!,(TRAYECTORIA!#REF!-TRAYECTORIA!#REF!)/2)+Dn(Matriz!O110,TRAYECTORIA!#REF!,(TRAYECTORIA!#REF!-TRAYECTORIA!#REF!)/2)+Q109 ->  | R110: =De(Matriz!O109,TRAYECTORIA!#REF!,(TRAYECTORIA!#REF!-TRAYECTORIA!#REF!)/2)+De(Matriz!O110,TRAYECTORIA!#REF!,(TRAYECTORIA!#REF!-TRAYECTORIA!#REF!)/2)+R109 ->  | S110: =DVt(TRAYECTORIA!#REF!,(TRAYECTORIA!#REF!-TRAYECTORIA!#REF!)/2)+DVt(TRAYECTORIA!#REF!,(TRAYECTORIA!#REF!-TRAYECTORIA!#REF!)/2)+S109 ->  | W110: =Dn(Matriz!$A$74,TRAYECTORIA!$P$10,TRAYECTORIA!#REF!-TRAYECTORIA!#REF!)+W109 ->  | X110: =De(Matriz!$A$74,TRAYECTORIA!$P$10,TRAYECTORIA!#REF!-TRAYECTORIA!#REF!)+X109 ->  | Y110: =DVt(TRAYECTORIA!$P$10,TRAYECTORIA!#REF!-TRAYECTORIA!#REF!)+Y109 -> 
K111: =ISBLANK(TRAYECTORIA!C44) -> TRUE | L111: =ISBLANK(TRAYECTORIA!E44) -> TRUE | M111: =ISBLANK(TRAYECTORIA!D44) -> TRUE | O111: =TRAYECTORIA!#REF!*-1 ->  | Q111: =Dn(Matriz!O110,TRAYECTORIA!#REF!,(TRAYECTORIA!#REF!-TRAYECTORIA!#REF!)/2)+Dn(Matriz!O111,TRAYECTORIA!#REF!,(TRAYECTORIA!#REF!-TRAYECTORIA!#REF!)/2)+Q110 ->  | R111: =De(Matriz!O110,TRAYECTORIA!#REF!,(TRAYECTORIA!#REF!-TRAYECTORIA!#REF!)/2)+De(Matriz!O111,TRAYECTORIA!#REF!,(TRAYECTORIA!#REF!-TRAYECTORIA!#REF!)/2)+R110 ->  | S111: =DVt(TRAYECTORIA!#REF!,(TRAYECTORIA!#REF!-TRAYECTORIA!#REF!)/2)+DVt(TRAYECTORIA!#REF!,(TRAYECTORIA!#REF!-TRAYECTORIA!#REF!)/2)+S110 ->  | W111: =Dn(Matriz!$A$74,TRAYECTORIA!$P$10,TRAYECTORIA!#REF!-TRAYECTORIA!#REF!)+W110 ->  | X111: =De(Matriz!$A$74,TRAYECTORIA!$P$10,TRAYECTORIA!#REF!-TRAYECTORIA!#REF!)+X110 ->  | Y111: =DVt(TRAYECTORIA!$P$10,TRAYECTORIA!#REF!-TRAYECTORIA!#REF!)+Y110 -> 
K112: =ISBLANK(TRAYECTORIA!C45) -> TRUE | L112: =ISBLANK(TRAYECTORIA!E45) -> TRUE | M112: =ISBLANK(TRAYECTORIA!D45) -> TRUE | O112: =TRAYECTORIA!E44*-1 -> 0 | Q112: =Dn(Matriz!O111,TRAYECTORIA!#REF!,(TRAYECTORIA!C44-TRAYECTORIA!#REF!)/2)+Dn(Matriz!O112,TRAYECTORIA!D44,(TRAYECTORIA!C44-TRAYECTORIA!#REF!)/2)+Q111 ->  | R112: =De(Matriz!O111,TRAYECTORIA!#REF!,(TRAYECTORIA!C44-TRAYECTORIA!#REF!)/2)+De(Matriz!O112,TRAYECTORIA!D44,(TRAYECTORIA!C44-TRAYECTORIA!#REF!)/2)+R111 ->  | S112: =DVt(TRAYECTORIA!#REF!,(TRAYECTORIA!C44-TRAYECTORIA!#REF!)/2)+DVt(TRAYECTORIA!D44,(TRAYECTORIA!C44-TRAYECTORIA!#REF!)/2)+S111 ->  | W112: =Dn(Matriz!$A$74,TRAYECTORIA!$P$10,TRAYECTORIA!C44-TRAYECTORIA!#REF!)+W111 ->  | X112: =De(Matriz!$A$74,TRAYECTORIA!$P$10,TRAYECTORIA!C44-TRAYECTORIA!#REF!)+X111 ->  | Y112: =DVt(TRAYECTORIA!$P$10,TRAYECTORIA!C44-TRAYECTORIA!#REF!)+Y111 -> 
K113: =ISBLANK(TRAYECTORIA!C46) -> TRUE | L113: =ISBLANK(TRAYECTORIA!E46) -> TRUE | M113: =ISBLANK(TRAYECTORIA!D46) -> TRUE | O113: =TRAYECTORIA!E45*-1 -> 0 | Q113: =Dn(Matriz!O112,TRAYECTORIA!D44,(TRAYECTORIA!C45-TRAYECTORIA!C44)/2)+Dn(Matriz!O113,TRAYECTORIA!D45,(TRAYECTORIA!C45-TRAYECTORIA!C44)/2)+Q112 ->  | R113: =De(Matriz!O112,TRAYECTORIA!D44,(TRAYECTORIA!C45-TRAYECTORIA!C44)/2)+De(Matriz!O113,TRAYECTORIA!D45,(TRAYECTORIA!C45-TRAYECTORIA!C44)/2)+R112 ->  | S113: =DVt(TRAYECTORIA!D44,(TRAYECTORIA!C45-TRAYECTORIA!C44)/2)+DVt(TRAYECTORIA!D45,(TRAYECTORIA!C45-TRAYECTORIA!C44)/2)+S112 ->  | W113: =Dn(Matriz!$A$74,TRAYECTORIA!$P$10,TRAYECTORIA!C45-TRAYECTORIA!C44)+W112 ->  | X113: =De(Matriz!$A$74,TRAYECTORIA!$P$10,TRAYECTORIA!C45-TRAYECTORIA!C44)+X112 ->  | Y113: =DVt(TRAYECTORIA!$P$10,TRAYECTORIA!C45-TRAYECTORIA!C44)+Y112 -> 
K114: =ISBLANK(TRAYECTORIA!C47) -> TRUE | L114: =ISBLANK(TRAYECTORIA!E47) -> TRUE | M114: =ISBLANK(TRAYECTORIA!D47) -> TRUE | O114: =TRAYECTORIA!E46*-1 -> 0 | Q114: =Dn(Matriz!O113,TRAYECTORIA!D45,(TRAYECTORIA!C46-TRAYECTORIA!C45)/2)+Dn(Matriz!O114,TRAYECTORIA!D46,(TRAYECTORIA!C46-TRAYECTORIA!C45)/2)+Q113 ->  | R114: =De(Matriz!O113,TRAYECTORIA!D45,(TRAYECTORIA!C46-TRAYECTORIA!C45)/2)+De(Matriz!O114,TRAYECTORIA!D46,(TRAYECTORIA!C46-TRAYECTORIA!C45)/2)+R113 ->  | S114: =DVt(TRAYECTORIA!D45,(TRAYECTORIA!C46-TRAYECTORIA!C45)/2)+DVt(TRAYECTORIA!D46,(TRAYECTORIA!C46-TRAYECTORIA!C45)/2)+S113 ->  | W114: =Dn(Matriz!$A$74,TRAYECTORIA!$P$10,TRAYECTORIA!C46-TRAYECTORIA!C45)+W113 ->  | X114: =De(Matriz!$A$74,TRAYECTORIA!$P$10,TRAYECTORIA!C46-TRAYECTORIA!C45)+X113 ->  | Y114: =DVt(TRAYECTORIA!$P$10,TRAYECTORIA!C46-TRAYECTORIA!C45)+Y113 -> 
K115: =ISBLANK(TRAYECTORIA!C48) -> TRUE | L115: =ISBLANK(TRAYECTORIA!E48) -> TRUE | M115: =ISBLANK(TRAYECTORIA!D48) -> TRUE | O115: =TRAYECTORIA!E47*-1 -> 0 | Q115: =Dn(Matriz!O114,TRAYECTORIA!D46,(TRAYECTORIA!C47-TRAYECTORIA!C46)/2)+Dn(Matriz!O115,TRAYECTORIA!D47,(TRAYECTORIA!C47-TRAYECTORIA!C46)/2)+Q114 ->  | R115: =De(Matriz!O114,TRAYECTORIA!D46,(TRAYECTORIA!C47-TRAYECTORIA!C46)/2)+De(Matriz!O115,TRAYECTORIA!D47,(TRAYECTORIA!C47-TRAYECTORIA!C46)/2)+R114 ->  | S115: =DVt(TRAYECTORIA!D46,(TRAYECTORIA!C47-TRAYECTORIA!C46)/2)+DVt(TRAYECTORIA!D47,(TRAYECTORIA!C47-TRAYECTORIA!C46)/2)+S114 ->  | W115: =Dn(Matriz!$A$74,TRAYECTORIA!$P$10,TRAYECTORIA!C47-TRAYECTORIA!C46)+W114 ->  | X115: =De(Matriz!$A$74,TRAYECTORIA!$P$10,TRAYECTORIA!C47-TRAYECTORIA!C46)+X114 ->  | Y115: =DVt(TRAYECTORIA!$P$10,TRAYECTORIA!C47-TRAYECTORIA!C46)+Y114 -> 
K116: =ISBLANK(TRAYECTORIA!C49) -> TRUE | L116: =ISBLANK(TRAYECTORIA!E49) -> TRUE | M116: =ISBLANK(TRAYECTORIA!D49) -> TRUE | O116: =TRAYECTORIA!E48*-1 -> 0 | Q116: =Dn(Matriz!O115,TRAYECTORIA!D47,(TRAYECTORIA!C48-TRAYECTORIA!C47)/2)+Dn(Matriz!O116,TRAYECTORIA!D48,(TRAYECTORIA!C48-TRAYECTORIA!C47)/2)+Q115 ->  | R116: =De(Matriz!O115,TRAYECTORIA!D47,(TRAYECTORIA!C48-TRAYECTORIA!C47)/2)+De(Matriz!O116,TRAYECTORIA!D48,(TRAYECTORIA!C48-TRAYECTORIA!C47)/2)+R115 ->  | S116: =DVt(TRAYECTORIA!D47,(TRAYECTORIA!C48-TRAYECTORIA!C47)/2)+DVt(TRAYECTORIA!D48,(TRAYECTORIA!C48-TRAYECTORIA!C47)/2)+S115 ->  | W116: =Dn(Matriz!$A$74,TRAYECTORIA!$P$10,TRAYECTORIA!C48-TRAYECTORIA!C47)+W115 ->  | X116: =De(Matriz!$A$74,TRAYECTORIA!$P$10,TRAYECTORIA!C48-TRAYECTORIA!C47)+X115 ->  | Y116: =DVt(TRAYECTORIA!$P$10,TRAYECTORIA!C48-TRAYECTORIA!C47)+Y115 -> 
K117: =ISBLANK(TRAYECTORIA!C50) -> TRUE | L117: =ISBLANK(TRAYECTORIA!E50) -> TRUE | M117: =ISBLANK(TRAYECTORIA!D50) -> TRUE | O117: =TRAYECTORIA!E49*-1 -> 0 | Q117: =Dn(Matriz!O116,TRAYECTORIA!D48,(TRAYECTORIA!C49-TRAYECTORIA!C48)/2)+Dn(Matriz!O117,TRAYECTORIA!D49,(TRAYECTORIA!C49-TRAYECTORIA!C48)/2)+Q116 ->  | R117: =De(Matriz!O116,TRAYECTORIA!D48,(TRAYECTORIA!C49-TRAYECTORIA!C48)/2)+De(Matriz!O117,TRAYECTORIA!D49,(TRAYECTORIA!C49-TRAYECTORIA!C48)/2)+R116 ->  | S117: =DVt(TRAYECTORIA!D48,(TRAYECTORIA!C49-TRAYECTORIA!C48)/2)+DVt(TRAYECTORIA!D49,(TRAYECTORIA!C49-TRAYECTORIA!C48)/2)+S116 ->  | W117: =Dn(Matriz!$A$74,TRAYECTORIA!$P$10,TRAYECTORIA!C49-TRAYECTORIA!C48)+W116 ->  | X117: =De(Matriz!$A$74,TRAYECTORIA!$P$10,TRAYECTORIA!C49-TRAYECTORIA!C48)+X116 ->  | Y117: =DVt(TRAYECTORIA!$P$10,TRAYECTORIA!C49-TRAYECTORIA!C48)+Y116 -> 
K118: =ISBLANK(TRAYECTORIA!C51) -> TRUE | L118: =ISBLANK(TRAYECTORIA!E51) -> TRUE | M118: =ISBLANK(TRAYECTORIA!D51) -> TRUE | O118: =TRAYECTORIA!E50*-1 -> 0 | Q118: =Dn(Matriz!O117,TRAYECTORIA!D49,(TRAYECTORIA!C50-TRAYECTORIA!C49)/2)+Dn(Matriz!O118,TRAYECTORIA!D50,(TRAYECTORIA!C50-TRAYECTORIA!C49)/2)+Q117 ->  | R118: =De(Matriz!O117,TRAYECTORIA!D49,(TRAYECTORIA!C50-TRAYECTORIA!C49)/2)+De(Matriz!O118,TRAYECTORIA!D50,(TRAYECTORIA!C50-TRAYECTORIA!C49)/2)+R117 ->  | S118: =DVt(TRAYECTORIA!D49,(TRAYECTORIA!C50-TRAYECTORIA!C49)/2)+DVt(TRAYECTORIA!D50,(TRAYECTORIA!C50-TRAYECTORIA!C49)/2)+S117 ->  | W118: =Dn(Matriz!$A$74,TRAYECTORIA!$P$10,TRAYECTORIA!C50-TRAYECTORIA!C49)+W117 ->  | X118: =De(Matriz!$A$74,TRAYECTORIA!$P$10,TRAYECTORIA!C50-TRAYECTORIA!C49)+X117 ->  | Y118: =DVt(TRAYECTORIA!$P$10,TRAYECTORIA!C50-TRAYECTORIA!C49)+Y117 -> 
K119: =ISBLANK(TRAYECTORIA!C52) -> TRUE | L119: =ISBLANK(TRAYECTORIA!E52) -> TRUE | M119: =ISBLANK(TRAYECTORIA!D52) -> TRUE | O119: =TRAYECTORIA!E51*-1 -> 0 | Q119: =Dn(Matriz!O118,TRAYECTORIA!D50,(TRAYECTORIA!C51-TRAYECTORIA!C50)/2)+Dn(Matriz!O119,TRAYECTORIA!D51,(TRAYECTORIA!C51-TRAYECTORIA!C50)/2)+Q118 ->  | R119: =De(Matriz!O118,TRAYECTORIA!D50,(TRAYECTORIA!C51-TRAYECTORIA!C50)/2)+De(Matriz!O119,TRAYECTORIA!D51,(TRAYECTORIA!C51-TRAYECTORIA!C50)/2)+R118 ->  | S119: =DVt(TRAYECTORIA!D50,(TRAYECTORIA!C51-TRAYECTORIA!C50)/2)+DVt(TRAYECTORIA!D51,(TRAYECTORIA!C51-TRAYECTORIA!C50)/2)+S118 ->  | W119: =Dn(Matriz!$A$74,TRAYECTORIA!$P$10,TRAYECTORIA!C51-TRAYECTORIA!C50)+W118 ->  | X119: =De(Matriz!$A$74,TRAYECTORIA!$P$10,TRAYECTORIA!C51-TRAYECTORIA!C50)+X118 ->  | Y119: =DVt(TRAYECTORIA!$P$10,TRAYECTORIA!C51-TRAYECTORIA!C50)+Y118 -> 
K120: =ISBLANK(TRAYECTORIA!C53) -> TRUE | L120: =ISBLANK(TRAYECTORIA!E53) -> TRUE | M120: =ISBLANK(TRAYECTORIA!D53) -> TRUE | O120: =TRAYECTORIA!E52*-1 -> 0 | Q120: =Dn(Matriz!O119,TRAYECTORIA!D51,(TRAYECTORIA!C52-TRAYECTORIA!C51)/2)+Dn(Matriz!O120,TRAYECTORIA!D52,(TRAYECTORIA!C52-TRAYECTORIA!C51)/2)+Q119 ->  | R120: =De(Matriz!O119,TRAYECTORIA!D51,(TRAYECTORIA!C52-TRAYECTORIA!C51)/2)+De(Matriz!O120,TRAYECTORIA!D52,(TRAYECTORIA!C52-TRAYECTORIA!C51)/2)+R119 ->  | S120: =DVt(TRAYECTORIA!D51,(TRAYECTORIA!C52-TRAYECTORIA!C51)/2)+DVt(TRAYECTORIA!D52,(TRAYECTORIA!C52-TRAYECTORIA!C51)/2)+S119 ->  | W120: =Dn(Matriz!$A$74,TRAYECTORIA!$P$10,TRAYECTORIA!C52-TRAYECTORIA!C51)+W119 ->  | X120: =De(Matriz!$A$74,TRAYECTORIA!$P$10,TRAYECTORIA!C52-TRAYECTORIA!C51)+X119 ->  | Y120: =DVt(TRAYECTORIA!$P$10,TRAYECTORIA!C52-TRAYECTORIA!C51)+Y119 -> 
K121: =ISBLANK(TRAYECTORIA!C54) -> TRUE | L121: =ISBLANK(TRAYECTORIA!E54) -> TRUE | M121: =ISBLANK(TRAYECTORIA!D54) -> TRUE | O121: =TRAYECTORIA!E53*-1 -> 0 | Q121: =Dn(Matriz!O120,TRAYECTORIA!D52,(TRAYECTORIA!C53-TRAYECTORIA!C52)/2)+Dn(Matriz!O121,TRAYECTORIA!D53,(TRAYECTORIA!C53-TRAYECTORIA!C52)/2)+Q120 ->  | R121: =De(Matriz!O120,TRAYECTORIA!D52,(TRAYECTORIA!C53-TRAYECTORIA!C52)/2)+De(Matriz!O121,TRAYECTORIA!D53,(TRAYECTORIA!C53-TRAYECTORIA!C52)/2)+R120 ->  | S121: =DVt(TRAYECTORIA!D52,(TRAYECTORIA!C53-TRAYECTORIA!C52)/2)+DVt(TRAYECTORIA!D53,(TRAYECTORIA!C53-TRAYECTORIA!C52)/2)+S120 ->  | W121: =Dn(Matriz!$A$74,TRAYECTORIA!$P$10,TRAYECTORIA!C53-TRAYECTORIA!C52)+W120 ->  | X121: =De(Matriz!$A$74,TRAYECTORIA!$P$10,TRAYECTORIA!C53-TRAYECTORIA!C52)+X120 ->  | Y121: =DVt(TRAYECTORIA!$P$10,TRAYECTORIA!C53-TRAYECTORIA!C52)+Y120 -> 
K122: =ISBLANK(TRAYECTORIA!C55) -> TRUE | L122: =ISBLANK(TRAYECTORIA!E55) -> TRUE | M122: =ISBLANK(TRAYECTORIA!D55) -> TRUE | O122: =TRAYECTORIA!E54*-1 -> 0 | Q122: =Dn(Matriz!O121,TRAYECTORIA!D53,(TRAYECTORIA!C54-TRAYECTORIA!C53)/2)+Dn(Matriz!O122,TRAYECTORIA!D54,(TRAYECTORIA!C54-TRAYECTORIA!C53)/2)+Q121 ->  | R122: =De(Matriz!O121,TRAYECTORIA!D53,(TRAYECTORIA!C54-TRAYECTORIA!C53)/2)+De(Matriz!O122,TRAYECTORIA!D54,(TRAYECTORIA!C54-TRAYECTORIA!C53)/2)+R121 ->  | S122: =DVt(TRAYECTORIA!D53,(TRAYECTORIA!C54-TRAYECTORIA!C53)/2)+DVt(TRAYECTORIA!D54,(TRAYECTORIA!C54-TRAYECTORIA!C53)/2)+S121 ->  | W122: =Dn(Matriz!$A$74,TRAYECTORIA!$P$10,TRAYECTORIA!C54-TRAYECTORIA!C53)+W121 ->  | X122: =De(Matriz!$A$74,TRAYECTORIA!$P$10,TRAYECTORIA!C54-TRAYECTORIA!C53)+X121 ->  | Y122: =DVt(TRAYECTORIA!$P$10,TRAYECTORIA!C54-TRAYECTORIA!C53)+Y121 -> 
K123: =ISBLANK(TRAYECTORIA!C56) -> TRUE | L123: =ISBLANK(TRAYECTORIA!E56) -> TRUE | M123: =ISBLANK(TRAYECTORIA!D56) -> TRUE | O123: =TRAYECTORIA!E55*-1 -> 0 | Q123: =Dn(Matriz!O122,TRAYECTORIA!D54,(TRAYECTORIA!C55-TRAYECTORIA!C54)/2)+Dn(Matriz!O123,TRAYECTORIA!D55,(TRAYECTORIA!C55-TRAYECTORIA!C54)/2)+Q122 ->  | R123: =De(Matriz!O122,TRAYECTORIA!D54,(TRAYECTORIA!C55-TRAYECTORIA!C54)/2)+De(Matriz!O123,TRAYECTORIA!D55,(TRAYECTORIA!C55-TRAYECTORIA!C54)/2)+R122 ->  | S123: =DVt(TRAYECTORIA!D54,(TRAYECTORIA!C55-TRAYECTORIA!C54)/2)+DVt(TRAYECTORIA!D55,(TRAYECTORIA!C55-TRAYECTORIA!C54)/2)+S122 ->  | W123: =Dn(Matriz!$A$74,TRAYECTORIA!$P$10,TRAYECTORIA!C55-TRAYECTORIA!C54)+W122 ->  | X123: =De(Matriz!$A$74,TRAYECTORIA!$P$10,TRAYECTORIA!C55-TRAYECTORIA!C54)+X122 ->  | Y123: =DVt(TRAYECTORIA!$P$10,TRAYECTORIA!C55-TRAYECTORIA!C54)+Y122 -> 
K124: =ISBLANK(TRAYECTORIA!C57) -> TRUE | L124: =ISBLANK(TRAYECTORIA!E57) -> TRUE | M124: =ISBLANK(TRAYECTORIA!D57) -> TRUE | O124: =TRAYECTORIA!E56*-1 -> 0 | Q124: =Dn(Matriz!O123,TRAYECTORIA!D55,(TRAYECTORIA!C56-TRAYECTORIA!C55)/2)+Dn(Matriz!O124,TRAYECTORIA!D56,(TRAYECTORIA!C56-TRAYECTORIA!C55)/2)+Q123 ->  | R124: =De(Matriz!O123,TRAYECTORIA!D55,(TRAYECTORIA!C56-TRAYECTORIA!C55)/2)+De(Matriz!O124,TRAYECTORIA!D56,(TRAYECTORIA!C56-TRAYECTORIA!C55)/2)+R123 ->  | S124: =DVt(TRAYECTORIA!D55,(TRAYECTORIA!C56-TRAYECTORIA!C55)/2)+DVt(TRAYECTORIA!D56,(TRAYECTORIA!C56-TRAYECTORIA!C55)/2)+S123 ->  | W124: =Dn(Matriz!$A$74,TRAYECTORIA!$P$10,TRAYECTORIA!C56-TRAYECTORIA!C55)+W123 ->  | X124: =De(Matriz!$A$74,TRAYECTORIA!$P$10,TRAYECTORIA!C56-TRAYECTORIA!C55)+X123 ->  | Y124: =DVt(TRAYECTORIA!$P$10,TRAYECTORIA!C56-TRAYECTORIA!C55)+Y123 -> 
K125: =ISBLANK(TRAYECTORIA!C58) -> TRUE | L125: =ISBLANK(TRAYECTORIA!E58) -> TRUE | M125: =ISBLANK(TRAYECTORIA!D58) -> TRUE | O125: =TRAYECTORIA!E57*-1 -> 0 | Q125: =Dn(Matriz!O124,TRAYECTORIA!D56,(TRAYECTORIA!C57-TRAYECTORIA!C56)/2)+Dn(Matriz!O125,TRAYECTORIA!D57,(TRAYECTORIA!C57-TRAYECTORIA!C56)/2)+Q124 ->  | R125: =De(Matriz!O124,TRAYECTORIA!D56,(TRAYECTORIA!C57-TRAYECTORIA!C56)/2)+De(Matriz!O125,TRAYECTORIA!D57,(TRAYECTORIA!C57-TRAYECTORIA!C56)/2)+R124 ->  | S125: =DVt(TRAYECTORIA!D56,(TRAYECTORIA!C57-TRAYECTORIA!C56)/2)+DVt(TRAYECTORIA!D57,(TRAYECTORIA!C57-TRAYECTORIA!C56)/2)+S124 ->  | W125: =Dn(Matriz!$A$74,TRAYECTORIA!$P$10,TRAYECTORIA!C57-TRAYECTORIA!C56)+W124 ->  | X125: =De(Matriz!$A$74,TRAYECTORIA!$P$10,TRAYECTORIA!C57-TRAYECTORIA!C56)+X124 ->  | Y125: =DVt(TRAYECTORIA!$P$10,TRAYECTORIA!C57-TRAYECTORIA!C56)+Y124 -> 
K126: =ISBLANK(TRAYECTORIA!C59) -> TRUE | L126: =ISBLANK(TRAYECTORIA!E59) -> TRUE | M126: =ISBLANK(TRAYECTORIA!D59) -> TRUE | O126: =TRAYECTORIA!E58*-1 -> 0 | Q126: =Dn(Matriz!O125,TRAYECTORIA!D57,(TRAYECTORIA!C58-TRAYECTORIA!C57)/2)+Dn(Matriz!O126,TRAYECTORIA!D58,(TRAYECTORIA!C58-TRAYECTORIA!C57)/2)+Q125 ->  | R126: =De(Matriz!O125,TRAYECTORIA!D57,(TRAYECTORIA!C58-TRAYECTORIA!C57)/2)+De(Matriz!O126,TRAYECTORIA!D58,(TRAYECTORIA!C58-TRAYECTORIA!C57)/2)+R125 ->  | S126: =DVt(TRAYECTORIA!D57,(TRAYECTORIA!C58-TRAYECTORIA!C57)/2)+DVt(TRAYECTORIA!D58,(TRAYECTORIA!C58-TRAYECTORIA!C57)/2)+S125 ->  | W126: =Dn(Matriz!$A$74,TRAYECTORIA!$P$10,TRAYECTORIA!C58-TRAYECTORIA!C57)+W125 ->  | X126: =De(Matriz!$A$74,TRAYECTORIA!$P$10,TRAYECTORIA!C58-TRAYECTORIA!C57)+X125 ->  | Y126: =DVt(TRAYECTORIA!$P$10,TRAYECTORIA!C58-TRAYECTORIA!C57)+Y125 -> 
K127: =ISBLANK(TRAYECTORIA!C60) -> TRUE | L127: =ISBLANK(TRAYECTORIA!E60) -> TRUE | M127: =ISBLANK(TRAYECTORIA!D60) -> TRUE | O127: =TRAYECTORIA!E59*-1 -> 0 | Q127: =Dn(Matriz!O126,TRAYECTORIA!D58,(TRAYECTORIA!C59-TRAYECTORIA!C58)/2)+Dn(Matriz!O127,TRAYECTORIA!D59,(TRAYECTORIA!C59-TRAYECTORIA!C58)/2)+Q126 ->  | R127: =De(Matriz!O126,TRAYECTORIA!D58,(TRAYECTORIA!C59-TRAYECTORIA!C58)/2)+De(Matriz!O127,TRAYECTORIA!D59,(TRAYECTORIA!C59-TRAYECTORIA!C58)/2)+R126 ->  | S127: =DVt(TRAYECTORIA!D58,(TRAYECTORIA!C59-TRAYECTORIA!C58)/2)+DVt(TRAYECTORIA!D59,(TRAYECTORIA!C59-TRAYECTORIA!C58)/2)+S126 ->  | W127: =Dn(Matriz!$A$74,TRAYECTORIA!$P$10,TRAYECTORIA!C59-TRAYECTORIA!C58)+W126 ->  | X127: =De(Matriz!$A$74,TRAYECTORIA!$P$10,TRAYECTORIA!C59-TRAYECTORIA!C58)+X126 ->  | Y127: =DVt(TRAYECTORIA!$P$10,TRAYECTORIA!C59-TRAYECTORIA!C58)+Y126 -> 
K128: =ISBLANK(TRAYECTORIA!C61) -> TRUE | L128: =ISBLANK(TRAYECTORIA!E61) -> TRUE | M128: =ISBLANK(TRAYECTORIA!D61) -> TRUE | O128: =TRAYECTORIA!E60*-1 -> 0 | Q128: =Dn(Matriz!O127,TRAYECTORIA!D59,(TRAYECTORIA!C60-TRAYECTORIA!C59)/2)+Dn(Matriz!O128,TRAYECTORIA!D60,(TRAYECTORIA!C60-TRAYECTORIA!C59)/2)+Q127 ->  | R128: =De(Matriz!O127,TRAYECTORIA!D59,(TRAYECTORIA!C60-TRAYECTORIA!C59)/2)+De(Matriz!O128,TRAYECTORIA!D60,(TRAYECTORIA!C60-TRAYECTORIA!C59)/2)+R127 ->  | S128: =DVt(TRAYECTORIA!D59,(TRAYECTORIA!C60-TRAYECTORIA!C59)/2)+DVt(TRAYECTORIA!D60,(TRAYECTORIA!C60-TRAYECTORIA!C59)/2)+S127 ->  | W128: =Dn(Matriz!$A$74,TRAYECTORIA!$P$10,TRAYECTORIA!C60-TRAYECTORIA!C59)+W127 ->  | X128: =De(Matriz!$A$74,TRAYECTORIA!$P$10,TRAYECTORIA!C60-TRAYECTORIA!C59)+X127 ->  | Y128: =DVt(TRAYECTORIA!$P$10,TRAYECTORIA!C60-TRAYECTORIA!C59)+Y127 -> 
K129: =ISBLANK(TRAYECTORIA!C62) -> TRUE | L129: =ISBLANK(TRAYECTORIA!E62) -> TRUE | M129: =ISBLANK(TRAYECTORIA!D62) -> TRUE | O129: =TRAYECTORIA!E61*-1 -> 0 | Q129: =Dn(Matriz!O128,TRAYECTORIA!D60,(TRAYECTORIA!C61-TRAYECTORIA!C60)/2)+Dn(Matriz!O129,TRAYECTORIA!D61,(TRAYECTORIA!C61-TRAYECTORIA!C60)/2)+Q128 ->  | R129: =De(Matriz!O128,TRAYECTORIA!D60,(TRAYECTORIA!C61-TRAYECTORIA!C60)/2)+De(Matriz!O129,TRAYECTORIA!D61,(TRAYECTORIA!C61-TRAYECTORIA!C60)/2)+R128 ->  | S129: =DVt(TRAYECTORIA!D60,(TRAYECTORIA!C61-TRAYECTORIA!C60)/2)+DVt(TRAYECTORIA!D61,(TRAYECTORIA!C61-TRAYECTORIA!C60)/2)+S128 ->  | W129: =Dn(Matriz!$A$74,TRAYECTORIA!$P$10,TRAYECTORIA!C61-TRAYECTORIA!C60)+W128 ->  | X129: =De(Matriz!$A$74,TRAYECTORIA!$P$10,TRAYECTORIA!C61-TRAYECTORIA!C60)+X128 ->  | Y129: =DVt(TRAYECTORIA!$P$10,TRAYECTORIA!C61-TRAYECTORIA!C60)+Y128 -> 
K130: =ISBLANK(TRAYECTORIA!C63) -> TRUE | L130: =ISBLANK(TRAYECTORIA!E63) -> TRUE | M130: =ISBLANK(TRAYECTORIA!D63) -> TRUE | O130: =TRAYECTORIA!E62*-1 -> 0 | Q130: =Dn(Matriz!O129,TRAYECTORIA!D61,(TRAYECTORIA!C62-TRAYECTORIA!C61)/2)+Dn(Matriz!O130,TRAYECTORIA!D62,(TRAYECTORIA!C62-TRAYECTORIA!C61)/2)+Q129 ->  | R130: =De(Matriz!O129,TRAYECTORIA!D61,(TRAYECTORIA!C62-TRAYECTORIA!C61)/2)+De(Matriz!O130,TRAYECTORIA!D62,(TRAYECTORIA!C62-TRAYECTORIA!C61)/2)+R129 ->  | S130: =DVt(TRAYECTORIA!D61,(TRAYECTORIA!C62-TRAYECTORIA!C61)/2)+DVt(TRAYECTORIA!D62,(TRAYECTORIA!C62-TRAYECTORIA!C61)/2)+S129 ->  | W130: =Dn(Matriz!$A$74,TRAYECTORIA!$P$10,TRAYECTORIA!C62-TRAYECTORIA!C61)+W129 ->  | X130: =De(Matriz!$A$74,TRAYECTORIA!$P$10,TRAYECTORIA!C62-TRAYECTORIA!C61)+X129 ->  | Y130: =DVt(TRAYECTORIA!$P$10,TRAYECTORIA!C62-TRAYECTORIA!C61)+Y129 -> 
F131: =IF(L131=FALSE,(Q132*_RMX2)+(R132*_RMY2)+(T132*_RMZ2),NA()) ->  | H131: =IF(K131=FALSE,(W132*_RMX1)+(X132*_RMY1)+(AC132*_RMZ1),NA()) ->  | I131: =IF(L131=FALSE,(W132*_RMX2)+(X132*_RMY2)+(AC132*_RMZ2),NA()) ->  | K131: =ISBLANK(TRAYECTORIA!C64) -> TRUE | L131: =ISBLANK(TRAYECTORIA!E64) -> TRUE | M131: =ISBLANK(TRAYECTORIA!D64) -> TRUE | O131: =TRAYECTORIA!E63*-1 -> 0 | Q131: =Dn(Matriz!O130,TRAYECTORIA!D62,(TRAYECTORIA!C63-TRAYECTORIA!C62)/2)+Dn(Matriz!O131,TRAYECTORIA!D63,(TRAYECTORIA!C63-TRAYECTORIA!C62)/2)+Q130 ->  | R131: =De(Matriz!O130,TRAYECTORIA!D62,(TRAYECTORIA!C63-TRAYECTORIA!C62)/2)+De(Matriz!O131,TRAYECTORIA!D63,(TRAYECTORIA!C63-TRAYECTORIA!C62)/2)+R130 ->  | S131: =DVt(TRAYECTORIA!D62,(TRAYECTORIA!C63-TRAYECTORIA!C62)/2)+DVt(TRAYECTORIA!D63,(TRAYECTORIA!C63-TRAYECTORIA!C62)/2)+S130 ->  | W131: =Dn(Matriz!$A$74,TRAYECTORIA!$P$10,TRAYECTORIA!C63-TRAYECTORIA!C62)+W130 ->  | X131: =De(Matriz!$A$74,TRAYECTORIA!$P$10,TRAYECTORIA!C63-TRAYECTORIA!C62)+X130 ->  | Y131: =DVt(TRAYECTORIA!$P$10,TRAYECTORIA!C63-TRAYECTORIA!C62)+Y130 -> 
K132: =ISBLANK(TRAYECTORIA!C65) -> TRUE | L132: =ISBLANK(TRAYECTORIA!E65) -> TRUE | M132: =ISBLANK(TRAYECTORIA!D65) -> TRUE | O132: =TRAYECTORIA!E64*-1 -> 0 | Q132: =Dn(Matriz!O131,TRAYECTORIA!D63,(TRAYECTORIA!C64-TRAYECTORIA!C63)/2)+Dn(Matriz!O132,TRAYECTORIA!D64,(TRAYECTORIA!C64-TRAYECTORIA!C63)/2)+Q131 ->  | R132: =De(Matriz!O131,TRAYECTORIA!D63,(TRAYECTORIA!C64-TRAYECTORIA!C63)/2)+De(Matriz!O132,TRAYECTORIA!D64,(TRAYECTORIA!C64-TRAYECTORIA!C63)/2)+R131 ->  | S132: =DVt(TRAYECTORIA!D63,(TRAYECTORIA!C64-TRAYECTORIA!C63)/2)+DVt(TRAYECTORIA!D64,(TRAYECTORIA!C64-TRAYECTORIA!C63)/2)+S131 ->  | W132: =Dn(Matriz!$A$74,TRAYECTORIA!$P$10,TRAYECTORIA!C64-TRAYECTORIA!C63)+W131 ->  | X132: =De(Matriz!$A$74,TRAYECTORIA!$P$10,TRAYECTORIA!C64-TRAYECTORIA!C63)+X131 ->  | Y132: =DVt(TRAYECTORIA!$P$10,TRAYECTORIA!C64-TRAYECTORIA!C63)+Y131 -> 
E133: =IF(K133=FALSE,(Q134*_RMX1)+(R134*_RMY1)+(T134*_RMZ1),NA()) ->  | K133: =ISBLANK(TRAYECTORIA!C66) -> TRUE | L133: =ISBLANK(TRAYECTORIA!E66) -> TRUE | M133: =ISBLANK(TRAYECTORIA!D66) -> TRUE | O133: =TRAYECTORIA!E65*-1 -> 0 | Q133: =Dn(Matriz!O132,TRAYECTORIA!D64,(TRAYECTORIA!C65-TRAYECTORIA!C64)/2)+Dn(Matriz!O133,TRAYECTORIA!D65,(TRAYECTORIA!C65-TRAYECTORIA!C64)/2)+Q132 ->  | R133: =De(Matriz!O132,TRAYECTORIA!D64,(TRAYECTORIA!C65-TRAYECTORIA!C64)/2)+De(Matriz!O133,TRAYECTORIA!D65,(TRAYECTORIA!C65-TRAYECTORIA!C64)/2)+R132 ->  | S133: =DVt(TRAYECTORIA!D64,(TRAYECTORIA!C65-TRAYECTORIA!C64)/2)+DVt(TRAYECTORIA!D65,(TRAYECTORIA!C65-TRAYECTORIA!C64)/2)+S132 ->  | T133: =S133*-1 ->  | W133: =Dn(Matriz!$A$74,TRAYECTORIA!$P$10,TRAYECTORIA!C65-TRAYECTORIA!C64)+W132 ->  | X133: =De(Matriz!$A$74,TRAYECTORIA!$P$10,TRAYECTORIA!C65-TRAYECTORIA!C64)+X132 ->  | Y133: =DVt(TRAYECTORIA!$P$10,TRAYECTORIA!C65-TRAYECTORIA!C64)+Y132 -> 
K134: =ISBLANK(TRAYECTORIA!C67) -> TRUE | L134: =ISBLANK(TRAYECTORIA!E67) -> TRUE | M134: =ISBLANK(TRAYECTORIA!D67) -> TRUE | O134: =TRAYECTORIA!E66*-1 -> 0 | Q134: =Dn(Matriz!O133,TRAYECTORIA!D65,(TRAYECTORIA!C66-TRAYECTORIA!C65)/2)+Dn(Matriz!O134,TRAYECTORIA!D66,(TRAYECTORIA!C66-TRAYECTORIA!C65)/2)+Q133 ->  | R134: =De(Matriz!O133,TRAYECTORIA!D65,(TRAYECTORIA!C66-TRAYECTORIA!C65)/2)+De(Matriz!O134,TRAYECTORIA!D66,(TRAYECTORIA!C66-TRAYECTORIA!C65)/2)+R133 ->  | S134: =DVt(TRAYECTORIA!D65,(TRAYECTORIA!C66-TRAYECTORIA!C65)/2)+DVt(TRAYECTORIA!D66,(TRAYECTORIA!C66-TRAYECTORIA!C65)/2)+S133 ->  | V134: =SQRT((Q134-Q133)^2+(R134-R133)^2+(S134-S133)^2)+V133 ->  | W134: =Dn(Matriz!$A$74,TRAYECTORIA!$P$10,TRAYECTORIA!C66-TRAYECTORIA!C65)+W133 ->  | X134: =De(Matriz!$A$74,TRAYECTORIA!$P$10,TRAYECTORIA!C66-TRAYECTORIA!C65)+X133 ->  | Y134: =DVt(TRAYECTORIA!$P$10,TRAYECTORIA!C66-TRAYECTORIA!C65)+Y133 ->  | Z134: =SQRT((W134-W133)^2+(X134-X133)^2+(Y134-Y133)^2) ->  | AA134: =SQRT((Q134-W134)^2+(R134-X134)^2+(S134-Y134)^2) ->  | AB134: =AA134/Z134 ->  | AC134: =Y134*-1 -> 
K135: =ISBLANK(TRAYECTORIA!C68) -> TRUE | L135: =ISBLANK(TRAYECTORIA!E68) -> TRUE | M135: =ISBLANK(TRAYECTORIA!D68) -> TRUE | O135: =TRAYECTORIA!E67*-1 -> 0 | Q135: =Dn(Matriz!O134,TRAYECTORIA!D66,(TRAYECTORIA!C67-TRAYECTORIA!C66)/2)+Dn(Matriz!O135,TRAYECTORIA!D67,(TRAYECTORIA!C67-TRAYECTORIA!C66)/2)+Q134 ->  | R135: =De(Matriz!O134,TRAYECTORIA!D66,(TRAYECTORIA!C67-TRAYECTORIA!C66)/2)+De(Matriz!O135,TRAYECTORIA!D67,(TRAYECTORIA!C67-TRAYECTORIA!C66)/2)+R134 ->  | S135: =DVt(TRAYECTORIA!D66,(TRAYECTORIA!C67-TRAYECTORIA!C66)/2)+DVt(TRAYECTORIA!D67,(TRAYECTORIA!C67-TRAYECTORIA!C66)/2)+S134 ->  | W135: =Dn(Matriz!$A$74,TRAYECTORIA!$P$10,TRAYECTORIA!C67-TRAYECTORIA!C66)+W134 ->  | X135: =De(Matriz!$A$74,TRAYECTORIA!$P$10,TRAYECTORIA!C67-TRAYECTORIA!C66)+X134 ->  | Y135: =DVt(TRAYECTORIA!$P$10,TRAYECTORIA!C67-TRAYECTORIA!C66)+Y134 -> 
K136: =ISBLANK(TRAYECTORIA!C69) -> TRUE | L136: =ISBLANK(TRAYECTORIA!E69) -> TRUE | M136: =ISBLANK(TRAYECTORIA!D69) -> TRUE | O136: =TRAYECTORIA!E68*-1 -> 0 | Q136: =Dn(Matriz!O135,TRAYECTORIA!D67,(TRAYECTORIA!C68-TRAYECTORIA!C67)/2)+Dn(Matriz!O136,TRAYECTORIA!D68,(TRAYECTORIA!C68-TRAYECTORIA!C67)/2)+Q135 ->  | R136: =De(Matriz!O135,TRAYECTORIA!D67,(TRAYECTORIA!C68-TRAYECTORIA!C67)/2)+De(Matriz!O136,TRAYECTORIA!D68,(TRAYECTORIA!C68-TRAYECTORIA!C67)/2)+R135 ->  | S136: =DVt(TRAYECTORIA!D67,(TRAYECTORIA!C68-TRAYECTORIA!C67)/2)+DVt(TRAYECTORIA!D68,(TRAYECTORIA!C68-TRAYECTORIA!C67)/2)+S135 ->  | W136: =Dn(Matriz!$A$74,TRAYECTORIA!$P$10,TRAYECTORIA!C68-TRAYECTORIA!C67)+W135 ->  | X136: =De(Matriz!$A$74,TRAYECTORIA!$P$10,TRAYECTORIA!C68-TRAYECTORIA!C67)+X135 ->  | Y136: =DVt(TRAYECTORIA!$P$10,TRAYECTORIA!C68-TRAYECTORIA!C67)+Y135 -> 
K137: =ISBLANK(TRAYECTORIA!C70) -> TRUE | L137: =ISBLANK(TRAYECTORIA!E70) -> TRUE | M137: =ISBLANK(TRAYECTORIA!D70) -> TRUE | O137: =TRAYECTORIA!E69*-1 -> 0 | Q137: =Dn(Matriz!O136,TRAYECTORIA!D68,(TRAYECTORIA!C69-TRAYECTORIA!C68)/2)+Dn(Matriz!O137,TRAYECTORIA!D69,(TRAYECTORIA!C69-TRAYECTORIA!C68)/2)+Q136 ->  | R137: =De(Matriz!O136,TRAYECTORIA!D68,(TRAYECTORIA!C69-TRAYECTORIA!C68)/2)+De(Matriz!O137,TRAYECTORIA!D69,(TRAYECTORIA!C69-TRAYECTORIA!C68)/2)+R136 ->  | S137: =DVt(TRAYECTORIA!D68,(TRAYECTORIA!C69-TRAYECTORIA!C68)/2)+DVt(TRAYECTORIA!D69,(TRAYECTORIA!C69-TRAYECTORIA!C68)/2)+S136 ->  | W137: =Dn(Matriz!$A$74,TRAYECTORIA!$P$10,TRAYECTORIA!C69-TRAYECTORIA!C68)+W136 ->  | X137: =De(Matriz!$A$74,TRAYECTORIA!$P$10,TRAYECTORIA!C69-TRAYECTORIA!C68)+X136 ->  | Y137: =DVt(TRAYECTORIA!$P$10,TRAYECTORIA!C69-TRAYECTORIA!C68)+Y136 -> 
K138: =ISBLANK(TRAYECTORIA!C71) -> TRUE | L138: =ISBLANK(TRAYECTORIA!E71) -> TRUE | M138: =ISBLANK(TRAYECTORIA!D71) -> TRUE | O138: =TRAYECTORIA!E70*-1 -> 0 | Q138: =Dn(Matriz!O137,TRAYECTORIA!D69,(TRAYECTORIA!C70-TRAYECTORIA!C69)/2)+Dn(Matriz!O138,TRAYECTORIA!D70,(TRAYECTORIA!C70-TRAYECTORIA!C69)/2)+Q137 ->  | R138: =De(Matriz!O137,TRAYECTORIA!D69,(TRAYECTORIA!C70-TRAYECTORIA!C69)/2)+De(Matriz!O138,TRAYECTORIA!D70,(TRAYECTORIA!C70-TRAYECTORIA!C69)/2)+R137 ->  | S138: =DVt(TRAYECTORIA!D69,(TRAYECTORIA!C70-TRAYECTORIA!C69)/2)+DVt(TRAYECTORIA!D70,(TRAYECTORIA!C70-TRAYECTORIA!C69)/2)+S137 ->  | W138: =Dn(Matriz!$A$74,TRAYECTORIA!$P$10,TRAYECTORIA!C70-TRAYECTORIA!C69)+W137 ->  | X138: =De(Matriz!$A$74,TRAYECTORIA!$P$10,TRAYECTORIA!C70-TRAYECTORIA!C69)+X137 ->  | Y138: =DVt(TRAYECTORIA!$P$10,TRAYECTORIA!C70-TRAYECTORIA!C69)+Y137 -> 
K139: =ISBLANK(TRAYECTORIA!C72) -> TRUE | L139: =ISBLANK(TRAYECTORIA!E72) -> TRUE | M139: =ISBLANK(TRAYECTORIA!D72) -> TRUE | O139: =TRAYECTORIA!E71*-1 -> 0 | Q139: =Dn(Matriz!O138,TRAYECTORIA!D70,(TRAYECTORIA!C71-TRAYECTORIA!C70)/2)+Dn(Matriz!O139,TRAYECTORIA!D71,(TRAYECTORIA!C71-TRAYECTORIA!C70)/2)+Q138 ->  | R139: =De(Matriz!O138,TRAYECTORIA!D70,(TRAYECTORIA!C71-TRAYECTORIA!C70)/2)+De(Matriz!O139,TRAYECTORIA!D71,(TRAYECTORIA!C71-TRAYECTORIA!C70)/2)+R138 ->  | S139: =DVt(TRAYECTORIA!D70,(TRAYECTORIA!C71-TRAYECTORIA!C70)/2)+DVt(TRAYECTORIA!D71,(TRAYECTORIA!C71-TRAYECTORIA!C70)/2)+S138 ->  | W139: =Dn(Matriz!$A$74,TRAYECTORIA!$P$10,TRAYECTORIA!C71-TRAYECTORIA!C70)+W138 ->  | X139: =De(Matriz!$A$74,TRAYECTORIA!$P$10,TRAYECTORIA!C71-TRAYECTORIA!C70)+X138 ->  | Y139: =DVt(TRAYECTORIA!$P$10,TRAYECTORIA!C71-TRAYECTORIA!C70)+Y138 -> 
K140: =ISBLANK(TRAYECTORIA!C73) -> TRUE | L140: =ISBLANK(TRAYECTORIA!E73) -> TRUE | M140: =ISBLANK(TRAYECTORIA!D73) -> TRUE | O140: =TRAYECTORIA!E72*-1 -> 0 | Q140: =Dn(Matriz!O139,TRAYECTORIA!D71,(TRAYECTORIA!C72-TRAYECTORIA!C71)/2)+Dn(Matriz!O140,TRAYECTORIA!D72,(TRAYECTORIA!C72-TRAYECTORIA!C71)/2)+Q139 ->  | R140: =De(Matriz!O139,TRAYECTORIA!D71,(TRAYECTORIA!C72-TRAYECTORIA!C71)/2)+De(Matriz!O140,TRAYECTORIA!D72,(TRAYECTORIA!C72-TRAYECTORIA!C71)/2)+R139 ->  | S140: =DVt(TRAYECTORIA!D71,(TRAYECTORIA!C72-TRAYECTORIA!C71)/2)+DVt(TRAYECTORIA!D72,(TRAYECTORIA!C72-TRAYECTORIA!C71)/2)+S139 ->  | W140: =Dn(Matriz!$A$74,TRAYECTORIA!$P$10,TRAYECTORIA!C72-TRAYECTORIA!C71)+W139 ->  | X140: =De(Matriz!$A$74,TRAYECTORIA!$P$10,TRAYECTORIA!C72-TRAYECTORIA!C71)+X139 ->  | Y140: =DVt(TRAYECTORIA!$P$10,TRAYECTORIA!C72-TRAYECTORIA!C71)+Y139 -> 
K141: =ISBLANK(TRAYECTORIA!C74) -> TRUE | L141: =ISBLANK(TRAYECTORIA!E74) -> TRUE | M141: =ISBLANK(TRAYECTORIA!D74) -> TRUE | O141: =TRAYECTORIA!E73*-1 -> 0 | Q141: =Dn(Matriz!O140,TRAYECTORIA!D72,(TRAYECTORIA!C73-TRAYECTORIA!C72)/2)+Dn(Matriz!O141,TRAYECTORIA!D73,(TRAYECTORIA!C73-TRAYECTORIA!C72)/2)+Q140 ->  | R141: =De(Matriz!O140,TRAYECTORIA!D72,(TRAYECTORIA!C73-TRAYECTORIA!C72)/2)+De(Matriz!O141,TRAYECTORIA!D73,(TRAYECTORIA!C73-TRAYECTORIA!C72)/2)+R140 ->  | S141: =DVt(TRAYECTORIA!D72,(TRAYECTORIA!C73-TRAYECTORIA!C72)/2)+DVt(TRAYECTORIA!D73,(TRAYECTORIA!C73-TRAYECTORIA!C72)/2)+S140 ->  | W141: =Dn(Matriz!$A$74,TRAYECTORIA!$P$10,TRAYECTORIA!C73-TRAYECTORIA!C72)+W140 ->  | X141: =De(Matriz!$A$74,TRAYECTORIA!$P$10,TRAYECTORIA!C73-TRAYECTORIA!C72)+X140 ->  | Y141: =DVt(TRAYECTORIA!$P$10,TRAYECTORIA!C73-TRAYECTORIA!C72)+Y140 -> 
K142: =ISBLANK(TRAYECTORIA!C75) -> TRUE | L142: =ISBLANK(TRAYECTORIA!E75) -> TRUE | M142: =ISBLANK(TRAYECTORIA!D75) -> TRUE | O142: =TRAYECTORIA!E74*-1 -> 0 | Q142: =Dn(Matriz!O141,TRAYECTORIA!D73,(TRAYECTORIA!C74-TRAYECTORIA!C73)/2)+Dn(Matriz!O142,TRAYECTORIA!D74,(TRAYECTORIA!C74-TRAYECTORIA!C73)/2)+Q141 ->  | R142: =De(Matriz!O141,TRAYECTORIA!D73,(TRAYECTORIA!C74-TRAYECTORIA!C73)/2)+De(Matriz!O142,TRAYECTORIA!D74,(TRAYECTORIA!C74-TRAYECTORIA!C73)/2)+R141 ->  | S142: =DVt(TRAYECTORIA!D73,(TRAYECTORIA!C74-TRAYECTORIA!C73)/2)+DVt(TRAYECTORIA!D74,(TRAYECTORIA!C74-TRAYECTORIA!C73)/2)+S141 ->  | W142: =Dn(Matriz!$A$74,TRAYECTORIA!$P$10,TRAYECTORIA!C74-TRAYECTORIA!C73)+W141 ->  | X142: =De(Matriz!$A$74,TRAYECTORIA!$P$10,TRAYECTORIA!C74-TRAYECTORIA!C73)+X141 ->  | Y142: =DVt(TRAYECTORIA!$P$10,TRAYECTORIA!C74-TRAYECTORIA!C73)+Y141 -> 
K143: =ISBLANK(TRAYECTORIA!C76) -> TRUE | L143: =ISBLANK(TRAYECTORIA!E76) -> TRUE | M143: =ISBLANK(TRAYECTORIA!D76) -> TRUE | O143: =TRAYECTORIA!E75*-1 -> 0 | Q143: =Dn(Matriz!O142,TRAYECTORIA!D74,(TRAYECTORIA!C75-TRAYECTORIA!C74)/2)+Dn(Matriz!O143,TRAYECTORIA!D75,(TRAYECTORIA!C75-TRAYECTORIA!C74)/2)+Q142 ->  | R143: =De(Matriz!O142,TRAYECTORIA!D74,(TRAYECTORIA!C75-TRAYECTORIA!C74)/2)+De(Matriz!O143,TRAYECTORIA!D75,(TRAYECTORIA!C75-TRAYECTORIA!C74)/2)+R142 ->  | S143: =DVt(TRAYECTORIA!D74,(TRAYECTORIA!C75-TRAYECTORIA!C74)/2)+DVt(TRAYECTORIA!D75,(TRAYECTORIA!C75-TRAYECTORIA!C74)/2)+S142 ->  | W143: =Dn(Matriz!$A$74,TRAYECTORIA!$P$10,TRAYECTORIA!C75-TRAYECTORIA!C74)+W142 ->  | X143: =De(Matriz!$A$74,TRAYECTORIA!$P$10,TRAYECTORIA!C75-TRAYECTORIA!C74)+X142 ->  | Y143: =DVt(TRAYECTORIA!$P$10,TRAYECTORIA!C75-TRAYECTORIA!C74)+Y142 -> 
K144: =ISBLANK(TRAYECTORIA!C77) -> TRUE | L144: =ISBLANK(TRAYECTORIA!E77) -> TRUE | M144: =ISBLANK(TRAYECTORIA!D77) -> TRUE | O144: =TRAYECTORIA!E76*-1 -> 0 | Q144: =Dn(Matriz!O143,TRAYECTORIA!D75,(TRAYECTORIA!C76-TRAYECTORIA!C75)/2)+Dn(Matriz!O144,TRAYECTORIA!D76,(TRAYECTORIA!C76-TRAYECTORIA!C75)/2)+Q143 ->  | R144: =De(Matriz!O143,TRAYECTORIA!D75,(TRAYECTORIA!C76-TRAYECTORIA!C75)/2)+De(Matriz!O144,TRAYECTORIA!D76,(TRAYECTORIA!C76-TRAYECTORIA!C75)/2)+R143 ->  | S144: =DVt(TRAYECTORIA!D75,(TRAYECTORIA!C76-TRAYECTORIA!C75)/2)+DVt(TRAYECTORIA!D76,(TRAYECTORIA!C76-TRAYECTORIA!C75)/2)+S143 ->  | W144: =Dn(Matriz!$A$74,TRAYECTORIA!$P$10,TRAYECTORIA!C76-TRAYECTORIA!C75)+W143 ->  | X144: =De(Matriz!$A$74,TRAYECTORIA!$P$10,TRAYECTORIA!C76-TRAYECTORIA!C75)+X143 ->  | Y144: =DVt(TRAYECTORIA!$P$10,TRAYECTORIA!C76-TRAYECTORIA!C75)+Y143 -> 
K145: =ISBLANK(TRAYECTORIA!C78) -> TRUE | L145: =ISBLANK(TRAYECTORIA!E78) -> TRUE | M145: =ISBLANK(TRAYECTORIA!D78) -> TRUE | O145: =TRAYECTORIA!E77*-1 -> 0 | Q145: =Dn(Matriz!O144,TRAYECTORIA!D76,(TRAYECTORIA!C77-TRAYECTORIA!C76)/2)+Dn(Matriz!O145,TRAYECTORIA!D77,(TRAYECTORIA!C77-TRAYECTORIA!C76)/2)+Q144 ->  | R145: =De(Matriz!O144,TRAYECTORIA!D76,(TRAYECTORIA!C77-TRAYECTORIA!C76)/2)+De(Matriz!O145,TRAYECTORIA!D77,(TRAYECTORIA!C77-TRAYECTORIA!C76)/2)+R144 ->  | S145: =DVt(TRAYECTORIA!D76,(TRAYECTORIA!C77-TRAYECTORIA!C76)/2)+DVt(TRAYECTORIA!D77,(TRAYECTORIA!C77-TRAYECTORIA!C76)/2)+S144 ->  | W145: =Dn(Matriz!$A$74,TRAYECTORIA!$P$10,TRAYECTORIA!C77-TRAYECTORIA!C76)+W144 ->  | X145: =De(Matriz!$A$74,TRAYECTORIA!$P$10,TRAYECTORIA!C77-TRAYECTORIA!C76)+X144 ->  | Y145: =DVt(TRAYECTORIA!$P$10,TRAYECTORIA!C77-TRAYECTORIA!C76)+Y144 -> 
K146: =ISBLANK(TRAYECTORIA!C79) -> TRUE | L146: =ISBLANK(TRAYECTORIA!E79) -> TRUE | M146: =ISBLANK(TRAYECTORIA!D79) -> TRUE | O146: =TRAYECTORIA!E78*-1 -> 0 | Q146: =Dn(Matriz!O145,TRAYECTORIA!D77,(TRAYECTORIA!C78-TRAYECTORIA!C77)/2)+Dn(Matriz!O146,TRAYECTORIA!D78,(TRAYECTORIA!C78-TRAYECTORIA!C77)/2)+Q145 ->  | R146: =De(Matriz!O145,TRAYECTORIA!D77,(TRAYECTORIA!C78-TRAYECTORIA!C77)/2)+De(Matriz!O146,TRAYECTORIA!D78,(TRAYECTORIA!C78-TRAYECTORIA!C77)/2)+R145 ->  | S146: =DVt(TRAYECTORIA!D77,(TRAYECTORIA!C78-TRAYECTORIA!C77)/2)+DVt(TRAYECTORIA!D78,(TRAYECTORIA!C78-TRAYECTORIA!C77)/2)+S145 ->  | W146: =Dn(Matriz!$A$74,TRAYECTORIA!$P$10,TRAYECTORIA!C78-TRAYECTORIA!C77)+W145 ->  | X146: =De(Matriz!$A$74,TRAYECTORIA!$P$10,TRAYECTORIA!C78-TRAYECTORIA!C77)+X145 ->  | Y146: =DVt(TRAYECTORIA!$P$10,TRAYECTORIA!C78-TRAYECTORIA!C77)+Y145 -> 
K147: =ISBLANK(TRAYECTORIA!C80) -> TRUE | L147: =ISBLANK(TRAYECTORIA!E80) -> TRUE | M147: =ISBLANK(TRAYECTORIA!D80) -> TRUE | O147: =TRAYECTORIA!E79*-1 -> 0 | Q147: =Dn(Matriz!O146,TRAYECTORIA!D78,(TRAYECTORIA!C79-TRAYECTORIA!C78)/2)+Dn(Matriz!O147,TRAYECTORIA!D79,(TRAYECTORIA!C79-TRAYECTORIA!C78)/2)+Q146 ->  | R147: =De(Matriz!O146,TRAYECTORIA!D78,(TRAYECTORIA!C79-TRAYECTORIA!C78)/2)+De(Matriz!O147,TRAYECTORIA!D79,(TRAYECTORIA!C79-TRAYECTORIA!C78)/2)+R146 ->  | S147: =DVt(TRAYECTORIA!D78,(TRAYECTORIA!C79-TRAYECTORIA!C78)/2)+DVt(TRAYECTORIA!D79,(TRAYECTORIA!C79-TRAYECTORIA!C78)/2)+S146 ->  | W147: =Dn(Matriz!$A$74,TRAYECTORIA!$P$10,TRAYECTORIA!C79-TRAYECTORIA!C78)+W146 ->  | X147: =De(Matriz!$A$74,TRAYECTORIA!$P$10,TRAYECTORIA!C79-TRAYECTORIA!C78)+X146 ->  | Y147: =DVt(TRAYECTORIA!$P$10,TRAYECTORIA!C79-TRAYECTORIA!C78)+Y146 -> 
K148: =ISBLANK(TRAYECTORIA!C81) -> TRUE | L148: =ISBLANK(TRAYECTORIA!E81) -> TRUE | M148: =ISBLANK(TRAYECTORIA!D81) -> TRUE | O148: =TRAYECTORIA!E80*-1 -> 0 | Q148: =Dn(Matriz!O147,TRAYECTORIA!D79,(TRAYECTORIA!C80-TRAYECTORIA!C79)/2)+Dn(Matriz!O148,TRAYECTORIA!D80,(TRAYECTORIA!C80-TRAYECTORIA!C79)/2)+Q147 ->  | R148: =De(Matriz!O147,TRAYECTORIA!D79,(TRAYECTORIA!C80-TRAYECTORIA!C79)/2)+De(Matriz!O148,TRAYECTORIA!D80,(TRAYECTORIA!C80-TRAYECTORIA!C79)/2)+R147 ->  | S148: =DVt(TRAYECTORIA!D79,(TRAYECTORIA!C80-TRAYECTORIA!C79)/2)+DVt(TRAYECTORIA!D80,(TRAYECTORIA!C80-TRAYECTORIA!C79)/2)+S147 ->  | W148: =Dn(Matriz!$A$74,TRAYECTORIA!$P$10,TRAYECTORIA!C80-TRAYECTORIA!C79)+W147 ->  | X148: =De(Matriz!$A$74,TRAYECTORIA!$P$10,TRAYECTORIA!C80-TRAYECTORIA!C79)+X147 ->  | Y148: =DVt(TRAYECTORIA!$P$10,TRAYECTORIA!C80-TRAYECTORIA!C79)+Y147 -> 
K149: =ISBLANK(TRAYECTORIA!C82) -> TRUE | L149: =ISBLANK(TRAYECTORIA!E82) -> TRUE | M149: =ISBLANK(TRAYECTORIA!D82) -> TRUE | O149: =TRAYECTORIA!E81*-1 -> 0 | Q149: =Dn(Matriz!O148,TRAYECTORIA!D80,(TRAYECTORIA!C81-TRAYECTORIA!C80)/2)+Dn(Matriz!O149,TRAYECTORIA!D81,(TRAYECTORIA!C81-TRAYECTORIA!C80)/2)+Q148 ->  | R149: =De(Matriz!O148,TRAYECTORIA!D80,(TRAYECTORIA!C81-TRAYECTORIA!C80)/2)+De(Matriz!O149,TRAYECTORIA!D81,(TRAYECTORIA!C81-TRAYECTORIA!C80)/2)+R148 ->  | S149: =DVt(TRAYECTORIA!D80,(TRAYECTORIA!C81-TRAYECTORIA!C80)/2)+DVt(TRAYECTORIA!D81,(TRAYECTORIA!C81-TRAYECTORIA!C80)/2)+S148 ->  | W149: =Dn(Matriz!$A$74,TRAYECTORIA!$P$10,TRAYECTORIA!C81-TRAYECTORIA!C80)+W148 ->  | X149: =De(Matriz!$A$74,TRAYECTORIA!$P$10,TRAYECTORIA!C81-TRAYECTORIA!C80)+X148 ->  | Y149: =DVt(TRAYECTORIA!$P$10,TRAYECTORIA!C81-TRAYECTORIA!C80)+Y148 -> 
K150: =ISBLANK(TRAYECTORIA!C83) -> TRUE | L150: =ISBLANK(TRAYECTORIA!E83) -> TRUE | M150: =ISBLANK(TRAYECTORIA!D83) -> TRUE | O150: =TRAYECTORIA!E82*-1 -> 0 | Q150: =Dn(Matriz!O149,TRAYECTORIA!D81,(TRAYECTORIA!C82-TRAYECTORIA!C81)/2)+Dn(Matriz!O150,TRAYECTORIA!D82,(TRAYECTORIA!C82-TRAYECTORIA!C81)/2)+Q149 ->  | R150: =De(Matriz!O149,TRAYECTORIA!D81,(TRAYECTORIA!C82-TRAYECTORIA!C81)/2)+De(Matriz!O150,TRAYECTORIA!D82,(TRAYECTORIA!C82-TRAYECTORIA!C81)/2)+R149 ->  | S150: =DVt(TRAYECTORIA!D81,(TRAYECTORIA!C82-TRAYECTORIA!C81)/2)+DVt(TRAYECTORIA!D82,(TRAYECTORIA!C82-TRAYECTORIA!C81)/2)+S149 ->  | W150: =Dn(Matriz!$A$74,TRAYECTORIA!$P$10,TRAYECTORIA!C82-TRAYECTORIA!C81)+W149 ->  | X150: =De(Matriz!$A$74,TRAYECTORIA!$P$10,TRAYECTORIA!C82-TRAYECTORIA!C81)+X149 ->  | Y150: =DVt(TRAYECTORIA!$P$10,TRAYECTORIA!C82-TRAYECTORIA!C81)+Y149 -> 
K151: =ISBLANK(TRAYECTORIA!C84) -> TRUE | L151: =ISBLANK(TRAYECTORIA!E84) -> TRUE | M151: =ISBLANK(TRAYECTORIA!D84) -> TRUE | O151: =TRAYECTORIA!E83*-1 -> 0 | Q151: =Dn(Matriz!O150,TRAYECTORIA!D82,(TRAYECTORIA!C83-TRAYECTORIA!C82)/2)+Dn(Matriz!O151,TRAYECTORIA!D83,(TRAYECTORIA!C83-TRAYECTORIA!C82)/2)+Q150 ->  | R151: =De(Matriz!O150,TRAYECTORIA!D82,(TRAYECTORIA!C83-TRAYECTORIA!C82)/2)+De(Matriz!O151,TRAYECTORIA!D83,(TRAYECTORIA!C83-TRAYECTORIA!C82)/2)+R150 ->  | S151: =DVt(TRAYECTORIA!D82,(TRAYECTORIA!C83-TRAYECTORIA!C82)/2)+DVt(TRAYECTORIA!D83,(TRAYECTORIA!C83-TRAYECTORIA!C82)/2)+S150 ->  | W151: =Dn(Matriz!$A$74,TRAYECTORIA!$P$10,TRAYECTORIA!C83-TRAYECTORIA!C82)+W150 ->  | X151: =De(Matriz!$A$74,TRAYECTORIA!$P$10,TRAYECTORIA!C83-TRAYECTORIA!C82)+X150 ->  | Y151: =DVt(TRAYECTORIA!$P$10,TRAYECTORIA!C83-TRAYECTORIA!C82)+Y150 -> 
K152: =ISBLANK(TRAYECTORIA!C85) -> TRUE | L152: =ISBLANK(TRAYECTORIA!E85) -> TRUE | M152: =ISBLANK(TRAYECTORIA!D85) -> TRUE | O152: =TRAYECTORIA!E84*-1 -> 0 | Q152: =Dn(Matriz!O151,TRAYECTORIA!D83,(TRAYECTORIA!C84-TRAYECTORIA!C83)/2)+Dn(Matriz!O152,TRAYECTORIA!D84,(TRAYECTORIA!C84-TRAYECTORIA!C83)/2)+Q151 ->  | R152: =De(Matriz!O151,TRAYECTORIA!D83,(TRAYECTORIA!C84-TRAYECTORIA!C83)/2)+De(Matriz!O152,TRAYECTORIA!D84,(TRAYECTORIA!C84-TRAYECTORIA!C83)/2)+R151 ->  | S152: =DVt(TRAYECTORIA!D83,(TRAYECTORIA!C84-TRAYECTORIA!C83)/2)+DVt(TRAYECTORIA!D84,(TRAYECTORIA!C84-TRAYECTORIA!C83)/2)+S151 ->  | W152: =Dn(Matriz!$A$74,TRAYECTORIA!$P$10,TRAYECTORIA!C84-TRAYECTORIA!C83)+W151 ->  | X152: =De(Matriz!$A$74,TRAYECTORIA!$P$10,TRAYECTORIA!C84-TRAYECTORIA!C83)+X151 ->  | Y152: =DVt(TRAYECTORIA!$P$10,TRAYECTORIA!C84-TRAYECTORIA!C83)+Y151 -> 
K153: =ISBLANK(TRAYECTORIA!C86) -> TRUE | L153: =ISBLANK(TRAYECTORIA!E86) -> TRUE | M153: =ISBLANK(TRAYECTORIA!D86) -> TRUE | O153: =TRAYECTORIA!E85*-1 -> 0 | Q153: =Dn(Matriz!O152,TRAYECTORIA!D84,(TRAYECTORIA!C85-TRAYECTORIA!C84)/2)+Dn(Matriz!O153,TRAYECTORIA!D85,(TRAYECTORIA!C85-TRAYECTORIA!C84)/2)+Q152 ->  | R153: =De(Matriz!O152,TRAYECTORIA!D84,(TRAYECTORIA!C85-TRAYECTORIA!C84)/2)+De(Matriz!O153,TRAYECTORIA!D85,(TRAYECTORIA!C85-TRAYECTORIA!C84)/2)+R152 ->  | S153: =DVt(TRAYECTORIA!D84,(TRAYECTORIA!C85-TRAYECTORIA!C84)/2)+DVt(TRAYECTORIA!D85,(TRAYECTORIA!C85-TRAYECTORIA!C84)/2)+S152 ->  | W153: =Dn(Matriz!$A$74,TRAYECTORIA!$P$10,TRAYECTORIA!C85-TRAYECTORIA!C84)+W152 ->  | X153: =De(Matriz!$A$74,TRAYECTORIA!$P$10,TRAYECTORIA!C85-TRAYECTORIA!C84)+X152 ->  | Y153: =DVt(TRAYECTORIA!$P$10,TRAYECTORIA!C85-TRAYECTORIA!C84)+Y152 -> 
K154: =ISBLANK(TRAYECTORIA!C87) -> TRUE | L154: =ISBLANK(TRAYECTORIA!E87) -> TRUE | M154: =ISBLANK(TRAYECTORIA!D87) -> TRUE | O154: =TRAYECTORIA!E86*-1 -> 0 | Q154: =Dn(Matriz!O153,TRAYECTORIA!D85,(TRAYECTORIA!C86-TRAYECTORIA!C85)/2)+Dn(Matriz!O154,TRAYECTORIA!D86,(TRAYECTORIA!C86-TRAYECTORIA!C85)/2)+Q153 ->  | R154: =De(Matriz!O153,TRAYECTORIA!D85,(TRAYECTORIA!C86-TRAYECTORIA!C85)/2)+De(Matriz!O154,TRAYECTORIA!D86,(TRAYECTORIA!C86-TRAYECTORIA!C85)/2)+R153 ->  | S154: =DVt(TRAYECTORIA!D85,(TRAYECTORIA!C86-TRAYECTORIA!C85)/2)+DVt(TRAYECTORIA!D86,(TRAYECTORIA!C86-TRAYECTORIA!C85)/2)+S153 ->  | W154: =Dn(Matriz!$A$74,TRAYECTORIA!$P$10,TRAYECTORIA!C86-TRAYECTORIA!C85)+W153 ->  | X154: =De(Matriz!$A$74,TRAYECTORIA!$P$10,TRAYECTORIA!C86-TRAYECTORIA!C85)+X153 ->  | Y154: =DVt(TRAYECTORIA!$P$10,TRAYECTORIA!C86-TRAYECTORIA!C85)+Y153 -> 
K155: =ISBLANK(TRAYECTORIA!C88) -> TRUE | L155: =ISBLANK(TRAYECTORIA!E88) -> TRUE | M155: =ISBLANK(TRAYECTORIA!D88) -> TRUE | O155: =TRAYECTORIA!E87*-1 -> 0 | Q155: =Dn(Matriz!O154,TRAYECTORIA!D86,(TRAYECTORIA!C87-TRAYECTORIA!C86)/2)+Dn(Matriz!O155,TRAYECTORIA!D87,(TRAYECTORIA!C87-TRAYECTORIA!C86)/2)+Q154 ->  | R155: =De(Matriz!O154,TRAYECTORIA!D86,(TRAYECTORIA!C87-TRAYECTORIA!C86)/2)+De(Matriz!O155,TRAYECTORIA!D87,(TRAYECTORIA!C87-TRAYECTORIA!C86)/2)+R154 ->  | S155: =DVt(TRAYECTORIA!D86,(TRAYECTORIA!C87-TRAYECTORIA!C86)/2)+DVt(TRAYECTORIA!D87,(TRAYECTORIA!C87-TRAYECTORIA!C86)/2)+S154 ->  | W155: =Dn(Matriz!$A$74,TRAYECTORIA!$P$10,TRAYECTORIA!C87-TRAYECTORIA!C86)+W154 ->  | X155: =De(Matriz!$A$74,TRAYECTORIA!$P$10,TRAYECTORIA!C87-TRAYECTORIA!C86)+X154 ->  | Y155: =DVt(TRAYECTORIA!$P$10,TRAYECTORIA!C87-TRAYECTORIA!C86)+Y154 -> 
K156: =ISBLANK(TRAYECTORIA!C89) -> TRUE | L156: =ISBLANK(TRAYECTORIA!E89) -> TRUE | M156: =ISBLANK(TRAYECTORIA!D89) -> TRUE | O156: =TRAYECTORIA!E88*-1 -> 0 | Q156: =Dn(Matriz!O155,TRAYECTORIA!D87,(TRAYECTORIA!C88-TRAYECTORIA!C87)/2)+Dn(Matriz!O156,TRAYECTORIA!D88,(TRAYECTORIA!C88-TRAYECTORIA!C87)/2)+Q155 ->  | R156: =De(Matriz!O155,TRAYECTORIA!D87,(TRAYECTORIA!C88-TRAYECTORIA!C87)/2)+De(Matriz!O156,TRAYECTORIA!D88,(TRAYECTORIA!C88-TRAYECTORIA!C87)/2)+R155 ->  | S156: =DVt(TRAYECTORIA!D87,(TRAYECTORIA!C88-TRAYECTORIA!C87)/2)+DVt(TRAYECTORIA!D88,(TRAYECTORIA!C88-TRAYECTORIA!C87)/2)+S155 ->  | W156: =Dn(Matriz!$A$74,TRAYECTORIA!$P$10,TRAYECTORIA!C88-TRAYECTORIA!C87)+W155 ->  | X156: =De(Matriz!$A$74,TRAYECTORIA!$P$10,TRAYECTORIA!C88-TRAYECTORIA!C87)+X155 ->  | Y156: =DVt(TRAYECTORIA!$P$10,TRAYECTORIA!C88-TRAYECTORIA!C87)+Y155 -> 
K157: =ISBLANK(TRAYECTORIA!C90) -> TRUE | L157: =ISBLANK(TRAYECTORIA!E90) -> TRUE | M157: =ISBLANK(TRAYECTORIA!D90) -> TRUE | O157: =TRAYECTORIA!E89*-1 -> 0 | Q157: =Dn(Matriz!O156,TRAYECTORIA!D88,(TRAYECTORIA!C89-TRAYECTORIA!C88)/2)+Dn(Matriz!O157,TRAYECTORIA!D89,(TRAYECTORIA!C89-TRAYECTORIA!C88)/2)+Q156 ->  | R157: =De(Matriz!O156,TRAYECTORIA!D88,(TRAYECTORIA!C89-TRAYECTORIA!C88)/2)+De(Matriz!O157,TRAYECTORIA!D89,(TRAYECTORIA!C89-TRAYECTORIA!C88)/2)+R156 ->  | S157: =DVt(TRAYECTORIA!D88,(TRAYECTORIA!C89-TRAYECTORIA!C88)/2)+DVt(TRAYECTORIA!D89,(TRAYECTORIA!C89-TRAYECTORIA!C88)/2)+S156 ->  | W157: =Dn(Matriz!$A$74,TRAYECTORIA!$P$10,TRAYECTORIA!C89-TRAYECTORIA!C88)+W156 ->  | X157: =De(Matriz!$A$74,TRAYECTORIA!$P$10,TRAYECTORIA!C89-TRAYECTORIA!C88)+X156 ->  | Y157: =DVt(TRAYECTORIA!$P$10,TRAYECTORIA!C89-TRAYECTORIA!C88)+Y156 -> 
K158: =ISBLANK(TRAYECTORIA!C91) -> TRUE | L158: =ISBLANK(TRAYECTORIA!E91) -> TRUE | M158: =ISBLANK(TRAYECTORIA!D91) -> TRUE | O158: =TRAYECTORIA!E90*-1 -> 0 | Q158: =Dn(Matriz!O157,TRAYECTORIA!D89,(TRAYECTORIA!C90-TRAYECTORIA!C89)/2)+Dn(Matriz!O158,TRAYECTORIA!D90,(TRAYECTORIA!C90-TRAYECTORIA!C89)/2)+Q157 ->  | R158: =De(Matriz!O157,TRAYECTORIA!D89,(TRAYECTORIA!C90-TRAYECTORIA!C89)/2)+De(Matriz!O158,TRAYECTORIA!D90,(TRAYECTORIA!C90-TRAYECTORIA!C89)/2)+R157 ->  | S158: =DVt(TRAYECTORIA!D89,(TRAYECTORIA!C90-TRAYECTORIA!C89)/2)+DVt(TRAYECTORIA!D90,(TRAYECTORIA!C90-TRAYECTORIA!C89)/2)+S157 ->  | W158: =Dn(Matriz!$A$74,TRAYECTORIA!$P$10,TRAYECTORIA!C90-TRAYECTORIA!C89)+W157 ->  | X158: =De(Matriz!$A$74,TRAYECTORIA!$P$10,TRAYECTORIA!C90-TRAYECTORIA!C89)+X157 ->  | Y158: =DVt(TRAYECTORIA!$P$10,TRAYECTORIA!C90-TRAYECTORIA!C89)+Y157 -> 
K159: =ISBLANK(TRAYECTORIA!C92) -> TRUE | L159: =ISBLANK(TRAYECTORIA!E92) -> TRUE | M159: =ISBLANK(TRAYECTORIA!D92) -> TRUE | O159: =TRAYECTORIA!E91*-1 -> 0 | Q159: =Dn(Matriz!O158,TRAYECTORIA!D90,(TRAYECTORIA!C91-TRAYECTORIA!C90)/2)+Dn(Matriz!O159,TRAYECTORIA!D91,(TRAYECTORIA!C91-TRAYECTORIA!C90)/2)+Q158 ->  | R159: =De(Matriz!O158,TRAYECTORIA!D90,(TRAYECTORIA!C91-TRAYECTORIA!C90)/2)+De(Matriz!O159,TRAYECTORIA!D91,(TRAYECTORIA!C91-TRAYECTORIA!C90)/2)+R158 ->  | S159: =DVt(TRAYECTORIA!D90,(TRAYECTORIA!C91-TRAYECTORIA!C90)/2)+DVt(TRAYECTORIA!D91,(TRAYECTORIA!C91-TRAYECTORIA!C90)/2)+S158 ->  | W159: =Dn(Matriz!$A$74,TRAYECTORIA!$P$10,TRAYECTORIA!C91-TRAYECTORIA!C90)+W158 ->  | X159: =De(Matriz!$A$74,TRAYECTORIA!$P$10,TRAYECTORIA!C91-TRAYECTORIA!C90)+X158 ->  | Y159: =DVt(TRAYECTORIA!$P$10,TRAYECTORIA!C91-TRAYECTORIA!C90)+Y158 -> 
K160: =ISBLANK(TRAYECTORIA!C93) -> TRUE | L160: =ISBLANK(TRAYECTORIA!E93) -> TRUE | M160: =ISBLANK(TRAYECTORIA!D93) -> TRUE | O160: =TRAYECTORIA!E92*-1 -> 0 | Q160: =Dn(Matriz!O159,TRAYECTORIA!D91,(TRAYECTORIA!C92-TRAYECTORIA!C91)/2)+Dn(Matriz!O160,TRAYECTORIA!D92,(TRAYECTORIA!C92-TRAYECTORIA!C91)/2)+Q159 ->  | R160: =De(Matriz!O159,TRAYECTORIA!D91,(TRAYECTORIA!C92-TRAYECTORIA!C91)/2)+De(Matriz!O160,TRAYECTORIA!D92,(TRAYECTORIA!C92-TRAYECTORIA!C91)/2)+R159 ->  | S160: =DVt(TRAYECTORIA!D91,(TRAYECTORIA!C92-TRAYECTORIA!C91)/2)+DVt(TRAYECTORIA!D92,(TRAYECTORIA!C92-TRAYECTORIA!C91)/2)+S159 ->  | W160: =Dn(Matriz!$A$74,TRAYECTORIA!$P$10,TRAYECTORIA!C92-TRAYECTORIA!C91)+W159 ->  | X160: =De(Matriz!$A$74,TRAYECTORIA!$P$10,TRAYECTORIA!C92-TRAYECTORIA!C91)+X159 ->  | Y160: =DVt(TRAYECTORIA!$P$10,TRAYECTORIA!C92-TRAYECTORIA!C91)+Y159 -> 
K161: =ISBLANK(TRAYECTORIA!C94) -> TRUE | L161: =ISBLANK(TRAYECTORIA!E94) -> TRUE | M161: =ISBLANK(TRAYECTORIA!D94) -> TRUE | O161: =TRAYECTORIA!E93*-1 -> 0 | Q161: =Dn(Matriz!O160,TRAYECTORIA!D92,(TRAYECTORIA!C93-TRAYECTORIA!C92)/2)+Dn(Matriz!O161,TRAYECTORIA!D93,(TRAYECTORIA!C93-TRAYECTORIA!C92)/2)+Q160 ->  | R161: =De(Matriz!O160,TRAYECTORIA!D92,(TRAYECTORIA!C93-TRAYECTORIA!C92)/2)+De(Matriz!O161,TRAYECTORIA!D93,(TRAYECTORIA!C93-TRAYECTORIA!C92)/2)+R160 ->  | S161: =DVt(TRAYECTORIA!D92,(TRAYECTORIA!C93-TRAYECTORIA!C92)/2)+DVt(TRAYECTORIA!D93,(TRAYECTORIA!C93-TRAYECTORIA!C92)/2)+S160 ->  | W161: =Dn(Matriz!$A$74,TRAYECTORIA!$P$10,TRAYECTORIA!C93-TRAYECTORIA!C92)+W160 ->  | X161: =De(Matriz!$A$74,TRAYECTORIA!$P$10,TRAYECTORIA!C93-TRAYECTORIA!C92)+X160 ->  | Y161: =DVt(TRAYECTORIA!$P$10,TRAYECTORIA!C93-TRAYECTORIA!C92)+Y160 -> 
K162: =ISBLANK(TRAYECTORIA!C95) -> TRUE | L162: =ISBLANK(TRAYECTORIA!E95) -> TRUE | M162: =ISBLANK(TRAYECTORIA!D95) -> TRUE | O162: =TRAYECTORIA!E94*-1 -> 0 | Q162: =Dn(Matriz!O161,TRAYECTORIA!D93,(TRAYECTORIA!C94-TRAYECTORIA!C93)/2)+Dn(Matriz!O162,TRAYECTORIA!D94,(TRAYECTORIA!C94-TRAYECTORIA!C93)/2)+Q161 ->  | R162: =De(Matriz!O161,TRAYECTORIA!D93,(TRAYECTORIA!C94-TRAYECTORIA!C93)/2)+De(Matriz!O162,TRAYECTORIA!D94,(TRAYECTORIA!C94-TRAYECTORIA!C93)/2)+R161 ->  | S162: =DVt(TRAYECTORIA!D93,(TRAYECTORIA!C94-TRAYECTORIA!C93)/2)+DVt(TRAYECTORIA!D94,(TRAYECTORIA!C94-TRAYECTORIA!C93)/2)+S161 ->  | W162: =Dn(Matriz!$A$74,TRAYECTORIA!$P$10,TRAYECTORIA!C94-TRAYECTORIA!C93)+W161 ->  | X162: =De(Matriz!$A$74,TRAYECTORIA!$P$10,TRAYECTORIA!C94-TRAYECTORIA!C93)+X161 ->  | Y162: =DVt(TRAYECTORIA!$P$10,TRAYECTORIA!C94-TRAYECTORIA!C93)+Y161 -> 
K163: =ISBLANK(TRAYECTORIA!C96) -> TRUE | L163: =ISBLANK(TRAYECTORIA!E96) -> TRUE | M163: =ISBLANK(TRAYECTORIA!D96) -> TRUE | O163: =TRAYECTORIA!E95*-1 -> 0 | Q163: =Dn(Matriz!O162,TRAYECTORIA!D94,(TRAYECTORIA!C95-TRAYECTORIA!C94)/2)+Dn(Matriz!O163,TRAYECTORIA!D95,(TRAYECTORIA!C95-TRAYECTORIA!C94)/2)+Q162 ->  | R163: =De(Matriz!O162,TRAYECTORIA!D94,(TRAYECTORIA!C95-TRAYECTORIA!C94)/2)+De(Matriz!O163,TRAYECTORIA!D95,(TRAYECTORIA!C95-TRAYECTORIA!C94)/2)+R162 ->  | S163: =DVt(TRAYECTORIA!D94,(TRAYECTORIA!C95-TRAYECTORIA!C94)/2)+DVt(TRAYECTORIA!D95,(TRAYECTORIA!C95-TRAYECTORIA!C94)/2)+S162 ->  | W163: =Dn(Matriz!$A$74,TRAYECTORIA!$P$10,TRAYECTORIA!C95-TRAYECTORIA!C94)+W162 ->  | X163: =De(Matriz!$A$74,TRAYECTORIA!$P$10,TRAYECTORIA!C95-TRAYECTORIA!C94)+X162 ->  | Y163: =DVt(TRAYECTORIA!$P$10,TRAYECTORIA!C95-TRAYECTORIA!C94)+Y162 -> 
K164: =ISBLANK(TRAYECTORIA!C97) -> TRUE | L164: =ISBLANK(TRAYECTORIA!E97) -> TRUE | M164: =ISBLANK(TRAYECTORIA!D97) -> TRUE | O164: =TRAYECTORIA!E96*-1 -> 0 | Q164: =Dn(Matriz!O163,TRAYECTORIA!D95,(TRAYECTORIA!C96-TRAYECTORIA!C95)/2)+Dn(Matriz!O164,TRAYECTORIA!D96,(TRAYECTORIA!C96-TRAYECTORIA!C95)/2)+Q163 ->  | R164: =De(Matriz!O163,TRAYECTORIA!D95,(TRAYECTORIA!C96-TRAYECTORIA!C95)/2)+De(Matriz!O164,TRAYECTORIA!D96,(TRAYECTORIA!C96-TRAYECTORIA!C95)/2)+R163 ->  | S164: =DVt(TRAYECTORIA!D95,(TRAYECTORIA!C96-TRAYECTORIA!C95)/2)+DVt(TRAYECTORIA!D96,(TRAYECTORIA!C96-TRAYECTORIA!C95)/2)+S163 ->  | W164: =Dn(Matriz!$A$74,TRAYECTORIA!$P$10,TRAYECTORIA!C96-TRAYECTORIA!C95)+W163 ->  | X164: =De(Matriz!$A$74,TRAYECTORIA!$P$10,TRAYECTORIA!C96-TRAYECTORIA!C95)+X163 ->  | Y164: =DVt(TRAYECTORIA!$P$10,TRAYECTORIA!C96-TRAYECTORIA!C95)+Y163 -> 
K165: =ISBLANK(TRAYECTORIA!C98) -> TRUE | L165: =ISBLANK(TRAYECTORIA!E98) -> TRUE | M165: =ISBLANK(TRAYECTORIA!D98) -> TRUE | O165: =TRAYECTORIA!E97*-1 -> 0 | Q165: =Dn(Matriz!O164,TRAYECTORIA!D96,(TRAYECTORIA!C97-TRAYECTORIA!C96)/2)+Dn(Matriz!O165,TRAYECTORIA!D97,(TRAYECTORIA!C97-TRAYECTORIA!C96)/2)+Q164 ->  | R165: =De(Matriz!O164,TRAYECTORIA!D96,(TRAYECTORIA!C97-TRAYECTORIA!C96)/2)+De(Matriz!O165,TRAYECTORIA!D97,(TRAYECTORIA!C97-TRAYECTORIA!C96)/2)+R164 ->  | S165: =DVt(TRAYECTORIA!D96,(TRAYECTORIA!C97-TRAYECTORIA!C96)/2)+DVt(TRAYECTORIA!D97,(TRAYECTORIA!C97-TRAYECTORIA!C96)/2)+S164 ->  | W165: =Dn(Matriz!$A$74,TRAYECTORIA!$P$10,TRAYECTORIA!C97-TRAYECTORIA!C96)+W164 ->  | X165: =De(Matriz!$A$74,TRAYECTORIA!$P$10,TRAYECTORIA!C97-TRAYECTORIA!C96)+X164 ->  | Y165: =DVt(TRAYECTORIA!$P$10,TRAYECTORIA!C97-TRAYECTORIA!C96)+Y164 -> 
K166: =ISBLANK(TRAYECTORIA!C99) -> TRUE | L166: =ISBLANK(TRAYECTORIA!E99) -> TRUE | M166: =ISBLANK(TRAYECTORIA!D99) -> TRUE | O166: =TRAYECTORIA!E98*-1 -> 0 | Q166: =Dn(Matriz!O165,TRAYECTORIA!D97,(TRAYECTORIA!C98-TRAYECTORIA!C97)/2)+Dn(Matriz!O166,TRAYECTORIA!D98,(TRAYECTORIA!C98-TRAYECTORIA!C97)/2)+Q165 ->  | R166: =De(Matriz!O165,TRAYECTORIA!D97,(TRAYECTORIA!C98-TRAYECTORIA!C97)/2)+De(Matriz!O166,TRAYECTORIA!D98,(TRAYECTORIA!C98-TRAYECTORIA!C97)/2)+R165 ->  | S166: =DVt(TRAYECTORIA!D97,(TRAYECTORIA!C98-TRAYECTORIA!C97)/2)+DVt(TRAYECTORIA!D98,(TRAYECTORIA!C98-TRAYECTORIA!C97)/2)+S165 ->  | W166: =Dn(Matriz!$A$74,TRAYECTORIA!$P$10,TRAYECTORIA!C98-TRAYECTORIA!C97)+W165 ->  | X166: =De(Matriz!$A$74,TRAYECTORIA!$P$10,TRAYECTORIA!C98-TRAYECTORIA!C97)+X165 ->  | Y166: =DVt(TRAYECTORIA!$P$10,TRAYECTORIA!C98-TRAYECTORIA!C97)+Y165 -> 
K167: =ISBLANK(TRAYECTORIA!C100) -> TRUE | L167: =ISBLANK(TRAYECTORIA!E100) -> TRUE | M167: =ISBLANK(TRAYECTORIA!D100) -> TRUE | O167: =TRAYECTORIA!E99*-1 -> 0 | Q167: =Dn(Matriz!O166,TRAYECTORIA!D98,(TRAYECTORIA!C99-TRAYECTORIA!C98)/2)+Dn(Matriz!O167,TRAYECTORIA!D99,(TRAYECTORIA!C99-TRAYECTORIA!C98)/2)+Q166 ->  | R167: =De(Matriz!O166,TRAYECTORIA!D98,(TRAYECTORIA!C99-TRAYECTORIA!C98)/2)+De(Matriz!O167,TRAYECTORIA!D99,(TRAYECTORIA!C99-TRAYECTORIA!C98)/2)+R166 ->  | S167: =DVt(TRAYECTORIA!D98,(TRAYECTORIA!C99-TRAYECTORIA!C98)/2)+DVt(TRAYECTORIA!D99,(TRAYECTORIA!C99-TRAYECTORIA!C98)/2)+S166 ->  | W167: =Dn(Matriz!$A$74,TRAYECTORIA!$P$10,TRAYECTORIA!C99-TRAYECTORIA!C98)+W166 ->  | X167: =De(Matriz!$A$74,TRAYECTORIA!$P$10,TRAYECTORIA!C99-TRAYECTORIA!C98)+X166 ->  | Y167: =DVt(TRAYECTORIA!$P$10,TRAYECTORIA!C99-TRAYECTORIA!C98)+Y166 -> 
K168: =ISBLANK(TRAYECTORIA!C101) -> TRUE | L168: =ISBLANK(TRAYECTORIA!E101) -> TRUE | M168: =ISBLANK(TRAYECTORIA!D101) -> TRUE | O168: =TRAYECTORIA!E100*-1 -> 0 | Q168: =Dn(Matriz!O167,TRAYECTORIA!D99,(TRAYECTORIA!C100-TRAYECTORIA!C99)/2)+Dn(Matriz!O168,TRAYECTORIA!D100,(TRAYECTORIA!C100-TRAYECTORIA!C99)/2)+Q167 ->  | R168: =De(Matriz!O167,TRAYECTORIA!D99,(TRAYECTORIA!C100-TRAYECTORIA!C99)/2)+De(Matriz!O168,TRAYECTORIA!D100,(TRAYECTORIA!C100-TRAYECTORIA!C99)/2)+R167 ->  | S168: =DVt(TRAYECTORIA!D99,(TRAYECTORIA!C100-TRAYECTORIA!C99)/2)+DVt(TRAYECTORIA!D100,(TRAYECTORIA!C100-TRAYECTORIA!C99)/2)+S167 ->  | W168: =Dn(Matriz!$A$74,TRAYECTORIA!$P$10,TRAYECTORIA!C100-TRAYECTORIA!C99)+W167 ->  | X168: =De(Matriz!$A$74,TRAYECTORIA!$P$10,TRAYECTORIA!C100-TRAYECTORIA!C99)+X167 ->  | Y168: =DVt(TRAYECTORIA!$P$10,TRAYECTORIA!C100-TRAYECTORIA!C99)+Y167 -> 
K169: =ISBLANK(TRAYECTORIA!C102) -> TRUE | L169: =ISBLANK(TRAYECTORIA!E102) -> TRUE | M169: =ISBLANK(TRAYECTORIA!D102) -> TRUE | O169: =TRAYECTORIA!E101*-1 -> 0 | Q169: =Dn(Matriz!O168,TRAYECTORIA!D100,(TRAYECTORIA!C101-TRAYECTORIA!C100)/2)+Dn(Matriz!O169,TRAYECTORIA!D101,(TRAYECTORIA!C101-TRAYECTORIA!C100)/2)+Q168 ->  | R169: =De(Matriz!O168,TRAYECTORIA!D100,(TRAYECTORIA!C101-TRAYECTORIA!C100)/2)+De(Matriz!O169,TRAYECTORIA!D101,(TRAYECTORIA!C101-TRAYECTORIA!C100)/2)+R168 ->  | S169: =DVt(TRAYECTORIA!D100,(TRAYECTORIA!C101-TRAYECTORIA!C100)/2)+DVt(TRAYECTORIA!D101,(TRAYECTORIA!C101-TRAYECTORIA!C100)/2)+S168 ->  | W169: =Dn(Matriz!$A$74,TRAYECTORIA!$P$10,TRAYECTORIA!C101-TRAYECTORIA!C100)+W168 ->  | X169: =De(Matriz!$A$74,TRAYECTORIA!$P$10,TRAYECTORIA!C101-TRAYECTORIA!C100)+X168 ->  | Y169: =DVt(TRAYECTORIA!$P$10,TRAYECTORIA!C101-TRAYECTORIA!C100)+Y168 -> 
K170: =ISBLANK(TRAYECTORIA!C103) -> TRUE | L170: =ISBLANK(TRAYECTORIA!E103) -> TRUE | M170: =ISBLANK(TRAYECTORIA!D103) -> TRUE | O170: =TRAYECTORIA!E102*-1 -> 0 | Q170: =Dn(Matriz!O169,TRAYECTORIA!D101,(TRAYECTORIA!C102-TRAYECTORIA!C101)/2)+Dn(Matriz!O170,TRAYECTORIA!D102,(TRAYECTORIA!C102-TRAYECTORIA!C101)/2)+Q169 ->  | R170: =De(Matriz!O169,TRAYECTORIA!D101,(TRAYECTORIA!C102-TRAYECTORIA!C101)/2)+De(Matriz!O170,TRAYECTORIA!D102,(TRAYECTORIA!C102-TRAYECTORIA!C101)/2)+R169 ->  | S170: =DVt(TRAYECTORIA!D101,(TRAYECTORIA!C102-TRAYECTORIA!C101)/2)+DVt(TRAYECTORIA!D102,(TRAYECTORIA!C102-TRAYECTORIA!C101)/2)+S169 ->  | W170: =Dn(Matriz!$A$74,TRAYECTORIA!$P$10,TRAYECTORIA!C102-TRAYECTORIA!C101)+W169 ->  | X170: =De(Matriz!$A$74,TRAYECTORIA!$P$10,TRAYECTORIA!C102-TRAYECTORIA!C101)+X169 ->  | Y170: =DVt(TRAYECTORIA!$P$10,TRAYECTORIA!C102-TRAYECTORIA!C101)+Y169 -> 
K171: =ISBLANK(TRAYECTORIA!C104) -> TRUE | L171: =ISBLANK(TRAYECTORIA!E104) -> TRUE | M171: =ISBLANK(TRAYECTORIA!D104) -> TRUE | O171: =TRAYECTORIA!E103*-1 -> 0 | Q171: =Dn(Matriz!O170,TRAYECTORIA!D102,(TRAYECTORIA!C103-TRAYECTORIA!C102)/2)+Dn(Matriz!O171,TRAYECTORIA!D103,(TRAYECTORIA!C103-TRAYECTORIA!C102)/2)+Q170 ->  | R171: =De(Matriz!O170,TRAYECTORIA!D102,(TRAYECTORIA!C103-TRAYECTORIA!C102)/2)+De(Matriz!O171,TRAYECTORIA!D103,(TRAYECTORIA!C103-TRAYECTORIA!C102)/2)+R170 ->  | S171: =DVt(TRAYECTORIA!D102,(TRAYECTORIA!C103-TRAYECTORIA!C102)/2)+DVt(TRAYECTORIA!D103,(TRAYECTORIA!C103-TRAYECTORIA!C102)/2)+S170 ->  | W171: =Dn(Matriz!$A$74,TRAYECTORIA!$P$10,TRAYECTORIA!C103-TRAYECTORIA!C102)+W170 ->  | X171: =De(Matriz!$A$74,TRAYECTORIA!$P$10,TRAYECTORIA!C103-TRAYECTORIA!C102)+X170 ->  | Y171: =DVt(TRAYECTORIA!$P$10,TRAYECTORIA!C103-TRAYECTORIA!C102)+Y170 -> 
K172: =ISBLANK(TRAYECTORIA!C105) -> TRUE | L172: =ISBLANK(TRAYECTORIA!E105) -> TRUE | M172: =ISBLANK(TRAYECTORIA!D105) -> TRUE | O172: =TRAYECTORIA!E104*-1 -> 0 | Q172: =Dn(Matriz!O171,TRAYECTORIA!D103,(TRAYECTORIA!C104-TRAYECTORIA!C103)/2)+Dn(Matriz!O172,TRAYECTORIA!D104,(TRAYECTORIA!C104-TRAYECTORIA!C103)/2)+Q171 ->  | R172: =De(Matriz!O171,TRAYECTORIA!D103,(TRAYECTORIA!C104-TRAYECTORIA!C103)/2)+De(Matriz!O172,TRAYECTORIA!D104,(TRAYECTORIA!C104-TRAYECTORIA!C103)/2)+R171 ->  | S172: =DVt(TRAYECTORIA!D103,(TRAYECTORIA!C104-TRAYECTORIA!C103)/2)+DVt(TRAYECTORIA!D104,(TRAYECTORIA!C104-TRAYECTORIA!C103)/2)+S171 ->  | W172: =Dn(Matriz!$A$74,TRAYECTORIA!$P$10,TRAYECTORIA!C104-TRAYECTORIA!C103)+W171 ->  | X172: =De(Matriz!$A$74,TRAYECTORIA!$P$10,TRAYECTORIA!C104-TRAYECTORIA!C103)+X171 ->  | Y172: =DVt(TRAYECTORIA!$P$10,TRAYECTORIA!C104-TRAYECTORIA!C103)+Y171 -> 
K173: =ISBLANK(TRAYECTORIA!C106) -> TRUE | L173: =ISBLANK(TRAYECTORIA!E106) -> TRUE | M173: =ISBLANK(TRAYECTORIA!D106) -> TRUE | O173: =TRAYECTORIA!E105*-1 -> 0 | Q173: =Dn(Matriz!O172,TRAYECTORIA!D104,(TRAYECTORIA!C105-TRAYECTORIA!C104)/2)+Dn(Matriz!O173,TRAYECTORIA!D105,(TRAYECTORIA!C105-TRAYECTORIA!C104)/2)+Q172 ->  | R173: =De(Matriz!O172,TRAYECTORIA!D104,(TRAYECTORIA!C105-TRAYECTORIA!C104)/2)+De(Matriz!O173,TRAYECTORIA!D105,(TRAYECTORIA!C105-TRAYECTORIA!C104)/2)+R172 ->  | S173: =DVt(TRAYECTORIA!D104,(TRAYECTORIA!C105-TRAYECTORIA!C104)/2)+DVt(TRAYECTORIA!D105,(TRAYECTORIA!C105-TRAYECTORIA!C104)/2)+S172 ->  | W173: =Dn(Matriz!$A$74,TRAYECTORIA!$P$10,TRAYECTORIA!C105-TRAYECTORIA!C104)+W172 ->  | X173: =De(Matriz!$A$74,TRAYECTORIA!$P$10,TRAYECTORIA!C105-TRAYECTORIA!C104)+X172 ->  | Y173: =DVt(TRAYECTORIA!$P$10,TRAYECTORIA!C105-TRAYECTORIA!C104)+Y172 -> 
K174: =ISBLANK(TRAYECTORIA!C107) -> TRUE | L174: =ISBLANK(TRAYECTORIA!E107) -> TRUE | M174: =ISBLANK(TRAYECTORIA!D107) -> TRUE | O174: =TRAYECTORIA!E106*-1 -> 0 | Q174: =Dn(Matriz!O173,TRAYECTORIA!D105,(TRAYECTORIA!C106-TRAYECTORIA!C105)/2)+Dn(Matriz!O174,TRAYECTORIA!D106,(TRAYECTORIA!C106-TRAYECTORIA!C105)/2)+Q173 ->  | R174: =De(Matriz!O173,TRAYECTORIA!D105,(TRAYECTORIA!C106-TRAYECTORIA!C105)/2)+De(Matriz!O174,TRAYECTORIA!D106,(TRAYECTORIA!C106-TRAYECTORIA!C105)/2)+R173 ->  | S174: =DVt(TRAYECTORIA!D105,(TRAYECTORIA!C106-TRAYECTORIA!C105)/2)+DVt(TRAYECTORIA!D106,(TRAYECTORIA!C106-TRAYECTORIA!C105)/2)+S173 ->  | W174: =Dn(Matriz!$A$74,TRAYECTORIA!$P$10,TRAYECTORIA!C106-TRAYECTORIA!C105)+W173 ->  | X174: =De(Matriz!$A$74,TRAYECTORIA!$P$10,TRAYECTORIA!C106-TRAYECTORIA!C105)+X173 ->  | Y174: =DVt(TRAYECTORIA!$P$10,TRAYECTORIA!C106-TRAYECTORIA!C105)+Y173 -> 
K175: =ISBLANK(TRAYECTORIA!C108) -> TRUE | L175: =ISBLANK(TRAYECTORIA!E108) -> TRUE | M175: =ISBLANK(TRAYECTORIA!D108) -> TRUE | O175: =TRAYECTORIA!E107*-1 -> 0 | Q175: =Dn(Matriz!O174,TRAYECTORIA!D106,(TRAYECTORIA!C107-TRAYECTORIA!C106)/2)+Dn(Matriz!O175,TRAYECTORIA!D107,(TRAYECTORIA!C107-TRAYECTORIA!C106)/2)+Q174 ->  | R175: =De(Matriz!O174,TRAYECTORIA!D106,(TRAYECTORIA!C107-TRAYECTORIA!C106)/2)+De(Matriz!O175,TRAYECTORIA!D107,(TRAYECTORIA!C107-TRAYECTORIA!C106)/2)+R174 ->  | S175: =DVt(TRAYECTORIA!D106,(TRAYECTORIA!C107-TRAYECTORIA!C106)/2)+DVt(TRAYECTORIA!D107,(TRAYECTORIA!C107-TRAYECTORIA!C106)/2)+S174 ->  | W175: =Dn(Matriz!$A$74,TRAYECTORIA!$P$10,TRAYECTORIA!C107-TRAYECTORIA!C106)+W174 ->  | X175: =De(Matriz!$A$74,TRAYECTORIA!$P$10,TRAYECTORIA!C107-TRAYECTORIA!C106)+X174 ->  | Y175: =DVt(TRAYECTORIA!$P$10,TRAYECTORIA!C107-TRAYECTORIA!C106)+Y174 -> 
K176: =ISBLANK(TRAYECTORIA!C109) -> TRUE | L176: =ISBLANK(TRAYECTORIA!E109) -> TRUE | M176: =ISBLANK(TRAYECTORIA!D109) -> TRUE | O176: =TRAYECTORIA!E108*-1 -> 0 | Q176: =Dn(Matriz!O175,TRAYECTORIA!D107,(TRAYECTORIA!C108-TRAYECTORIA!C107)/2)+Dn(Matriz!O176,TRAYECTORIA!D108,(TRAYECTORIA!C108-TRAYECTORIA!C107)/2)+Q175 ->  | R176: =De(Matriz!O175,TRAYECTORIA!D107,(TRAYECTORIA!C108-TRAYECTORIA!C107)/2)+De(Matriz!O176,TRAYECTORIA!D108,(TRAYECTORIA!C108-TRAYECTORIA!C107)/2)+R175 ->  | S176: =DVt(TRAYECTORIA!D107,(TRAYECTORIA!C108-TRAYECTORIA!C107)/2)+DVt(TRAYECTORIA!D108,(TRAYECTORIA!C108-TRAYECTORIA!C107)/2)+S175 ->  | W176: =Dn(Matriz!$A$74,TRAYECTORIA!$P$10,TRAYECTORIA!C108-TRAYECTORIA!C107)+W175 ->  | X176: =De(Matriz!$A$74,TRAYECTORIA!$P$10,TRAYECTORIA!C108-TRAYECTORIA!C107)+X175 ->  | Y176: =DVt(TRAYECTORIA!$P$10,TRAYECTORIA!C108-TRAYECTORIA!C107)+Y175 -> 
K177: =ISBLANK(TRAYECTORIA!C110) -> TRUE | L177: =ISBLANK(TRAYECTORIA!E110) -> TRUE | M177: =ISBLANK(TRAYECTORIA!D110) -> TRUE | O177: =TRAYECTORIA!E109*-1 -> 0 | Q177: =Dn(Matriz!O176,TRAYECTORIA!D108,(TRAYECTORIA!C109-TRAYECTORIA!C108)/2)+Dn(Matriz!O177,TRAYECTORIA!D109,(TRAYECTORIA!C109-TRAYECTORIA!C108)/2)+Q176 ->  | R177: =De(Matriz!O176,TRAYECTORIA!D108,(TRAYECTORIA!C109-TRAYECTORIA!C108)/2)+De(Matriz!O177,TRAYECTORIA!D109,(TRAYECTORIA!C109-TRAYECTORIA!C108)/2)+R176 ->  | S177: =DVt(TRAYECTORIA!D108,(TRAYECTORIA!C109-TRAYECTORIA!C108)/2)+DVt(TRAYECTORIA!D109,(TRAYECTORIA!C109-TRAYECTORIA!C108)/2)+S176 ->  | W177: =Dn(Matriz!$A$74,TRAYECTORIA!$P$10,TRAYECTORIA!C109-TRAYECTORIA!C108)+W176 ->  | X177: =De(Matriz!$A$74,TRAYECTORIA!$P$10,TRAYECTORIA!C109-TRAYECTORIA!C108)+X176 ->  | Y177: =DVt(TRAYECTORIA!$P$10,TRAYECTORIA!C109-TRAYECTORIA!C108)+Y176 -> 
K178: =ISBLANK(TRAYECTORIA!C111) -> TRUE | L178: =ISBLANK(TRAYECTORIA!E111) -> TRUE | M178: =ISBLANK(TRAYECTORIA!D111) -> TRUE | O178: =TRAYECTORIA!E110*-1 -> 0 | Q178: =Dn(Matriz!O177,TRAYECTORIA!D109,(TRAYECTORIA!C110-TRAYECTORIA!C109)/2)+Dn(Matriz!O178,TRAYECTORIA!D110,(TRAYECTORIA!C110-TRAYECTORIA!C109)/2)+Q177 ->  | R178: =De(Matriz!O177,TRAYECTORIA!D109,(TRAYECTORIA!C110-TRAYECTORIA!C109)/2)+De(Matriz!O178,TRAYECTORIA!D110,(TRAYECTORIA!C110-TRAYECTORIA!C109)/2)+R177 ->  | S178: =DVt(TRAYECTORIA!D109,(TRAYECTORIA!C110-TRAYECTORIA!C109)/2)+DVt(TRAYECTORIA!D110,(TRAYECTORIA!C110-TRAYECTORIA!C109)/2)+S177 ->  | W178: =Dn(Matriz!$A$74,TRAYECTORIA!$P$10,TRAYECTORIA!C110-TRAYECTORIA!C109)+W177 ->  | X178: =De(Matriz!$A$74,TRAYECTORIA!$P$10,TRAYECTORIA!C110-TRAYECTORIA!C109)+X177 ->  | Y178: =DVt(TRAYECTORIA!$P$10,TRAYECTORIA!C110-TRAYECTORIA!C109)+Y177 -> 
K179: =ISBLANK(TRAYECTORIA!C112) -> TRUE | L179: =ISBLANK(TRAYECTORIA!E112) -> TRUE | M179: =ISBLANK(TRAYECTORIA!D112) -> TRUE | O179: =TRAYECTORIA!E111*-1 -> 0 | Q179: =Dn(Matriz!O178,TRAYECTORIA!D110,(TRAYECTORIA!C111-TRAYECTORIA!C110)/2)+Dn(Matriz!O179,TRAYECTORIA!D111,(TRAYECTORIA!C111-TRAYECTORIA!C110)/2)+Q178 ->  | R179: =De(Matriz!O178,TRAYECTORIA!D110,(TRAYECTORIA!C111-TRAYECTORIA!C110)/2)+De(Matriz!O179,TRAYECTORIA!D111,(TRAYECTORIA!C111-TRAYECTORIA!C110)/2)+R178 ->  | S179: =DVt(TRAYECTORIA!D110,(TRAYECTORIA!C111-TRAYECTORIA!C110)/2)+DVt(TRAYECTORIA!D111,(TRAYECTORIA!C111-TRAYECTORIA!C110)/2)+S178 ->  | W179: =Dn(Matriz!$A$74,TRAYECTORIA!$P$10,TRAYECTORIA!C111-TRAYECTORIA!C110)+W178 ->  | X179: =De(Matriz!$A$74,TRAYECTORIA!$P$10,TRAYECTORIA!C111-TRAYECTORIA!C110)+X178 ->  | Y179: =DVt(TRAYECTORIA!$P$10,TRAYECTORIA!C111-TRAYECTORIA!C110)+Y178 -> 
K180: =ISBLANK(TRAYECTORIA!C113) -> TRUE | L180: =ISBLANK(TRAYECTORIA!E113) -> TRUE | M180: =ISBLANK(TRAYECTORIA!D113) -> TRUE | O180: =TRAYECTORIA!E112*-1 -> 0 | Q180: =Dn(Matriz!O179,TRAYECTORIA!D111,(TRAYECTORIA!C112-TRAYECTORIA!C111)/2)+Dn(Matriz!O180,TRAYECTORIA!D112,(TRAYECTORIA!C112-TRAYECTORIA!C111)/2)+Q179 ->  | R180: =De(Matriz!O179,TRAYECTORIA!D111,(TRAYECTORIA!C112-TRAYECTORIA!C111)/2)+De(Matriz!O180,TRAYECTORIA!D112,(TRAYECTORIA!C112-TRAYECTORIA!C111)/2)+R179 ->  | S180: =DVt(TRAYECTORIA!D111,(TRAYECTORIA!C112-TRAYECTORIA!C111)/2)+DVt(TRAYECTORIA!D112,(TRAYECTORIA!C112-TRAYECTORIA!C111)/2)+S179 ->  | W180: =Dn(Matriz!$A$74,TRAYECTORIA!$P$10,TRAYECTORIA!C112-TRAYECTORIA!C111)+W179 ->  | X180: =De(Matriz!$A$74,TRAYECTORIA!$P$10,TRAYECTORIA!C112-TRAYECTORIA!C111)+X179 ->  | Y180: =DVt(TRAYECTORIA!$P$10,TRAYECTORIA!C112-TRAYECTORIA!C111)+Y179 -> 
K181: =ISBLANK(TRAYECTORIA!C114) -> TRUE | L181: =ISBLANK(TRAYECTORIA!E114) -> TRUE | M181: =ISBLANK(TRAYECTORIA!D114) -> TRUE | O181: =TRAYECTORIA!E113*-1 -> 0 | Q181: =Dn(Matriz!O180,TRAYECTORIA!D112,(TRAYECTORIA!C113-TRAYECTORIA!C112)/2)+Dn(Matriz!O181,TRAYECTORIA!D113,(TRAYECTORIA!C113-TRAYECTORIA!C112)/2)+Q180 ->  | R181: =De(Matriz!O180,TRAYECTORIA!D112,(TRAYECTORIA!C113-TRAYECTORIA!C112)/2)+De(Matriz!O181,TRAYECTORIA!D113,(TRAYECTORIA!C113-TRAYECTORIA!C112)/2)+R180 ->  | S181: =DVt(TRAYECTORIA!D112,(TRAYECTORIA!C113-TRAYECTORIA!C112)/2)+DVt(TRAYECTORIA!D113,(TRAYECTORIA!C113-TRAYECTORIA!C112)/2)+S180 ->  | W181: =Dn(Matriz!$A$74,TRAYECTORIA!$P$10,TRAYECTORIA!C113-TRAYECTORIA!C112)+W180 ->  | X181: =De(Matriz!$A$74,TRAYECTORIA!$P$10,TRAYECTORIA!C113-TRAYECTORIA!C112)+X180 ->  | Y181: =DVt(TRAYECTORIA!$P$10,TRAYECTORIA!C113-TRAYECTORIA!C112)+Y180 -> 
K182: =ISBLANK(TRAYECTORIA!C115) -> TRUE | L182: =ISBLANK(TRAYECTORIA!E115) -> TRUE | M182: =ISBLANK(TRAYECTORIA!D115) -> TRUE | O182: =TRAYECTORIA!E114*-1 -> 0 | Q182: =Dn(Matriz!O181,TRAYECTORIA!D113,(TRAYECTORIA!C114-TRAYECTORIA!C113)/2)+Dn(Matriz!O182,TRAYECTORIA!D114,(TRAYECTORIA!C114-TRAYECTORIA!C113)/2)+Q181 ->  | R182: =De(Matriz!O181,TRAYECTORIA!D113,(TRAYECTORIA!C114-TRAYECTORIA!C113)/2)+De(Matriz!O182,TRAYECTORIA!D114,(TRAYECTORIA!C114-TRAYECTORIA!C113)/2)+R181 ->  | S182: =DVt(TRAYECTORIA!D113,(TRAYECTORIA!C114-TRAYECTORIA!C113)/2)+DVt(TRAYECTORIA!D114,(TRAYECTORIA!C114-TRAYECTORIA!C113)/2)+S181 ->  | W182: =Dn(Matriz!$A$74,TRAYECTORIA!$P$10,TRAYECTORIA!C114-TRAYECTORIA!C113)+W181 ->  | X182: =De(Matriz!$A$74,TRAYECTORIA!$P$10,TRAYECTORIA!C114-TRAYECTORIA!C113)+X181 ->  | Y182: =DVt(TRAYECTORIA!$P$10,TRAYECTORIA!C114-TRAYECTORIA!C113)+Y181 -> 
K183: =ISBLANK(TRAYECTORIA!C116) -> TRUE | L183: =ISBLANK(TRAYECTORIA!E116) -> TRUE | M183: =ISBLANK(TRAYECTORIA!D116) -> TRUE | O183: =TRAYECTORIA!E115*-1 -> 0 | Q183: =Dn(Matriz!O182,TRAYECTORIA!D114,(TRAYECTORIA!C115-TRAYECTORIA!C114)/2)+Dn(Matriz!O183,TRAYECTORIA!D115,(TRAYECTORIA!C115-TRAYECTORIA!C114)/2)+Q182 ->  | R183: =De(Matriz!O182,TRAYECTORIA!D114,(TRAYECTORIA!C115-TRAYECTORIA!C114)/2)+De(Matriz!O183,TRAYECTORIA!D115,(TRAYECTORIA!C115-TRAYECTORIA!C114)/2)+R182 ->  | S183: =DVt(TRAYECTORIA!D114,(TRAYECTORIA!C115-TRAYECTORIA!C114)/2)+DVt(TRAYECTORIA!D115,(TRAYECTORIA!C115-TRAYECTORIA!C114)/2)+S182 ->  | W183: =Dn(Matriz!$A$74,TRAYECTORIA!$P$10,TRAYECTORIA!C115-TRAYECTORIA!C114)+W182 ->  | X183: =De(Matriz!$A$74,TRAYECTORIA!$P$10,TRAYECTORIA!C115-TRAYECTORIA!C114)+X182 ->  | Y183: =DVt(TRAYECTORIA!$P$10,TRAYECTORIA!C115-TRAYECTORIA!C114)+Y182 -> 
K184: =ISBLANK(TRAYECTORIA!C117) -> TRUE | L184: =ISBLANK(TRAYECTORIA!E117) -> TRUE | M184: =ISBLANK(TRAYECTORIA!D117) -> TRUE | O184: =TRAYECTORIA!E116*-1 -> 0 | Q184: =Dn(Matriz!O183,TRAYECTORIA!D115,(TRAYECTORIA!C116-TRAYECTORIA!C115)/2)+Dn(Matriz!O184,TRAYECTORIA!D116,(TRAYECTORIA!C116-TRAYECTORIA!C115)/2)+Q183 ->  | R184: =De(Matriz!O183,TRAYECTORIA!D115,(TRAYECTORIA!C116-TRAYECTORIA!C115)/2)+De(Matriz!O184,TRAYECTORIA!D116,(TRAYECTORIA!C116-TRAYECTORIA!C115)/2)+R183 ->  | S184: =DVt(TRAYECTORIA!D115,(TRAYECTORIA!C116-TRAYECTORIA!C115)/2)+DVt(TRAYECTORIA!D116,(TRAYECTORIA!C116-TRAYECTORIA!C115)/2)+S183 ->  | W184: =Dn(Matriz!$A$74,TRAYECTORIA!$P$10,TRAYECTORIA!C116-TRAYECTORIA!C115)+W183 ->  | X184: =De(Matriz!$A$74,TRAYECTORIA!$P$10,TRAYECTORIA!C116-TRAYECTORIA!C115)+X183 ->  | Y184: =DVt(TRAYECTORIA!$P$10,TRAYECTORIA!C116-TRAYECTORIA!C115)+Y183 -> 
K185: =ISBLANK(TRAYECTORIA!C118) -> TRUE | L185: =ISBLANK(TRAYECTORIA!E118) -> TRUE | M185: =ISBLANK(TRAYECTORIA!D118) -> TRUE | O185: =TRAYECTORIA!E117*-1 -> 0 | Q185: =Dn(Matriz!O184,TRAYECTORIA!D116,(TRAYECTORIA!C117-TRAYECTORIA!C116)/2)+Dn(Matriz!O185,TRAYECTORIA!D117,(TRAYECTORIA!C117-TRAYECTORIA!C116)/2)+Q184 ->  | R185: =De(Matriz!O184,TRAYECTORIA!D116,(TRAYECTORIA!C117-TRAYECTORIA!C116)/2)+De(Matriz!O185,TRAYECTORIA!D117,(TRAYECTORIA!C117-TRAYECTORIA!C116)/2)+R184 ->  | S185: =DVt(TRAYECTORIA!D116,(TRAYECTORIA!C117-TRAYECTORIA!C116)/2)+DVt(TRAYECTORIA!D117,(TRAYECTORIA!C117-TRAYECTORIA!C116)/2)+S184 ->  | W185: =Dn(Matriz!$A$74,TRAYECTORIA!$P$10,TRAYECTORIA!C117-TRAYECTORIA!C116)+W184 ->  | X185: =De(Matriz!$A$74,TRAYECTORIA!$P$10,TRAYECTORIA!C117-TRAYECTORIA!C116)+X184 ->  | Y185: =DVt(TRAYECTORIA!$P$10,TRAYECTORIA!C117-TRAYECTORIA!C116)+Y184 -> 
K186: =ISBLANK(TRAYECTORIA!C119) -> TRUE | L186: =ISBLANK(TRAYECTORIA!E119) -> TRUE | M186: =ISBLANK(TRAYECTORIA!D119) -> TRUE | O186: =TRAYECTORIA!E118*-1 -> 0 | Q186: =Dn(Matriz!O185,TRAYECTORIA!D117,(TRAYECTORIA!C118-TRAYECTORIA!C117)/2)+Dn(Matriz!O186,TRAYECTORIA!D118,(TRAYECTORIA!C118-TRAYECTORIA!C117)/2)+Q185 ->  | R186: =De(Matriz!O185,TRAYECTORIA!D117,(TRAYECTORIA!C118-TRAYECTORIA!C117)/2)+De(Matriz!O186,TRAYECTORIA!D118,(TRAYECTORIA!C118-TRAYECTORIA!C117)/2)+R185 ->  | S186: =DVt(TRAYECTORIA!D117,(TRAYECTORIA!C118-TRAYECTORIA!C117)/2)+DVt(TRAYECTORIA!D118,(TRAYECTORIA!C118-TRAYECTORIA!C117)/2)+S185 ->  | W186: =Dn(Matriz!$A$74,TRAYECTORIA!$P$10,TRAYECTORIA!C118-TRAYECTORIA!C117)+W185 ->  | X186: =De(Matriz!$A$74,TRAYECTORIA!$P$10,TRAYECTORIA!C118-TRAYECTORIA!C117)+X185 ->  | Y186: =DVt(TRAYECTORIA!$P$10,TRAYECTORIA!C118-TRAYECTORIA!C117)+Y185 -> 
K187: =ISBLANK(TRAYECTORIA!C120) -> TRUE | L187: =ISBLANK(TRAYECTORIA!E120) -> TRUE | M187: =ISBLANK(TRAYECTORIA!D120) -> TRUE | O187: =TRAYECTORIA!E119*-1 -> 0 | Q187: =Dn(Matriz!O186,TRAYECTORIA!D118,(TRAYECTORIA!C119-TRAYECTORIA!C118)/2)+Dn(Matriz!O187,TRAYECTORIA!D119,(TRAYECTORIA!C119-TRAYECTORIA!C118)/2)+Q186 ->  | R187: =De(Matriz!O186,TRAYECTORIA!D118,(TRAYECTORIA!C119-TRAYECTORIA!C118)/2)+De(Matriz!O187,TRAYECTORIA!D119,(TRAYECTORIA!C119-TRAYECTORIA!C118)/2)+R186 ->  | S187: =DVt(TRAYECTORIA!D118,(TRAYECTORIA!C119-TRAYECTORIA!C118)/2)+DVt(TRAYECTORIA!D119,(TRAYECTORIA!C119-TRAYECTORIA!C118)/2)+S186 ->  | W187: =Dn(Matriz!$A$74,TRAYECTORIA!$P$10,TRAYECTORIA!C119-TRAYECTORIA!C118)+W186 ->  | X187: =De(Matriz!$A$74,TRAYECTORIA!$P$10,TRAYECTORIA!C119-TRAYECTORIA!C118)+X186 ->  | Y187: =DVt(TRAYECTORIA!$P$10,TRAYECTORIA!C119-TRAYECTORIA!C118)+Y186 -> 
K188: =ISBLANK(TRAYECTORIA!C121) -> TRUE | L188: =ISBLANK(TRAYECTORIA!E121) -> TRUE | M188: =ISBLANK(TRAYECTORIA!D121) -> TRUE | O188: =TRAYECTORIA!E120*-1 -> 0 | Q188: =Dn(Matriz!O187,TRAYECTORIA!D119,(TRAYECTORIA!C120-TRAYECTORIA!C119)/2)+Dn(Matriz!O188,TRAYECTORIA!D120,(TRAYECTORIA!C120-TRAYECTORIA!C119)/2)+Q187 ->  | R188: =De(Matriz!O187,TRAYECTORIA!D119,(TRAYECTORIA!C120-TRAYECTORIA!C119)/2)+De(Matriz!O188,TRAYECTORIA!D120,(TRAYECTORIA!C120-TRAYECTORIA!C119)/2)+R187 ->  | S188: =DVt(TRAYECTORIA!D119,(TRAYECTORIA!C120-TRAYECTORIA!C119)/2)+DVt(TRAYECTORIA!D120,(TRAYECTORIA!C120-TRAYECTORIA!C119)/2)+S187 ->  | W188: =Dn(Matriz!$A$74,TRAYECTORIA!$P$10,TRAYECTORIA!C120-TRAYECTORIA!C119)+W187 ->  | X188: =De(Matriz!$A$74,TRAYECTORIA!$P$10,TRAYECTORIA!C120-TRAYECTORIA!C119)+X187 ->  | Y188: =DVt(TRAYECTORIA!$P$10,TRAYECTORIA!C120-TRAYECTORIA!C119)+Y187 -> 
K189: =ISBLANK(TRAYECTORIA!C122) -> TRUE | L189: =ISBLANK(TRAYECTORIA!E122) -> TRUE | M189: =ISBLANK(TRAYECTORIA!D122) -> TRUE | O189: =TRAYECTORIA!E121*-1 -> 0 | Q189: =Dn(Matriz!O188,TRAYECTORIA!D120,(TRAYECTORIA!C121-TRAYECTORIA!C120)/2)+Dn(Matriz!O189,TRAYECTORIA!D121,(TRAYECTORIA!C121-TRAYECTORIA!C120)/2)+Q188 ->  | R189: =De(Matriz!O188,TRAYECTORIA!D120,(TRAYECTORIA!C121-TRAYECTORIA!C120)/2)+De(Matriz!O189,TRAYECTORIA!D121,(TRAYECTORIA!C121-TRAYECTORIA!C120)/2)+R188 ->  | S189: =DVt(TRAYECTORIA!D120,(TRAYECTORIA!C121-TRAYECTORIA!C120)/2)+DVt(TRAYECTORIA!D121,(TRAYECTORIA!C121-TRAYECTORIA!C120)/2)+S188 ->  | W189: =Dn(Matriz!$A$74,TRAYECTORIA!$P$10,TRAYECTORIA!C121-TRAYECTORIA!C120)+W188 ->  | X189: =De(Matriz!$A$74,TRAYECTORIA!$P$10,TRAYECTORIA!C121-TRAYECTORIA!C120)+X188 ->  | Y189: =DVt(TRAYECTORIA!$P$10,TRAYECTORIA!C121-TRAYECTORIA!C120)+Y188 -> 
K190: =ISBLANK(TRAYECTORIA!C123) -> TRUE | L190: =ISBLANK(TRAYECTORIA!E123) -> TRUE | M190: =ISBLANK(TRAYECTORIA!D123) -> TRUE | O190: =TRAYECTORIA!E122*-1 -> 0 | Q190: =Dn(Matriz!O189,TRAYECTORIA!D121,(TRAYECTORIA!C122-TRAYECTORIA!C121)/2)+Dn(Matriz!O190,TRAYECTORIA!D122,(TRAYECTORIA!C122-TRAYECTORIA!C121)/2)+Q189 ->  | R190: =De(Matriz!O189,TRAYECTORIA!D121,(TRAYECTORIA!C122-TRAYECTORIA!C121)/2)+De(Matriz!O190,TRAYECTORIA!D122,(TRAYECTORIA!C122-TRAYECTORIA!C121)/2)+R189 ->  | S190: =DVt(TRAYECTORIA!D121,(TRAYECTORIA!C122-TRAYECTORIA!C121)/2)+DVt(TRAYECTORIA!D122,(TRAYECTORIA!C122-TRAYECTORIA!C121)/2)+S189 ->  | W190: =Dn(Matriz!$A$74,TRAYECTORIA!$P$10,TRAYECTORIA!C122-TRAYECTORIA!C121)+W189 ->  | X190: =De(Matriz!$A$74,TRAYECTORIA!$P$10,TRAYECTORIA!C122-TRAYECTORIA!C121)+X189 ->  | Y190: =DVt(TRAYECTORIA!$P$10,TRAYECTORIA!C122-TRAYECTORIA!C121)+Y189 -> 
K191: =ISBLANK(TRAYECTORIA!C124) -> TRUE | L191: =ISBLANK(TRAYECTORIA!E124) -> TRUE | M191: =ISBLANK(TRAYECTORIA!D124) -> TRUE | O191: =TRAYECTORIA!E123*-1 -> 0 | Q191: =Dn(Matriz!O190,TRAYECTORIA!D122,(TRAYECTORIA!C123-TRAYECTORIA!C122)/2)+Dn(Matriz!O191,TRAYECTORIA!D123,(TRAYECTORIA!C123-TRAYECTORIA!C122)/2)+Q190 ->  | R191: =De(Matriz!O190,TRAYECTORIA!D122,(TRAYECTORIA!C123-TRAYECTORIA!C122)/2)+De(Matriz!O191,TRAYECTORIA!D123,(TRAYECTORIA!C123-TRAYECTORIA!C122)/2)+R190 ->  | S191: =DVt(TRAYECTORIA!D122,(TRAYECTORIA!C123-TRAYECTORIA!C122)/2)+DVt(TRAYECTORIA!D123,(TRAYECTORIA!C123-TRAYECTORIA!C122)/2)+S190 ->  | W191: =Dn(Matriz!$A$74,TRAYECTORIA!$P$10,TRAYECTORIA!C123-TRAYECTORIA!C122)+W190 ->  | X191: =De(Matriz!$A$74,TRAYECTORIA!$P$10,TRAYECTORIA!C123-TRAYECTORIA!C122)+X190 ->  | Y191: =DVt(TRAYECTORIA!$P$10,TRAYECTORIA!C123-TRAYECTORIA!C122)+Y190 -> 
K192: =ISBLANK(TRAYECTORIA!C125) -> TRUE | L192: =ISBLANK(TRAYECTORIA!E125) -> TRUE | M192: =ISBLANK(TRAYECTORIA!D125) -> TRUE | O192: =TRAYECTORIA!E124*-1 -> 0 | Q192: =Dn(Matriz!O191,TRAYECTORIA!D123,(TRAYECTORIA!C124-TRAYECTORIA!C123)/2)+Dn(Matriz!O192,TRAYECTORIA!D124,(TRAYECTORIA!C124-TRAYECTORIA!C123)/2)+Q191 ->  | R192: =De(Matriz!O191,TRAYECTORIA!D123,(TRAYECTORIA!C124-TRAYECTORIA!C123)/2)+De(Matriz!O192,TRAYECTORIA!D124,(TRAYECTORIA!C124-TRAYECTORIA!C123)/2)+R191 ->  | S192: =DVt(TRAYECTORIA!D123,(TRAYECTORIA!C124-TRAYECTORIA!C123)/2)+DVt(TRAYECTORIA!D124,(TRAYECTORIA!C124-TRAYECTORIA!C123)/2)+S191 ->  | W192: =Dn(Matriz!$A$74,TRAYECTORIA!$P$10,TRAYECTORIA!C124-TRAYECTORIA!C123)+W191 ->  | X192: =De(Matriz!$A$74,TRAYECTORIA!$P$10,TRAYECTORIA!C124-TRAYECTORIA!C123)+X191 ->  | Y192: =DVt(TRAYECTORIA!$P$10,TRAYECTORIA!C124-TRAYECTORIA!C123)+Y191 -> 
K193: =ISBLANK(TRAYECTORIA!C126) -> TRUE | L193: =ISBLANK(TRAYECTORIA!E126) -> TRUE | M193: =ISBLANK(TRAYECTORIA!D126) -> TRUE | O193: =TRAYECTORIA!E125*-1 -> 0 | Q193: =Dn(Matriz!O192,TRAYECTORIA!D124,(TRAYECTORIA!C125-TRAYECTORIA!C124)/2)+Dn(Matriz!O193,TRAYECTORIA!D125,(TRAYECTORIA!C125-TRAYECTORIA!C124)/2)+Q192 ->  | R193: =De(Matriz!O192,TRAYECTORIA!D124,(TRAYECTORIA!C125-TRAYECTORIA!C124)/2)+De(Matriz!O193,TRAYECTORIA!D125,(TRAYECTORIA!C125-TRAYECTORIA!C124)/2)+R192 ->  | S193: =DVt(TRAYECTORIA!D124,(TRAYECTORIA!C125-TRAYECTORIA!C124)/2)+DVt(TRAYECTORIA!D125,(TRAYECTORIA!C125-TRAYECTORIA!C124)/2)+S192 ->  | W193: =Dn(Matriz!$A$74,TRAYECTORIA!$P$10,TRAYECTORIA!C125-TRAYECTORIA!C124)+W192 ->  | X193: =De(Matriz!$A$74,TRAYECTORIA!$P$10,TRAYECTORIA!C125-TRAYECTORIA!C124)+X192 ->  | Y193: =DVt(TRAYECTORIA!$P$10,TRAYECTORIA!C125-TRAYECTORIA!C124)+Y192 -> 
K194: =ISBLANK(TRAYECTORIA!C127) -> TRUE | L194: =ISBLANK(TRAYECTORIA!E127) -> TRUE | M194: =ISBLANK(TRAYECTORIA!D127) -> TRUE | O194: =TRAYECTORIA!E126*-1 -> 0 | Q194: =Dn(Matriz!O193,TRAYECTORIA!D125,(TRAYECTORIA!C126-TRAYECTORIA!C125)/2)+Dn(Matriz!O194,TRAYECTORIA!D126,(TRAYECTORIA!C126-TRAYECTORIA!C125)/2)+Q193 ->  | R194: =De(Matriz!O193,TRAYECTORIA!D125,(TRAYECTORIA!C126-TRAYECTORIA!C125)/2)+De(Matriz!O194,TRAYECTORIA!D126,(TRAYECTORIA!C126-TRAYECTORIA!C125)/2)+R193 ->  | S194: =DVt(TRAYECTORIA!D125,(TRAYECTORIA!C126-TRAYECTORIA!C125)/2)+DVt(TRAYECTORIA!D126,(TRAYECTORIA!C126-TRAYECTORIA!C125)/2)+S193 ->  | W194: =Dn(Matriz!$A$74,TRAYECTORIA!$P$10,TRAYECTORIA!C126-TRAYECTORIA!C125)+W193 ->  | X194: =De(Matriz!$A$74,TRAYECTORIA!$P$10,TRAYECTORIA!C126-TRAYECTORIA!C125)+X193 ->  | Y194: =DVt(TRAYECTORIA!$P$10,TRAYECTORIA!C126-TRAYECTORIA!C125)+Y193 -> 
F195: =IF(L195=FALSE,(Q196*_RMX2)+(R196*_RMY2)+(T196*_RMZ2),NA()) ->  | H195: =IF(K195=FALSE,(W196*_RMX1)+(X196*_RMY1)+(AC196*_RMZ1),NA()) ->  | I195: =IF(L195=FALSE,(W196*_RMX2)+(X196*_RMY2)+(AC196*_RMZ2),NA()) ->  | K195: =ISBLANK(TRAYECTORIA!C128) -> TRUE | L195: =ISBLANK(TRAYECTORIA!E128) -> TRUE | M195: =ISBLANK(TRAYECTORIA!D128) -> TRUE | O195: =TRAYECTORIA!E127*-1 -> 0 | Q195: =Dn(Matriz!O194,TRAYECTORIA!D126,(TRAYECTORIA!C127-TRAYECTORIA!C126)/2)+Dn(Matriz!O195,TRAYECTORIA!D127,(TRAYECTORIA!C127-TRAYECTORIA!C126)/2)+Q194 ->  | R195: =De(Matriz!O194,TRAYECTORIA!D126,(TRAYECTORIA!C127-TRAYECTORIA!C126)/2)+De(Matriz!O195,TRAYECTORIA!D127,(TRAYECTORIA!C127-TRAYECTORIA!C126)/2)+R194 ->  | S195: =DVt(TRAYECTORIA!D126,(TRAYECTORIA!C127-TRAYECTORIA!C126)/2)+DVt(TRAYECTORIA!D127,(TRAYECTORIA!C127-TRAYECTORIA!C126)/2)+S194 ->  | W195: =Dn(Matriz!$A$74,TRAYECTORIA!$P$10,TRAYECTORIA!C127-TRAYECTORIA!C126)+W194 ->  | X195: =De(Matriz!$A$74,TRAYECTORIA!$P$10,TRAYECTORIA!C127-TRAYECTORIA!C126)+X194 ->  | Y195: =DVt(TRAYECTORIA!$P$10,TRAYECTORIA!C127-TRAYECTORIA!C126)+Y194 -> 
K196: =ISBLANK(TRAYECTORIA!C129) -> TRUE | L196: =ISBLANK(TRAYECTORIA!E129) -> TRUE | M196: =ISBLANK(TRAYECTORIA!D129) -> TRUE | O196: =TRAYECTORIA!E128*-1 -> 0 | Q196: =Dn(Matriz!O195,TRAYECTORIA!D127,(TRAYECTORIA!C128-TRAYECTORIA!C127)/2)+Dn(Matriz!O196,TRAYECTORIA!D128,(TRAYECTORIA!C128-TRAYECTORIA!C127)/2)+Q195 ->  | R196: =De(Matriz!O195,TRAYECTORIA!D127,(TRAYECTORIA!C128-TRAYECTORIA!C127)/2)+De(Matriz!O196,TRAYECTORIA!D128,(TRAYECTORIA!C128-TRAYECTORIA!C127)/2)+R195 ->  | S196: =DVt(TRAYECTORIA!D127,(TRAYECTORIA!C128-TRAYECTORIA!C127)/2)+DVt(TRAYECTORIA!D128,(TRAYECTORIA!C128-TRAYECTORIA!C127)/2)+S195 ->  | W196: =Dn(Matriz!$A$74,TRAYECTORIA!$P$10,TRAYECTORIA!C128-TRAYECTORIA!C127)+W195 ->  | X196: =De(Matriz!$A$74,TRAYECTORIA!$P$10,TRAYECTORIA!C128-TRAYECTORIA!C127)+X195 ->  | Y196: =DVt(TRAYECTORIA!$P$10,TRAYECTORIA!C128-TRAYECTORIA!C127)+Y195 -> 
E197: =IF(K197=FALSE,(Q198*_RMX1)+(R198*_RMY1)+(T198*_RMZ1),NA()) ->  | K197: =ISBLANK(TRAYECTORIA!C130) -> TRUE | L197: =ISBLANK(TRAYECTORIA!E130) -> TRUE | M197: =ISBLANK(TRAYECTORIA!D130) -> TRUE | O197: =TRAYECTORIA!E129*-1 -> 0 | Q197: =Dn(Matriz!O196,TRAYECTORIA!D128,(TRAYECTORIA!C129-TRAYECTORIA!C128)/2)+Dn(Matriz!O197,TRAYECTORIA!D129,(TRAYECTORIA!C129-TRAYECTORIA!C128)/2)+Q196 ->  | R197: =De(Matriz!O196,TRAYECTORIA!D128,(TRAYECTORIA!C129-TRAYECTORIA!C128)/2)+De(Matriz!O197,TRAYECTORIA!D129,(TRAYECTORIA!C129-TRAYECTORIA!C128)/2)+R196 ->  | S197: =DVt(TRAYECTORIA!D128,(TRAYECTORIA!C129-TRAYECTORIA!C128)/2)+DVt(TRAYECTORIA!D129,(TRAYECTORIA!C129-TRAYECTORIA!C128)/2)+S196 ->  | T197: =S197*-1 ->  | W197: =Dn(Matriz!$A$74,TRAYECTORIA!$P$10,TRAYECTORIA!C129-TRAYECTORIA!C128)+W196 ->  | X197: =De(Matriz!$A$74,TRAYECTORIA!$P$10,TRAYECTORIA!C129-TRAYECTORIA!C128)+X196 ->  | Y197: =DVt(TRAYECTORIA!$P$10,TRAYECTORIA!C129-TRAYECTORIA!C128)+Y196 -> 
K198: =ISBLANK(TRAYECTORIA!C131) -> TRUE | L198: =ISBLANK(TRAYECTORIA!E131) -> TRUE | M198: =ISBLANK(TRAYECTORIA!D131) -> TRUE | O198: =TRAYECTORIA!E130*-1 -> 0 | Q198: =Dn(Matriz!O197,TRAYECTORIA!D129,(TRAYECTORIA!C130-TRAYECTORIA!C129)/2)+Dn(Matriz!O198,TRAYECTORIA!D130,(TRAYECTORIA!C130-TRAYECTORIA!C129)/2)+Q197 ->  | R198: =De(Matriz!O197,TRAYECTORIA!D129,(TRAYECTORIA!C130-TRAYECTORIA!C129)/2)+De(Matriz!O198,TRAYECTORIA!D130,(TRAYECTORIA!C130-TRAYECTORIA!C129)/2)+R197 ->  | S198: =DVt(TRAYECTORIA!D129,(TRAYECTORIA!C130-TRAYECTORIA!C129)/2)+DVt(TRAYECTORIA!D130,(TRAYECTORIA!C130-TRAYECTORIA!C129)/2)+S197 ->  | V198: =SQRT((Q198-Q197)^2+(R198-R197)^2+(S198-S197)^2)+V197 ->  | W198: =Dn(Matriz!$A$74,TRAYECTORIA!$P$10,TRAYECTORIA!C130-TRAYECTORIA!C129)+W197 ->  | X198: =De(Matriz!$A$74,TRAYECTORIA!$P$10,TRAYECTORIA!C130-TRAYECTORIA!C129)+X197 ->  | Y198: =DVt(TRAYECTORIA!$P$10,TRAYECTORIA!C130-TRAYECTORIA!C129)+Y197 ->  | Z198: =SQRT((W198-W197)^2+(X198-X197)^2+(Y198-Y197)^2) ->  | AA198: =SQRT((Q198-W198)^2+(R198-X198)^2+(S198-Y198)^2) ->  | AB198: =AA198/Z198 ->  | AC198: =Y198*-1 -> 
K199: =ISBLANK(TRAYECTORIA!C132) -> TRUE | L199: =ISBLANK(TRAYECTORIA!E132) -> TRUE | M199: =ISBLANK(TRAYECTORIA!D132) -> TRUE | O199: =TRAYECTORIA!E131*-1 -> 0 | Q199: =Dn(Matriz!O198,TRAYECTORIA!D130,(TRAYECTORIA!C131-TRAYECTORIA!C130)/2)+Dn(Matriz!O199,TRAYECTORIA!D131,(TRAYECTORIA!C131-TRAYECTORIA!C130)/2)+Q198 ->  | R199: =De(Matriz!O198,TRAYECTORIA!D130,(TRAYECTORIA!C131-TRAYECTORIA!C130)/2)+De(Matriz!O199,TRAYECTORIA!D131,(TRAYECTORIA!C131-TRAYECTORIA!C130)/2)+R198 ->  | S199: =DVt(TRAYECTORIA!D130,(TRAYECTORIA!C131-TRAYECTORIA!C130)/2)+DVt(TRAYECTORIA!D131,(TRAYECTORIA!C131-TRAYECTORIA!C130)/2)+S198 ->  | W199: =Dn(Matriz!$A$74,TRAYECTORIA!$P$10,TRAYECTORIA!C131-TRAYECTORIA!C130)+W198 ->  | X199: =De(Matriz!$A$74,TRAYECTORIA!$P$10,TRAYECTORIA!C131-TRAYECTORIA!C130)+X198 ->  | Y199: =DVt(TRAYECTORIA!$P$10,TRAYECTORIA!C131-TRAYECTORIA!C130)+Y198 ->  | AB199: =AA199/Z199 ->  | AC199: =Y199*-1 -> 
K200: =ISBLANK(TRAYECTORIA!C133) -> TRUE | L200: =ISBLANK(TRAYECTORIA!E133) -> TRUE | M200: =ISBLANK(TRAYECTORIA!D133) -> TRUE | O200: =TRAYECTORIA!E132*-1 -> 0 | Q200: =Dn(Matriz!O199,TRAYECTORIA!D131,(TRAYECTORIA!C132-TRAYECTORIA!C131)/2)+Dn(Matriz!O200,TRAYECTORIA!D132,(TRAYECTORIA!C132-TRAYECTORIA!C131)/2)+Q199 ->  | R200: =De(Matriz!O199,TRAYECTORIA!D131,(TRAYECTORIA!C132-TRAYECTORIA!C131)/2)+De(Matriz!O200,TRAYECTORIA!D132,(TRAYECTORIA!C132-TRAYECTORIA!C131)/2)+R199 ->  | S200: =DVt(TRAYECTORIA!D131,(TRAYECTORIA!C132-TRAYECTORIA!C131)/2)+DVt(TRAYECTORIA!D132,(TRAYECTORIA!C132-TRAYECTORIA!C131)/2)+S199 ->  | W200: =Dn(Matriz!$A$74,TRAYECTORIA!$P$10,TRAYECTORIA!C132-TRAYECTORIA!C131)+W199 ->  | X200: =De(Matriz!$A$74,TRAYECTORIA!$P$10,TRAYECTORIA!C132-TRAYECTORIA!C131)+X199 ->  | Y200: =DVt(TRAYECTORIA!$P$10,TRAYECTORIA!C132-TRAYECTORIA!C131)+Y199 ->  | AB200: =AA200/Z200 ->  | AC200: =Y200*-1 -> 
... 409 more rows

Sheet Matriz2 (hidden)
A1: Angulos Calculados (Sen, Cos) | E1: Coordenadas Generación de Gráfico | H1: Coordenadas Generación de Gráfico Teorico
A2: =SIN(RADIANS(TRAYECTORIA!P17)) -> -0.8386705679 | B2: =SIN(RADIANS(TRAYECTORIA!P18)) -> -0.2419218956 | C2: =SIN(RADIANS(TRAYECTORIA!P19)) -> 0.7547095802 | E2: Coordenada X | F2: Coordenada Y | H2: Coordenada X | I2: Coordenada Y | K2: Chequeo de Celdas Vacias
A3: =COS(RADIANS(TRAYECTORIA!P17)) -> -0.544639035 | B3: =COS(RADIANS(TRAYECTORIA!P18)) -> -0.9702957263 | C3: =COS(RADIANS(TRAYECTORIA!P19)) -> -0.656059029 | E3: =IF(K3=FALSE,(Q4*_RMX1)+(R4*_RMY1)+(T4*_RMZ1),NA()) ->  | F3: =IF(L3=FALSE,(Q4*_RMX2)+(R4*_RMY2)+(T4*_RMZ2),NA()) ->  | H3: =IF(K3=FALSE,(W4*_RMX1)+(X4*_RMY1)+(AC4*_RMZ1),NA()) ->  | I3: =IF(L3=FALSE,(W4*_RMX2)+(X4*_RMY2)+(AC4*_RMZ2),NA()) ->  | K3: =ISBLANK(TRAYECTORIA!C21) -> TRUE | L3: =ISBLANK(TRAYECTORIA!E21) -> TRUE | M3: =ISBLANK(TRAYECTORIA!D21) -> TRUE | O3: Adaptación Az. Real | Q3: Generador de Coordenadas y Profundidades sobre Az. e Inc. | V3: Generador de Coordenadas Teoricas Sobre Az. e Inc.
K4: =ISBLANK(TRAYECTORIA!C22) -> TRUE | L4: =ISBLANK(TRAYECTORIA!E22) -> TRUE | M4: =ISBLANK(TRAYECTORIA!D22) -> TRUE | O4: =TRAYECTORIA!E21*-1 -> 0 | Q4: 0 | R4: 0 | S4: 0 | T4: =S4*-1 -> 0 | V4: 0 | W4: 0 | X4: 0 | Y4: 0 | Z4: 0 | AC4: =Y4*-1 -> 0
A5: Matriz de Rotación | K5: =ISBLANK(TRAYECTORIA!C23) -> TRUE | L5: =ISBLANK(TRAYECTORIA!E23) -> TRUE | M5: =ISBLANK(TRAYECTORIA!D23) -> TRUE | O5: =TRAYECTORIA!E22*-1 -> 0 | Q5: =Dn(Matriz2!O4,TRAYECTORIA!D21,(TRAYECTORIA!C22-TRAYECTORIA!C21)/2)+Dn(Matriz2!O5,TRAYECTORIA!D22,(TRAYECTORIA!C22-TRAYECTORIA!C21)/2)+Q4 -> 0 | R5: =De(Matriz2!O4,TRAYECTORIA!D21,(TRAYECTORIA!C22-TRAYECTORIA!C21)/2)+De(Matriz2!O5,TRAYECTORIA!D22,(TRAYECTORIA!C22-TRAYECTORIA!C21)/2)+R4 -> 0 | S5: =DVt(TRAYECTORIA!D21,(TRAYECTORIA!C22-TRAYECTORIA!C21)/2)+DVt(TRAYECTORIA!D22,(TRAYECTORIA!C22-TRAYECTORIA!C21)/2)+S4 -> 0 | T5: =S5*-1 -> 0 | V5: =SQRT((Q5-Q4)^2+(R5-R4)^2+(S5-S4)^2)+V4 -> 0 | W5: =Dn(Matriz2!$A$74,TRAYECTORIA!$P$10,TRAYECTORIA!C22-TRAYECTORIA!C21)+W4 -> 0 | X5: =De(Matriz2!$A$74,TRAYECTORIA!$P$10,TRAYECTORIA!C22-TRAYECTORIA!C21)+X4 -> 0 | Y5: =DVt(TRAYECTORIA!$P$10,TRAYECTORIA!C22-TRAYECTORIA!C21)+Y4 -> 0 | Z5: =SQRT((W5-W4)^2+(X5-X4)^2+(Y5-Y4)^2) -> 0 | AA5: =SQRT((Q5-W5)^2+(R5-X5)^2+(S5-Y5)^2) -> 0 | AB5: =AA5/Z5 ->  | AC5: =Y5*-1 -> 0
A6: =YCOS*ZCOS -> 0.636571272 | B6: =-ZSIN * YCOS -> 0.7322914803 | C6: =YSIN -> -0.2419218956 | K6: =ISBLANK(TRAYECTORIA!C24) -> TRUE | L6: =ISBLANK(TRAYECTORIA!E24) -> TRUE | M6: =ISBLANK(TRAYECTORIA!D24) -> TRUE | O6: =TRAYECTORIA!E23*-1 -> 0 | Q6: =Dn(Matriz2!O5,TRAYECTORIA!D22,(TRAYECTORIA!C23-TRAYECTORIA!C22)/2)+Dn(Matriz2!O6,TRAYECTORIA!D23,(TRAYECTORIA!C23-TRAYECTORIA!C22)/2)+Q5 -> 0 | R6: =De(Matriz2!O5,TRAYECTORIA!D22,(TRAYECTORIA!C23-TRAYECTORIA!C22)/2)+De(Matriz2!O6,TRAYECTORIA!D23,(TRAYECTORIA!C23-TRAYECTORIA!C22)/2)+R5 -> 0 | S6: =DVt(TRAYECTORIA!D22,(TRAYECTORIA!C23-TRAYECTORIA!C22)/2)+DVt(TRAYECTORIA!D23,(TRAYECTORIA!C23-TRAYECTORIA!C22)/2)+S5 -> 0 | T6: 0 | V6: =SQRT((Q6-Q5)^2+(R6-R5)^2+(S6-S5)^2)+V5 -> 0 | W6: =Dn(Matriz2!$A$74,TRAYECTORIA!$P$10,TRAYECTORIA!C23-TRAYECTORIA!C22)+W5 -> 0 | X6: =De(Matriz2!$A$74,TRAYECTORIA!$P$10,TRAYECTORIA!C23-TRAYECTORIA!C22)+X5 -> 0 | Y6: =DVt(TRAYECTORIA!$P$10,TRAYECTORIA!C23-TRAYECTORIA!C22)+Y5 -> 0 | Z6: =SQRT((W6-W5)^2+(X6-X5)^2+(Y6-Y5)^2) -> 0 | AA6: =SQRT((Q6-W6)^2+(R6-X6)^2+(S6-Y6)^2) -> 0 | AB6: =AA6/Z6 ->  | AC6: =Y6*-1 -> 0
A7: =ZCOS * -YSIN * -XSIN + ZSIN * XCOS -> -0.5441539335 | B7: =-ZSIN * -YSIN * -XSIN + ZCOS*XCOS -> 0.2041902365 | C7: =YCOS * -XSIN -> -0.8137584678 | K7: =ISBLANK(TRAYECTORIA!C25) -> TRUE | L7: =ISBLANK(TRAYECTORIA!E25) -> TRUE | M7: =ISBLANK(TRAYECTORIA!D25) -> TRUE | O7: =TRAYECTORIA!E24*-1 -> 0 | Q7: =Dn(Matriz2!O6,TRAYECTORIA!D23,(TRAYECTORIA!C24-TRAYECTORIA!C23)/2)+Dn(Matriz2!O7,TRAYECTORIA!D24,(TRAYECTORIA!C24-TRAYECTORIA!C23)/2)+Q6 -> 0 | R7: =De(Matriz2!O6,TRAYECTORIA!D23,(TRAYECTORIA!C24-TRAYECTORIA!C23)/2)+De(Matriz2!O7,TRAYECTORIA!D24,(TRAYECTORIA!C24-TRAYECTORIA!C23)/2)+R6 -> 0 | S7: =DVt(TRAYECTORIA!D23,(TRAYECTORIA!C24-TRAYECTORIA!C23)/2)+DVt(TRAYECTORIA!D24,(TRAYECTORIA!C24-TRAYECTORIA!C23)/2)+S6 -> 0 | T7: 0 | V7: 0 | W7: =Dn(Matriz2!$A$74,TRAYECTORIA!$P$10,TRAYECTORIA!C24-TRAYECTORIA!C23)+W6 -> 0 | X7: =De(Matriz2!$A$74,TRAYECTORIA!$P$10,TRAYECTORIA!C24-TRAYECTORIA!C23)+X6 -> 0 | Y7: =DVt(TRAYECTORIA!$P$10,TRAYECTORIA!C24-TRAYECTORIA!C23)+Y6 -> 0 | Z7: 0 | AA7: 0 | AC7: 0
A8: =ZCOS * -YSIN * XCOS + ZSIN * XSIN -> -0.5465103039 | B8: =-ZSIN * -YSIN * XCOS + ZCOS * XSIN -> 0.6496580141 | C8: =YCOS * XCOS -> 0.528460928 | K8: =ISBLANK(TRAYECTORIA!C26) -> TRUE | L8: =ISBLANK(TRAYECTORIA!E26) -> TRUE | M8: =ISBLANK(TRAYECTORIA!D26) -> TRUE | O8: =TRAYECTORIA!E25*-1 -> 0 | Q8: =Dn(Matriz2!O7,TRAYECTORIA!D24,(TRAYECTORIA!C25-TRAYECTORIA!C24)/2)+Dn(Matriz2!O8,TRAYECTORIA!D25,(TRAYECTORIA!C25-TRAYECTORIA!C24)/2)+Q7 -> 0 | R8: =De(Matriz2!O7,TRAYECTORIA!D24,(TRAYECTORIA!C25-TRAYECTORIA!C24)/2)+De(Matriz2!O8,TRAYECTORIA!D25,(TRAYECTORIA!C25-TRAYECTORIA!C24)/2)+R7 -> 0 | S8: =DVt(TRAYECTORIA!D24,(TRAYECTORIA!C25-TRAYECTORIA!C24)/2)+DVt(TRAYECTORIA!D25,(TRAYECTORIA!C25-TRAYECTORIA!C24)/2)+S7 -> 0 | T8: 0 | V8: 0 | W8: =Dn(Matriz2!$A$74,TRAYECTORIA!$P$10,TRAYECTORIA!C25-TRAYECTORIA!C24)+W7 -> 0 | X8: =De(Matriz2!$A$74,TRAYECTORIA!$P$10,TRAYECTORIA!C25-TRAYECTORIA!C24)+X7 -> 0 | Y8: =DVt(TRAYECTORIA!$P$10,TRAYECTORIA!C25-TRAYECTORIA!C24)+Y7 -> 0 | Z8: 0 | AA8: 0 | AC8: 0
K9: =ISBLANK(TRAYECTORIA!C27) -> TRUE | L9: =ISBLANK(TRAYECTORIA!E27) -> TRUE | M9: =ISBLANK(TRAYECTORIA!D27) -> TRUE | O9: =TRAYECTORIA!E26*-1 -> 0 | Q9: =Dn(Matriz2!O8,TRAYECTORIA!D25,(TRAYECTORIA!C26-TRAYECTORIA!C25)/2)+Dn(Matriz2!O9,TRAYECTORIA!D26,(TRAYECTORIA!C26-TRAYECTORIA!C25)/2)+Q8 -> 0 | R9: =De(Matriz2!O8,TRAYECTORIA!D25,(TRAYECTORIA!C26-TRAYECTORIA!C25)/2)+De(Matriz2!O9,TRAYECTORIA!D26,(TRAYECTORIA!C26-TRAYECTORIA!C25)/2)+R8 -> 0 | S9: =DVt(TRAYECTORIA!D25,(TRAYECTORIA!C26-TRAYECTORIA!C25)/2)+DVt(TRAYECTORIA!D26,(TRAYECTORIA!C26-TRAYECTORIA!C25)/2)+S8 -> 0 | T9: 0 | V9: 0 | W9: =Dn(Matriz2!$A$74,TRAYECTORIA!$P$10,TRAYECTORIA!C26-TRAYECTORIA!C25)+W8 -> 0 | X9: =De(Matriz2!$A$74,TRAYECTORIA!$P$10,TRAYECTORIA!C26-TRAYECTORIA!C25)+X8 -> 0 | Y9: =DVt(TRAYECTORIA!$P$10,TRAYECTORIA!C26-TRAYECTORIA!C25)+Y8 -> 0 | Z9: 0 | AA9: 0 | AC9: 0
A10: Ejes | K10: =ISBLANK(TRAYECTORIA!C28) -> TRUE | L10: =ISBLANK(TRAYECTORIA!E28) -> TRUE | M10: =ISBLANK(TRAYECTORIA!D28) -> TRUE | O10: =TRAYECTORIA!E27*-1 -> 0 | Q10: =Dn(Matriz2!O9,TRAYECTORIA!D26,(TRAYECTORIA!C27-TRAYECTORIA!C26)/2)+Dn(Matriz2!O10,TRAYECTORIA!D27,(TRAYECTORIA!C27-TRAYECTORIA!C26)/2)+Q9 -> 0 | R10: =De(Matriz2!O9,TRAYECTORIA!D26,(TRAYECTORIA!C27-TRAYECTORIA!C26)/2)+De(Matriz2!O10,TRAYECTORIA!D27,(TRAYECTORIA!C27-TRAYECTORIA!C26)/2)+R9 -> 0 | S10: =DVt(TRAYECTORIA!D26,(TRAYECTORIA!C27-TRAYECTORIA!C26)/2)+DVt(TRAYECTORIA!D27,(TRAYECTORIA!C27-TRAYECTORIA!C26)/2)+S9 -> 0 | T10: 0 | V10: 0 | W10: =Dn(Matriz2!$A$74,TRAYECTORIA!$P$10,TRAYECTORIA!C27-TRAYECTORIA!C26)+W9 -> 0 | X10: =De(Matriz2!$A$74,TRAYECTORIA!$P$10,TRAYECTORIA!C27-TRAYECTORIA!C26)+X9 -> 0 | Y10: =DVt(TRAYECTORIA!$P$10,TRAYECTORIA!C27-TRAYECTORIA!C26)+Y9 -> 0 | Z10: 0 | AA10: 0 | AC10: 0
A11: X | B11: Y | C11: Z | K11: =ISBLANK(TRAYECTORIA!C29) -> TRUE | L11: =ISBLANK(TRAYECTORIA!E29) -> TRUE | M11: =ISBLANK(TRAYECTORIA!D29) -> TRUE | O11: =TRAYECTORIA!E28*-1 -> 0 | Q11: =Dn(Matriz2!O10,TRAYECTORIA!D27,(TRAYECTORIA!C28-TRAYECTORIA!C27)/2)+Dn(Matriz2!O11,TRAYECTORIA!D28,(TRAYECTORIA!C28-TRAYECTORIA!C27)/2)+Q10 -> 0 | R11: =De(Matriz2!O10,TRAYECTORIA!D27,(TRAYECTORIA!C28-TRAYECTORIA!C27)/2)+De(Matriz2!O11,TRAYECTORIA!D28,(TRAYECTORIA!C28-TRAYECTORIA!C27)/2)+R10 -> 0 | S11: =DVt(TRAYECTORIA!D27,(TRAYECTORIA!C28-TRAYECTORIA!C27)/2)+DVt(TRAYECTORIA!D28,(TRAYECTORIA!C28-TRAYECTORIA!C27)/2)+S10 -> 0 | T11: 0 | V11: 0 | W11: =Dn(Matriz2!$A$74,TRAYECTORIA!$P$10,TRAYECTORIA!C28-TRAYECTORIA!C27)+W10 -> 0 | X11: =De(Matriz2!$A$74,TRAYECTORIA!$P$10,TRAYECTORIA!C28-TRAYECTORIA!C27)+X10 -> 0 | Y11: =DVt(TRAYECTORIA!$P$10,TRAYECTORIA!C28-TRAYECTORIA!C27)+Y10 -> 0 | Z11: 0 | AA11: 0 | AC11: 0
A12: =0-TRAYECTORIA!P$20 -> -230 | B12: 0 | C12: 0 | K12: =ISBLANK(TRAYECTORIA!C30) -> TRUE | L12: =ISBLANK(TRAYECTORIA!E30) -> TRUE | M12: =ISBLANK(TRAYECTORIA!D30) -> TRUE | O12: =TRAYECTORIA!E29*-1 -> 0 | Q12: =Dn(Matriz2!O11,TRAYECTORIA!D28,(TRAYECTORIA!C29-TRAYECTORIA!C28)/2)+Dn(Matriz2!O12,TRAYECTORIA!D29,(TRAYECTORIA!C29-TRAYECTORIA!C28)/2)+Q11 -> 0 | R12: =De(Matriz2!O11,TRAYECTORIA!D28,(TRAYECTORIA!C29-TRAYECTORIA!C28)/2)+De(Matriz2!O12,TRAYECTORIA!D29,(TRAYECTORIA!C29-TRAYECTORIA!C28)/2)+R11 -> 0 | S12: =DVt(TRAYECTORIA!D28,(TRAYECTORIA!C29-TRAYECTORIA!C28)/2)+DVt(TRAYECTORIA!D29,(TRAYECTORIA!C29-TRAYECTORIA!C28)/2)+S11 -> 0 | T12: 0 | V12: 0 | W12: =Dn(Matriz2!$A$74,TRAYECTORIA!$P$10,TRAYECTORIA!C29-TRAYECTORIA!C28)+W11 -> 0 | X12: =De(Matriz2!$A$74,TRAYECTORIA!$P$10,TRAYECTORIA!C29-TRAYECTORIA!C28)+X11 -> 0 | Y12: =DVt(TRAYECTORIA!$P$10,TRAYECTORIA!C29-TRAYECTORIA!C28)+Y11 -> 0 | Z12: 0 | AA12: 0 | AC12: 0
A13: =0+TRAYECTORIA!P$20 -> 230 | B13: 0 | C13: 0 | K13: =ISBLANK(TRAYECTORIA!C31) -> TRUE | L13: =ISBLANK(TRAYECTORIA!E31) -> TRUE | M13: =ISBLANK(TRAYECTORIA!D31) -> TRUE | O13: =TRAYECTORIA!E30*-1 -> 0 | Q13: =Dn(Matriz2!O12,TRAYECTORIA!D29,(TRAYECTORIA!C30-TRAYECTORIA!C29)/2)+Dn(Matriz2!O13,TRAYECTORIA!D30,(TRAYECTORIA!C30-TRAYECTORIA!C29)/2)+Q12 -> 0 | R13: =De(Matriz2!O12,TRAYECTORIA!D29,(TRAYECTORIA!C30-TRAYECTORIA!C29)/2)+De(Matriz2!O13,TRAYECTORIA!D30,(TRAYECTORIA!C30-TRAYECTORIA!C29)/2)+R12 -> 0 | S13: =DVt(TRAYECTORIA!D29,(TRAYECTORIA!C30-TRAYECTORIA!C29)/2)+DVt(TRAYECTORIA!D30,(TRAYECTORIA!C30-TRAYECTORIA!C29)/2)+S12 -> 0 | T13: 0 | V13: 0 | W13: =Dn(Matriz2!$A$74,TRAYECTORIA!$P$10,TRAYECTORIA!C30-TRAYECTORIA!C29)+W12 -> 0 | X13: =De(Matriz2!$A$74,TRAYECTORIA!$P$10,TRAYECTORIA!C30-TRAYECTORIA!C29)+X12 -> 0 | Y13: =DVt(TRAYECTORIA!$P$10,TRAYECTORIA!C30-TRAYECTORIA!C29)+Y12 -> 0 | Z13: 0 | AA13: 0 | AC13: 0
A14: 0 | K14: =ISBLANK(TRAYECTORIA!C32) -> TRUE | L14: =ISBLANK(TRAYECTORIA!E32) -> TRUE | M14: =ISBLANK(TRAYECTORIA!D32) -> TRUE | O14: =TRAYECTORIA!E31*-1 -> 0 | Q14: =Dn(Matriz2!O13,TRAYECTORIA!D30,(TRAYECTORIA!C31-TRAYECTORIA!C30)/2)+Dn(Matriz2!O14,TRAYECTORIA!D31,(TRAYECTORIA!C31-TRAYECTORIA!C30)/2)+Q13 -> 0 | R14: =De(Matriz2!O13,TRAYECTORIA!D30,(TRAYECTORIA!C31-TRAYECTORIA!C30)/2)+De(Matriz2!O14,TRAYECTORIA!D31,(TRAYECTORIA!C31-TRAYECTORIA!C30)/2)+R13 -> 0 | S14: =DVt(TRAYECTORIA!D30,(TRAYECTORIA!C31-TRAYECTORIA!C30)/2)+DVt(TRAYECTORIA!D31,(TRAYECTORIA!C31-TRAYECTORIA!C30)/2)+S13 -> 0 | T14: 0 | V14: 0 | W14: =Dn(Matriz2!$A$74,TRAYECTORIA!$P$10,TRAYECTORIA!C31-TRAYECTORIA!C30)+W13 -> 0 | X14: =De(Matriz2!$A$74,TRAYECTORIA!$P$10,TRAYECTORIA!C31-TRAYECTORIA!C30)+X13 -> 0 | Y14: =DVt(TRAYECTORIA!$P$10,TRAYECTORIA!C31-TRAYECTORIA!C30)+Y13 -> 0 | Z14: 0 | AA14: 0 | AC14: 0
A15: 0 | B15: =0-TRAYECTORIA!P$20 -> -230 | C15: 0 | K15: =ISBLANK(TRAYECTORIA!C33) -> TRUE | L15: =ISBLANK(TRAYECTORIA!E33) -> TRUE | M15: =ISBLANK(TRAYECTORIA!D33) -> TRUE | O15: =TRAYECTORIA!E32*-1 -> 0 | Q15: =Dn(Matriz2!O14,TRAYECTORIA!D31,(TRAYECTORIA!C32-TRAYECTORIA!C31)/2)+Dn(Matriz2!O15,TRAYECTORIA!D32,(TRAYECTORIA!C32-TRAYECTORIA!C31)/2)+Q14 -> 0 | R15: =De(Matriz2!O14,TRAYECTORIA!D31,(TRAYECTORIA!C32-TRAYECTORIA!C31)/2)+De(Matriz2!O15,TRAYECTORIA!D32,(TRAYECTORIA!C32-TRAYECTORIA!C31)/2)+R14 -> 0 | S15: =DVt(TRAYECTORIA!D31,(TRAYECTORIA!C32-TRAYECTORIA!C31)/2)+DVt(TRAYECTORIA!D32,(TRAYECTORIA!C32-TRAYECTORIA!C31)/2)+S14 -> 0 | T15: 0 | V15: 0 | W15: =Dn(Matriz2!$A$74,TRAYECTORIA!$P$10,TRAYECTORIA!C32-TRAYECTORIA!C31)+W14 -> 0 | X15: =De(Matriz2!$A$74,TRAYECTORIA!$P$10,TRAYECTORIA!C32-TRAYECTORIA!C31)+X14 -> 0 | Y15: =DVt(TRAYECTORIA!$P$10,TRAYECTORIA!C32-TRAYECTORIA!C31)+Y14 -> 0 | Z15: 0 | AA15: 0 | AC15: 0
A16: 0 | B16: =0+TRAYECTORIA!P$20 -> 230 | C16: 0 | K16: =ISBLANK(TRAYECTORIA!C34) -> TRUE | L16: =ISBLANK(TRAYECTORIA!E34) -> TRUE | M16: =ISBLANK(TRAYECTORIA!D34) -> TRUE | O16: =TRAYECTORIA!E33*-1 -> 0 | Q16: =Dn(Matriz2!O15,TRAYECTORIA!D32,(TRAYECTORIA!C33-TRAYECTORIA!C32)/2)+Dn(Matriz2!O16,TRAYECTORIA!D33,(TRAYECTORIA!C33-TRAYECTORIA!C32)/2)+Q15 -> 0 | R16: =De(Matriz2!O15,TRAYECTORIA!D32,(TRAYECTORIA!C33-TRAYECTORIA!C32)/2)+De(Matriz2!O16,TRAYECTORIA!D33,(TRAYECTORIA!C33-TRAYECTORIA!C32)/2)+R15 -> 0 | S16: =DVt(TRAYECTORIA!D32,(TRAYECTORIA!C33-TRAYECTORIA!C32)/2)+DVt(TRAYECTORIA!D33,(TRAYECTORIA!C33-TRAYECTORIA!C32)/2)+S15 -> 0 | T16: 0 | V16: 0 | W16: =Dn(Matriz2!$A$74,TRAYECTORIA!$P$10,TRAYECTORIA!C33-TRAYECTORIA!C32)+W15 -> 0 | X16: =De(Matriz2!$A$74,TRAYECTORIA!$P$10,TRAYECTORIA!C33-TRAYECTORIA!C32)+X15 -> 0 | Y16: =DVt(TRAYECTORIA!$P$10,TRAYECTORIA!C33-TRAYECTORIA!C32)+Y15 -> 0 | Z16: 0 | AA16: 0 | AC16: 0
B17: 0 | K17: =ISBLANK(TRAYECTORIA!C35) -> TRUE | L17: =ISBLANK(TRAYECTORIA!E35) -> TRUE | M17: =ISBLANK(TRAYECTORIA!D35) -> TRUE | O17: =TRAYECTORIA!E34*-1 -> 0 | Q17: =Dn(Matriz2!O16,TRAYECTORIA!D33,(TRAYECTORIA!C34-TRAYECTORIA!C33)/2)+Dn(Matriz2!O17,TRAYECTORIA!D34,(TRAYECTORIA!C34-TRAYECTORIA!C33)/2)+Q16 -> 0 | R17: =De(Matriz2!O16,TRAYECTORIA!D33,(TRAYECTORIA!C34-TRAYECTORIA!C33)/2)+De(Matriz2!O17,TRAYECTORIA!D34,(TRAYECTORIA!C34-TRAYECTORIA!C33)/2)+R16 -> 0 | S17: =DVt(TRAYECTORIA!D33,(TRAYECTORIA!C34-TRAYECTORIA!C33)/2)+DVt(TRAYECTORIA!D34,(TRAYECTORIA!C34-TRAYECTORIA!C33)/2)+S16 -> 0 | T17: 0 | V17: 0 | W17: =Dn(Matriz2!$A$74,TRAYECTORIA!$P$10,TRAYECTORIA!C34-TRAYECTORIA!C33)+W16 -> 0 | X17: =De(Matriz2!$A$74,TRAYECTORIA!$P$10,TRAYECTORIA!C34-TRAYECTORIA!C33)+X16 -> 0 | Y17: =DVt(TRAYECTORIA!$P$10,TRAYECTORIA!C34-TRAYECTORIA!C33)+Y16 -> 0 | Z17: 0 | AA17: 0 | AC17: 0
A18: 0 | B18: 0 | C18: 0 | K18: =ISBLANK(TRAYECTORIA!C36) -> TRUE | L18: =ISBLANK(TRAYECTORIA!E36) -> TRUE | M18: =ISBLANK(TRAYECTORIA!D36) -> TRUE | O18: =TRAYECTORIA!E35*-1 -> 0 | Q18: =Dn(Matriz2!O17,TRAYECTORIA!D34,(TRAYECTORIA!C35-TRAYECTORIA!C34)/2)+Dn(Matriz2!O18,TRAYECTORIA!D35,(TRAYECTORIA!C35-TRAYECTORIA!C34)/2)+Q17 -> 0 | R18: =De(Matriz2!O17,TRAYECTORIA!D34,(TRAYECTORIA!C35-TRAYECTORIA!C34)/2)+De(Matriz2!O18,TRAYECTORIA!D35,(TRAYECTORIA!C35-TRAYECTORIA!C34)/2)+R17 -> 0 | S18: =DVt(TRAYECTORIA!D34,(TRAYECTORIA!C35-TRAYECTORIA!C34)/2)+DVt(TRAYECTORIA!D35,(TRAYECTORIA!C35-TRAYECTORIA!C34)/2)+S17 -> 0 | T18: 0 | V18: 0 | W18: =Dn(Matriz2!$A$74,TRAYECTORIA!$P$10,TRAYECTORIA!C35-TRAYECTORIA!C34)+W17 -> 0 | X18: =De(Matriz2!$A$74,TRAYECTORIA!$P$10,TRAYECTORIA!C35-TRAYECTORIA!C34)+X17 -> 0 | Y18: =DVt(TRAYECTORIA!$P$10,TRAYECTORIA!C35-TRAYECTORIA!C34)+Y17 -> 0 | Z18: 0 | AA18: 0 | AC18: 0
A19: 0 | B19: 0 | C19: =0+TRAYECTORIA!P$8 -> 0 | K19: =ISBLANK(TRAYECTORIA!C37) -> TRUE | L19: =ISBLANK(TRAYECTORIA!E37) -> TRUE | M19: =ISBLANK(TRAYECTORIA!D37) -> TRUE | O19: =TRAYECTORIA!E36*-1 -> 0 | Q19: =Dn(Matriz2!O18,TRAYECTORIA!D35,(TRAYECTORIA!C36-TRAYECTORIA!C35)/2)+Dn(Matriz2!O19,TRAYECTORIA!D36,(TRAYECTORIA!C36-TRAYECTORIA!C35)/2)+Q18 -> 0 | R19: =De(Matriz2!O18,TRAYECTORIA!D35,(TRAYECTORIA!C36-TRAYECTORIA!C35)/2)+De(Matriz2!O19,TRAYECTORIA!D36,(TRAYECTORIA!C36-TRAYECTORIA!C35)/2)+R18 -> 0 | S19: =DVt(TRAYECTORIA!D35,(TRAYECTORIA!C36-TRAYECTORIA!C35)/2)+DVt(TRAYECTORIA!D36,(TRAYECTORIA!C36-TRAYECTORIA!C35)/2)+S18 -> 0 | T19: 0 | V19: 0 | W19: =Dn(Matriz2!$A$74,TRAYECTORIA!$P$10,TRAYECTORIA!C36-TRAYECTORIA!C35)+W18 -> 0 | X19: =De(Matriz2!$A$74,TRAYECTORIA!$P$10,TRAYECTORIA!C36-TRAYECTORIA!C35)+X18 -> 0 | Y19: =DVt(TRAYECTORIA!$P$10,TRAYECTORIA!C36-TRAYECTORIA!C35)+Y18 -> 0 | Z19: 0 | AA19: 0 | AC19: 0
K20: =ISBLANK(TRAYECTORIA!C38) -> TRUE | L20: =ISBLANK(TRAYECTORIA!E38) -> TRUE | M20: =ISBLANK(TRAYECTORIA!D38) -> TRUE | O20: =TRAYECTORIA!E37*-1 -> 0 | Q20: =Dn(Matriz2!O19,TRAYECTORIA!D36,(TRAYECTORIA!C37-TRAYECTORIA!C36)/2)+Dn(Matriz2!O20,TRAYECTORIA!D37,(TRAYECTORIA!C37-TRAYECTORIA!C36)/2)+Q19 -> 0 | R20: =De(Matriz2!O19,TRAYECTORIA!D36,(TRAYECTORIA!C37-TRAYECTORIA!C36)/2)+De(Matriz2!O20,TRAYECTORIA!D37,(TRAYECTORIA!C37-TRAYECTORIA!C36)/2)+R19 -> 0 | S20: =DVt(TRAYECTORIA!D36,(TRAYECTORIA!C37-TRAYECTORIA!C36)/2)+DVt(TRAYECTORIA!D37,(TRAYECTORIA!C37-TRAYECTORIA!C36)/2)+S19 -> 0 | T20: 0 | V20: 0 | W20: =Dn(Matriz2!$A$74,TRAYECTORIA!$P$10,TRAYECTORIA!C37-TRAYECTORIA!C36)+W19 -> 0 | X20: =De(Matriz2!$A$74,TRAYECTORIA!$P$10,TRAYECTORIA!C37-TRAYECTORIA!C36)+X19 -> 0 | Y20: =DVt(TRAYECTORIA!$P$10,TRAYECTORIA!C37-TRAYECTORIA!C36)+Y19 -> 0 | Z20: 0 | AA20: 0 | AC20: 0
A21: +N/ -S | B21: +E/ -W | K21: =ISBLANK(TRAYECTORIA!C39) -> TRUE | L21: =ISBLANK(TRAYECTORIA!E39) -> TRUE | M21: =ISBLANK(TRAYECTORIA!D39) -> TRUE | O21: =TRAYECTORIA!E38*-1 -> 0 | Q21: =Dn(Matriz2!O20,TRAYECTORIA!D37,(TRAYECTORIA!C38-TRAYECTORIA!C37)/2)+Dn(Matriz2!O21,TRAYECTORIA!D38,(TRAYECTORIA!C38-TRAYECTORIA!C37)/2)+Q20 -> 0 | R21: =De(Matriz2!O20,TRAYECTORIA!D37,(TRAYECTORIA!C38-TRAYECTORIA!C37)/2)+De(Matriz2!O21,TRAYECTORIA!D38,(TRAYECTORIA!C38-TRAYECTORIA!C37)/2)+R20 -> 0 | S21: =DVt(TRAYECTORIA!D37,(TRAYECTORIA!C38-TRAYECTORIA!C37)/2)+DVt(TRAYECTORIA!D38,(TRAYECTORIA!C38-TRAYECTORIA!C37)/2)+S20 -> 0 | T21: 0 | V21: 0 | W21: =Dn(Matriz2!$A$74,TRAYECTORIA!$P$10,TRAYECTORIA!C38-TRAYECTORIA!C37)+W20 -> 0 | X21: =De(Matriz2!$A$74,TRAYECTORIA!$P$10,TRAYECTORIA!C38-TRAYECTORIA!C37)+X20 -> 0 | Y21: =DVt(TRAYECTORIA!$P$10,TRAYECTORIA!C38-TRAYECTORIA!C37)+Y20 -> 0 | Z21: 0 | AA21: 0 | AC21: 0
A22: =(A12*_RMX1)+(B12*_RMY1)+(C12*_RMZ1) -> -146.4113926 | B22: =(A12*_RMX2)+(B12*_RMY2)+(C12*_RMZ2) -> 125.1554047 | C22: N | K22: =ISBLANK(TRAYECTORIA!C40) -> TRUE | L22: =ISBLANK(TRAYECTORIA!E40) -> TRUE | M22: =ISBLANK(TRAYECTORIA!D40) -> TRUE | O22: =TRAYECTORIA!E39*-1 -> 0 | Q22: =Dn(Matriz2!O21,TRAYECTORIA!D38,(TRAYECTORIA!C39-TRAYECTORIA!C38)/2)+Dn(Matriz2!O22,TRAYECTORIA!D39,(TRAYECTORIA!C39-TRAYECTORIA!C38)/2)+Q21 -> 0 | R22: =De(Matriz2!O21,TRAYECTORIA!D38,(TRAYECTORIA!C39-TRAYECTORIA!C38)/2)+De(Matriz2!O22,TRAYECTORIA!D39,(TRAYECTORIA!C39-TRAYECTORIA!C38)/2)+R21 -> 0 | S22: =DVt(TRAYECTORIA!D38,(TRAYECTORIA!C39-TRAYECTORIA!C38)/2)+DVt(TRAYECTORIA!D39,(TRAYECTORIA!C39-TRAYECTORIA!C38)/2)+S21 -> 0 | T22: 0 | V22: 0 | W22: =Dn(Matriz2!$A$74,TRAYECTORIA!$P$10,TRAYECTORIA!C39-TRAYECTORIA!C38)+W21 -> 0 | X22: =De(Matriz2!$A$74,TRAYECTORIA!$P$10,TRAYECTORIA!C39-TRAYECTORIA!C38)+X21 -> 0 | Y22: =DVt(TRAYECTORIA!$P$10,TRAYECTORIA!C39-TRAYECTORIA!C38)+Y21 -> 0 | Z22: 0 | AA22: 0 | AC22: 0
A23: 146.4113926 | B23: -125.1554047 | C23: S | K23: =ISBLANK(TRAYECTORIA!C41) -> TRUE | L23: =ISBLANK(TRAYECTORIA!E41) -> TRUE | M23: =ISBLANK(TRAYECTORIA!D41) -> TRUE | O23: =TRAYECTORIA!E40*-1 -> 0 | Q23: =Dn(Matriz2!O22,TRAYECTORIA!D39,(TRAYECTORIA!C40-TRAYECTORIA!C39)/2)+Dn(Matriz2!O23,TRAYECTORIA!D40,(TRAYECTORIA!C40-TRAYECTORIA!C39)/2)+Q22 -> 0 | R23: =De(Matriz2!O22,TRAYECTORIA!D39,(TRAYECTORIA!C40-TRAYECTORIA!C39)/2)+De(Matriz2!O23,TRAYECTORIA!D40,(TRAYECTORIA!C40-TRAYECTORIA!C39)/2)+R22 -> 0 | S23: =DVt(TRAYECTORIA!D39,(TRAYECTORIA!C40-TRAYECTORIA!C39)/2)+DVt(TRAYECTORIA!D40,(TRAYECTORIA!C40-TRAYECTORIA!C39)/2)+S22 -> 0 | T23: 0 | V23: 0 | W23: =Dn(Matriz2!$A$74,TRAYECTORIA!$P$10,TRAYECTORIA!C40-TRAYECTORIA!C39)+W22 -> 0 | X23: =De(Matriz2!$A$74,TRAYECTORIA!$P$10,TRAYECTORIA!C40-TRAYECTORIA!C39)+X22 -> 0 | Y23: =DVt(TRAYECTORIA!$P$10,TRAYECTORIA!C40-TRAYECTORIA!C39)+Y22 -> 0 | Z23: 0 | AA23: 0 | AC23: 0
A24: 0 | B24: 0 | K24: =ISBLANK(TRAYECTORIA!C42) -> TRUE | L24: =ISBLANK(TRAYECTORIA!E42) -> TRUE | M24: =ISBLANK(TRAYECTORIA!D42) -> TRUE | O24: =TRAYECTORIA!E41*-1 -> 0 | Q24: =Dn(Matriz2!O23,TRAYECTORIA!D40,(TRAYECTORIA!C41-TRAYECTORIA!C40)/2)+Dn(Matriz2!O24,TRAYECTORIA!D41,(TRAYECTORIA!C41-TRAYECTORIA!C40)/2)+Q23 -> 0 | R24: =De(Matriz2!O23,TRAYECTORIA!D40,(TRAYECTORIA!C41-TRAYECTORIA!C40)/2)+De(Matriz2!O24,TRAYECTORIA!D41,(TRAYECTORIA!C41-TRAYECTORIA!C40)/2)+R23 -> 0 | S24: =DVt(TRAYECTORIA!D40,(TRAYECTORIA!C41-TRAYECTORIA!C40)/2)+DVt(TRAYECTORIA!D41,(TRAYECTORIA!C41-TRAYECTORIA!C40)/2)+S23 -> 0 | T24: 0 | V24: 0 | W24: =Dn(Matriz2!$A$74,TRAYECTORIA!$P$10,TRAYECTORIA!C41-TRAYECTORIA!C40)+W23 -> 0 | X24: =De(Matriz2!$A$74,TRAYECTORIA!$P$10,TRAYECTORIA!C41-TRAYECTORIA!C40)+X23 -> 0 | Y24: =DVt(TRAYECTORIA!$P$10,TRAYECTORIA!C41-TRAYECTORIA!C40)+Y23 -> 0 | Z24: 0 | AA24: 0 | AC24: 0
A25: -168.4270405 | B25: -46.96375439 | C25: W | K25: =ISBLANK(TRAYECTORIA!C43) -> TRUE | L25: =ISBLANK(TRAYECTORIA!E43) -> TRUE | M25: =ISBLANK(TRAYECTORIA!D43) -> TRUE | O25: =TRAYECTORIA!E42*-1 -> 0 | Q25: =Dn(Matriz2!O24,TRAYECTORIA!D41,(TRAYECTORIA!C42-TRAYECTORIA!C41)/2)+Dn(Matriz2!O25,TRAYECTORIA!D42,(TRAYECTORIA!C42-TRAYECTORIA!C41)/2)+Q24 -> 0 | R25: =De(Matriz2!O24,TRAYECTORIA!D41,(TRAYECTORIA!C42-TRAYECTORIA!C41)/2)+De(Matriz2!O25,TRAYECTORIA!D42,(TRAYECTORIA!C42-TRAYECTORIA!C41)/2)+R24 -> 0 | S25: =DVt(TRAYECTORIA!D41,(TRAYECTORIA!C42-TRAYECTORIA!C41)/2)+DVt(TRAYECTORIA!D42,(TRAYECTORIA!C42-TRAYECTORIA!C41)/2)+S24 -> 0 | T25: 0 | V25: 0 | W25: =Dn(Matriz2!$A$74,TRAYECTORIA!$P$10,TRAYECTORIA!C42-TRAYECTORIA!C41)+W24 -> 0 | X25: =De(Matriz2!$A$74,TRAYECTORIA!$P$10,TRAYECTORIA!C42-TRAYECTORIA!C41)+X24 -> 0 | Y25: =DVt(TRAYECTORIA!$P$10,TRAYECTORIA!C42-TRAYECTORIA!C41)+Y24 -> 0 | Z25: 0 | AA25: 0 | AC25: 0
A26: 168.4270405 | B26: 46.96375439 | C26: E | K26: =ISBLANK(TRAYECTORIA!#REF!) -> FALSE | L26: =ISBLANK(TRAYECTORIA!#REF!) -> FALSE | M26: =ISBLANK(TRAYECTORIA!#REF!) -> FALSE | O26: =TRAYECTORIA!E43*-1 -> 0 | Q26: =Dn(Matriz2!O25,TRAYECTORIA!D42,(TRAYECTORIA!C43-TRAYECTORIA!C42)/2)+Dn(Matriz2!O26,TRAYECTORIA!D43,(TRAYECTORIA!C43-TRAYECTORIA!C42)/2)+Q25 -> 0 | R26: =De(Matriz2!O25,TRAYECTORIA!D42,(TRAYECTORIA!C43-TRAYECTORIA!C42)/2)+De(Matriz2!O26,TRAYECTORIA!D43,(TRAYECTORIA!C43-TRAYECTORIA!C42)/2)+R25 -> 0 | S26: =DVt(TRAYECTORIA!D42,(TRAYECTORIA!C43-TRAYECTORIA!C42)/2)+DVt(TRAYECTORIA!D43,(TRAYECTORIA!C43-TRAYECTORIA!C42)/2)+S25 -> 0 | T26: 0 | V26: 0 | W26: =Dn(Matriz2!$A$74,TRAYECTORIA!$P$10,TRAYECTORIA!C43-TRAYECTORIA!C42)+W25 -> 0 | X26: =De(Matriz2!$A$74,TRAYECTORIA!$P$10,TRAYECTORIA!C43-TRAYECTORIA!C42)+X25 -> 0 | Y26: =DVt(TRAYECTORIA!$P$10,TRAYECTORIA!C43-TRAYECTORIA!C42)+Y25 -> 0 | Z26: 0 | AA26: 0 | AC26: 0
A27: 0 | B27: 0 | K27: =ISBLANK(TRAYECTORIA!#REF!) -> FALSE | L27: =ISBLANK(TRAYECTORIA!#REF!) -> FALSE | M27: =ISBLANK(TRAYECTORIA!#REF!) -> FALSE | O27: =TRAYECTORIA!#REF!*-1 ->  | Q27: =Dn(Matriz2!O26,TRAYECTORIA!D43,(TRAYECTORIA!#REF!-TRAYECTORIA!C43)/2)+Dn(Matriz2!O27,TRAYECTORIA!#REF!,(TRAYECTORIA!#REF!-TRAYECTORIA!C43)/2)+Q26 ->  | R27: =De(Matriz2!O26,TRAYECTORIA!D43,(TRAYECTORIA!#REF!-TRAYECTORIA!C43)/2)+De(Matriz2!O27,TRAYECTORIA!#REF!,(TRAYECTORIA!#REF!-TRAYECTORIA!C43)/2)+R26 ->  | S27: =DVt(TRAYECTORIA!D43,(TRAYECTORIA!#REF!-TRAYECTORIA!C43)/2)+DVt(TRAYECTORIA!#REF!,(TRAYECTORIA!#REF!-TRAYECTORIA!C43)/2)+S26 ->  | W27: =Dn(Matriz2!$A$74,TRAYECTORIA!$P$10,TRAYECTORIA!#REF!-TRAYECTORIA!C43)+W26 ->  | X27: =De(Matriz2!$A$74,TRAYECTORIA!$P$10,TRAYECTORIA!#REF!-TRAYECTORIA!C43)+X26 ->  | Y27: =DVt(TRAYECTORIA!$P$10,TRAYECTORIA!#REF!-TRAYECTORIA!C43)+Y26 -> 
A28: 0 | B28: 0 | K28: =ISBLANK(TRAYECTORIA!#REF!) -> FALSE | L28: =ISBLANK(TRAYECTORIA!#REF!) -> FALSE | M28: =ISBLANK(TRAYECTORIA!#REF!) -> FALSE | O28: =TRAYECTORIA!#REF!*-1 ->  | Q28: =Dn(Matriz2!O27,TRAYECTORIA!#REF!,(TRAYECTORIA!#REF!-TRAYECTORIA!#REF!)/2)+Dn(Matriz2!O28,TRAYECTORIA!#REF!,(TRAYECTORIA!#REF!-TRAYECTORIA!#REF!)/2)+Q27 ->  | R28: =De(Matriz2!O27,TRAYECTORIA!#REF!,(TRAYECTORIA!#REF!-TRAYECTORIA!#REF!)/2)+De(Matriz2!O28,TRAYECTORIA!#REF!,(TRAYECTORIA!#REF!-TRAYECTORIA!#REF!)/2)+R27 ->  | S28: =DVt(TRAYECTORIA!#REF!,(TRAYECTORIA!#REF!-TRAYECTORIA!#REF!)/2)+DVt(TRAYECTORIA!#REF!,(TRAYECTORIA!#REF!-TRAYECTORIA!#REF!)/2)+S27 ->  | W28: =Dn(Matriz2!$A$74,TRAYECTORIA!$P$10,TRAYECTORIA!#REF!-TRAYECTORIA!#REF!)+W27 ->  | X28: =De(Matriz2!$A$74,TRAYECTORIA!$P$10,TRAYECTORIA!#REF!-TRAYECTORIA!#REF!)+X27 ->  | Y28: =DVt(TRAYECTORIA!$P$10,TRAYECTORIA!#REF!-TRAYECTORIA!#REF!)+Y27 -> 
A29: 0 | C29: Profundidad | K29: =ISBLANK(TRAYECTORIA!#REF!) -> FALSE | L29: =ISBLANK(TRAYECTORIA!#REF!) -> FALSE | M29: =ISBLANK(TRAYECTORIA!#REF!) -> FALSE | O29: =TRAYECTORIA!#REF!*-1 ->  | Q29: =Dn(Matriz2!O28,TRAYECTORIA!#REF!,(TRAYECTORIA!#REF!-TRAYECTORIA!#REF!)/2)+Dn(Matriz2!O29,TRAYECTORIA!#REF!,(TRAYECTORIA!#REF!-TRAYECTORIA!#REF!)/2)+Q28 ->  | R29: =De(Matriz2!O28,TRAYECTORIA!#REF!,(TRAYECTORIA!#REF!-TRAYECTORIA!#REF!)/2)+De(Matriz2!O29,TRAYECTORIA!#REF!,(TRAYECTORIA!#REF!-TRAYECTORIA!#REF!)/2)+R28 ->  | S29: =DVt(TRAYECTORIA!#REF!,(TRAYECTORIA!#REF!-TRAYECTORIA!#REF!)/2)+DVt(TRAYECTORIA!#REF!,(TRAYECTORIA!#REF!-TRAYECTORIA!#REF!)/2)+S28 ->  | W29: =Dn(Matriz2!$A$74,TRAYECTORIA!$P$10,TRAYECTORIA!#REF!-TRAYECTORIA!#REF!)+W28 ->  | X29: =De(Matriz2!$A$74,TRAYECTORIA!$P$10,TRAYECTORIA!#REF!-TRAYECTORIA!#REF!)+X28 ->  | Y29: =DVt(TRAYECTORIA!$P$10,TRAYECTORIA!#REF!-TRAYECTORIA!#REF!)+Y28 -> 
K30: =ISBLANK(TRAYECTORIA!#REF!) -> FALSE | L30: =ISBLANK(TRAYECTORIA!#REF!) -> FALSE | M30: =ISBLANK(TRAYECTORIA!#REF!) -> FALSE | O30: =TRAYECTORIA!#REF!*-1 ->  | Q30: =Dn(Matriz2!O29,TRAYECTORIA!#REF!,(TRAYECTORIA!#REF!-TRAYECTORIA!#REF!)/2)+Dn(Matriz2!O30,TRAYECTORIA!#REF!,(TRAYECTORIA!#REF!-TRAYECTORIA!#REF!)/2)+Q29 ->  | R30: =De(Matriz2!O29,TRAYECTORIA!#REF!,(TRAYECTORIA!#REF!-TRAYECTORIA!#REF!)/2)+De(Matriz2!O30,TRAYECTORIA!#REF!,(TRAYECTORIA!#REF!-TRAYECTORIA!#REF!)/2)+R29 ->  | S30: =DVt(TRAYECTORIA!#REF!,(TRAYECTORIA!#REF!-TRAYECTORIA!#REF!)/2)+DVt(TRAYECTORIA!#REF!,(TRAYECTORIA!#REF!-TRAYECTORIA!#REF!)/2)+S29 ->  | W30: =Dn(Matriz2!$A$74,TRAYECTORIA!$P$10,TRAYECTORIA!#REF!-TRAYECTORIA!#REF!)+W29 ->  | X30: =De(Matriz2!$A$74,TRAYECTORIA!$P$10,TRAYECTORIA!#REF!-TRAYECTORIA!#REF!)+X29 ->  | Y30: =DVt(TRAYECTORIA!$P$10,TRAYECTORIA!#REF!-TRAYECTORIA!#REF!)+Y29 -> 
A31: Caja | K31: =ISBLANK(TRAYECTORIA!#REF!) -> FALSE | L31: =ISBLANK(TRAYECTORIA!#REF!) -> FALSE | M31: =ISBLANK(TRAYECTORIA!#REF!) -> FALSE | O31: =TRAYECTORIA!#REF!*-1 ->  | Q31: =Dn(Matriz2!O30,TRAYECTORIA!#REF!,(TRAYECTORIA!#REF!-TRAYECTORIA!#REF!)/2)+Dn(Matriz2!O31,TRAYECTORIA!#REF!,(TRAYECTORIA!#REF!-TRAYECTORIA!#REF!)/2)+Q30 ->  | R31: =De(Matriz2!O30,TRAYECTORIA!#REF!,(TRAYECTORIA!#REF!-TRAYECTORIA!#REF!)/2)+De(Matriz2!O31,TRAYECTORIA!#REF!,(TRAYECTORIA!#REF!-TRAYECTORIA!#REF!)/2)+R30 ->  | S31: =DVt(TRAYECTORIA!#REF!,(TRAYECTORIA!#REF!-TRAYECTORIA!#REF!)/2)+DVt(TRAYECTORIA!#REF!,(TRAYECTORIA!#REF!-TRAYECTORIA!#REF!)/2)+S30 ->  | W31: =Dn(Matriz2!$A$74,TRAYECTORIA!$P$10,TRAYECTORIA!#REF!-TRAYECTORIA!#REF!)+W30 ->  | X31: =De(Matriz2!$A$74,TRAYECTORIA!$P$10,TRAYECTORIA!#REF!-TRAYECTORIA!#REF!)+X30 ->  | Y31: =DVt(TRAYECTORIA!$P$10,TRAYECTORIA!#REF!-TRAYECTORIA!#REF!)+Y30 -> 
A32: X | B32: Y | C32: Z | K32: =ISBLANK(TRAYECTORIA!#REF!) -> FALSE | L32: =ISBLANK(TRAYECTORIA!#REF!) -> FALSE | M32: =ISBLANK(TRAYECTORIA!#REF!) -> FALSE | O32: =TRAYECTORIA!#REF!*-1 ->  | Q32: =Dn(Matriz2!O31,TRAYECTORIA!#REF!,(TRAYECTORIA!#REF!-TRAYECTORIA!#REF!)/2)+Dn(Matriz2!O32,TRAYECTORIA!#REF!,(TRAYECTORIA!#REF!-TRAYECTORIA!#REF!)/2)+Q31 ->  | R32: =De(Matriz2!O31,TRAYECTORIA!#REF!,(TRAYECTORIA!#REF!-TRAYECTORIA!#REF!)/2)+De(Matriz2!O32,TRAYECTORIA!#REF!,(TRAYECTORIA!#REF!-TRAYECTORIA!#REF!)/2)+R31 ->  | S32: =DVt(TRAYECTORIA!#REF!,(TRAYECTORIA!#REF!-TRAYECTORIA!#REF!)/2)+DVt(TRAYECTORIA!#REF!,(TRAYECTORIA!#REF!-TRAYECTORIA!#REF!)/2)+S31 ->  | W32: =Dn(Matriz2!$A$74,TRAYECTORIA!$P$10,TRAYECTORIA!#REF!-TRAYECTORIA!#REF!)+W31 ->  | X32: =De(Matriz2!$A$74,TRAYECTORIA!$P$10,TRAYECTORIA!#REF!-TRAYECTORIA!#REF!)+X31 ->  | Y32: =DVt(TRAYECTORIA!$P$10,TRAYECTORIA!#REF!-TRAYECTORIA!#REF!)+Y31 -> 
A33: =0-TRAYECTORIA!L$20 -> -828 | B33: =0-TRAYECTORIA!L$20 -> -828 | C33: 0 | K33: =ISBLANK(TRAYECTORIA!#REF!) -> FALSE | L33: =ISBLANK(TRAYECTORIA!#REF!) -> FALSE | M33: =ISBLANK(TRAYECTORIA!#REF!) -> FALSE | O33: =TRAYECTORIA!#REF!*-1 ->  | Q33: =Dn(Matriz2!O32,TRAYECTORIA!#REF!,(TRAYECTORIA!#REF!-TRAYECTORIA!#REF!)/2)+Dn(Matriz2!O33,TRAYECTORIA!#REF!,(TRAYECTORIA!#REF!-TRAYECTORIA!#REF!)/2)+Q32 ->  | R33: =De(Matriz2!O32,TRAYECTORIA!#REF!,(TRAYECTORIA!#REF!-TRAYECTORIA!#REF!)/2)+De(Matriz2!O33,TRAYECTORIA!#REF!,(TRAYECTORIA!#REF!-TRAYECTORIA!#REF!)/2)+R32 ->  | S33: =DVt(TRAYECTORIA!#REF!,(TRAYECTORIA!#REF!-TRAYECTORIA!#REF!)/2)+DVt(TRAYECTORIA!#REF!,(TRAYECTORIA!#REF!-TRAYECTORIA!#REF!)/2)+S32 ->  | W33: =Dn(Matriz2!$A$74,TRAYECTORIA!$P$10,TRAYECTORIA!#REF!-TRAYECTORIA!#REF!)+W32 ->  | X33: =De(Matriz2!$A$74,TRAYECTORIA!$P$10,TRAYECTORIA!#REF!-TRAYECTORIA!#REF!)+X32 ->  | Y33: =DVt(TRAYECTORIA!$P$10,TRAYECTORIA!#REF!-TRAYECTORIA!#REF!)+Y32 -> 
A34: =0+TRAYECTORIA!L$20 -> 828 | B34: =0-TRAYECTORIA!L$20 -> -828 | C34: 0 | K34: =ISBLANK(TRAYECTORIA!#REF!) -> FALSE | L34: =ISBLANK(TRAYECTORIA!#REF!) -> FALSE | M34: =ISBLANK(TRAYECTORIA!#REF!) -> FALSE | O34: =TRAYECTORIA!#REF!*-1 ->  | Q34: =Dn(Matriz2!O33,TRAYECTORIA!#REF!,(TRAYECTORIA!#REF!-TRAYECTORIA!#REF!)/2)+Dn(Matriz2!O34,TRAYECTORIA!#REF!,(TRAYECTORIA!#REF!-TRAYECTORIA!#REF!)/2)+Q33 ->  | R34: =De(Matriz2!O33,TRAYECTORIA!#REF!,(TRAYECTORIA!#REF!-TRAYECTORIA!#REF!)/2)+De(Matriz2!O34,TRAYECTORIA!#REF!,(TRAYECTORIA!#REF!-TRAYECTORIA!#REF!)/2)+R33 ->  | S34: =DVt(TRAYECTORIA!#REF!,(TRAYECTORIA!#REF!-TRAYECTORIA!#REF!)/2)+DVt(TRAYECTORIA!#REF!,(TRAYECTORIA!#REF!-TRAYECTORIA!#REF!)/2)+S33 ->  | W34: =Dn(Matriz2!$A$74,TRAYECTORIA!$P$10,TRAYECTORIA!#REF!-TRAYECTORIA!#REF!)+W33 ->  | X34: =De(Matriz2!$A$74,TRAYECTORIA!$P$10,TRAYECTORIA!#REF!-TRAYECTORIA!#REF!)+X33 ->  | Y34: =DVt(TRAYECTORIA!$P$10,TRAYECTORIA!#REF!-TRAYECTORIA!#REF!)+Y33 -> 
A35: =0+TRAYECTORIA!L$20 -> 828 | B35: =0+TRAYECTORIA!L$20 -> 828 | C35: 0 | K35: =ISBLANK(TRAYECTORIA!#REF!) -> FALSE | L35: =ISBLANK(TRAYECTORIA!#REF!) -> FALSE | M35: =ISBLANK(TRAYECTORIA!#REF!) -> FALSE | O35: =TRAYECTORIA!#REF!*-1 ->  | Q35: =Dn(Matriz2!O34,TRAYECTORIA!#REF!,(TRAYECTORIA!#REF!-TRAYECTORIA!#REF!)/2)+Dn(Matriz2!O35,TRAYECTORIA!#REF!,(TRAYECTORIA!#REF!-TRAYECTORIA!#REF!)/2)+Q34 ->  | R35: =De(Matriz2!O34,TRAYECTORIA!#REF!,(TRAYECTORIA!#REF!-TRAYECTORIA!#REF!)/2)+De(Matriz2!O35,TRAYECTORIA!#REF!,(TRAYECTORIA!#REF!-TRAYECTORIA!#REF!)/2)+R34 ->  | S35: =DVt(TRAYECTORIA!#REF!,(TRAYECTORIA!#REF!-TRAYECTORIA!#REF!)/2)+DVt(TRAYECTORIA!#REF!,(TRAYECTORIA!#REF!-TRAYECTORIA!#REF!)/2)+S34 ->  | W35: =Dn(Matriz2!$A$74,TRAYECTORIA!$P$10,TRAYECTORIA!#REF!-TRAYECTORIA!#REF!)+W34 ->  | X35: =De(Matriz2!$A$74,TRAYECTORIA!$P$10,TRAYECTORIA!#REF!-TRAYECTORIA!#REF!)+X34 ->  | Y35: =DVt(TRAYECTORIA!$P$10,TRAYECTORIA!#REF!-TRAYECTORIA!#REF!)+Y34 -> 
A36: =0-TRAYECTORIA!L$20 -> -828 | B36: =0+TRAYECTORIA!L$20 -> 828 | C36: 0 | K36: =ISBLANK(TRAYECTORIA!#REF!) -> FALSE | L36: =ISBLANK(TRAYECTORIA!#REF!) -> FALSE | M36: =ISBLANK(TRAYECTORIA!#REF!) -> FALSE | O36: =TRAYECTORIA!#REF!*-1 ->  | Q36: =Dn(Matriz2!O35,TRAYECTORIA!#REF!,(TRAYECTORIA!#REF!-TRAYECTORIA!#REF!)/2)+Dn(Matriz2!O36,TRAYECTORIA!#REF!,(TRAYECTORIA!#REF!-TRAYECTORIA!#REF!)/2)+Q35 ->  | R36: =De(Matriz2!O35,TRAYECTORIA!#REF!,(TRAYECTORIA!#REF!-TRAYECTORIA!#REF!)/2)+De(Matriz2!O36,TRAYECTORIA!#REF!,(TRAYECTORIA!#REF!-TRAYECTORIA!#REF!)/2)+R35 ->  | S36: =DVt(TRAYECTORIA!#REF!,(TRAYECTORIA!#REF!-TRAYECTORIA!#REF!)/2)+DVt(TRAYECTORIA!#REF!,(TRAYECTORIA!#REF!-TRAYECTORIA!#REF!)/2)+S35 ->  | W36: =Dn(Matriz2!$A$74,TRAYECTORIA!$P$10,TRAYECTORIA!#REF!-TRAYECTORIA!#REF!)+W35 ->  | X36: =De(Matriz2!$A$74,TRAYECTORIA!$P$10,TRAYECTORIA!#REF!-TRAYECTORIA!#REF!)+X35 ->  | Y36: =DVt(TRAYECTORIA!$P$10,TRAYECTORIA!#REF!-TRAYECTORIA!#REF!)+Y35 -> 
A37: =0-TRAYECTORIA!L$20 -> -828 | B37: =0-TRAYECTORIA!L$20 -> -828 | C37: 0 | K37: =ISBLANK(TRAYECTORIA!#REF!) -> FALSE | L37: =ISBLANK(TRAYECTORIA!#REF!) -> FALSE | M37: =ISBLANK(TRAYECTORIA!#REF!) -> FALSE | O37: =TRAYECTORIA!#REF!*-1 ->  | Q37: =Dn(Matriz2!O36,TRAYECTORIA!#REF!,(TRAYECTORIA!#REF!-TRAYECTORIA!#REF!)/2)+Dn(Matriz2!O37,TRAYECTORIA!#REF!,(TRAYECTORIA!#REF!-TRAYECTORIA!#REF!)/2)+Q36 ->  | R37: =De(Matriz2!O36,TRAYECTORIA!#REF!,(TRAYECTORIA!#REF!-TRAYECTORIA!#REF!)/2)+De(Matriz2!O37,TRAYECTORIA!#REF!,(TRAYECTORIA!#REF!-TRAYECTORIA!#REF!)/2)+R36 ->  | S37: =DVt(TRAYECTORIA!#REF!,(TRAYECTORIA!#REF!-TRAYECTORIA!#REF!)/2)+DVt(TRAYECTORIA!#REF!,(TRAYECTORIA!#REF!-TRAYECTORIA!#REF!)/2)+S36 ->  | W37: =Dn(Matriz2!$A$74,TRAYECTORIA!$P$10,TRAYECTORIA!#REF!-TRAYECTORIA!#REF!)+W36 ->  | X37: =De(Matriz2!$A$74,TRAYECTORIA!$P$10,TRAYECTORIA!#REF!-TRAYECTORIA!#REF!)+X36 ->  | Y37: =DVt(TRAYECTORIA!$P$10,TRAYECTORIA!#REF!-TRAYECTORIA!#REF!)+Y36 -> 
A38: =0-TRAYECTORIA!L$20 -> -828 | B38: =0-TRAYECTORIA!L$20 -> -828 | C38: =0+TRAYECTORIA!P$8 -> 0 | K38: =ISBLANK(TRAYECTORIA!#REF!) -> FALSE | L38: =ISBLANK(TRAYECTORIA!#REF!) -> FALSE | M38: =ISBLANK(TRAYECTORIA!#REF!) -> FALSE | O38: =TRAYECTORIA!#REF!*-1 ->  | Q38: =Dn(Matriz2!O37,TRAYECTORIA!#REF!,(TRAYECTORIA!#REF!-TRAYECTORIA!#REF!)/2)+Dn(Matriz2!O38,TRAYECTORIA!#REF!,(TRAYECTORIA!#REF!-TRAYECTORIA!#REF!)/2)+Q37 ->  | R38: =De(Matriz2!O37,TRAYECTORIA!#REF!,(TRAYECTORIA!#REF!-TRAYECTORIA!#REF!)/2)+De(Matriz2!O38,TRAYECTORIA!#REF!,(TRAYECTORIA!#REF!-TRAYECTORIA!#REF!)/2)+R37 ->  | S38: =DVt(TRAYECTORIA!#REF!,(TRAYECTORIA!#REF!-TRAYECTORIA!#REF!)/2)+DVt(TRAYECTORIA!#REF!,(TRAYECTORIA!#REF!-TRAYECTORIA!#REF!)/2)+S37 ->  | W38: =Dn(Matriz2!$A$74,TRAYECTORIA!$P$10,TRAYECTORIA!#REF!-TRAYECTORIA!#REF!)+W37 ->  | X38: =De(Matriz2!$A$74,TRAYECTORIA!$P$10,TRAYECTORIA!#REF!-TRAYECTORIA!#REF!)+X37 ->  | Y38: =DVt(TRAYECTORIA!$P$10,TRAYECTORIA!#REF!-TRAYECTORIA!#REF!)+Y37 -> 
A39: =0+TRAYECTORIA!L$20 -> 828 | B39: =0-TRAYECTORIA!L$20 -> -828 | C39: =0+TRAYECTORIA!P$8 -> 0 | K39: =ISBLANK(TRAYECTORIA!#REF!) -> FALSE | L39: =ISBLANK(TRAYECTORIA!#REF!) -> FALSE | M39: =ISBLANK(TRAYECTORIA!#REF!) -> FALSE | O39: =TRAYECTORIA!#REF!*-1 ->  | Q39: =Dn(Matriz2!O38,TRAYECTORIA!#REF!,(TRAYECTORIA!#REF!-TRAYECTORIA!#REF!)/2)+Dn(Matriz2!O39,TRAYECTORIA!#REF!,(TRAYECTORIA!#REF!-TRAYECTORIA!#REF!)/2)+Q38 ->  | R39: =De(Matriz2!O38,TRAYECTORIA!#REF!,(TRAYECTORIA!#REF!-TRAYECTORIA!#REF!)/2)+De(Matriz2!O39,TRAYECTORIA!#REF!,(TRAYECTORIA!#REF!-TRAYECTORIA!#REF!)/2)+R38 ->  | S39: =DVt(TRAYECTORIA!#REF!,(TRAYECTORIA!#REF!-TRAYECTORIA!#REF!)/2)+DVt(TRAYECTORIA!#REF!,(TRAYECTORIA!#REF!-TRAYECTORIA!#REF!)/2)+S38 ->  | W39: =Dn(Matriz2!$A$74,TRAYECTORIA!$P$10,TRAYECTORIA!#REF!-TRAYECTORIA!#REF!)+W38 ->  | X39: =De(Matriz2!$A$74,TRAYECTORIA!$P$10,TRAYECTORIA!#REF!-TRAYECTORIA!#REF!)+X38 ->  | Y39: =DVt(TRAYECTORIA!$P$10,TRAYECTORIA!#REF!-TRAYECTORIA!#REF!)+Y38 -> 
A40: =0+TRAYECTORIA!L$20 -> 828 | B40: =0+TRAYECTORIA!L$20 -> 828 | C40: =0+TRAYECTORIA!P$8 -> 0 | K40: =ISBLANK(TRAYECTORIA!#REF!) -> FALSE | L40: =ISBLANK(TRAYECTORIA!#REF!) -> FALSE | M40: =ISBLANK(TRAYECTORIA!#REF!) -> FALSE | O40: =TRAYECTORIA!#REF!*-1 ->  | Q40: =Dn(Matriz2!O39,TRAYECTORIA!#REF!,(TRAYECTORIA!#REF!-TRAYECTORIA!#REF!)/2)+Dn(Matriz2!O40,TRAYECTORIA!#REF!,(TRAYECTORIA!#REF!-TRAYECTORIA!#REF!)/2)+Q39 ->  | R40: =De(Matriz2!O39,TRAYECTORIA!#REF!,(TRAYECTORIA!#REF!-TRAYECTORIA!#REF!)/2)+De(Matriz2!O40,TRAYECTORIA!#REF!,(TRAYECTORIA!#REF!-TRAYECTORIA!#REF!)/2)+R39 ->  | S40: =DVt(TRAYECTORIA!#REF!,(TRAYECTORIA!#REF!-TRAYECTORIA!#REF!)/2)+DVt(TRAYECTORIA!#REF!,(TRAYECTORIA!#REF!-TRAYECTORIA!#REF!)/2)+S39 ->  | W40: =Dn(Matriz2!$A$74,TRAYECTORIA!$P$10,TRAYECTORIA!#REF!-TRAYECTORIA!#REF!)+W39 ->  | X40: =De(Matriz2!$A$74,TRAYECTORIA!$P$10,TRAYECTORIA!#REF!-TRAYECTORIA!#REF!)+X39 ->  | Y40: =DVt(TRAYECTORIA!$P$10,TRAYECTORIA!#REF!-TRAYECTORIA!#REF!)+Y39 -> 
A41: =0-TRAYECTORIA!L$20 -> -828 | B41: =0+TRAYECTORIA!L$20 -> 828 | C41: =0+TRAYECTORIA!P$8 -> 0 | K41: =ISBLANK(TRAYECTORIA!#REF!) -> FALSE | L41: =ISBLANK(TRAYECTORIA!#REF!) -> FALSE | M41: =ISBLANK(TRAYECTORIA!#REF!) -> FALSE | O41: =TRAYECTORIA!#REF!*-1 ->  | Q41: =Dn(Matriz2!O40,TRAYECTORIA!#REF!,(TRAYECTORIA!#REF!-TRAYECTORIA!#REF!)/2)+Dn(Matriz2!O41,TRAYECTORIA!#REF!,(TRAYECTORIA!#REF!-TRAYECTORIA!#REF!)/2)+Q40 ->  | R41: =De(Matriz2!O40,TRAYECTORIA!#REF!,(TRAYECTORIA!#REF!-TRAYECTORIA!#REF!)/2)+De(Matriz2!O41,TRAYECTORIA!#REF!,(TRAYECTORIA!#REF!-TRAYECTORIA!#REF!)/2)+R40 ->  | S41: =DVt(TRAYECTORIA!#REF!,(TRAYECTORIA!#REF!-TRAYECTORIA!#REF!)/2)+DVt(TRAYECTORIA!#REF!,(TRAYECTORIA!#REF!-TRAYECTORIA!#REF!)/2)+S40 ->  | W41: =Dn(Matriz2!$A$74,TRAYECTORIA!$P$10,TRAYECTORIA!#REF!-TRAYECTORIA!#REF!)+W40 ->  | X41: =De(Matriz2!$A$74,TRAYECTORIA!$P$10,TRAYECTORIA!#REF!-TRAYECTORIA!#REF!)+X40 ->  | Y41: =DVt(TRAYECTORIA!$P$10,TRAYECTORIA!#REF!-TRAYECTORIA!#REF!)+Y40 -> 
A42: =0-TRAYECTORIA!L$20 -> -828 | B42: =0-TRAYECTORIA!L$20 -> -828 | C42: =0+TRAYECTORIA!P$8 -> 0 | K42: =ISBLANK(TRAYECTORIA!#REF!) -> FALSE | L42: =ISBLANK(TRAYECTORIA!#REF!) -> FALSE | M42: =ISBLANK(TRAYECTORIA!#REF!) -> FALSE | O42: =TRAYECTORIA!#REF!*-1 ->  | Q42: =Dn(Matriz2!O41,TRAYECTORIA!#REF!,(TRAYECTORIA!#REF!-TRAYECTORIA!#REF!)/2)+Dn(Matriz2!O42,TRAYECTORIA!#REF!,(TRAYECTORIA!#REF!-TRAYECTORIA!#REF!)/2)+Q41 ->  | R42: =De(Matriz2!O41,TRAYECTORIA!#REF!,(TRAYECTORIA!#REF!-TRAYECTORIA!#REF!)/2)+De(Matriz2!O42,TRAYECTORIA!#REF!,(TRAYECTORIA!#REF!-TRAYECTORIA!#REF!)/2)+R41 ->  | S42: =DVt(TRAYECTORIA!#REF!,(TRAYECTORIA!#REF!-TRAYECTORIA!#REF!)/2)+DVt(TRAYECTORIA!#REF!,(TRAYECTORIA!#REF!-TRAYECTORIA!#REF!)/2)+S41 ->  | W42: =Dn(Matriz2!$A$74,TRAYECTORIA!$P$10,TRAYECTORIA!#REF!-TRAYECTORIA!#REF!)+W41 ->  | X42: =De(Matriz2!$A$74,TRAYECTORIA!$P$10,TRAYECTORIA!#REF!-TRAYECTORIA!#REF!)+X41 ->  | Y42: =DVt(TRAYECTORIA!$P$10,TRAYECTORIA!#REF!-TRAYECTORIA!#REF!)+Y41 -> 
K43: =ISBLANK(TRAYECTORIA!#REF!) -> FALSE | L43: =ISBLANK(TRAYECTORIA!#REF!) -> FALSE | M43: =ISBLANK(TRAYECTORIA!#REF!) -> FALSE | O43: =TRAYECTORIA!#REF!*-1 ->  | Q43: =Dn(Matriz2!O42,TRAYECTORIA!#REF!,(TRAYECTORIA!#REF!-TRAYECTORIA!#REF!)/2)+Dn(Matriz2!O43,TRAYECTORIA!#REF!,(TRAYECTORIA!#REF!-TRAYECTORIA!#REF!)/2)+Q42 ->  | R43: =De(Matriz2!O42,TRAYECTORIA!#REF!,(TRAYECTORIA!#REF!-TRAYECTORIA!#REF!)/2)+De(Matriz2!O43,TRAYECTORIA!#REF!,(TRAYECTORIA!#REF!-TRAYECTORIA!#REF!)/2)+R42 ->  | S43: =DVt(TRAYECTORIA!#REF!,(TRAYECTORIA!#REF!-TRAYECTORIA!#REF!)/2)+DVt(TRAYECTORIA!#REF!,(TRAYECTORIA!#REF!-TRAYECTORIA!#REF!)/2)+S42 ->  | W43: =Dn(Matriz2!$A$74,TRAYECTORIA!$P$10,TRAYECTORIA!#REF!-TRAYECTORIA!#REF!)+W42 ->  | X43: =De(Matriz2!$A$74,TRAYECTORIA!$P$10,TRAYECTORIA!#REF!-TRAYECTORIA!#REF!)+X42 ->  | Y43: =DVt(TRAYECTORIA!$P$10,TRAYECTORIA!#REF!-TRAYECTORIA!#REF!)+Y42 -> 
A44: =0-TRAYECTORIA!L$20 -> -828 | B44: =0+TRAYECTORIA!L$20 -> 828 | C44: =0+TRAYECTORIA!P$8 -> 0 | K44: =ISBLANK(TRAYECTORIA!#REF!) -> FALSE | L44: =ISBLANK(TRAYECTORIA!#REF!) -> FALSE | M44: =ISBLANK(TRAYECTORIA!#REF!) -> FALSE | O44: =TRAYECTORIA!#REF!*-1 ->  | Q44: =Dn(Matriz2!O43,TRAYECTORIA!#REF!,(TRAYECTORIA!#REF!-TRAYECTORIA!#REF!)/2)+Dn(Matriz2!O44,TRAYECTORIA!#REF!,(TRAYECTORIA!#REF!-TRAYECTORIA!#REF!)/2)+Q43 ->  | R44: =De(Matriz2!O43,TRAYECTORIA!#REF!,(TRAYECTORIA!#REF!-TRAYECTORIA!#REF!)/2)+De(Matriz2!O44,TRAYECTORIA!#REF!,(TRAYECTORIA!#REF!-TRAYECTORIA!#REF!)/2)+R43 ->  | S44: =DVt(TRAYECTORIA!#REF!,(TRAYECTORIA!#REF!-TRAYECTORIA!#REF!)/2)+DVt(TRAYECTORIA!#REF!,(TRAYECTORIA!#REF!-TRAYECTORIA!#REF!)/2)+S43 ->  | W44: =Dn(Matriz2!$A$74,TRAYECTORIA!$P$10,TRAYECTORIA!#REF!-TRAYECTORIA!#REF!)+W43 ->  | X44: =De(Matriz2!$A$74,TRAYECTORIA!$P$10,TRAYECTORIA!#REF!-TRAYECTORIA!#REF!)+X43 ->  | Y44: =DVt(TRAYECTORIA!$P$10,TRAYECTORIA!#REF!-TRAYECTORIA!#REF!)+Y43 -> 
A45: =0-TRAYECTORIA!L$20 -> -828 | B45: =0+TRAYECTORIA!L$20 -> 828 | C45: 0 | K45: =ISBLANK(TRAYECTORIA!#REF!) -> FALSE | L45: =ISBLANK(TRAYECTORIA!#REF!) -> FALSE | M45: =ISBLANK(TRAYECTORIA!#REF!) -> FALSE | O45: =TRAYECTORIA!#REF!*-1 ->  | Q45: =Dn(Matriz2!O44,TRAYECTORIA!#REF!,(TRAYECTORIA!#REF!-TRAYECTORIA!#REF!)/2)+Dn(Matriz2!O45,TRAYECTORIA!#REF!,(TRAYECTORIA!#REF!-TRAYECTORIA!#REF!)/2)+Q44 ->  | R45: =De(Matriz2!O44,TRAYECTORIA!#REF!,(TRAYECTORIA!#REF!-TRAYECTORIA!#REF!)/2)+De(Matriz2!O45,TRAYECTORIA!#REF!,(TRAYECTORIA!#REF!-TRAYECTORIA!#REF!)/2)+R44 ->  | S45: =DVt(TRAYECTORIA!#REF!,(TRAYECTORIA!#REF!-TRAYECTORIA!#REF!)/2)+DVt(TRAYECTORIA!#REF!,(TRAYECTORIA!#REF!-TRAYECTORIA!#REF!)/2)+S44 ->  | W45: =Dn(Matriz2!$A$74,TRAYECTORIA!$P$10,TRAYECTORIA!#REF!-TRAYECTORIA!#REF!)+W44 ->  | X45: =De(Matriz2!$A$74,TRAYECTORIA!$P$10,TRAYECTORIA!#REF!-TRAYECTORIA!#REF!)+X44 ->  | Y45: =DVt(TRAYECTORIA!$P$10,TRAYECTORIA!#REF!-TRAYECTORIA!#REF!)+Y44 -> 
K46: =ISBLANK(TRAYECTORIA!#REF!) -> FALSE | L46: =ISBLANK(TRAYECTORIA!#REF!) -> FALSE | M46: =ISBLANK(TRAYECTORIA!#REF!) -> FALSE | O46: =TRAYECTORIA!#REF!*-1 ->  | Q46: =Dn(Matriz2!O45,TRAYECTORIA!#REF!,(TRAYECTORIA!#REF!-TRAYECTORIA!#REF!)/2)+Dn(Matriz2!O46,TRAYECTORIA!#REF!,(TRAYECTORIA!#REF!-TRAYECTORIA!#REF!)/2)+Q45 ->  | R46: =De(Matriz2!O45,TRAYECTORIA!#REF!,(TRAYECTORIA!#REF!-TRAYECTORIA!#REF!)/2)+De(Matriz2!O46,TRAYECTORIA!#REF!,(TRAYECTORIA!#REF!-TRAYECTORIA!#REF!)/2)+R45 ->  | S46: =DVt(TRAYECTORIA!#REF!,(TRAYECTORIA!#REF!-TRAYECTORIA!#REF!)/2)+DVt(TRAYECTORIA!#REF!,(TRAYECTORIA!#REF!-TRAYECTORIA!#REF!)/2)+S45 ->  | W46: =Dn(Matriz2!$A$74,TRAYECTORIA!$P$10,TRAYECTORIA!#REF!-TRAYECTORIA!#REF!)+W45 ->  | X46: =De(Matriz2!$A$74,TRAYECTORIA!$P$10,TRAYECTORIA!#REF!-TRAYECTORIA!#REF!)+X45 ->  | Y46: =DVt(TRAYECTORIA!$P$10,TRAYECTORIA!#REF!-TRAYECTORIA!#REF!)+Y45 -> 
A47: =0+TRAYECTORIA!L$20 -> 828 | B47: =0+TRAYECTORIA!L$20 -> 828 | C47: 0 | K47: =ISBLANK(TRAYECTORIA!#REF!) -> FALSE | L47: =ISBLANK(TRAYECTORIA!#REF!) -> FALSE | M47: =ISBLANK(TRAYECTORIA!#REF!) -> FALSE | O47: =TRAYECTORIA!#REF!*-1 ->  | Q47: =Dn(Matriz2!O46,TRAYECTORIA!#REF!,(TRAYECTORIA!#REF!-TRAYECTORIA!#REF!)/2)+Dn(Matriz2!O47,TRAYECTORIA!#REF!,(TRAYECTORIA!#REF!-TRAYECTORIA!#REF!)/2)+Q46 ->  | R47: =De(Matriz2!O46,TRAYECTORIA!#REF!,(TRAYECTORIA!#REF!-TRAYECTORIA!#REF!)/2)+De(Matriz2!O47,TRAYECTORIA!#REF!,(TRAYECTORIA!#REF!-TRAYECTORIA!#REF!)/2)+R46 ->  | S47: =DVt(TRAYECTORIA!#REF!,(TRAYECTORIA!#REF!-TRAYECTORIA!#REF!)/2)+DVt(TRAYECTORIA!#REF!,(TRAYECTORIA!#REF!-TRAYECTORIA!#REF!)/2)+S46 ->  | W47: =Dn(Matriz2!$A$74,TRAYECTORIA!$P$10,TRAYECTORIA!#REF!-TRAYECTORIA!#REF!)+W46 ->  | X47: =De(Matriz2!$A$74,TRAYECTORIA!$P$10,TRAYECTORIA!#REF!-TRAYECTORIA!#REF!)+X46 ->  | Y47: =DVt(TRAYECTORIA!$P$10,TRAYECTORIA!#REF!-TRAYECTORIA!#REF!)+Y46 -> 
A48: =0+TRAYECTORIA!L$20 -> 828 | B48: =0+TRAYECTORIA!L$20 -> 828 | C48: =0+TRAYECTORIA!P$8 -> 0 | K48: =ISBLANK(TRAYECTORIA!#REF!) -> FALSE | L48: =ISBLANK(TRAYECTORIA!#REF!) -> FALSE | M48: =ISBLANK(TRAYECTORIA!#REF!) -> FALSE | O48: =TRAYECTORIA!#REF!*-1 ->  | Q48: =Dn(Matriz2!O47,TRAYECTORIA!#REF!,(TRAYECTORIA!#REF!-TRAYECTORIA!#REF!)/2)+Dn(Matriz2!O48,TRAYECTORIA!#REF!,(TRAYECTORIA!#REF!-TRAYECTORIA!#REF!)/2)+Q47 ->  | R48: =De(Matriz2!O47,TRAYECTORIA!#REF!,(TRAYECTORIA!#REF!-TRAYECTORIA!#REF!)/2)+De(Matriz2!O48,TRAYECTORIA!#REF!,(TRAYECTORIA!#REF!-TRAYECTORIA!#REF!)/2)+R47 ->  | S48: =DVt(TRAYECTORIA!#REF!,(TRAYECTORIA!#REF!-TRAYECTORIA!#REF!)/2)+DVt(TRAYECTORIA!#REF!,(TRAYECTORIA!#REF!-TRAYECTORIA!#REF!)/2)+S47 ->  | W48: =Dn(Matriz2!$A$74,TRAYECTORIA!$P$10,TRAYECTORIA!#REF!-TRAYECTORIA!#REF!)+W47 ->  | X48: =De(Matriz2!$A$74,TRAYECTORIA!$P$10,TRAYECTORIA!#REF!-TRAYECTORIA!#REF!)+X47 ->  | Y48: =DVt(TRAYECTORIA!$P$10,TRAYECTORIA!#REF!-TRAYECTORIA!#REF!)+Y47 -> 
K49: =ISBLANK(TRAYECTORIA!#REF!) -> FALSE | L49: =ISBLANK(TRAYECTORIA!#REF!) -> FALSE | M49: =ISBLANK(TRAYECTORIA!#REF!) -> FALSE | O49: =TRAYECTORIA!#REF!*-1 ->  | Q49: =Dn(Matriz2!O48,TRAYECTORIA!#REF!,(TRAYECTORIA!#REF!-TRAYECTORIA!#REF!)/2)+Dn(Matriz2!O49,TRAYECTORIA!#REF!,(TRAYECTORIA!#REF!-TRAYECTORIA!#REF!)/2)+Q48 ->  | R49: =De(Matriz2!O48,TRAYECTORIA!#REF!,(TRAYECTORIA!#REF!-TRAYECTORIA!#REF!)/2)+De(Matriz2!O49,TRAYECTORIA!#REF!,(TRAYECTORIA!#REF!-TRAYECTORIA!#REF!)/2)+R48 ->  | S49: =DVt(TRAYECTORIA!#REF!,(TRAYECTORIA!#REF!-TRAYECTORIA!#REF!)/2)+DVt(TRAYECTORIA!#REF!,(TRAYECTORIA!#REF!-TRAYECTORIA!#REF!)/2)+S48 ->  | W49: =Dn(Matriz2!$A$74,TRAYECTORIA!$P$10,TRAYECTORIA!#REF!-TRAYECTORIA!#REF!)+W48 ->  | X49: =De(Matriz2!$A$74,TRAYECTORIA!$P$10,TRAYECTORIA!#REF!-TRAYECTORIA!#REF!)+X48 ->  | Y49: =DVt(TRAYECTORIA!$P$10,TRAYECTORIA!#REF!-TRAYECTORIA!#REF!)+Y48 -> 
A50: =0+TRAYECTORIA!L$20 -> 828 | B50: =0-TRAYECTORIA!L$20 -> -828 | C50: =0+TRAYECTORIA!P$8 -> 0 | K50: =ISBLANK(TRAYECTORIA!#REF!) -> FALSE | L50: =ISBLANK(TRAYECTORIA!#REF!) -> FALSE | M50: =ISBLANK(TRAYECTORIA!#REF!) -> FALSE | O50: =TRAYECTORIA!#REF!*-1 ->  | Q50: =Dn(Matriz2!O49,TRAYECTORIA!#REF!,(TRAYECTORIA!#REF!-TRAYECTORIA!#REF!)/2)+Dn(Matriz2!O50,TRAYECTORIA!#REF!,(TRAYECTORIA!#REF!-TRAYECTORIA!#REF!)/2)+Q49 ->  | R50: =De(Matriz2!O49,TRAYECTORIA!#REF!,(TRAYECTORIA!#REF!-TRAYECTORIA!#REF!)/2)+De(Matriz2!O50,TRAYECTORIA!#REF!,(TRAYECTORIA!#REF!-TRAYECTORIA!#REF!)/2)+R49 ->  | S50: =DVt(TRAYECTORIA!#REF!,(TRAYECTORIA!#REF!-TRAYECTORIA!#REF!)/2)+DVt(TRAYECTORIA!#REF!,(TRAYECTORIA!#REF!-TRAYECTORIA!#REF!)/2)+S49 ->  | W50: =Dn(Matriz2!$A$74,TRAYECTORIA!$P$10,TRAYECTORIA!#REF!-TRAYECTORIA!#REF!)+W49 ->  | X50: =De(Matriz2!$A$74,TRAYECTORIA!$P$10,TRAYECTORIA!#REF!-TRAYECTORIA!#REF!)+X49 ->  | Y50: =DVt(TRAYECTORIA!$P$10,TRAYECTORIA!#REF!-TRAYECTORIA!#REF!)+Y49 -> 
A51: =0+TRAYECTORIA!L$20 -> 828 | B51: =0-TRAYECTORIA!L$20 -> -828 | C51: 0 | K51: =ISBLANK(TRAYECTORIA!#REF!) -> FALSE | L51: =ISBLANK(TRAYECTORIA!#REF!) -> FALSE | M51: =ISBLANK(TRAYECTORIA!#REF!) -> FALSE | O51: =TRAYECTORIA!#REF!*-1 ->  | Q51: =Dn(Matriz2!O50,TRAYECTORIA!#REF!,(TRAYECTORIA!#REF!-TRAYECTORIA!#REF!)/2)+Dn(Matriz2!O51,TRAYECTORIA!#REF!,(TRAYECTORIA!#REF!-TRAYECTORIA!#REF!)/2)+Q50 ->  | R51: =De(Matriz2!O50,TRAYECTORIA!#REF!,(TRAYECTORIA!#REF!-TRAYECTORIA!#REF!)/2)+De(Matriz2!O51,TRAYECTORIA!#REF!,(TRAYECTORIA!#REF!-TRAYECTORIA!#REF!)/2)+R50 ->  | S51: =DVt(TRAYECTORIA!#REF!,(TRAYECTORIA!#REF!-TRAYECTORIA!#REF!)/2)+DVt(TRAYECTORIA!#REF!,(TRAYECTORIA!#REF!-TRAYECTORIA!#REF!)/2)+S50 ->  | W51: =Dn(Matriz2!$A$74,TRAYECTORIA!$P$10,TRAYECTORIA!#REF!-TRAYECTORIA!#REF!)+W50 ->  | X51: =De(Matriz2!$A$74,TRAYECTORIA!$P$10,TRAYECTORIA!#REF!-TRAYECTORIA!#REF!)+X50 ->  | Y51: =DVt(TRAYECTORIA!$P$10,TRAYECTORIA!#REF!-TRAYECTORIA!#REF!)+Y50 -> 
K52: =ISBLANK(TRAYECTORIA!#REF!) -> FALSE | L52: =ISBLANK(TRAYECTORIA!#REF!) -> FALSE | M52: =ISBLANK(TRAYECTORIA!#REF!) -> FALSE | O52: =TRAYECTORIA!#REF!*-1 ->  | Q52: =Dn(Matriz2!O51,TRAYECTORIA!#REF!,(TRAYECTORIA!#REF!-TRAYECTORIA!#REF!)/2)+Dn(Matriz2!O52,TRAYECTORIA!#REF!,(TRAYECTORIA!#REF!-TRAYECTORIA!#REF!)/2)+Q51 ->  | R52: =De(Matriz2!O51,TRAYECTORIA!#REF!,(TRAYECTORIA!#REF!-TRAYECTORIA!#REF!)/2)+De(Matriz2!O52,TRAYECTORIA!#REF!,(TRAYECTORIA!#REF!-TRAYECTORIA!#REF!)/2)+R51 ->  | S52: =DVt(TRAYECTORIA!#REF!,(TRAYECTORIA!#REF!-TRAYECTORIA!#REF!)/2)+DVt(TRAYECTORIA!#REF!,(TRAYECTORIA!#REF!-TRAYECTORIA!#REF!)/2)+S51 ->  | W52: =Dn(Matriz2!$A$74,TRAYECTORIA!$P$10,TRAYECTORIA!#REF!-TRAYECTORIA!#REF!)+W51 ->  | X52: =De(Matriz2!$A$74,TRAYECTORIA!$P$10,TRAYECTORIA!#REF!-TRAYECTORIA!#REF!)+X51 ->  | Y52: =DVt(TRAYECTORIA!$P$10,TRAYECTORIA!#REF!-TRAYECTORIA!#REF!)+Y51 -> 
A53: =(A33*_RMX1)+(B33*_RMY1)+(C33*_RMZ1) -> -1133.418359 | B53: =(A33*_RMX2)+(B33*_RMY2)+(C33*_RMZ2) -> 281.4899411 | K53: =ISBLANK(TRAYECTORIA!#REF!) -> FALSE | L53: =ISBLANK(TRAYECTORIA!#REF!) -> FALSE | M53: =ISBLANK(TRAYECTORIA!#REF!) -> FALSE | O53: =TRAYECTORIA!#REF!*-1 ->  | Q53: =Dn(Matriz2!O52,TRAYECTORIA!#REF!,(TRAYECTORIA!#REF!-TRAYECTORIA!#REF!)/2)+Dn(Matriz2!O53,TRAYECTORIA!#REF!,(TRAYECTORIA!#REF!-TRAYECTORIA!#REF!)/2)+Q52 ->  | R53: =De(Matriz2!O52,TRAYECTORIA!#REF!,(TRAYECTORIA!#REF!-TRAYECTORIA!#REF!)/2)+De(Matriz2!O53,TRAYECTORIA!#REF!,(TRAYECTORIA!#REF!-TRAYECTORIA!#REF!)/2)+R52 ->  | S53: =DVt(TRAYECTORIA!#REF!,(TRAYECTORIA!#REF!-TRAYECTORIA!#REF!)/2)+DVt(TRAYECTORIA!#REF!,(TRAYECTORIA!#REF!-TRAYECTORIA!#REF!)/2)+S52 ->  | W53: =Dn(Matriz2!$A$74,TRAYECTORIA!$P$10,TRAYECTORIA!#REF!-TRAYECTORIA!#REF!)+W52 ->  | X53: =De(Matriz2!$A$74,TRAYECTORIA!$P$10,TRAYECTORIA!#REF!-TRAYECTORIA!#REF!)+X52 ->  | Y53: =DVt(TRAYECTORIA!$P$10,TRAYECTORIA!#REF!-TRAYECTORIA!#REF!)+Y52 -> 
A54: -79.25633244 | B54: -619.6289728 | K54: =ISBLANK(TRAYECTORIA!#REF!) -> FALSE | L54: =ISBLANK(TRAYECTORIA!#REF!) -> FALSE | M54: =ISBLANK(TRAYECTORIA!#REF!) -> FALSE | O54: =TRAYECTORIA!#REF!*-1 ->  | Q54: =Dn(Matriz2!O53,TRAYECTORIA!#REF!,(TRAYECTORIA!#REF!-TRAYECTORIA!#REF!)/2)+Dn(Matriz2!O54,TRAYECTORIA!#REF!,(TRAYECTORIA!#REF!-TRAYECTORIA!#REF!)/2)+Q53 ->  | R54: =De(Matriz2!O53,TRAYECTORIA!#REF!,(TRAYECTORIA!#REF!-TRAYECTORIA!#REF!)/2)+De(Matriz2!O54,TRAYECTORIA!#REF!,(TRAYECTORIA!#REF!-TRAYECTORIA!#REF!)/2)+R53 ->  | S54: =DVt(TRAYECTORIA!#REF!,(TRAYECTORIA!#REF!-TRAYECTORIA!#REF!)/2)+DVt(TRAYECTORIA!#REF!,(TRAYECTORIA!#REF!-TRAYECTORIA!#REF!)/2)+S53 ->  | W54: =Dn(Matriz2!$A$74,TRAYECTORIA!$P$10,TRAYECTORIA!#REF!-TRAYECTORIA!#REF!)+W53 ->  | X54: =De(Matriz2!$A$74,TRAYECTORIA!$P$10,TRAYECTORIA!#REF!-TRAYECTORIA!#REF!)+X53 ->  | Y54: =DVt(TRAYECTORIA!$P$10,TRAYECTORIA!#REF!-TRAYECTORIA!#REF!)+Y53 -> 
A55: 1133.418359 | B55: -281.4899411 | K55: =ISBLANK(TRAYECTORIA!#REF!) -> FALSE | L55: =ISBLANK(TRAYECTORIA!#REF!) -> FALSE | M55: =ISBLANK(TRAYECTORIA!#REF!) -> FALSE | O55: =TRAYECTORIA!#REF!*-1 ->  | Q55: =Dn(Matriz2!O54,TRAYECTORIA!#REF!,(TRAYECTORIA!#REF!-TRAYECTORIA!#REF!)/2)+Dn(Matriz2!O55,TRAYECTORIA!#REF!,(TRAYECTORIA!#REF!-TRAYECTORIA!#REF!)/2)+Q54 ->  | R55: =De(Matriz2!O54,TRAYECTORIA!#REF!,(TRAYECTORIA!#REF!-TRAYECTORIA!#REF!)/2)+De(Matriz2!O55,TRAYECTORIA!#REF!,(TRAYECTORIA!#REF!-TRAYECTORIA!#REF!)/2)+R54 ->  | S55: =DVt(TRAYECTORIA!#REF!,(TRAYECTORIA!#REF!-TRAYECTORIA!#REF!)/2)+DVt(TRAYECTORIA!#REF!,(TRAYECTORIA!#REF!-TRAYECTORIA!#REF!)/2)+S54 ->  | W55: =Dn(Matriz2!$A$74,TRAYECTORIA!$P$10,TRAYECTORIA!#REF!-TRAYECTORIA!#REF!)+W54 ->  | X55: =De(Matriz2!$A$74,TRAYECTORIA!$P$10,TRAYECTORIA!#REF!-TRAYECTORIA!#REF!)+X54 ->  | Y55: =DVt(TRAYECTORIA!$P$10,TRAYECTORIA!#REF!-TRAYECTORIA!#REF!)+Y54 -> 
A56: 79.25633244 | B56: 619.6289728 | K56: =ISBLANK(TRAYECTORIA!#REF!) -> FALSE | L56: =ISBLANK(TRAYECTORIA!#REF!) -> FALSE | M56: =ISBLANK(TRAYECTORIA!#REF!) -> FALSE | O56: =TRAYECTORIA!#REF!*-1 ->  | Q56: =Dn(Matriz2!O55,TRAYECTORIA!#REF!,(TRAYECTORIA!#REF!-TRAYECTORIA!#REF!)/2)+Dn(Matriz2!O56,TRAYECTORIA!#REF!,(TRAYECTORIA!#REF!-TRAYECTORIA!#REF!)/2)+Q55 ->  | R56: =De(Matriz2!O55,TRAYECTORIA!#REF!,(TRAYECTORIA!#REF!-TRAYECTORIA!#REF!)/2)+De(Matriz2!O56,TRAYECTORIA!#REF!,(TRAYECTORIA!#REF!-TRAYECTORIA!#REF!)/2)+R55 ->  | S56: =DVt(TRAYECTORIA!#REF!,(TRAYECTORIA!#REF!-TRAYECTORIA!#REF!)/2)+DVt(TRAYECTORIA!#REF!,(TRAYECTORIA!#REF!-TRAYECTORIA!#REF!)/2)+S55 ->  | W56: =Dn(Matriz2!$A$74,TRAYECTORIA!$P$10,TRAYECTORIA!#REF!-TRAYECTORIA!#REF!)+W55 ->  | X56: =De(Matriz2!$A$74,TRAYECTORIA!$P$10,TRAYECTORIA!#REF!-TRAYECTORIA!#REF!)+X55 ->  | Y56: =DVt(TRAYECTORIA!$P$10,TRAYECTORIA!#REF!-TRAYECTORIA!#REF!)+Y55 -> 
A57: -1133.418359 | B57: 281.4899411 | K57: =ISBLANK(TRAYECTORIA!#REF!) -> FALSE | L57: =ISBLANK(TRAYECTORIA!#REF!) -> FALSE | M57: =ISBLANK(TRAYECTORIA!#REF!) -> FALSE | O57: =TRAYECTORIA!#REF!*-1 ->  | Q57: =Dn(Matriz2!O56,TRAYECTORIA!#REF!,(TRAYECTORIA!#REF!-TRAYECTORIA!#REF!)/2)+Dn(Matriz2!O57,TRAYECTORIA!#REF!,(TRAYECTORIA!#REF!-TRAYECTORIA!#REF!)/2)+Q56 ->  | R57: =De(Matriz2!O56,TRAYECTORIA!#REF!,(TRAYECTORIA!#REF!-TRAYECTORIA!#REF!)/2)+De(Matriz2!O57,TRAYECTORIA!#REF!,(TRAYECTORIA!#REF!-TRAYECTORIA!#REF!)/2)+R56 ->  | S57: =DVt(TRAYECTORIA!#REF!,(TRAYECTORIA!#REF!-TRAYECTORIA!#REF!)/2)+DVt(TRAYECTORIA!#REF!,(TRAYECTORIA!#REF!-TRAYECTORIA!#REF!)/2)+S56 ->  | W57: =Dn(Matriz2!$A$74,TRAYECTORIA!$P$10,TRAYECTORIA!#REF!-TRAYECTORIA!#REF!)+W56 ->  | X57: =De(Matriz2!$A$74,TRAYECTORIA!$P$10,TRAYECTORIA!#REF!-TRAYECTORIA!#REF!)+X56 ->  | Y57: =DVt(TRAYECTORIA!$P$10,TRAYECTORIA!#REF!-TRAYECTORIA!#REF!)+Y56 -> 
A58: -1133.418359 | B58: 281.4899411 | K58: =ISBLANK(TRAYECTORIA!#REF!) -> FALSE | L58: =ISBLANK(TRAYECTORIA!#REF!) -> FALSE | M58: =ISBLANK(TRAYECTORIA!#REF!) -> FALSE | O58: =TRAYECTORIA!#REF!*-1 ->  | Q58: =Dn(Matriz2!O57,TRAYECTORIA!#REF!,(TRAYECTORIA!#REF!-TRAYECTORIA!#REF!)/2)+Dn(Matriz2!O58,TRAYECTORIA!#REF!,(TRAYECTORIA!#REF!-TRAYECTORIA!#REF!)/2)+Q57 ->  | R58: =De(Matriz2!O57,TRAYECTORIA!#REF!,(TRAYECTORIA!#REF!-TRAYECTORIA!#REF!)/2)+De(Matriz2!O58,TRAYECTORIA!#REF!,(TRAYECTORIA!#REF!-TRAYECTORIA!#REF!)/2)+R57 ->  | S58: =DVt(TRAYECTORIA!#REF!,(TRAYECTORIA!#REF!-TRAYECTORIA!#REF!)/2)+DVt(TRAYECTORIA!#REF!,(TRAYECTORIA!#REF!-TRAYECTORIA!#REF!)/2)+S57 ->  | W58: =Dn(Matriz2!$A$74,TRAYECTORIA!$P$10,TRAYECTORIA!#REF!-TRAYECTORIA!#REF!)+W57 ->  | X58: =De(Matriz2!$A$74,TRAYECTORIA!$P$10,TRAYECTORIA!#REF!-TRAYECTORIA!#REF!)+X57 ->  | Y58: =DVt(TRAYECTORIA!$P$10,TRAYECTORIA!#REF!-TRAYECTORIA!#REF!)+Y57 -> 
A59: -79.25633244 | B59: -619.6289728 | K59: =ISBLANK(TRAYECTORIA!#REF!) -> FALSE | L59: =ISBLANK(TRAYECTORIA!#REF!) -> FALSE | M59: =ISBLANK(TRAYECTORIA!#REF!) -> FALSE | O59: =TRAYECTORIA!#REF!*-1 ->  | Q59: =Dn(Matriz2!O58,TRAYECTORIA!#REF!,(TRAYECTORIA!#REF!-TRAYECTORIA!#REF!)/2)+Dn(Matriz2!O59,TRAYECTORIA!#REF!,(TRAYECTORIA!#REF!-TRAYECTORIA!#REF!)/2)+Q58 ->  | R59: =De(Matriz2!O58,TRAYECTORIA!#REF!,(TRAYECTORIA!#REF!-TRAYECTORIA!#REF!)/2)+De(Matriz2!O59,TRAYECTORIA!#REF!,(TRAYECTORIA!#REF!-TRAYECTORIA!#REF!)/2)+R58 ->  | S59: =DVt(TRAYECTORIA!#REF!,(TRAYECTORIA!#REF!-TRAYECTORIA!#REF!)/2)+DVt(TRAYECTORIA!#REF!,(TRAYECTORIA!#REF!-TRAYECTORIA!#REF!)/2)+S58 ->  | W59: =Dn(Matriz2!$A$74,TRAYECTORIA!$P$10,TRAYECTORIA!#REF!-TRAYECTORIA!#REF!)+W58 ->  | X59: =De(Matriz2!$A$74,TRAYECTORIA!$P$10,TRAYECTORIA!#REF!-TRAYECTORIA!#REF!)+X58 ->  | Y59: =DVt(TRAYECTORIA!$P$10,TRAYECTORIA!#REF!-TRAYECTORIA!#REF!)+Y58 -> 
A60: 1133.418359 | B60: -281.4899411 | K60: =ISBLANK(TRAYECTORIA!#REF!) -> FALSE | L60: =ISBLANK(TRAYECTORIA!#REF!) -> FALSE | M60: =ISBLANK(TRAYECTORIA!#REF!) -> FALSE | O60: =TRAYECTORIA!#REF!*-1 ->  | Q60: =Dn(Matriz2!O59,TRAYECTORIA!#REF!,(TRAYECTORIA!#REF!-TRAYECTORIA!#REF!)/2)+Dn(Matriz2!O60,TRAYECTORIA!#REF!,(TRAYECTORIA!#REF!-TRAYECTORIA!#REF!)/2)+Q59 ->  | R60: =De(Matriz2!O59,TRAYECTORIA!#REF!,(TRAYECTORIA!#REF!-TRAYECTORIA!#REF!)/2)+De(Matriz2!O60,TRAYECTORIA!#REF!,(TRAYECTORIA!#REF!-TRAYECTORIA!#REF!)/2)+R59 ->  | S60: =DVt(TRAYECTORIA!#REF!,(TRAYECTORIA!#REF!-TRAYECTORIA!#REF!)/2)+DVt(TRAYECTORIA!#REF!,(TRAYECTORIA!#REF!-TRAYECTORIA!#REF!)/2)+S59 ->  | W60: =Dn(Matriz2!$A$74,TRAYECTORIA!$P$10,TRAYECTORIA!#REF!-TRAYECTORIA!#REF!)+W59 ->  | X60: =De(Matriz2!$A$74,TRAYECTORIA!$P$10,TRAYECTORIA!#REF!-TRAYECTORIA!#REF!)+X59 ->  | Y60: =DVt(TRAYECTORIA!$P$10,TRAYECTORIA!#REF!-TRAYECTORIA!#REF!)+Y59 -> 
A61: 79.25633244 | B61: 619.6289728 | K61: =ISBLANK(TRAYECTORIA!#REF!) -> FALSE | L61: =ISBLANK(TRAYECTORIA!#REF!) -> FALSE | M61: =ISBLANK(TRAYECTORIA!#REF!) -> FALSE | O61: =TRAYECTORIA!#REF!*-1 ->  | Q61: =Dn(Matriz2!O60,TRAYECTORIA!#REF!,(TRAYECTORIA!#REF!-TRAYECTORIA!#REF!)/2)+Dn(Matriz2!O61,TRAYECTORIA!#REF!,(TRAYECTORIA!#REF!-TRAYECTORIA!#REF!)/2)+Q60 ->  | R61: =De(Matriz2!O60,TRAYECTORIA!#REF!,(TRAYECTORIA!#REF!-TRAYECTORIA!#REF!)/2)+De(Matriz2!O61,TRAYECTORIA!#REF!,(TRAYECTORIA!#REF!-TRAYECTORIA!#REF!)/2)+R60 ->  | S61: =DVt(TRAYECTORIA!#REF!,(TRAYECTORIA!#REF!-TRAYECTORIA!#REF!)/2)+DVt(TRAYECTORIA!#REF!,(TRAYECTORIA!#REF!-TRAYECTORIA!#REF!)/2)+S60 ->  | W61: =Dn(Matriz2!$A$74,TRAYECTORIA!$P$10,TRAYECTORIA!#REF!-TRAYECTORIA!#REF!)+W60 ->  | X61: =De(Matriz2!$A$74,TRAYECTORIA!$P$10,TRAYECTORIA!#REF!-TRAYECTORIA!#REF!)+X60 ->  | Y61: =DVt(TRAYECTORIA!$P$10,TRAYECTORIA!#REF!-TRAYECTORIA!#REF!)+Y60 -> 
A62: -1133.418359 | B62: 281.4899411 | K62: =ISBLANK(TRAYECTORIA!#REF!) -> FALSE | L62: =ISBLANK(TRAYECTORIA!#REF!) -> FALSE | M62: =ISBLANK(TRAYECTORIA!#REF!) -> FALSE | O62: =TRAYECTORIA!#REF!*-1 ->  | Q62: =Dn(Matriz2!O61,TRAYECTORIA!#REF!,(TRAYECTORIA!#REF!-TRAYECTORIA!#REF!)/2)+Dn(Matriz2!O62,TRAYECTORIA!#REF!,(TRAYECTORIA!#REF!-TRAYECTORIA!#REF!)/2)+Q61 ->  | R62: =De(Matriz2!O61,TRAYECTORIA!#REF!,(TRAYECTORIA!#REF!-TRAYECTORIA!#REF!)/2)+De(Matriz2!O62,TRAYECTORIA!#REF!,(TRAYECTORIA!#REF!-TRAYECTORIA!#REF!)/2)+R61 ->  | S62: =DVt(TRAYECTORIA!#REF!,(TRAYECTORIA!#REF!-TRAYECTORIA!#REF!)/2)+DVt(TRAYECTORIA!#REF!,(TRAYECTORIA!#REF!-TRAYECTORIA!#REF!)/2)+S61 ->  | W62: =Dn(Matriz2!$A$74,TRAYECTORIA!$P$10,TRAYECTORIA!#REF!-TRAYECTORIA!#REF!)+W61 ->  | X62: =De(Matriz2!$A$74,TRAYECTORIA!$P$10,TRAYECTORIA!#REF!-TRAYECTORIA!#REF!)+X61 ->  | Y62: =DVt(TRAYECTORIA!$P$10,TRAYECTORIA!#REF!-TRAYECTORIA!#REF!)+Y61 -> 
K63: =ISBLANK(TRAYECTORIA!#REF!) -> FALSE | L63: =ISBLANK(TRAYECTORIA!#REF!) -> FALSE | M63: =ISBLANK(TRAYECTORIA!#REF!) -> FALSE | O63: =TRAYECTORIA!#REF!*-1 ->  | Q63: =Dn(Matriz2!O62,TRAYECTORIA!#REF!,(TRAYECTORIA!#REF!-TRAYECTORIA!#REF!)/2)+Dn(Matriz2!O63,TRAYECTORIA!#REF!,(TRAYECTORIA!#REF!-TRAYECTORIA!#REF!)/2)+Q62 ->  | R63: =De(Matriz2!O62,TRAYECTORIA!#REF!,(TRAYECTORIA!#REF!-TRAYECTORIA!#REF!)/2)+De(Matriz2!O63,TRAYECTORIA!#REF!,(TRAYECTORIA!#REF!-TRAYECTORIA!#REF!)/2)+R62 ->  | S63: =DVt(TRAYECTORIA!#REF!,(TRAYECTORIA!#REF!-TRAYECTORIA!#REF!)/2)+DVt(TRAYECTORIA!#REF!,(TRAYECTORIA!#REF!-TRAYECTORIA!#REF!)/2)+S62 ->  | W63: =Dn(Matriz2!$A$74,TRAYECTORIA!$P$10,TRAYECTORIA!#REF!-TRAYECTORIA!#REF!)+W62 ->  | X63: =De(Matriz2!$A$74,TRAYECTORIA!$P$10,TRAYECTORIA!#REF!-TRAYECTORIA!#REF!)+X62 ->  | Y63: =DVt(TRAYECTORIA!$P$10,TRAYECTORIA!#REF!-TRAYECTORIA!#REF!)+Y62 -> 
A64: =(A44*_RMX1)+(B44*_RMY1)+(C44*_RMZ1) -> 79.25633244 | B64: =(A44*_RMX2)+(B44*_RMY2)+(C44*_RMZ2) -> 619.6289728 | K64: =ISBLANK(TRAYECTORIA!#REF!) -> FALSE | L64: =ISBLANK(TRAYECTORIA!#REF!) -> FALSE | M64: =ISBLANK(TRAYECTORIA!#REF!) -> FALSE | O64: =TRAYECTORIA!#REF!*-1 ->  | Q64: =Dn(Matriz2!O63,TRAYECTORIA!#REF!,(TRAYECTORIA!#REF!-TRAYECTORIA!#REF!)/2)+Dn(Matriz2!O64,TRAYECTORIA!#REF!,(TRAYECTORIA!#REF!-TRAYECTORIA!#REF!)/2)+Q63 ->  | R64: =De(Matriz2!O63,TRAYECTORIA!#REF!,(TRAYECTORIA!#REF!-TRAYECTORIA!#REF!)/2)+De(Matriz2!O64,TRAYECTORIA!#REF!,(TRAYECTORIA!#REF!-TRAYECTORIA!#REF!)/2)+R63 ->  | S64: =DVt(TRAYECTORIA!#REF!,(TRAYECTORIA!#REF!-TRAYECTORIA!#REF!)/2)+DVt(TRAYECTORIA!#REF!,(TRAYECTORIA!#REF!-TRAYECTORIA!#REF!)/2)+S63 ->  | W64: =Dn(Matriz2!$A$74,TRAYECTORIA!$P$10,TRAYECTORIA!#REF!-TRAYECTORIA!#REF!)+W63 ->  | X64: =De(Matriz2!$A$74,TRAYECTORIA!$P$10,TRAYECTORIA!#REF!-TRAYECTORIA!#REF!)+X63 ->  | Y64: =DVt(TRAYECTORIA!$P$10,TRAYECTORIA!#REF!-TRAYECTORIA!#REF!)+Y63 -> 
A65: =(A45*_RMX1)+(B45*_RMY1)+(C45*_RMZ1) -> 79.25633244 | B65: =(A45*_RMX2)+(B45*_RMY2)+(C45*_RMZ2) -> 619.6289728 | K65: =ISBLANK(TRAYECTORIA!#REF!) -> FALSE | L65: =ISBLANK(TRAYECTORIA!#REF!) -> FALSE | M65: =ISBLANK(TRAYECTORIA!#REF!) -> FALSE | O65: =TRAYECTORIA!#REF!*-1 ->  | Q65: =Dn(Matriz2!O64,TRAYECTORIA!#REF!,(TRAYECTORIA!#REF!-TRAYECTORIA!#REF!)/2)+Dn(Matriz2!O65,TRAYECTORIA!#REF!,(TRAYECTORIA!#REF!-TRAYECTORIA!#REF!)/2)+Q64 ->  | R65: =De(Matriz2!O64,TRAYECTORIA!#REF!,(TRAYECTORIA!#REF!-TRAYECTORIA!#REF!)/2)+De(Matriz2!O65,TRAYECTORIA!#REF!,(TRAYECTORIA!#REF!-TRAYECTORIA!#REF!)/2)+R64 ->  | S65: =DVt(TRAYECTORIA!#REF!,(TRAYECTORIA!#REF!-TRAYECTORIA!#REF!)/2)+DVt(TRAYECTORIA!#REF!,(TRAYECTORIA!#REF!-TRAYECTORIA!#REF!)/2)+S64 ->  | W65: =Dn(Matriz2!$A$74,TRAYECTORIA!$P$10,TRAYECTORIA!#REF!-TRAYECTORIA!#REF!)+W64 ->  | X65: =De(Matriz2!$A$74,TRAYECTORIA!$P$10,TRAYECTORIA!#REF!-TRAYECTORIA!#REF!)+X64 ->  | Y65: =DVt(TRAYECTORIA!$P$10,TRAYECTORIA!#REF!-TRAYECTORIA!#REF!)+Y64 -> 
K66: =ISBLANK(TRAYECTORIA!#REF!) -> FALSE | L66: =ISBLANK(TRAYECTORIA!#REF!) -> FALSE | M66: =ISBLANK(TRAYECTORIA!#REF!) -> FALSE | O66: =TRAYECTORIA!#REF!*-1 ->  | Q66: =Dn(Matriz2!O65,TRAYECTORIA!#REF!,(TRAYECTORIA!#REF!-TRAYECTORIA!#REF!)/2)+Dn(Matriz2!O66,TRAYECTORIA!#REF!,(TRAYECTORIA!#REF!-TRAYECTORIA!#REF!)/2)+Q65 ->  | R66: =De(Matriz2!O65,TRAYECTORIA!#REF!,(TRAYECTORIA!#REF!-TRAYECTORIA!#REF!)/2)+De(Matriz2!O66,TRAYECTORIA!#REF!,(TRAYECTORIA!#REF!-TRAYECTORIA!#REF!)/2)+R65 ->  | S66: =DVt(TRAYECTORIA!#REF!,(TRAYECTORIA!#REF!-TRAYECTORIA!#REF!)/2)+DVt(TRAYECTORIA!#REF!,(TRAYECTORIA!#REF!-TRAYECTORIA!#REF!)/2)+S65 ->  | W66: =Dn(Matriz2!$A$74,TRAYECTORIA!$P$10,TRAYECTORIA!#REF!-TRAYECTORIA!#REF!)+W65 ->  | X66: =De(Matriz2!$A$74,TRAYECTORIA!$P$10,TRAYECTORIA!#REF!-TRAYECTORIA!#REF!)+X65 ->  | Y66: =DVt(TRAYECTORIA!$P$10,TRAYECTORIA!#REF!-TRAYECTORIA!#REF!)+Y65 -> 
A67: =(A47*_RMX1)+(B47*_RMY1)+(C47*_RMZ1) -> 1133.418359 | B67: =(A47*_RMX2)+(B47*_RMY2)+(C47*_RMZ2) -> -281.4899411 | E67: =IF(K67=FALSE,(Q68*_RMX1)+(R68*_RMY1)+(T68*_RMZ1),NA()) ->  | F67: =IF(L67=FALSE,(Q68*_RMX2)+(R68*_RMY2)+(T68*_RMZ2),NA()) ->  | H67: =IF(K67=FALSE,(W68*_RMX1)+(X68*_RMY1)+(AC68*_RMZ1),NA()) ->  | I67: =IF(L67=FALSE,(W68*_RMX2)+(X68*_RMY2)+(AC68*_RMZ2),NA()) ->  | K67: =ISBLANK(TRAYECTORIA!#REF!) -> FALSE | L67: =ISBLANK(TRAYECTORIA!#REF!) -> FALSE | M67: =ISBLANK(TRAYECTORIA!#REF!) -> FALSE | O67: =TRAYECTORIA!#REF!*-1 ->  | Q67: =Dn(Matriz2!O66,TRAYECTORIA!#REF!,(TRAYECTORIA!#REF!-TRAYECTORIA!#REF!)/2)+Dn(Matriz2!O67,TRAYECTORIA!#REF!,(TRAYECTORIA!#REF!-TRAYECTORIA!#REF!)/2)+Q66 ->  | R67: =De(Matriz2!O66,TRAYECTORIA!#REF!,(TRAYECTORIA!#REF!-TRAYECTORIA!#REF!)/2)+De(Matriz2!O67,TRAYECTORIA!#REF!,(TRAYECTORIA!#REF!-TRAYECTORIA!#REF!)/2)+R66 ->  | S67: =DVt(TRAYECTORIA!#REF!,(TRAYECTORIA!#REF!-TRAYECTORIA!#REF!)/2)+DVt(TRAYECTORIA!#REF!,(TRAYECTORIA!#REF!-TRAYECTORIA!#REF!)/2)+S66 ->  | W67: =Dn(Matriz2!$A$74,TRAYECTORIA!$P$10,TRAYECTORIA!#REF!-TRAYECTORIA!#REF!)+W66 ->  | X67: =De(Matriz2!$A$74,TRAYECTORIA!$P$10,TRAYECTORIA!#REF!-TRAYECTORIA!#REF!)+X66 ->  | Y67: =DVt(TRAYECTORIA!$P$10,TRAYECTORIA!#REF!-TRAYECTORIA!#REF!)+Y66 -> 
A68: =(A48*_RMX1)+(B48*_RMY1)+(C48*_RMZ1) -> 1133.418359 | B68: =(A48*_RMX2)+(B48*_RMY2)+(C48*_RMZ2) -> -281.4899411 | K68: =ISBLANK(TRAYECTORIA!#REF!) -> FALSE | L68: =ISBLANK(TRAYECTORIA!#REF!) -> FALSE | M68: =ISBLANK(TRAYECTORIA!#REF!) -> FALSE | O68: =TRAYECTORIA!#REF!*-1 ->  | Q68: =Dn(Matriz2!O67,TRAYECTORIA!#REF!,(TRAYECTORIA!#REF!-TRAYECTORIA!#REF!)/2)+Dn(Matriz2!O68,TRAYECTORIA!#REF!,(TRAYECTORIA!#REF!-TRAYECTORIA!#REF!)/2)+Q67 ->  | R68: =De(Matriz2!O67,TRAYECTORIA!#REF!,(TRAYECTORIA!#REF!-TRAYECTORIA!#REF!)/2)+De(Matriz2!O68,TRAYECTORIA!#REF!,(TRAYECTORIA!#REF!-TRAYECTORIA!#REF!)/2)+R67 ->  | S68: =DVt(TRAYECTORIA!#REF!,(TRAYECTORIA!#REF!-TRAYECTORIA!#REF!)/2)+DVt(TRAYECTORIA!#REF!,(TRAYECTORIA!#REF!-TRAYECTORIA!#REF!)/2)+S67 ->  | W68: =Dn(Matriz2!$A$74,TRAYECTORIA!$P$10,TRAYECTORIA!#REF!-TRAYECTORIA!#REF!)+W67 ->  | X68: =De(Matriz2!$A$74,TRAYECTORIA!$P$10,TRAYECTORIA!#REF!-TRAYECTORIA!#REF!)+X67 ->  | Y68: =DVt(TRAYECTORIA!$P$10,TRAYECTORIA!#REF!-TRAYECTORIA!#REF!)+Y67 -> 
K69: =ISBLANK(TRAYECTORIA!#REF!) -> FALSE | L69: =ISBLANK(TRAYECTORIA!#REF!) -> FALSE | M69: =ISBLANK(TRAYECTORIA!#REF!) -> FALSE | O69: =TRAYECTORIA!#REF!*-1 ->  | Q69: =Dn(Matriz2!O68,TRAYECTORIA!#REF!,(TRAYECTORIA!#REF!-TRAYECTORIA!#REF!)/2)+Dn(Matriz2!O69,TRAYECTORIA!#REF!,(TRAYECTORIA!#REF!-TRAYECTORIA!#REF!)/2)+Q68 ->  | R69: =De(Matriz2!O68,TRAYECTORIA!#REF!,(TRAYECTORIA!#REF!-TRAYECTORIA!#REF!)/2)+De(Matriz2!O69,TRAYECTORIA!#REF!,(TRAYECTORIA!#REF!-TRAYECTORIA!#REF!)/2)+R68 ->  | S69: =DVt(TRAYECTORIA!#REF!,(TRAYECTORIA!#REF!-TRAYECTORIA!#REF!)/2)+DVt(TRAYECTORIA!#REF!,(TRAYECTORIA!#REF!-TRAYECTORIA!#REF!)/2)+S68 ->  | T69: =S69*-1 ->  | W69: =Dn(Matriz2!$A$74,TRAYECTORIA!$P$10,TRAYECTORIA!#REF!-TRAYECTORIA!#REF!)+W68 ->  | X69: =De(Matriz2!$A$74,TRAYECTORIA!$P$10,TRAYECTORIA!#REF!-TRAYECTORIA!#REF!)+X68 ->  | Y69: =DVt(TRAYECTORIA!$P$10,TRAYECTORIA!#REF!-TRAYECTORIA!#REF!)+Y68 -> 
A70: =(A50*_RMX1)+(B50*_RMY1)+(C50*_RMZ1) -> -79.25633244 | B70: =(A50*_RMX2)+(B50*_RMY2)+(C50*_RMZ2) -> -619.6289728 | K70: =ISBLANK(TRAYECTORIA!#REF!) -> FALSE | L70: =ISBLANK(TRAYECTORIA!#REF!) -> FALSE | M70: =ISBLANK(TRAYECTORIA!#REF!) -> FALSE | O70: =TRAYECTORIA!#REF!*-1 ->  | Q70: =Dn(Matriz2!O69,TRAYECTORIA!#REF!,(TRAYECTORIA!#REF!-TRAYECTORIA!#REF!)/2)+Dn(Matriz2!O70,TRAYECTORIA!#REF!,(TRAYECTORIA!#REF!-TRAYECTORIA!#REF!)/2)+Q69 ->  | R70: =De(Matriz2!O69,TRAYECTORIA!#REF!,(TRAYECTORIA!#REF!-TRAYECTORIA!#REF!)/2)+De(Matriz2!O70,TRAYECTORIA!#REF!,(TRAYECTORIA!#REF!-TRAYECTORIA!#REF!)/2)+R69 ->  | S70: =DVt(TRAYECTORIA!#REF!,(TRAYECTORIA!#REF!-TRAYECTORIA!#REF!)/2)+DVt(TRAYECTORIA!#REF!,(TRAYECTORIA!#REF!-TRAYECTORIA!#REF!)/2)+S69 ->  | V70: =SQRT((Q70-Q69)^2+(R70-R69)^2+(S70-S69)^2)+V69 ->  | W70: =Dn(Matriz2!$A$74,TRAYECTORIA!$P$10,TRAYECTORIA!#REF!-TRAYECTORIA!#REF!)+W69 ->  | X70: =De(Matriz2!$A$74,TRAYECTORIA!$P$10,TRAYECTORIA!#REF!-TRAYECTORIA!#REF!)+X69 ->  | Y70: =DVt(TRAYECTORIA!$P$10,TRAYECTORIA!#REF!-TRAYECTORIA!#REF!)+Y69 ->  | Z70: =SQRT((W70-W69)^2+(X70-X69)^2+(Y70-Y69)^2) ->  | AA70: =SQRT((Q70-W70)^2+(R70-X70)^2+(S70-Y70)^2) ->  | AB70: =AA70/Z70 ->  | AC70: =Y70*-1 -> 
A71: =(A51*_RMX1)+(B51*_RMY1)+(C51*_RMZ1) -> -79.25633244 | B71: =(A51*_RMX2)+(B51*_RMY2)+(C51*_RMZ2) -> -619.6289728 | K71: =ISBLANK(TRAYECTORIA!#REF!) -> FALSE | L71: =ISBLANK(TRAYECTORIA!#REF!) -> FALSE | M71: =ISBLANK(TRAYECTORIA!#REF!) -> FALSE | O71: =TRAYECTORIA!#REF!*-1 ->  | Q71: =Dn(Matriz2!O70,TRAYECTORIA!#REF!,(TRAYECTORIA!#REF!-TRAYECTORIA!#REF!)/2)+Dn(Matriz2!O71,TRAYECTORIA!#REF!,(TRAYECTORIA!#REF!-TRAYECTORIA!#REF!)/2)+Q70 ->  | R71: =De(Matriz2!O70,TRAYECTORIA!#REF!,(TRAYECTORIA!#REF!-TRAYECTORIA!#REF!)/2)+De(Matriz2!O71,TRAYECTORIA!#REF!,(TRAYECTORIA!#REF!-TRAYECTORIA!#REF!)/2)+R70 ->  | S71: =DVt(TRAYECTORIA!#REF!,(TRAYECTORIA!#REF!-TRAYECTORIA!#REF!)/2)+DVt(TRAYECTORIA!#REF!,(TRAYECTORIA!#REF!-TRAYECTORIA!#REF!)/2)+S70 ->  | W71: =Dn(Matriz2!$A$74,TRAYECTORIA!$P$10,TRAYECTORIA!#REF!-TRAYECTORIA!#REF!)+W70 ->  | X71: =De(Matriz2!$A$74,TRAYECTORIA!$P$10,TRAYECTORIA!#REF!-TRAYECTORIA!#REF!)+X70 ->  | Y71: =DVt(TRAYECTORIA!$P$10,TRAYECTORIA!#REF!-TRAYECTORIA!#REF!)+Y70 -> 
K72: =ISBLANK(TRAYECTORIA!#REF!) -> FALSE | L72: =ISBLANK(TRAYECTORIA!#REF!) -> FALSE | M72: =ISBLANK(TRAYECTORIA!#REF!) -> FALSE | O72: =TRAYECTORIA!#REF!*-1 ->  | Q72: =Dn(Matriz2!O71,TRAYECTORIA!#REF!,(TRAYECTORIA!#REF!-TRAYECTORIA!#REF!)/2)+Dn(Matriz2!O72,TRAYECTORIA!#REF!,(TRAYECTORIA!#REF!-TRAYECTORIA!#REF!)/2)+Q71 ->  | R72: =De(Matriz2!O71,TRAYECTORIA!#REF!,(TRAYECTORIA!#REF!-TRAYECTORIA!#REF!)/2)+De(Matriz2!O72,TRAYECTORIA!#REF!,(TRAYECTORIA!#REF!-TRAYECTORIA!#REF!)/2)+R71 ->  | S72: =DVt(TRAYECTORIA!#REF!,(TRAYECTORIA!#REF!-TRAYECTORIA!#REF!)/2)+DVt(TRAYECTORIA!#REF!,(TRAYECTORIA!#REF!-TRAYECTORIA!#REF!)/2)+S71 ->  | W72: =Dn(Matriz2!$A$74,TRAYECTORIA!$P$10,TRAYECTORIA!#REF!-TRAYECTORIA!#REF!)+W71 ->  | X72: =De(Matriz2!$A$74,TRAYECTORIA!$P$10,TRAYECTORIA!#REF!-TRAYECTORIA!#REF!)+X71 ->  | Y72: =DVt(TRAYECTORIA!$P$10,TRAYECTORIA!#REF!-TRAYECTORIA!#REF!)+Y71 -> 
A73: Adaptación Az.Teorico | K73: =ISBLANK(TRAYECTORIA!#REF!) -> FALSE | L73: =ISBLANK(TRAYECTORIA!#REF!) -> FALSE | M73: =ISBLANK(TRAYECTORIA!#REF!) -> FALSE | O73: =TRAYECTORIA!#REF!*-1 ->  | Q73: =Dn(Matriz2!O72,TRAYECTORIA!#REF!,(TRAYECTORIA!#REF!-TRAYECTORIA!#REF!)/2)+Dn(Matriz2!O73,TRAYECTORIA!#REF!,(TRAYECTORIA!#REF!-TRAYECTORIA!#REF!)/2)+Q72 ->  | R73: =De(Matriz2!O72,TRAYECTORIA!#REF!,(TRAYECTORIA!#REF!-TRAYECTORIA!#REF!)/2)+De(Matriz2!O73,TRAYECTORIA!#REF!,(TRAYECTORIA!#REF!-TRAYECTORIA!#REF!)/2)+R72 ->  | S73: =DVt(TRAYECTORIA!#REF!,(TRAYECTORIA!#REF!-TRAYECTORIA!#REF!)/2)+DVt(TRAYECTORIA!#REF!,(TRAYECTORIA!#REF!-TRAYECTORIA!#REF!)/2)+S72 ->  | W73: =Dn(Matriz2!$A$74,TRAYECTORIA!$P$10,TRAYECTORIA!#REF!-TRAYECTORIA!#REF!)+W72 ->  | X73: =De(Matriz2!$A$74,TRAYECTORIA!$P$10,TRAYECTORIA!#REF!-TRAYECTORIA!#REF!)+X72 ->  | Y73: =DVt(TRAYECTORIA!$P$10,TRAYECTORIA!#REF!-TRAYECTORIA!#REF!)+Y72 -> 
A74: =TRAYECTORIA!P9*-1 -> 0 | K74: =ISBLANK(TRAYECTORIA!#REF!) -> FALSE | L74: =ISBLANK(TRAYECTORIA!#REF!) -> FALSE | M74: =ISBLANK(TRAYECTORIA!#REF!) -> FALSE | O74: =TRAYECTORIA!#REF!*-1 ->  | Q74: =Dn(Matriz2!O73,TRAYECTORIA!#REF!,(TRAYECTORIA!#REF!-TRAYECTORIA!#REF!)/2)+Dn(Matriz2!O74,TRAYECTORIA!#REF!,(TRAYECTORIA!#REF!-TRAYECTORIA!#REF!)/2)+Q73 ->  | R74: =De(Matriz2!O73,TRAYECTORIA!#REF!,(TRAYECTORIA!#REF!-TRAYECTORIA!#REF!)/2)+De(Matriz2!O74,TRAYECTORIA!#REF!,(TRAYECTORIA!#REF!-TRAYECTORIA!#REF!)/2)+R73 ->  | S74: =DVt(TRAYECTORIA!#REF!,(TRAYECTORIA!#REF!-TRAYECTORIA!#REF!)/2)+DVt(TRAYECTORIA!#REF!,(TRAYECTORIA!#REF!-TRAYECTORIA!#REF!)/2)+S73 ->  | W74: =Dn(Matriz2!$A$74,TRAYECTORIA!$P$10,TRAYECTORIA!#REF!-TRAYECTORIA!#REF!)+W73 ->  | X74: =De(Matriz2!$A$74,TRAYECTORIA!$P$10,TRAYECTORIA!#REF!-TRAYECTORIA!#REF!)+X73 ->  | Y74: =DVt(TRAYECTORIA!$P$10,TRAYECTORIA!#REF!-TRAYECTORIA!#REF!)+Y73 -> 
K75: =ISBLANK(TRAYECTORIA!#REF!) -> FALSE | L75: =ISBLANK(TRAYECTORIA!#REF!) -> FALSE | M75: =ISBLANK(TRAYECTORIA!#REF!) -> FALSE | O75: =TRAYECTORIA!#REF!*-1 ->  | Q75: =Dn(Matriz2!O74,TRAYECTORIA!#REF!,(TRAYECTORIA!#REF!-TRAYECTORIA!#REF!)/2)+Dn(Matriz2!O75,TRAYECTORIA!#REF!,(TRAYECTORIA!#REF!-TRAYECTORIA!#REF!)/2)+Q74 ->  | R75: =De(Matriz2!O74,TRAYECTORIA!#REF!,(TRAYECTORIA!#REF!-TRAYECTORIA!#REF!)/2)+De(Matriz2!O75,TRAYECTORIA!#REF!,(TRAYECTORIA!#REF!-TRAYECTORIA!#REF!)/2)+R74 ->  | S75: =DVt(TRAYECTORIA!#REF!,(TRAYECTORIA!#REF!-TRAYECTORIA!#REF!)/2)+DVt(TRAYECTORIA!#REF!,(TRAYECTORIA!#REF!-TRAYECTORIA!#REF!)/2)+S74 ->  | W75: =Dn(Matriz2!$A$74,TRAYECTORIA!$P$10,TRAYECTORIA!#REF!-TRAYECTORIA!#REF!)+W74 ->  | X75: =De(Matriz2!$A$74,TRAYECTORIA!$P$10,TRAYECTORIA!#REF!-TRAYECTORIA!#REF!)+X74 ->  | Y75: =DVt(TRAYECTORIA!$P$10,TRAYECTORIA!#REF!-TRAYECTORIA!#REF!)+Y74 -> 
K76: =ISBLANK(TRAYECTORIA!#REF!) -> FALSE | L76: =ISBLANK(TRAYECTORIA!#REF!) -> FALSE | M76: =ISBLANK(TRAYECTORIA!#REF!) -> FALSE | O76: =TRAYECTORIA!#REF!*-1 ->  | Q76: =Dn(Matriz2!O75,TRAYECTORIA!#REF!,(TRAYECTORIA!#REF!-TRAYECTORIA!#REF!)/2)+Dn(Matriz2!O76,TRAYECTORIA!#REF!,(TRAYECTORIA!#REF!-TRAYECTORIA!#REF!)/2)+Q75 ->  | R76: =De(Matriz2!O75,TRAYECTORIA!#REF!,(TRAYECTORIA!#REF!-TRAYECTORIA!#REF!)/2)+De(Matriz2!O76,TRAYECTORIA!#REF!,(TRAYECTORIA!#REF!-TRAYECTORIA!#REF!)/2)+R75 ->  | S76: =DVt(TRAYECTORIA!#REF!,(TRAYECTORIA!#REF!-TRAYECTORIA!#REF!)/2)+DVt(TRAYECTORIA!#REF!,(TRAYECTORIA!#REF!-TRAYECTORIA!#REF!)/2)+S75 ->  | W76: =Dn(Matriz2!$A$74,TRAYECTORIA!$P$10,TRAYECTORIA!#REF!-TRAYECTORIA!#REF!)+W75 ->  | X76: =De(Matriz2!$A$74,TRAYECTORIA!$P$10,TRAYECTORIA!#REF!-TRAYECTORIA!#REF!)+X75 ->  | Y76: =DVt(TRAYECTORIA!$P$10,TRAYECTORIA!#REF!-TRAYECTORIA!#REF!)+Y75 -> 
K77: =ISBLANK(TRAYECTORIA!#REF!) -> FALSE | L77: =ISBLANK(TRAYECTORIA!#REF!) -> FALSE | M77: =ISBLANK(TRAYECTORIA!#REF!) -> FALSE | O77: =TRAYECTORIA!#REF!*-1 ->  | Q77: =Dn(Matriz2!O76,TRAYECTORIA!#REF!,(TRAYECTORIA!#REF!-TRAYECTORIA!#REF!)/2)+Dn(Matriz2!O77,TRAYECTORIA!#REF!,(TRAYECTORIA!#REF!-TRAYECTORIA!#REF!)/2)+Q76 ->  | R77: =De(Matriz2!O76,TRAYECTORIA!#REF!,(TRAYECTORIA!#REF!-TRAYECTORIA!#REF!)/2)+De(Matriz2!O77,TRAYECTORIA!#REF!,(TRAYECTORIA!#REF!-TRAYECTORIA!#REF!)/2)+R76 ->  | S77: =DVt(TRAYECTORIA!#REF!,(TRAYECTORIA!#REF!-TRAYECTORIA!#REF!)/2)+DVt(TRAYECTORIA!#REF!,(TRAYECTORIA!#REF!-TRAYECTORIA!#REF!)/2)+S76 ->  | W77: =Dn(Matriz2!$A$74,TRAYECTORIA!$P$10,TRAYECTORIA!#REF!-TRAYECTORIA!#REF!)+W76 ->  | X77: =De(Matriz2!$A$74,TRAYECTORIA!$P$10,TRAYECTORIA!#REF!-TRAYECTORIA!#REF!)+X76 ->  | Y77: =DVt(TRAYECTORIA!$P$10,TRAYECTORIA!#REF!-TRAYECTORIA!#REF!)+Y76 -> 
K78: =ISBLANK(TRAYECTORIA!#REF!) -> FALSE | L78: =ISBLANK(TRAYECTORIA!#REF!) -> FALSE | M78: =ISBLANK(TRAYECTORIA!#REF!) -> FALSE | O78: =TRAYECTORIA!#REF!*-1 ->  | Q78: =Dn(Matriz2!O77,TRAYECTORIA!#REF!,(TRAYECTORIA!#REF!-TRAYECTORIA!#REF!)/2)+Dn(Matriz2!O78,TRAYECTORIA!#REF!,(TRAYECTORIA!#REF!-TRAYECTORIA!#REF!)/2)+Q77 ->  | R78: =De(Matriz2!O77,TRAYECTORIA!#REF!,(TRAYECTORIA!#REF!-TRAYECTORIA!#REF!)/2)+De(Matriz2!O78,TRAYECTORIA!#REF!,(TRAYECTORIA!#REF!-TRAYECTORIA!#REF!)/2)+R77 ->  | S78: =DVt(TRAYECTORIA!#REF!,(TRAYECTORIA!#REF!-TRAYECTORIA!#REF!)/2)+DVt(TRAYECTORIA!#REF!,(TRAYECTORIA!#REF!-TRAYECTORIA!#REF!)/2)+S77 ->  | W78: =Dn(Matriz2!$A$74,TRAYECTORIA!$P$10,TRAYECTORIA!#REF!-TRAYECTORIA!#REF!)+W77 ->  | X78: =De(Matriz2!$A$74,TRAYECTORIA!$P$10,TRAYECTORIA!#REF!-TRAYECTORIA!#REF!)+X77 ->  | Y78: =DVt(TRAYECTORIA!$P$10,TRAYECTORIA!#REF!-TRAYECTORIA!#REF!)+Y77 -> 
K79: =ISBLANK(TRAYECTORIA!#REF!) -> FALSE | L79: =ISBLANK(TRAYECTORIA!#REF!) -> FALSE | M79: =ISBLANK(TRAYECTORIA!#REF!) -> FALSE | O79: =TRAYECTORIA!#REF!*-1 ->  | Q79: =Dn(Matriz2!O78,TRAYECTORIA!#REF!,(TRAYECTORIA!#REF!-TRAYECTORIA!#REF!)/2)+Dn(Matriz2!O79,TRAYECTORIA!#REF!,(TRAYECTORIA!#REF!-TRAYECTORIA!#REF!)/2)+Q78 ->  | R79: =De(Matriz2!O78,TRAYECTORIA!#REF!,(TRAYECTORIA!#REF!-TRAYECTORIA!#REF!)/2)+De(Matriz2!O79,TRAYECTORIA!#REF!,(TRAYECTORIA!#REF!-TRAYECTORIA!#REF!)/2)+R78 ->  | S79: =DVt(TRAYECTORIA!#REF!,(TRAYECTORIA!#REF!-TRAYECTORIA!#REF!)/2)+DVt(TRAYECTORIA!#REF!,(TRAYECTORIA!#REF!-TRAYECTORIA!#REF!)/2)+S78 ->  | W79: =Dn(Matriz2!$A$74,TRAYECTORIA!$P$10,TRAYECTORIA!#REF!-TRAYECTORIA!#REF!)+W78 ->  | X79: =De(Matriz2!$A$74,TRAYECTORIA!$P$10,TRAYECTORIA!#REF!-TRAYECTORIA!#REF!)+X78 ->  | Y79: =DVt(TRAYECTORIA!$P$10,TRAYECTORIA!#REF!-TRAYECTORIA!#REF!)+Y78 -> 
K80: =ISBLANK(TRAYECTORIA!#REF!) -> FALSE | L80: =ISBLANK(TRAYECTORIA!#REF!) -> FALSE | M80: =ISBLANK(TRAYECTORIA!#REF!) -> FALSE | O80: =TRAYECTORIA!#REF!*-1 ->  | Q80: =Dn(Matriz2!O79,TRAYECTORIA!#REF!,(TRAYECTORIA!#REF!-TRAYECTORIA!#REF!)/2)+Dn(Matriz2!O80,TRAYECTORIA!#REF!,(TRAYECTORIA!#REF!-TRAYECTORIA!#REF!)/2)+Q79 ->  | R80: =De(Matriz2!O79,TRAYECTORIA!#REF!,(TRAYECTORIA!#REF!-TRAYECTORIA!#REF!)/2)+De(Matriz2!O80,TRAYECTORIA!#REF!,(TRAYECTORIA!#REF!-TRAYECTORIA!#REF!)/2)+R79 ->  | S80: =DVt(TRAYECTORIA!#REF!,(TRAYECTORIA!#REF!-TRAYECTORIA!#REF!)/2)+DVt(TRAYECTORIA!#REF!,(TRAYECTORIA!#REF!-TRAYECTORIA!#REF!)/2)+S79 ->  | W80: =Dn(Matriz2!$A$74,TRAYECTORIA!$P$10,TRAYECTORIA!#REF!-TRAYECTORIA!#REF!)+W79 ->  | X80: =De(Matriz2!$A$74,TRAYECTORIA!$P$10,TRAYECTORIA!#REF!-TRAYECTORIA!#REF!)+X79 ->  | Y80: =DVt(TRAYECTORIA!$P$10,TRAYECTORIA!#REF!-TRAYECTORIA!#REF!)+Y79 -> 
K81: =ISBLANK(TRAYECTORIA!#REF!) -> FALSE | L81: =ISBLANK(TRAYECTORIA!#REF!) -> FALSE | M81: =ISBLANK(TRAYECTORIA!#REF!) -> FALSE | O81: =TRAYECTORIA!#REF!*-1 ->  | Q81: =Dn(Matriz2!O80,TRAYECTORIA!#REF!,(TRAYECTORIA!#REF!-TRAYECTORIA!#REF!)/2)+Dn(Matriz2!O81,TRAYECTORIA!#REF!,(TRAYECTORIA!#REF!-TRAYECTORIA!#REF!)/2)+Q80 ->  | R81: =De(Matriz2!O80,TRAYECTORIA!#REF!,(TRAYECTORIA!#REF!-TRAYECTORIA!#REF!)/2)+De(Matriz2!O81,TRAYECTORIA!#REF!,(TRAYECTORIA!#REF!-TRAYECTORIA!#REF!)/2)+R80 ->  | S81: =DVt(TRAYECTORIA!#REF!,(TRAYECTORIA!#REF!-TRAYECTORIA!#REF!)/2)+DVt(TRAYECTORIA!#REF!,(TRAYECTORIA!#REF!-TRAYECTORIA!#REF!)/2)+S80 ->  | W81: =Dn(Matriz2!$A$74,TRAYECTORIA!$P$10,TRAYECTORIA!#REF!-TRAYECTORIA!#REF!)+W80 ->  | X81: =De(Matriz2!$A$74,TRAYECTORIA!$P$10,TRAYECTORIA!#REF!-TRAYECTORIA!#REF!)+X80 ->  | Y81: =DVt(TRAYECTORIA!$P$10,TRAYECTORIA!#REF!-TRAYECTORIA!#REF!)+Y80 -> 
K82: =ISBLANK(TRAYECTORIA!#REF!) -> FALSE | L82: =ISBLANK(TRAYECTORIA!#REF!) -> FALSE | M82: =ISBLANK(TRAYECTORIA!#REF!) -> FALSE | O82: =TRAYECTORIA!#REF!*-1 ->  | Q82: =Dn(Matriz2!O81,TRAYECTORIA!#REF!,(TRAYECTORIA!#REF!-TRAYECTORIA!#REF!)/2)+Dn(Matriz2!O82,TRAYECTORIA!#REF!,(TRAYECTORIA!#REF!-TRAYECTORIA!#REF!)/2)+Q81 ->  | R82: =De(Matriz2!O81,TRAYECTORIA!#REF!,(TRAYECTORIA!#REF!-TRAYECTORIA!#REF!)/2)+De(Matriz2!O82,TRAYECTORIA!#REF!,(TRAYECTORIA!#REF!-TRAYECTORIA!#REF!)/2)+R81 ->  | S82: =DVt(TRAYECTORIA!#REF!,(TRAYECTORIA!#REF!-TRAYECTORIA!#REF!)/2)+DVt(TRAYECTORIA!#REF!,(TRAYECTORIA!#REF!-TRAYECTORIA!#REF!)/2)+S81 ->  | W82: =Dn(Matriz2!$A$74,TRAYECTORIA!$P$10,TRAYECTORIA!#REF!-TRAYECTORIA!#REF!)+W81 ->  | X82: =De(Matriz2!$A$74,TRAYECTORIA!$P$10,TRAYECTORIA!#REF!-TRAYECTORIA!#REF!)+X81 ->  | Y82: =DVt(TRAYECTORIA!$P$10,TRAYECTORIA!#REF!-TRAYECTORIA!#REF!)+Y81 -> 
K83: =ISBLANK(TRAYECTORIA!#REF!) -> FALSE | L83: =ISBLANK(TRAYECTORIA!#REF!) -> FALSE | M83: =ISBLANK(TRAYECTORIA!#REF!) -> FALSE | O83: =TRAYECTORIA!#REF!*-1 ->  | Q83: =Dn(Matriz2!O82,TRAYECTORIA!#REF!,(TRAYECTORIA!#REF!-TRAYECTORIA!#REF!)/2)+Dn(Matriz2!O83,TRAYECTORIA!#REF!,(TRAYECTORIA!#REF!-TRAYECTORIA!#REF!)/2)+Q82 ->  | R83: =De(Matriz2!O82,TRAYECTORIA!#REF!,(TRAYECTORIA!#REF!-TRAYECTORIA!#REF!)/2)+De(Matriz2!O83,TRAYECTORIA!#REF!,(TRAYECTORIA!#REF!-TRAYECTORIA!#REF!)/2)+R82 ->  | S83: =DVt(TRAYECTORIA!#REF!,(TRAYECTORIA!#REF!-TRAYECTORIA!#REF!)/2)+DVt(TRAYECTORIA!#REF!,(TRAYECTORIA!#REF!-TRAYECTORIA!#REF!)/2)+S82 ->  | W83: =Dn(Matriz2!$A$74,TRAYECTORIA!$P$10,TRAYECTORIA!#REF!-TRAYECTORIA!#REF!)+W82 ->  | X83: =De(Matriz2!$A$74,TRAYECTORIA!$P$10,TRAYECTORIA!#REF!-TRAYECTORIA!#REF!)+X82 ->  | Y83: =DVt(TRAYECTORIA!$P$10,TRAYECTORIA!#REF!-TRAYECTORIA!#REF!)+Y82 -> 
K84: =ISBLANK(TRAYECTORIA!#REF!) -> FALSE | L84: =ISBLANK(TRAYECTORIA!#REF!) -> FALSE | M84: =ISBLANK(TRAYECTORIA!#REF!) -> FALSE | O84: =TRAYECTORIA!#REF!*-1 ->  | Q84: =Dn(Matriz2!O83,TRAYECTORIA!#REF!,(TRAYECTORIA!#REF!-TRAYECTORIA!#REF!)/2)+Dn(Matriz2!O84,TRAYECTORIA!#REF!,(TRAYECTORIA!#REF!-TRAYECTORIA!#REF!)/2)+Q83 ->  | R84: =De(Matriz2!O83,TRAYECTORIA!#REF!,(TRAYECTORIA!#REF!-TRAYECTORIA!#REF!)/2)+De(Matriz2!O84,TRAYECTORIA!#REF!,(TRAYECTORIA!#REF!-TRAYECTORIA!#REF!)/2)+R83 ->  | S84: =DVt(TRAYECTORIA!#REF!,(TRAYECTORIA!#REF!-TRAYECTORIA!#REF!)/2)+DVt(TRAYECTORIA!#REF!,(TRAYECTORIA!#REF!-TRAYECTORIA!#REF!)/2)+S83 ->  | W84: =Dn(Matriz2!$A$74,TRAYECTORIA!$P$10,TRAYECTORIA!#REF!-TRAYECTORIA!#REF!)+W83 ->  | X84: =De(Matriz2!$A$74,TRAYECTORIA!$P$10,TRAYECTORIA!#REF!-TRAYECTORIA!#REF!)+X83 ->  | Y84: =DVt(TRAYECTORIA!$P$10,TRAYECTORIA!#REF!-TRAYECTORIA!#REF!)+Y83 -> 
K85: =ISBLANK(TRAYECTORIA!#REF!) -> FALSE | L85: =ISBLANK(TRAYECTORIA!#REF!) -> FALSE | M85: =ISBLANK(TRAYECTORIA!#REF!) -> FALSE | O85: =TRAYECTORIA!#REF!*-1 ->  | Q85: =Dn(Matriz2!O84,TRAYECTORIA!#REF!,(TRAYECTORIA!#REF!-TRAYECTORIA!#REF!)/2)+Dn(Matriz2!O85,TRAYECTORIA!#REF!,(TRAYECTORIA!#REF!-TRAYECTORIA!#REF!)/2)+Q84 ->  | R85: =De(Matriz2!O84,TRAYECTORIA!#REF!,(TRAYECTORIA!#REF!-TRAYECTORIA!#REF!)/2)+De(Matriz2!O85,TRAYECTORIA!#REF!,(TRAYECTORIA!#REF!-TRAYECTORIA!#REF!)/2)+R84 ->  | S85: =DVt(TRAYECTORIA!#REF!,(TRAYECTORIA!#REF!-TRAYECTORIA!#REF!)/2)+DVt(TRAYECTORIA!#REF!,(TRAYECTORIA!#REF!-TRAYECTORIA!#REF!)/2)+S84 ->  | W85: =Dn(Matriz2!$A$74,TRAYECTORIA!$P$10,TRAYECTORIA!#REF!-TRAYECTORIA!#REF!)+W84 ->  | X85: =De(Matriz2!$A$74,TRAYECTORIA!$P$10,TRAYECTORIA!#REF!-TRAYECTORIA!#REF!)+X84 ->  | Y85: =DVt(TRAYECTORIA!$P$10,TRAYECTORIA!#REF!-TRAYECTORIA!#REF!)+Y84 -> 
K86: =ISBLANK(TRAYECTORIA!#REF!) -> FALSE | L86: =ISBLANK(TRAYECTORIA!#REF!) -> FALSE | M86: =ISBLANK(TRAYECTORIA!#REF!) -> FALSE | O86: =TRAYECTORIA!#REF!*-1 ->  | Q86: =Dn(Matriz2!O85,TRAYECTORIA!#REF!,(TRAYECTORIA!#REF!-TRAYECTORIA!#REF!)/2)+Dn(Matriz2!O86,TRAYECTORIA!#REF!,(TRAYECTORIA!#REF!-TRAYECTORIA!#REF!)/2)+Q85 ->  | R86: =De(Matriz2!O85,TRAYECTORIA!#REF!,(TRAYECTORIA!#REF!-TRAYECTORIA!#REF!)/2)+De(Matriz2!O86,TRAYECTORIA!#REF!,(TRAYECTORIA!#REF!-TRAYECTORIA!#REF!)/2)+R85 ->  | S86: =DVt(TRAYECTORIA!#REF!,(TRAYECTORIA!#REF!-TRAYECTORIA!#REF!)/2)+DVt(TRAYECTORIA!#REF!,(TRAYECTORIA!#REF!-TRAYECTORIA!#REF!)/2)+S85 ->  | W86: =Dn(Matriz2!$A$74,TRAYECTORIA!$P$10,TRAYECTORIA!#REF!-TRAYECTORIA!#REF!)+W85 ->  | X86: =De(Matriz2!$A$74,TRAYECTORIA!$P$10,TRAYECTORIA!#REF!-TRAYECTORIA!#REF!)+X85 ->  | Y86: =DVt(TRAYECTORIA!$P$10,TRAYECTORIA!#REF!-TRAYECTORIA!#REF!)+Y85 -> 
K87: =ISBLANK(TRAYECTORIA!#REF!) -> FALSE | L87: =ISBLANK(TRAYECTORIA!#REF!) -> FALSE | M87: =ISBLANK(TRAYECTORIA!#REF!) -> FALSE | O87: =TRAYECTORIA!#REF!*-1 ->  | Q87: =Dn(Matriz2!O86,TRAYECTORIA!#REF!,(TRAYECTORIA!#REF!-TRAYECTORIA!#REF!)/2)+Dn(Matriz2!O87,TRAYECTORIA!#REF!,(TRAYECTORIA!#REF!-TRAYECTORIA!#REF!)/2)+Q86 ->  | R87: =De(Matriz2!O86,TRAYECTORIA!#REF!,(TRAYECTORIA!#REF!-TRAYECTORIA!#REF!)/2)+De(Matriz2!O87,TRAYECTORIA!#REF!,(TRAYECTORIA!#REF!-TRAYECTORIA!#REF!)/2)+R86 ->  | S87: =DVt(TRAYECTORIA!#REF!,(TRAYECTORIA!#REF!-TRAYECTORIA!#REF!)/2)+DVt(TRAYECTORIA!#REF!,(TRAYECTORIA!#REF!-TRAYECTORIA!#REF!)/2)+S86 ->  | W87: =Dn(Matriz2!$A$74,TRAYECTORIA!$P$10,TRAYECTORIA!#REF!-TRAYECTORIA!#REF!)+W86 ->  | X87: =De(Matriz2!$A$74,TRAYECTORIA!$P$10,TRAYECTORIA!#REF!-TRAYECTORIA!#REF!)+X86 ->  | Y87: =DVt(TRAYECTORIA!$P$10,TRAYECTORIA!#REF!-TRAYECTORIA!#REF!)+Y86 -> 
K88: =ISBLANK(TRAYECTORIA!#REF!) -> FALSE | L88: =ISBLANK(TRAYECTORIA!#REF!) -> FALSE | M88: =ISBLANK(TRAYECTORIA!#REF!) -> FALSE | O88: =TRAYECTORIA!#REF!*-1 ->  | Q88: =Dn(Matriz2!O87,TRAYECTORIA!#REF!,(TRAYECTORIA!#REF!-TRAYECTORIA!#REF!)/2)+Dn(Matriz2!O88,TRAYECTORIA!#REF!,(TRAYECTORIA!#REF!-TRAYECTORIA!#REF!)/2)+Q87 ->  | R88: =De(Matriz2!O87,TRAYECTORIA!#REF!,(TRAYECTORIA!#REF!-TRAYECTORIA!#REF!)/2)+De(Matriz2!O88,TRAYECTORIA!#REF!,(TRAYECTORIA!#REF!-TRAYECTORIA!#REF!)/2)+R87 ->  | S88: =DVt(TRAYECTORIA!#REF!,(TRAYECTORIA!#REF!-TRAYECTORIA!#REF!)/2)+DVt(TRAYECTORIA!#REF!,(TRAYECTORIA!#REF!-TRAYECTORIA!#REF!)/2)+S87 ->  | W88: =Dn(Matriz2!$A$74,TRAYECTORIA!$P$10,TRAYECTORIA!#REF!-TRAYECTORIA!#REF!)+W87 ->  | X88: =De(Matriz2!$A$74,TRAYECTORIA!$P$10,TRAYECTORIA!#REF!-TRAYECTORIA!#REF!)+X87 ->  | Y88: =DVt(TRAYECTORIA!$P$10,TRAYECTORIA!#REF!-TRAYECTORIA!#REF!)+Y87 -> 
K89: =ISBLANK(TRAYECTORIA!#REF!) -> FALSE | L89: =ISBLANK(TRAYECTORIA!#REF!) -> FALSE | M89: =ISBLANK(TRAYECTORIA!#REF!) -> FALSE | O89: =TRAYECTORIA!#REF!*-1 ->  | Q89: =Dn(Matriz2!O88,TRAYECTORIA!#REF!,(TRAYECTORIA!#REF!-TRAYECTORIA!#REF!)/2)+Dn(Matriz2!O89,TRAYECTORIA!#REF!,(TRAYECTORIA!#REF!-TRAYECTORIA!#REF!)/2)+Q88 ->  | R89: =De(Matriz2!O88,TRAYECTORIA!#REF!,(TRAYECTORIA!#REF!-TRAYECTORIA!#REF!)/2)+De(Matriz2!O89,TRAYECTORIA!#REF!,(TRAYECTORIA!#REF!-TRAYECTORIA!#REF!)/2)+R88 ->  | S89: =DVt(TRAYECTORIA!#REF!,(TRAYECTORIA!#REF!-TRAYECTORIA!#REF!)/2)+DVt(TRAYECTORIA!#REF!,(TRAYECTORIA!#REF!-TRAYECTORIA!#REF!)/2)+S88 ->  | W89: =Dn(Matriz2!$A$74,TRAYECTORIA!$P$10,TRAYECTORIA!#REF!-TRAYECTORIA!#REF!)+W88 ->  | X89: =De(Matriz2!$A$74,TRAYECTORIA!$P$10,TRAYECTORIA!#REF!-TRAYECTORIA!#REF!)+X88 ->  | Y89: =DVt(TRAYECTORIA!$P$10,TRAYECTORIA!#REF!-TRAYECTORIA!#REF!)+Y88 -> 
K90: =ISBLANK(TRAYECTORIA!#REF!) -> FALSE | L90: =ISBLANK(TRAYECTORIA!#REF!) -> FALSE | M90: =ISBLANK(TRAYECTORIA!#REF!) -> FALSE | O90: =TRAYECTORIA!#REF!*-1 ->  | Q90: =Dn(Matriz2!O89,TRAYECTORIA!#REF!,(TRAYECTORIA!#REF!-TRAYECTORIA!#REF!)/2)+Dn(Matriz2!O90,TRAYECTORIA!#REF!,(TRAYECTORIA!#REF!-TRAYECTORIA!#REF!)/2)+Q89 ->  | R90: =De(Matriz2!O89,TRAYECTORIA!#REF!,(TRAYECTORIA!#REF!-TRAYECTORIA!#REF!)/2)+De(Matriz2!O90,TRAYECTORIA!#REF!,(TRAYECTORIA!#REF!-TRAYECTORIA!#REF!)/2)+R89 ->  | S90: =DVt(TRAYECTORIA!#REF!,(TRAYECTORIA!#REF!-TRAYECTORIA!#REF!)/2)+DVt(TRAYECTORIA!#REF!,(TRAYECTORIA!#REF!-TRAYECTORIA!#REF!)/2)+S89 ->  | W90: =Dn(Matriz2!$A$74,TRAYECTORIA!$P$10,TRAYECTORIA!#REF!-TRAYECTORIA!#REF!)+W89 ->  | X90: =De(Matriz2!$A$74,TRAYECTORIA!$P$10,TRAYECTORIA!#REF!-TRAYECTORIA!#REF!)+X89 ->  | Y90: =DVt(TRAYECTORIA!$P$10,TRAYECTORIA!#REF!-TRAYECTORIA!#REF!)+Y89 -> 
K91: =ISBLANK(TRAYECTORIA!#REF!) -> FALSE | L91: =ISBLANK(TRAYECTORIA!#REF!) -> FALSE | M91: =ISBLANK(TRAYECTORIA!#REF!) -> FALSE | O91: =TRAYECTORIA!#REF!*-1 ->  | Q91: =Dn(Matriz2!O90,TRAYECTORIA!#REF!,(TRAYECTORIA!#REF!-TRAYECTORIA!#REF!)/2)+Dn(Matriz2!O91,TRAYECTORIA!#REF!,(TRAYECTORIA!#REF!-TRAYECTORIA!#REF!)/2)+Q90 ->  | R91: =De(Matriz2!O90,TRAYECTORIA!#REF!,(TRAYECTORIA!#REF!-TRAYECTORIA!#REF!)/2)+De(Matriz2!O91,TRAYECTORIA!#REF!,(TRAYECTORIA!#REF!-TRAYECTORIA!#REF!)/2)+R90 ->  | S91: =DVt(TRAYECTORIA!#REF!,(TRAYECTORIA!#REF!-TRAYECTORIA!#REF!)/2)+DVt(TRAYECTORIA!#REF!,(TRAYECTORIA!#REF!-TRAYECTORIA!#REF!)/2)+S90 ->  | W91: =Dn(Matriz2!$A$74,TRAYECTORIA!$P$10,TRAYECTORIA!#REF!-TRAYECTORIA!#REF!)+W90 ->  | X91: =De(Matriz2!$A$74,TRAYECTORIA!$P$10,TRAYECTORIA!#REF!-TRAYECTORIA!#REF!)+X90 ->  | Y91: =DVt(TRAYECTORIA!$P$10,TRAYECTORIA!#REF!-TRAYECTORIA!#REF!)+Y90 -> 
K92: =ISBLANK(TRAYECTORIA!#REF!) -> FALSE | L92: =ISBLANK(TRAYECTORIA!#REF!) -> FALSE | M92: =ISBLANK(TRAYECTORIA!#REF!) -> FALSE | O92: =TRAYECTORIA!#REF!*-1 ->  | Q92: =Dn(Matriz2!O91,TRAYECTORIA!#REF!,(TRAYECTORIA!#REF!-TRAYECTORIA!#REF!)/2)+Dn(Matriz2!O92,TRAYECTORIA!#REF!,(TRAYECTORIA!#REF!-TRAYECTORIA!#REF!)/2)+Q91 ->  | R92: =De(Matriz2!O91,TRAYECTORIA!#REF!,(TRAYECTORIA!#REF!-TRAYECTORIA!#REF!)/2)+De(Matriz2!O92,TRAYECTORIA!#REF!,(TRAYECTORIA!#REF!-TRAYECTORIA!#REF!)/2)+R91 ->  | S92: =DVt(TRAYECTORIA!#REF!,(TRAYECTORIA!#REF!-TRAYECTORIA!#REF!)/2)+DVt(TRAYECTORIA!#REF!,(TRAYECTORIA!#REF!-TRAYECTORIA!#REF!)/2)+S91 ->  | W92: =Dn(Matriz2!$A$74,TRAYECTORIA!$P$10,TRAYECTORIA!#REF!-TRAYECTORIA!#REF!)+W91 ->  | X92: =De(Matriz2!$A$74,TRAYECTORIA!$P$10,TRAYECTORIA!#REF!-TRAYECTORIA!#REF!)+X91 ->  | Y92: =DVt(TRAYECTORIA!$P$10,TRAYECTORIA!#REF!-TRAYECTORIA!#REF!)+Y91 -> 
K93: =ISBLANK(TRAYECTORIA!#REF!) -> FALSE | L93: =ISBLANK(TRAYECTORIA!#REF!) -> FALSE | M93: =ISBLANK(TRAYECTORIA!#REF!) -> FALSE | O93: =TRAYECTORIA!#REF!*-1 ->  | Q93: =Dn(Matriz2!O92,TRAYECTORIA!#REF!,(TRAYECTORIA!#REF!-TRAYECTORIA!#REF!)/2)+Dn(Matriz2!O93,TRAYECTORIA!#REF!,(TRAYECTORIA!#REF!-TRAYECTORIA!#REF!)/2)+Q92 ->  | R93: =De(Matriz2!O92,TRAYECTORIA!#REF!,(TRAYECTORIA!#REF!-TRAYECTORIA!#REF!)/2)+De(Matriz2!O93,TRAYECTORIA!#REF!,(TRAYECTORIA!#REF!-TRAYECTORIA!#REF!)/2)+R92 ->  | S93: =DVt(TRAYECTORIA!#REF!,(TRAYECTORIA!#REF!-TRAYECTORIA!#REF!)/2)+DVt(TRAYECTORIA!#REF!,(TRAYECTORIA!#REF!-TRAYECTORIA!#REF!)/2)+S92 ->  | W93: =Dn(Matriz2!$A$74,TRAYECTORIA!$P$10,TRAYECTORIA!#REF!-TRAYECTORIA!#REF!)+W92 ->  | X93: =De(Matriz2!$A$74,TRAYECTORIA!$P$10,TRAYECTORIA!#REF!-TRAYECTORIA!#REF!)+X92 ->  | Y93: =DVt(TRAYECTORIA!$P$10,TRAYECTORIA!#REF!-TRAYECTORIA!#REF!)+Y92 -> 
K94: =ISBLANK(TRAYECTORIA!#REF!) -> FALSE | L94: =ISBLANK(TRAYECTORIA!#REF!) -> FALSE | M94: =ISBLANK(TRAYECTORIA!#REF!) -> FALSE | O94: =TRAYECTORIA!#REF!*-1 ->  | Q94: =Dn(Matriz2!O93,TRAYECTORIA!#REF!,(TRAYECTORIA!#REF!-TRAYECTORIA!#REF!)/2)+Dn(Matriz2!O94,TRAYECTORIA!#REF!,(TRAYECTORIA!#REF!-TRAYECTORIA!#REF!)/2)+Q93 ->  | R94: =De(Matriz2!O93,TRAYECTORIA!#REF!,(TRAYECTORIA!#REF!-TRAYECTORIA!#REF!)/2)+De(Matriz2!O94,TRAYECTORIA!#REF!,(TRAYECTORIA!#REF!-TRAYECTORIA!#REF!)/2)+R93 ->  | S94: =DVt(TRAYECTORIA!#REF!,(TRAYECTORIA!#REF!-TRAYECTORIA!#REF!)/2)+DVt(TRAYECTORIA!#REF!,(TRAYECTORIA!#REF!-TRAYECTORIA!#REF!)/2)+S93 ->  | W94: =Dn(Matriz2!$A$74,TRAYECTORIA!$P$10,TRAYECTORIA!#REF!-TRAYECTORIA!#REF!)+W93 ->  | X94: =De(Matriz2!$A$74,TRAYECTORIA!$P$10,TRAYECTORIA!#REF!-TRAYECTORIA!#REF!)+X93 ->  | Y94: =DVt(TRAYECTORIA!$P$10,TRAYECTORIA!#REF!-TRAYECTORIA!#REF!)+Y93 -> 
K95: =ISBLANK(TRAYECTORIA!#REF!) -> FALSE | L95: =ISBLANK(TRAYECTORIA!#REF!) -> FALSE | M95: =ISBLANK(TRAYECTORIA!#REF!) -> FALSE | O95: =TRAYECTORIA!#REF!*-1 ->  | Q95: =Dn(Matriz2!O94,TRAYECTORIA!#REF!,(TRAYECTORIA!#REF!-TRAYECTORIA!#REF!)/2)+Dn(Matriz2!O95,TRAYECTORIA!#REF!,(TRAYECTORIA!#REF!-TRAYECTORIA!#REF!)/2)+Q94 ->  | R95: =De(Matriz2!O94,TRAYECTORIA!#REF!,(TRAYECTORIA!#REF!-TRAYECTORIA!#REF!)/2)+De(Matriz2!O95,TRAYECTORIA!#REF!,(TRAYECTORIA!#REF!-TRAYECTORIA!#REF!)/2)+R94 ->  | S95: =DVt(TRAYECTORIA!#REF!,(TRAYECTORIA!#REF!-TRAYECTORIA!#REF!)/2)+DVt(TRAYECTORIA!#REF!,(TRAYECTORIA!#REF!-TRAYECTORIA!#REF!)/2)+S94 ->  | W95: =Dn(Matriz2!$A$74,TRAYECTORIA!$P$10,TRAYECTORIA!#REF!-TRAYECTORIA!#REF!)+W94 ->  | X95: =De(Matriz2!$A$74,TRAYECTORIA!$P$10,TRAYECTORIA!#REF!-TRAYECTORIA!#REF!)+X94 ->  | Y95: =DVt(TRAYECTORIA!$P$10,TRAYECTORIA!#REF!-TRAYECTORIA!#REF!)+Y94 -> 
K96: =ISBLANK(TRAYECTORIA!#REF!) -> FALSE | L96: =ISBLANK(TRAYECTORIA!#REF!) -> FALSE | M96: =ISBLANK(TRAYECTORIA!#REF!) -> FALSE | O96: =TRAYECTORIA!#REF!*-1 ->  | Q96: =Dn(Matriz2!O95,TRAYECTORIA!#REF!,(TRAYECTORIA!#REF!-TRAYECTORIA!#REF!)/2)+Dn(Matriz2!O96,TRAYECTORIA!#REF!,(TRAYECTORIA!#REF!-TRAYECTORIA!#REF!)/2)+Q95 ->  | R96: =De(Matriz2!O95,TRAYECTORIA!#REF!,(TRAYECTORIA!#REF!-TRAYECTORIA!#REF!)/2)+De(Matriz2!O96,TRAYECTORIA!#REF!,(TRAYECTORIA!#REF!-TRAYECTORIA!#REF!)/2)+R95 ->  | S96: =DVt(TRAYECTORIA!#REF!,(TRAYECTORIA!#REF!-TRAYECTORIA!#REF!)/2)+DVt(TRAYECTORIA!#REF!,(TRAYECTORIA!#REF!-TRAYECTORIA!#REF!)/2)+S95 ->  | W96: =Dn(Matriz2!$A$74,TRAYECTORIA!$P$10,TRAYECTORIA!#REF!-TRAYECTORIA!#REF!)+W95 ->  | X96: =De(Matriz2!$A$74,TRAYECTORIA!$P$10,TRAYECTORIA!#REF!-TRAYECTORIA!#REF!)+X95 ->  | Y96: =DVt(TRAYECTORIA!$P$10,TRAYECTORIA!#REF!-TRAYECTORIA!#REF!)+Y95 -> 
K97: =ISBLANK(TRAYECTORIA!#REF!) -> FALSE | L97: =ISBLANK(TRAYECTORIA!#REF!) -> FALSE | M97: =ISBLANK(TRAYECTORIA!#REF!) -> FALSE | O97: =TRAYECTORIA!#REF!*-1 ->  | Q97: =Dn(Matriz2!O96,TRAYECTORIA!#REF!,(TRAYECTORIA!#REF!-TRAYECTORIA!#REF!)/2)+Dn(Matriz2!O97,TRAYECTORIA!#REF!,(TRAYECTORIA!#REF!-TRAYECTORIA!#REF!)/2)+Q96 ->  | R97: =De(Matriz2!O96,TRAYECTORIA!#REF!,(TRAYECTORIA!#REF!-TRAYECTORIA!#REF!)/2)+De(Matriz2!O97,TRAYECTORIA!#REF!,(TRAYECTORIA!#REF!-TRAYECTORIA!#REF!)/2)+R96 ->  | S97: =DVt(TRAYECTORIA!#REF!,(TRAYECTORIA!#REF!-TRAYECTORIA!#REF!)/2)+DVt(TRAYECTORIA!#REF!,(TRAYECTORIA!#REF!-TRAYECTORIA!#REF!)/2)+S96 ->  | W97: =Dn(Matriz2!$A$74,TRAYECTORIA!$P$10,TRAYECTORIA!#REF!-TRAYECTORIA!#REF!)+W96 ->  | X97: =De(Matriz2!$A$74,TRAYECTORIA!$P$10,TRAYECTORIA!#REF!-TRAYECTORIA!#REF!)+X96 ->  | Y97: =DVt(TRAYECTORIA!$P$10,TRAYECTORIA!#REF!-TRAYECTORIA!#REF!)+Y96 -> 
K98: =ISBLANK(TRAYECTORIA!#REF!) -> FALSE | L98: =ISBLANK(TRAYECTORIA!#REF!) -> FALSE | M98: =ISBLANK(TRAYECTORIA!#REF!) -> FALSE | O98: =TRAYECTORIA!#REF!*-1 ->  | Q98: =Dn(Matriz2!O97,TRAYECTORIA!#REF!,(TRAYECTORIA!#REF!-TRAYECTORIA!#REF!)/2)+Dn(Matriz2!O98,TRAYECTORIA!#REF!,(TRAYECTORIA!#REF!-TRAYECTORIA!#REF!)/2)+Q97 ->  | R98: =De(Matriz2!O97,TRAYECTORIA!#REF!,(TRAYECTORIA!#REF!-TRAYECTORIA!#REF!)/2)+De(Matriz2!O98,TRAYECTORIA!#REF!,(TRAYECTORIA!#REF!-TRAYECTORIA!#REF!)/2)+R97 ->  | S98: =DVt(TRAYECTORIA!#REF!,(TRAYECTORIA!#REF!-TRAYECTORIA!#REF!)/2)+DVt(TRAYECTORIA!#REF!,(TRAYECTORIA!#REF!-TRAYECTORIA!#REF!)/2)+S97 ->  | W98: =Dn(Matriz2!$A$74,TRAYECTORIA!$P$10,TRAYECTORIA!#REF!-TRAYECTORIA!#REF!)+W97 ->  | X98: =De(Matriz2!$A$74,TRAYECTORIA!$P$10,TRAYECTORIA!#REF!-TRAYECTORIA!#REF!)+X97 ->  | Y98: =DVt(TRAYECTORIA!$P$10,TRAYECTORIA!#REF!-TRAYECTORIA!#REF!)+Y97 -> 
K99: =ISBLANK(TRAYECTORIA!#REF!) -> FALSE | L99: =ISBLANK(TRAYECTORIA!#REF!) -> FALSE | M99: =ISBLANK(TRAYECTORIA!#REF!) -> FALSE | O99: =TRAYECTORIA!#REF!*-1 ->  | Q99: =Dn(Matriz2!O98,TRAYECTORIA!#REF!,(TRAYECTORIA!#REF!-TRAYECTORIA!#REF!)/2)+Dn(Matriz2!O99,TRAYECTORIA!#REF!,(TRAYECTORIA!#REF!-TRAYECTORIA!#REF!)/2)+Q98 ->  | R99: =De(Matriz2!O98,TRAYECTORIA!#REF!,(TRAYECTORIA!#REF!-TRAYECTORIA!#REF!)/2)+De(Matriz2!O99,TRAYECTORIA!#REF!,(TRAYECTORIA!#REF!-TRAYECTORIA!#REF!)/2)+R98 ->  | S99: =DVt(TRAYECTORIA!#REF!,(TRAYECTORIA!#REF!-TRAYECTORIA!#REF!)/2)+DVt(TRAYECTORIA!#REF!,(TRAYECTORIA!#REF!-TRAYECTORIA!#REF!)/2)+S98 ->  | W99: =Dn(Matriz2!$A$74,TRAYECTORIA!$P$10,TRAYECTORIA!#REF!-TRAYECTORIA!#REF!)+W98 ->  | X99: =De(Matriz2!$A$74,TRAYECTORIA!$P$10,TRAYECTORIA!#REF!-TRAYECTORIA!#REF!)+X98 ->  | Y99: =DVt(TRAYECTORIA!$P$10,TRAYECTORIA!#REF!-TRAYECTORIA!#REF!)+Y98 -> 
K100: =ISBLANK(TRAYECTORIA!#REF!) -> FALSE | L100: =ISBLANK(TRAYECTORIA!#REF!) -> FALSE | M100: =ISBLANK(TRAYECTORIA!#REF!) -> FALSE | O100: =TRAYECTORIA!#REF!*-1 ->  | Q100: =Dn(Matriz2!O99,TRAYECTORIA!#REF!,(TRAYECTORIA!#REF!-TRAYECTORIA!#REF!)/2)+Dn(Matriz2!O100,TRAYECTORIA!#REF!,(TRAYECTORIA!#REF!-TRAYECTORIA!#REF!)/2)+Q99 ->  | R100: =De(Matriz2!O99,TRAYECTORIA!#REF!,(TRAYECTORIA!#REF!-TRAYECTORIA!#REF!)/2)+De(Matriz2!O100,TRAYECTORIA!#REF!,(TRAYECTORIA!#REF!-TRAYECTORIA!#REF!)/2)+R99 ->  | S100: =DVt(TRAYECTORIA!#REF!,(TRAYECTORIA!#REF!-TRAYECTORIA!#REF!)/2)+DVt(TRAYECTORIA!#REF!,(TRAYECTORIA!#REF!-TRAYECTORIA!#REF!)/2)+S99 ->  | W100: =Dn(Matriz2!$A$74,TRAYECTORIA!$P$10,TRAYECTORIA!#REF!-TRAYECTORIA!#REF!)+W99 ->  | X100: =De(Matriz2!$A$74,TRAYECTORIA!$P$10,TRAYECTORIA!#REF!-TRAYECTORIA!#REF!)+X99 ->  | Y100: =DVt(TRAYECTORIA!$P$10,TRAYECTORIA!#REF!-TRAYECTORIA!#REF!)+Y99 -> 
K101: =ISBLANK(TRAYECTORIA!#REF!) -> FALSE | L101: =ISBLANK(TRAYECTORIA!#REF!) -> FALSE | M101: =ISBLANK(TRAYECTORIA!#REF!) -> FALSE | O101: =TRAYECTORIA!#REF!*-1 ->  | Q101: =Dn(Matriz2!O100,TRAYECTORIA!#REF!,(TRAYECTORIA!#REF!-TRAYECTORIA!#REF!)/2)+Dn(Matriz2!O101,TRAYECTORIA!#REF!,(TRAYECTORIA!#REF!-TRAYECTORIA!#REF!)/2)+Q100 ->  | R101: =De(Matriz2!O100,TRAYECTORIA!#REF!,(TRAYECTORIA!#REF!-TRAYECTORIA!#REF!)/2)+De(Matriz2!O101,TRAYECTORIA!#REF!,(TRAYECTORIA!#REF!-TRAYECTORIA!#REF!)/2)+R100 ->  | S101: =DVt(TRAYECTORIA!#REF!,(TRAYECTORIA!#REF!-TRAYECTORIA!#REF!)/2)+DVt(TRAYECTORIA!#REF!,(TRAYECTORIA!#REF!-TRAYECTORIA!#REF!)/2)+S100 ->  | W101: =Dn(Matriz2!$A$74,TRAYECTORIA!$P$10,TRAYECTORIA!#REF!-TRAYECTORIA!#REF!)+W100 ->  | X101: =De(Matriz2!$A$74,TRAYECTORIA!$P$10,TRAYECTORIA!#REF!-TRAYECTORIA!#REF!)+X100 ->  | Y101: =DVt(TRAYECTORIA!$P$10,TRAYECTORIA!#REF!-TRAYECTORIA!#REF!)+Y100 -> 
K102: =ISBLANK(TRAYECTORIA!#REF!) -> FALSE | L102: =ISBLANK(TRAYECTORIA!#REF!) -> FALSE | M102: =ISBLANK(TRAYECTORIA!#REF!) -> FALSE | O102: =TRAYECTORIA!#REF!*-1 ->  | Q102: =Dn(Matriz2!O101,TRAYECTORIA!#REF!,(TRAYECTORIA!#REF!-TRAYECTORIA!#REF!)/2)+Dn(Matriz2!O102,TRAYECTORIA!#REF!,(TRAYECTORIA!#REF!-TRAYECTORIA!#REF!)/2)+Q101 ->  | R102: =De(Matriz2!O101,TRAYECTORIA!#REF!,(TRAYECTORIA!#REF!-TRAYECTORIA!#REF!)/2)+De(Matriz2!O102,TRAYECTORIA!#REF!,(TRAYECTORIA!#REF!-TRAYECTORIA!#REF!)/2)+R101 ->  | S102: =DVt(TRAYECTORIA!#REF!,(TRAYECTORIA!#REF!-TRAYECTORIA!#REF!)/2)+DVt(TRAYECTORIA!#REF!,(TRAYECTORIA!#REF!-TRAYECTORIA!#REF!)/2)+S101 ->  | W102: =Dn(Matriz2!$A$74,TRAYECTORIA!$P$10,TRAYECTORIA!#REF!-TRAYECTORIA!#REF!)+W101 ->  | X102: =De(Matriz2!$A$74,TRAYECTORIA!$P$10,TRAYECTORIA!#REF!-TRAYECTORIA!#REF!)+X101 ->  | Y102: =DVt(TRAYECTORIA!$P$10,TRAYECTORIA!#REF!-TRAYECTORIA!#REF!)+Y101 -> 
K103: =ISBLANK(TRAYECTORIA!#REF!) -> FALSE | L103: =ISBLANK(TRAYECTORIA!#REF!) -> FALSE | M103: =ISBLANK(TRAYECTORIA!#REF!) -> FALSE | O103: =TRAYECTORIA!#REF!*-1 ->  | Q103: =Dn(Matriz2!O102,TRAYECTORIA!#REF!,(TRAYECTORIA!#REF!-TRAYECTORIA!#REF!)/2)+Dn(Matriz2!O103,TRAYECTORIA!#REF!,(TRAYECTORIA!#REF!-TRAYECTORIA!#REF!)/2)+Q102 ->  | R103: =De(Matriz2!O102,TRAYECTORIA!#REF!,(TRAYECTORIA!#REF!-TRAYECTORIA!#REF!)/2)+De(Matriz2!O103,TRAYECTORIA!#REF!,(TRAYECTORIA!#REF!-TRAYECTORIA!#REF!)/2)+R102 ->  | S103: =DVt(TRAYECTORIA!#REF!,(TRAYECTORIA!#REF!-TRAYECTORIA!#REF!)/2)+DVt(TRAYECTORIA!#REF!,(TRAYECTORIA!#REF!-TRAYECTORIA!#REF!)/2)+S102 ->  | W103: =Dn(Matriz2!$A$74,TRAYECTORIA!$P$10,TRAYECTORIA!#REF!-TRAYECTORIA!#REF!)+W102 ->  | X103: =De(Matriz2!$A$74,TRAYECTORIA!$P$10,TRAYECTORIA!#REF!-TRAYECTORIA!#REF!)+X102 ->  | Y103: =DVt(TRAYECTORIA!$P$10,TRAYECTORIA!#REF!-TRAYECTORIA!#REF!)+Y102 -> 
K104: =ISBLANK(TRAYECTORIA!#REF!) -> FALSE | L104: =ISBLANK(TRAYECTORIA!#REF!) -> FALSE | M104: =ISBLANK(TRAYECTORIA!#REF!) -> FALSE | O104: =TRAYECTORIA!#REF!*-1 ->  | Q104: =Dn(Matriz2!O103,TRAYECTORIA!#REF!,(TRAYECTORIA!#REF!-TRAYECTORIA!#REF!)/2)+Dn(Matriz2!O104,TRAYECTORIA!#REF!,(TRAYECTORIA!#REF!-TRAYECTORIA!#REF!)/2)+Q103 ->  | R104: =De(Matriz2!O103,TRAYECTORIA!#REF!,(TRAYECTORIA!#REF!-TRAYECTORIA!#REF!)/2)+De(Matriz2!O104,TRAYECTORIA!#REF!,(TRAYECTORIA!#REF!-TRAYECTORIA!#REF!)/2)+R103 ->  | S104: =DVt(TRAYECTORIA!#REF!,(TRAYECTORIA!#REF!-TRAYECTORIA!#REF!)/2)+DVt(TRAYECTORIA!#REF!,(TRAYECTORIA!#REF!-TRAYECTORIA!#REF!)/2)+S103 ->  | W104: =Dn(Matriz2!$A$74,TRAYECTORIA!$P$10,TRAYECTORIA!#REF!-TRAYECTORIA!#REF!)+W103 ->  | X104: =De(Matriz2!$A$74,TRAYECTORIA!$P$10,TRAYECTORIA!#REF!-TRAYECTORIA!#REF!)+X103 ->  | Y104: =DVt(TRAYECTORIA!$P$10,TRAYECTORIA!#REF!-TRAYECTORIA!#REF!)+Y103 -> 
K105: =ISBLANK(TRAYECTORIA!#REF!) -> FALSE | L105: =ISBLANK(TRAYECTORIA!#REF!) -> FALSE | M105: =ISBLANK(TRAYECTORIA!#REF!) -> FALSE | O105: =TRAYECTORIA!#REF!*-1 ->  | Q105: =Dn(Matriz2!O104,TRAYECTORIA!#REF!,(TRAYECTORIA!#REF!-TRAYECTORIA!#REF!)/2)+Dn(Matriz2!O105,TRAYECTORIA!#REF!,(TRAYECTORIA!#REF!-TRAYECTORIA!#REF!)/2)+Q104 ->  | R105: =De(Matriz2!O104,TRAYECTORIA!#REF!,(TRAYECTORIA!#REF!-TRAYECTORIA!#REF!)/2)+De(Matriz2!O105,TRAYECTORIA!#REF!,(TRAYECTORIA!#REF!-TRAYECTORIA!#REF!)/2)+R104 ->  | S105: =DVt(TRAYECTORIA!#REF!,(TRAYECTORIA!#REF!-TRAYECTORIA!#REF!)/2)+DVt(TRAYECTORIA!#REF!,(TRAYECTORIA!#REF!-TRAYECTORIA!#REF!)/2)+S104 ->  | W105: =Dn(Matriz2!$A$74,TRAYECTORIA!$P$10,TRAYECTORIA!#REF!-TRAYECTORIA!#REF!)+W104 ->  | X105: =De(Matriz2!$A$74,TRAYECTORIA!$P$10,TRAYECTORIA!#REF!-TRAYECTORIA!#REF!)+X104 ->  | Y105: =DVt(TRAYECTORIA!$P$10,TRAYECTORIA!#REF!-TRAYECTORIA!#REF!)+Y104 -> 
K106: =ISBLANK(TRAYECTORIA!#REF!) -> FALSE | L106: =ISBLANK(TRAYECTORIA!#REF!) -> FALSE | M106: =ISBLANK(TRAYECTORIA!#REF!) -> FALSE | O106: =TRAYECTORIA!#REF!*-1 ->  | Q106: =Dn(Matriz2!O105,TRAYECTORIA!#REF!,(TRAYECTORIA!#REF!-TRAYECTORIA!#REF!)/2)+Dn(Matriz2!O106,TRAYECTORIA!#REF!,(TRAYECTORIA!#REF!-TRAYECTORIA!#REF!)/2)+Q105 ->  | R106: =De(Matriz2!O105,TRAYECTORIA!#REF!,(TRAYECTORIA!#REF!-TRAYECTORIA!#REF!)/2)+De(Matriz2!O106,TRAYECTORIA!#REF!,(TRAYECTORIA!#REF!-TRAYECTORIA!#REF!)/2)+R105 ->  | S106: =DVt(TRAYECTORIA!#REF!,(TRAYECTORIA!#REF!-TRAYECTORIA!#REF!)/2)+DVt(TRAYECTORIA!#REF!,(TRAYECTORIA!#REF!-TRAYECTORIA!#REF!)/2)+S105 ->  | W106: =Dn(Matriz2!$A$74,TRAYECTORIA!$P$10,TRAYECTORIA!#REF!-TRAYECTORIA!#REF!)+W105 ->  | X106: =De(Matriz2!$A$74,TRAYECTORIA!$P$10,TRAYECTORIA!#REF!-TRAYECTORIA!#REF!)+X105 ->  | Y106: =DVt(TRAYECTORIA!$P$10,TRAYECTORIA!#REF!-TRAYECTORIA!#REF!)+Y105 -> 
K107: =ISBLANK(TRAYECTORIA!#REF!) -> FALSE | L107: =ISBLANK(TRAYECTORIA!#REF!) -> FALSE | M107: =ISBLANK(TRAYECTORIA!#REF!) -> FALSE | O107: =TRAYECTORIA!#REF!*-1 ->  | Q107: =Dn(Matriz2!O106,TRAYECTORIA!#REF!,(TRAYECTORIA!#REF!-TRAYECTORIA!#REF!)/2)+Dn(Matriz2!O107,TRAYECTORIA!#REF!,(TRAYECTORIA!#REF!-TRAYECTORIA!#REF!)/2)+Q106 ->  | R107: =De(Matriz2!O106,TRAYECTORIA!#REF!,(TRAYECTORIA!#REF!-TRAYECTORIA!#REF!)/2)+De(Matriz2!O107,TRAYECTORIA!#REF!,(TRAYECTORIA!#REF!-TRAYECTORIA!#REF!)/2)+R106 ->  | S107: =DVt(TRAYECTORIA!#REF!,(TRAYECTORIA!#REF!-TRAYECTORIA!#REF!)/2)+DVt(TRAYECTORIA!#REF!,(TRAYECTORIA!#REF!-TRAYECTORIA!#REF!)/2)+S106 ->  | W107: =Dn(Matriz2!$A$74,TRAYECTORIA!$P$10,TRAYECTORIA!#REF!-TRAYECTORIA!#REF!)+W106 ->  | X107: =De(Matriz2!$A$74,TRAYECTORIA!$P$10,TRAYECTORIA!#REF!-TRAYECTORIA!#REF!)+X106 ->  | Y107: =DVt(TRAYECTORIA!$P$10,TRAYECTORIA!#REF!-TRAYECTORIA!#REF!)+Y106 -> 
K108: =ISBLANK(TRAYECTORIA!#REF!) -> FALSE | L108: =ISBLANK(TRAYECTORIA!#REF!) -> FALSE | M108: =ISBLANK(TRAYECTORIA!#REF!) -> FALSE | O108: =TRAYECTORIA!#REF!*-1 ->  | Q108: =Dn(Matriz2!O107,TRAYECTORIA!#REF!,(TRAYECTORIA!#REF!-TRAYECTORIA!#REF!)/2)+Dn(Matriz2!O108,TRAYECTORIA!#REF!,(TRAYECTORIA!#REF!-TRAYECTORIA!#REF!)/2)+Q107 ->  | R108: =De(Matriz2!O107,TRAYECTORIA!#REF!,(TRAYECTORIA!#REF!-TRAYECTORIA!#REF!)/2)+De(Matriz2!O108,TRAYECTORIA!#REF!,(TRAYECTORIA!#REF!-TRAYECTORIA!#REF!)/2)+R107 ->  | S108: =DVt(TRAYECTORIA!#REF!,(TRAYECTORIA!#REF!-TRAYECTORIA!#REF!)/2)+DVt(TRAYECTORIA!#REF!,(TRAYECTORIA!#REF!-TRAYECTORIA!#REF!)/2)+S107 ->  | W108: =Dn(Matriz2!$A$74,TRAYECTORIA!$P$10,TRAYECTORIA!#REF!-TRAYECTORIA!#REF!)+W107 ->  | X108: =De(Matriz2!$A$74,TRAYECTORIA!$P$10,TRAYECTORIA!#REF!-TRAYECTORIA!#REF!)+X107 ->  | Y108: =DVt(TRAYECTORIA!$P$10,TRAYECTORIA!#REF!-TRAYECTORIA!#REF!)+Y107 -> 
K109: =ISBLANK(TRAYECTORIA!#REF!) -> FALSE | L109: =ISBLANK(TRAYECTORIA!#REF!) -> FALSE | M109: =ISBLANK(TRAYECTORIA!#REF!) -> FALSE | O109: =TRAYECTORIA!#REF!*-1 ->  | Q109: =Dn(Matriz2!O108,TRAYECTORIA!#REF!,(TRAYECTORIA!#REF!-TRAYECTORIA!#REF!)/2)+Dn(Matriz2!O109,TRAYECTORIA!#REF!,(TRAYECTORIA!#REF!-TRAYECTORIA!#REF!)/2)+Q108 ->  | R109: =De(Matriz2!O108,TRAYECTORIA!#REF!,(TRAYECTORIA!#REF!-TRAYECTORIA!#REF!)/2)+De(Matriz2!O109,TRAYECTORIA!#REF!,(TRAYECTORIA!#REF!-TRAYECTORIA!#REF!)/2)+R108 ->  | S109: =DVt(TRAYECTORIA!#REF!,(TRAYECTORIA!#REF!-TRAYECTORIA!#REF!)/2)+DVt(TRAYECTORIA!#REF!,(TRAYECTORIA!#REF!-TRAYECTORIA!#REF!)/2)+S108 ->  | W109: =Dn(Matriz2!$A$74,TRAYECTORIA!$P$10,TRAYECTORIA!#REF!-TRAYECTORIA!#REF!)+W108 ->  | X109: =De(Matriz2!$A$74,TRAYECTORIA!$P$10,TRAYECTORIA!#REF!-TRAYECTORIA!#REF!)+X108 ->  | Y109: =DVt(TRAYECTORIA!$P$10,TRAYECTORIA!#REF!-TRAYECTORIA!#REF!)+Y108 -> 
K110: =ISBLANK(TRAYECTORIA!#REF!) -> FALSE | L110: =ISBLANK(TRAYECTORIA!#REF!) -> FALSE | M110: =ISBLANK(TRAYECTORIA!#REF!) -> FALSE | O110: =TRAYECTORIA!#REF!*-1 ->  | Q110: =Dn(Matriz2!O109,TRAYECTORIA!#REF!,(TRAYECTORIA!#REF!-TRAYECTORIA!#REF!)/2)+Dn(Matriz2!O110,TRAYECTORIA!#REF!,(TRAYECTORIA!#REF!-TRAYECTORIA!#REF!)/2)+Q109 ->  | R110: =De(Matriz2!O109,TRAYECTORIA!#REF!,(TRAYECTORIA!#REF!-TRAYECTORIA!#REF!)/2)+De(Matriz2!O110,TRAYECTORIA!#REF!,(TRAYECTORIA!#REF!-TRAYECTORIA!#REF!)/2)+R109 ->  | S110: =DVt(TRAYECTORIA!#REF!,(TRAYECTORIA!#REF!-TRAYECTORIA!#REF!)/2)+DVt(TRAYECTORIA!#REF!,(TRAYECTORIA!#REF!-TRAYECTORIA!#REF!)/2)+S109 ->  | W110: =Dn(Matriz2!$A$74,TRAYECTORIA!$P$10,TRAYECTORIA!#REF!-TRAYECTORIA!#REF!)+W109 ->  | X110: =De(Matriz2!$A$74,TRAYECTORIA!$P$10,TRAYECTORIA!#REF!-TRAYECTORIA!#REF!)+X109 ->  | Y110: =DVt(TRAYECTORIA!$P$10,TRAYECTORIA!#REF!-TRAYECTORIA!#REF!)+Y109 -> 
K111: =ISBLANK(TRAYECTORIA!C44) -> TRUE | L111: =ISBLANK(TRAYECTORIA!E44) -> TRUE | M111: =ISBLANK(TRAYECTORIA!D44) -> TRUE | O111: =TRAYECTORIA!#REF!*-1 ->  | Q111: =Dn(Matriz2!O110,TRAYECTORIA!#REF!,(TRAYECTORIA!#REF!-TRAYECTORIA!#REF!)/2)+Dn(Matriz2!O111,TRAYECTORIA!#REF!,(TRAYECTORIA!#REF!-TRAYECTORIA!#REF!)/2)+Q110 ->  | R111: =De(Matriz2!O110,TRAYECTORIA!#REF!,(TRAYECTORIA!#REF!-TRAYECTORIA!#REF!)/2)+De(Matriz2!O111,TRAYECTORIA!#REF!,(TRAYECTORIA!#REF!-TRAYECTORIA!#REF!)/2)+R110 ->  | S111: =DVt(TRAYECTORIA!#REF!,(TRAYECTORIA!#REF!-TRAYECTORIA!#REF!)/2)+DVt(TRAYECTORIA!#REF!,(TRAYECTORIA!#REF!-TRAYECTORIA!#REF!)/2)+S110 ->  | W111: =Dn(Matriz2!$A$74,TRAYECTORIA!$P$10,TRAYECTORIA!#REF!-TRAYECTORIA!#REF!)+W110 ->  | X111: =De(Matriz2!$A$74,TRAYECTORIA!$P$10,TRAYECTORIA!#REF!-TRAYECTORIA!#REF!)+X110 ->  | Y111: =DVt(TRAYECTORIA!$P$10,TRAYECTORIA!#REF!-TRAYECTORIA!#REF!)+Y110 -> 
K112: =ISBLANK(TRAYECTORIA!C45) -> TRUE | L112: =ISBLANK(TRAYECTORIA!E45) -> TRUE | M112: =ISBLANK(TRAYECTORIA!D45) -> TRUE | O112: =TRAYECTORIA!E44*-1 -> 0 | Q112: =Dn(Matriz2!O111,TRAYECTORIA!#REF!,(TRAYECTORIA!C44-TRAYECTORIA!#REF!)/2)+Dn(Matriz2!O112,TRAYECTORIA!D44,(TRAYECTORIA!C44-TRAYECTORIA!#REF!)/2)+Q111 ->  | R112: =De(Matriz2!O111,TRAYECTORIA!#REF!,(TRAYECTORIA!C44-TRAYECTORIA!#REF!)/2)+De(Matriz2!O112,TRAYECTORIA!D44,(TRAYECTORIA!C44-TRAYECTORIA!#REF!)/2)+R111 ->  | S112: =DVt(TRAYECTORIA!#REF!,(TRAYECTORIA!C44-TRAYECTORIA!#REF!)/2)+DVt(TRAYECTORIA!D44,(TRAYECTORIA!C44-TRAYECTORIA!#REF!)/2)+S111 ->  | W112: =Dn(Matriz2!$A$74,TRAYECTORIA!$P$10,TRAYECTORIA!C44-TRAYECTORIA!#REF!)+W111 ->  | X112: =De(Matriz2!$A$74,TRAYECTORIA!$P$10,TRAYECTORIA!C44-TRAYECTORIA!#REF!)+X111 ->  | Y112: =DVt(TRAYECTORIA!$P$10,TRAYECTORIA!C44-TRAYECTORIA!#REF!)+Y111 -> 
K113: =ISBLANK(TRAYECTORIA!C46) -> TRUE | L113: =ISBLANK(TRAYECTORIA!E46) -> TRUE | M113: =ISBLANK(TRAYECTORIA!D46) -> TRUE | O113: =TRAYECTORIA!E45*-1 -> 0 | Q113: =Dn(Matriz2!O112,TRAYECTORIA!D44,(TRAYECTORIA!C45-TRAYECTORIA!C44)/2)+Dn(Matriz2!O113,TRAYECTORIA!D45,(TRAYECTORIA!C45-TRAYECTORIA!C44)/2)+Q112 ->  | R113: =De(Matriz2!O112,TRAYECTORIA!D44,(TRAYECTORIA!C45-TRAYECTORIA!C44)/2)+De(Matriz2!O113,TRAYECTORIA!D45,(TRAYECTORIA!C45-TRAYECTORIA!C44)/2)+R112 ->  | S113: =DVt(TRAYECTORIA!D44,(TRAYECTORIA!C45-TRAYECTORIA!C44)/2)+DVt(TRAYECTORIA!D45,(TRAYECTORIA!C45-TRAYECTORIA!C44)/2)+S112 ->  | W113: =Dn(Matriz2!$A$74,TRAYECTORIA!$P$10,TRAYECTORIA!C45-TRAYECTORIA!C44)+W112 ->  | X113: =De(Matriz2!$A$74,TRAYECTORIA!$P$10,TRAYECTORIA!C45-TRAYECTORIA!C44)+X112 ->  | Y113: =DVt(TRAYECTORIA!$P$10,TRAYECTORIA!C45-TRAYECTORIA!C44)+Y112 -> 
K114: =ISBLANK(TRAYECTORIA!C47) -> TRUE | L114: =ISBLANK(TRAYECTORIA!E47) -> TRUE | M114: =ISBLANK(TRAYECTORIA!D47) -> TRUE | O114: =TRAYECTORIA!E46*-1 -> 0 | Q114: =Dn(Matriz2!O113,TRAYECTORIA!D45,(TRAYECTORIA!C46-TRAYECTORIA!C45)/2)+Dn(Matriz2!O114,TRAYECTORIA!D46,(TRAYECTORIA!C46-TRAYECTORIA!C45)/2)+Q113 ->  | R114: =De(Matriz2!O113,TRAYECTORIA!D45,(TRAYECTORIA!C46-TRAYECTORIA!C45)/2)+De(Matriz2!O114,TRAYECTORIA!D46,(TRAYECTORIA!C46-TRAYECTORIA!C45)/2)+R113 ->  | S114: =DVt(TRAYECTORIA!D45,(TRAYECTORIA!C46-TRAYECTORIA!C45)/2)+DVt(TRAYECTORIA!D46,(TRAYECTORIA!C46-TRAYECTORIA!C45)/2)+S113 ->  | W114: =Dn(Matriz2!$A$74,TRAYECTORIA!$P$10,TRAYECTORIA!C46-TRAYECTORIA!C45)+W113 ->  | X114: =De(Matriz2!$A$74,TRAYECTORIA!$P$10,TRAYECTORIA!C46-TRAYECTORIA!C45)+X113 ->  | Y114: =DVt(TRAYECTORIA!$P$10,TRAYECTORIA!C46-TRAYECTORIA!C45)+Y113 -> 
K115: =ISBLANK(TRAYECTORIA!C48) -> TRUE | L115: =ISBLANK(TRAYECTORIA!E48) -> TRUE | M115: =ISBLANK(TRAYECTORIA!D48) -> TRUE | O115: =TRAYECTORIA!E47*-1 -> 0 | Q115: =Dn(Matriz2!O114,TRAYECTORIA!D46,(TRAYECTORIA!C47-TRAYECTORIA!C46)/2)+Dn(Matriz2!O115,TRAYECTORIA!D47,(TRAYECTORIA!C47-TRAYECTORIA!C46)/2)+Q114 ->  | R115: =De(Matriz2!O114,TRAYECTORIA!D46,(TRAYECTORIA!C47-TRAYECTORIA!C46)/2)+De(Matriz2!O115,TRAYECTORIA!D47,(TRAYECTORIA!C47-TRAYECTORIA!C46)/2)+R114 ->  | S115: =DVt(TRAYECTORIA!D46,(TRAYECTORIA!C47-TRAYECTORIA!C46)/2)+DVt(TRAYECTORIA!D47,(TRAYECTORIA!C47-TRAYECTORIA!C46)/2)+S114 ->  | W115: =Dn(Matriz2!$A$74,TRAYECTORIA!$P$10,TRAYECTORIA!C47-TRAYECTORIA!C46)+W114 ->  | X115: =De(Matriz2!$A$74,TRAYECTORIA!$P$10,TRAYECTORIA!C47-TRAYECTORIA!C46)+X114 ->  | Y115: =DVt(TRAYECTORIA!$P$10,TRAYECTORIA!C47-TRAYECTORIA!C46)+Y114 -> 
K116: =ISBLANK(TRAYECTORIA!C49) -> TRUE | L116: =ISBLANK(TRAYECTORIA!E49) -> TRUE | M116: =ISBLANK(TRAYECTORIA!D49) -> TRUE | O116: =TRAYECTORIA!E48*-1 -> 0 | Q116: =Dn(Matriz2!O115,TRAYECTORIA!D47,(TRAYECTORIA!C48-TRAYECTORIA!C47)/2)+Dn(Matriz2!O116,TRAYECTORIA!D48,(TRAYECTORIA!C48-TRAYECTORIA!C47)/2)+Q115 ->  | R116: =De(Matriz2!O115,TRAYECTORIA!D47,(TRAYECTORIA!C48-TRAYECTORIA!C47)/2)+De(Matriz2!O116,TRAYECTORIA!D48,(TRAYECTORIA!C48-TRAYECTORIA!C47)/2)+R115 ->  | S116: =DVt(TRAYECTORIA!D47,(TRAYECTORIA!C48-TRAYECTORIA!C47)/2)+DVt(TRAYECTORIA!D48,(TRAYECTORIA!C48-TRAYECTORIA!C47)/2)+S115 ->  | W116: =Dn(Matriz2!$A$74,TRAYECTORIA!$P$10,TRAYECTORIA!C48-TRAYECTORIA!C47)+W115 ->  | X116: =De(Matriz2!$A$74,TRAYECTORIA!$P$10,TRAYECTORIA!C48-TRAYECTORIA!C47)+X115 ->  | Y116: =DVt(TRAYECTORIA!$P$10,TRAYECTORIA!C48-TRAYECTORIA!C47)+Y115 -> 
K117: =ISBLANK(TRAYECTORIA!C50) -> TRUE | L117: =ISBLANK(TRAYECTORIA!E50) -> TRUE | M117: =ISBLANK(TRAYECTORIA!D50) -> TRUE | O117: =TRAYECTORIA!E49*-1 -> 0 | Q117: =Dn(Matriz2!O116,TRAYECTORIA!D48,(TRAYECTORIA!C49-TRAYECTORIA!C48)/2)+Dn(Matriz2!O117,TRAYECTORIA!D49,(TRAYECTORIA!C49-TRAYECTORIA!C48)/2)+Q116 ->  | R117: =De(Matriz2!O116,TRAYECTORIA!D48,(TRAYECTORIA!C49-TRAYECTORIA!C48)/2)+De(Matriz2!O117,TRAYECTORIA!D49,(TRAYECTORIA!C49-TRAYECTORIA!C48)/2)+R116 ->  | S117: =DVt(TRAYECTORIA!D48,(TRAYECTORIA!C49-TRAYECTORIA!C48)/2)+DVt(TRAYECTORIA!D49,(TRAYECTORIA!C49-TRAYECTORIA!C48)/2)+S116 ->  | W117: =Dn(Matriz2!$A$74,TRAYECTORIA!$P$10,TRAYECTORIA!C49-TRAYECTORIA!C48)+W116 ->  | X117: =De(Matriz2!$A$74,TRAYECTORIA!$P$10,TRAYECTORIA!C49-TRAYECTORIA!C48)+X116 ->  | Y117: =DVt(TRAYECTORIA!$P$10,TRAYECTORIA!C49-TRAYECTORIA!C48)+Y116 -> 
K118: =ISBLANK(TRAYECTORIA!C51) -> TRUE | L118: =ISBLANK(TRAYECTORIA!E51) -> TRUE | M118: =ISBLANK(TRAYECTORIA!D51) -> TRUE | O118: =TRAYECTORIA!E50*-1 -> 0 | Q118: =Dn(Matriz2!O117,TRAYECTORIA!D49,(TRAYECTORIA!C50-TRAYECTORIA!C49)/2)+Dn(Matriz2!O118,TRAYECTORIA!D50,(TRAYECTORIA!C50-TRAYECTORIA!C49)/2)+Q117 ->  | R118: =De(Matriz2!O117,TRAYECTORIA!D49,(TRAYECTORIA!C50-TRAYECTORIA!C49)/2)+De(Matriz2!O118,TRAYECTORIA!D50,(TRAYECTORIA!C50-TRAYECTORIA!C49)/2)+R117 ->  | S118: =DVt(TRAYECTORIA!D49,(TRAYECTORIA!C50-TRAYECTORIA!C49)/2)+DVt(TRAYECTORIA!D50,(TRAYECTORIA!C50-TRAYECTORIA!C49)/2)+S117 ->  | W118: =Dn(Matriz2!$A$74,TRAYECTORIA!$P$10,TRAYECTORIA!C50-TRAYECTORIA!C49)+W117 ->  | X118: =De(Matriz2!$A$74,TRAYECTORIA!$P$10,TRAYECTORIA!C50-TRAYECTORIA!C49)+X117 ->  | Y118: =DVt(TRAYECTORIA!$P$10,TRAYECTORIA!C50-TRAYECTORIA!C49)+Y117 -> 
K119: =ISBLANK(TRAYECTORIA!C52) -> TRUE | L119: =ISBLANK(TRAYECTORIA!E52) -> TRUE | M119: =ISBLANK(TRAYECTORIA!D52) -> TRUE | O119: =TRAYECTORIA!E51*-1 -> 0 | Q119: =Dn(Matriz2!O118,TRAYECTORIA!D50,(TRAYECTORIA!C51-TRAYECTORIA!C50)/2)+Dn(Matriz2!O119,TRAYECTORIA!D51,(TRAYECTORIA!C51-TRAYECTORIA!C50)/2)+Q118 ->  | R119: =De(Matriz2!O118,TRAYECTORIA!D50,(TRAYECTORIA!C51-TRAYECTORIA!C50)/2)+De(Matriz2!O119,TRAYECTORIA!D51,(TRAYECTORIA!C51-TRAYECTORIA!C50)/2)+R118 ->  | S119: =DVt(TRAYECTORIA!D50,(TRAYECTORIA!C51-TRAYECTORIA!C50)/2)+DVt(TRAYECTORIA!D51,(TRAYECTORIA!C51-TRAYECTORIA!C50)/2)+S118 ->  | W119: =Dn(Matriz2!$A$74,TRAYECTORIA!$P$10,TRAYECTORIA!C51-TRAYECTORIA!C50)+W118 ->  | X119: =De(Matriz2!$A$74,TRAYECTORIA!$P$10,TRAYECTORIA!C51-TRAYECTORIA!C50)+X118 ->  | Y119: =DVt(TRAYECTORIA!$P$10,TRAYECTORIA!C51-TRAYECTORIA!C50)+Y118 -> 
K120: =ISBLANK(TRAYECTORIA!C53) -> TRUE | L120: =ISBLANK(TRAYECTORIA!E53) -> TRUE | M120: =ISBLANK(TRAYECTORIA!D53) -> TRUE | O120: =TRAYECTORIA!E52*-1 -> 0 | Q120: =Dn(Matriz2!O119,TRAYECTORIA!D51,(TRAYECTORIA!C52-TRAYECTORIA!C51)/2)+Dn(Matriz2!O120,TRAYECTORIA!D52,(TRAYECTORIA!C52-TRAYECTORIA!C51)/2)+Q119 ->  | R120: =De(Matriz2!O119,TRAYECTORIA!D51,(TRAYECTORIA!C52-TRAYECTORIA!C51)/2)+De(Matriz2!O120,TRAYECTORIA!D52,(TRAYECTORIA!C52-TRAYECTORIA!C51)/2)+R119 ->  | S120: =DVt(TRAYECTORIA!D51,(TRAYECTORIA!C52-TRAYECTORIA!C51)/2)+DVt(TRAYECTORIA!D52,(TRAYECTORIA!C52-TRAYECTORIA!C51)/2)+S119 ->  | W120: =Dn(Matriz2!$A$74,TRAYECTORIA!$P$10,TRAYECTORIA!C52-TRAYECTORIA!C51)+W119 ->  | X120: =De(Matriz2!$A$74,TRAYECTORIA!$P$10,TRAYECTORIA!C52-TRAYECTORIA!C51)+X119 ->  | Y120: =DVt(TRAYECTORIA!$P$10,TRAYECTORIA!C52-TRAYECTORIA!C51)+Y119 -> 
K121: =ISBLANK(TRAYECTORIA!C54) -> TRUE | L121: =ISBLANK(TRAYECTORIA!E54) -> TRUE | M121: =ISBLANK(TRAYECTORIA!D54) -> TRUE | O121: =TRAYECTORIA!E53*-1 -> 0 | Q121: =Dn(Matriz2!O120,TRAYECTORIA!D52,(TRAYECTORIA!C53-TRAYECTORIA!C52)/2)+Dn(Matriz2!O121,TRAYECTORIA!D53,(TRAYECTORIA!C53-TRAYECTORIA!C52)/2)+Q120 ->  | R121: =De(Matriz2!O120,TRAYECTORIA!D52,(TRAYECTORIA!C53-TRAYECTORIA!C52)/2)+De(Matriz2!O121,TRAYECTORIA!D53,(TRAYECTORIA!C53-TRAYECTORIA!C52)/2)+R120 ->  | S121: =DVt(TRAYECTORIA!D52,(TRAYECTORIA!C53-TRAYECTORIA!C52)/2)+DVt(TRAYECTORIA!D53,(TRAYECTORIA!C53-TRAYECTORIA!C52)/2)+S120 ->  | W121: =Dn(Matriz2!$A$74,TRAYECTORIA!$P$10,TRAYECTORIA!C53-TRAYECTORIA!C52)+W120 ->  | X121: =De(Matriz2!$A$74,TRAYECTORIA!$P$10,TRAYECTORIA!C53-TRAYECTORIA!C52)+X120 ->  | Y121: =DVt(TRAYECTORIA!$P$10,TRAYECTORIA!C53-TRAYECTORIA!C52)+Y120 -> 
K122: =ISBLANK(TRAYECTORIA!C55) -> TRUE | L122: =ISBLANK(TRAYECTORIA!E55) -> TRUE | M122: =ISBLANK(TRAYECTORIA!D55) -> TRUE | O122: =TRAYECTORIA!E54*-1 -> 0 | Q122: =Dn(Matriz2!O121,TRAYECTORIA!D53,(TRAYECTORIA!C54-TRAYECTORIA!C53)/2)+Dn(Matriz2!O122,TRAYECTORIA!D54,(TRAYECTORIA!C54-TRAYECTORIA!C53)/2)+Q121 ->  | R122: =De(Matriz2!O121,TRAYECTORIA!D53,(TRAYECTORIA!C54-TRAYECTORIA!C53)/2)+De(Matriz2!O122,TRAYECTORIA!D54,(TRAYECTORIA!C54-TRAYECTORIA!C53)/2)+R121 ->  | S122: =DVt(TRAYECTORIA!D53,(TRAYECTORIA!C54-TRAYECTORIA!C53)/2)+DVt(TRAYECTORIA!D54,(TRAYECTORIA!C54-TRAYECTORIA!C53)/2)+S121 ->  | W122: =Dn(Matriz2!$A$74,TRAYECTORIA!$P$10,TRAYECTORIA!C54-TRAYECTORIA!C53)+W121 ->  | X122: =De(Matriz2!$A$74,TRAYECTORIA!$P$10,TRAYECTORIA!C54-TRAYECTORIA!C53)+X121 ->  | Y122: =DVt(TRAYECTORIA!$P$10,TRAYECTORIA!C54-TRAYECTORIA!C53)+Y121 -> 
K123: =ISBLANK(TRAYECTORIA!C56) -> TRUE | L123: =ISBLANK(TRAYECTORIA!E56) -> TRUE | M123: =ISBLANK(TRAYECTORIA!D56) -> TRUE | O123: =TRAYECTORIA!E55*-1 -> 0 | Q123: =Dn(Matriz2!O122,TRAYECTORIA!D54,(TRAYECTORIA!C55-TRAYECTORIA!C54)/2)+Dn(Matriz2!O123,TRAYECTORIA!D55,(TRAYECTORIA!C55-TRAYECTORIA!C54)/2)+Q122 ->  | R123: =De(Matriz2!O122,TRAYECTORIA!D54,(TRAYECTORIA!C55-TRAYECTORIA!C54)/2)+De(Matriz2!O123,TRAYECTORIA!D55,(TRAYECTORIA!C55-TRAYECTORIA!C54)/2)+R122 ->  | S123: =DVt(TRAYECTORIA!D54,(TRAYECTORIA!C55-TRAYECTORIA!C54)/2)+DVt(TRAYECTORIA!D55,(TRAYECTORIA!C55-TRAYECTORIA!C54)/2)+S122 ->  | W123: =Dn(Matriz2!$A$74,TRAYECTORIA!$P$10,TRAYECTORIA!C55-TRAYECTORIA!C54)+W122 ->  | X123: =De(Matriz2!$A$74,TRAYECTORIA!$P$10,TRAYECTORIA!C55-TRAYECTORIA!C54)+X122 ->  | Y123: =DVt(TRAYECTORIA!$P$10,TRAYECTORIA!C55-TRAYECTORIA!C54)+Y122 -> 
K124: =ISBLANK(TRAYECTORIA!C57) -> TRUE | L124: =ISBLANK(TRAYECTORIA!E57) -> TRUE | M124: =ISBLANK(TRAYECTORIA!D57) -> TRUE | O124: =TRAYECTORIA!E56*-1 -> 0 | Q124: =Dn(Matriz2!O123,TRAYECTORIA!D55,(TRAYECTORIA!C56-TRAYECTORIA!C55)/2)+Dn(Matriz2!O124,TRAYECTORIA!D56,(TRAYECTORIA!C56-TRAYECTORIA!C55)/2)+Q123 ->  | R124: =De(Matriz2!O123,TRAYECTORIA!D55,(TRAYECTORIA!C56-TRAYECTORIA!C55)/2)+De(Matriz2!O124,TRAYECTORIA!D56,(TRAYECTORIA!C56-TRAYECTORIA!C55)/2)+R123 ->  | S124: =DVt(TRAYECTORIA!D55,(TRAYECTORIA!C56-TRAYECTORIA!C55)/2)+DVt(TRAYECTORIA!D56,(TRAYECTORIA!C56-TRAYECTORIA!C55)/2)+S123 ->  | W124: =Dn(Matriz2!$A$74,TRAYECTORIA!$P$10,TRAYECTORIA!C56-TRAYECTORIA!C55)+W123 ->  | X124: =De(Matriz2!$A$74,TRAYECTORIA!$P$10,TRAYECTORIA!C56-TRAYECTORIA!C55)+X123 ->  | Y124: =DVt(TRAYECTORIA!$P$10,TRAYECTORIA!C56-TRAYECTORIA!C55)+Y123 -> 
K125: =ISBLANK(TRAYECTORIA!C58) -> TRUE | L125: =ISBLANK(TRAYECTORIA!E58) -> TRUE | M125: =ISBLANK(TRAYECTORIA!D58) -> TRUE | O125: =TRAYECTORIA!E57*-1 -> 0 | Q125: =Dn(Matriz2!O124,TRAYECTORIA!D56,(TRAYECTORIA!C57-TRAYECTORIA!C56)/2)+Dn(Matriz2!O125,TRAYECTORIA!D57,(TRAYECTORIA!C57-TRAYECTORIA!C56)/2)+Q124 ->  | R125: =De(Matriz2!O124,TRAYECTORIA!D56,(TRAYECTORIA!C57-TRAYECTORIA!C56)/2)+De(Matriz2!O125,TRAYECTORIA!D57,(TRAYECTORIA!C57-TRAYECTORIA!C56)/2)+R124 ->  | S125: =DVt(TRAYECTORIA!D56,(TRAYECTORIA!C57-TRAYECTORIA!C56)/2)+DVt(TRAYECTORIA!D57,(TRAYECTORIA!C57-TRAYECTORIA!C56)/2)+S124 ->  | W125: =Dn(Matriz2!$A$74,TRAYECTORIA!$P$10,TRAYECTORIA!C57-TRAYECTORIA!C56)+W124 ->  | X125: =De(Matriz2!$A$74,TRAYECTORIA!$P$10,TRAYECTORIA!C57-TRAYECTORIA!C56)+X124 ->  | Y125: =DVt(TRAYECTORIA!$P$10,TRAYECTORIA!C57-TRAYECTORIA!C56)+Y124 -> 
